Workbook

Sheet M Max (hidden)
A1: Zähler | B1: n [1/min] | C1: ω [1/s] | D1: L phph [mH] | E1: PP | F1: XL ph [Ω] | G1: R phph [Ω] | H1: R ph [Ω] | I1: ke [V/1000] | J1: U EMK eff phph [V] | K1: U EMK eff ph [V] | L1: Unetz phph [V] | M1: Unetz ph [V] | N1: U1 ph [V] | O1: XLR [Ω] | P1: Imax ph [A] | Q1: M Max [Nm] | R1: M MaxM [Nm] | S1: Spannungskennlinie 1 [Nm] | T1: a | U1: b | V1: c | W1: I 12 | X1: M Max [Nm] | Y1: M MaxM [Nm] | Z1: Spannungskennlinie 2 [Nm] | AA1: M MaxM (I MaxRegler) [Nm] | AB1: Spannungskennlinie [Nm] | AC1: M MaxM (I MaxRegler) [Nm] | AE1: n [1/min] | AF1: PFe Ph [W] | AG1: PCuPh [W] | AH1: IS1 [A] | AI1: S1 Kennlinie | AL1: aktuell
A2: 0 | B2: =A2*nNennM*1.1*nMaxMFaktor/55 -> 0 | C2: =2*PI()*B2/60 -> 0 | D2: =VLOOKUP(Hardware!$B$52,MotorenAuswahlMatrix,17,FALSE) -> 3.2 | E2: =VLOOKUP(Hardware!$B$52,MotorenAuswahlMatrix,26,FALSE) -> 3 | F2: =C2*D2/2/1000*E2 -> 0 | G2: =VLOOKUP(Hardware!$B$52,MotorenAuswahlMatrix,16,FALSE) -> 0.8 | H2: =VLOOKUP(Hardware!$B$52,MotorenAuswahlMatrix,16,FALSE)/2 -> 0.4 | I2: =VLOOKUP(Hardware!$B$52,MotorenAuswahlMatrix,21,FALSE) -> 30 | J2: =I2*B2/1000 -> 0 | K2: =J2/ SQRT(3) -> 0 | L2: =UNetz -> 230 | M2: =L2/SQRT(3) -> 132.7905619 | N2: =M2*0.9 -> 119.5115057 | O2: =SQRT(F2^2+H2^2) -> 0.4 | P2: =SQRT((N2^2-K2^2)/O2^2) -> 298.7787643 | Q2: =P2*MMaxM/IMaxM -> 144.3101432 | R2: =MMaxM -> 16 | S2: =IF(Q2>R2,R2,Q2) -> 16 | T2: =F2^2+H2^2 -> 0.16 | U2: =2*H2*K2 -> 0 | V2: =-(M2^2-K2^2) -> -17633.33333 | W2: =(-U2+SQRT(U2^2-4*T2*V2))/(2*T2) -> 331.9764048 | X2: =W2*MMaxM/IMaxM -> 160.3446035 | Y2: =MMaxM -> 16 | Z2: =IF(X2>0,IF(X2>Y2,Y2,X2),0) -> 16 | AA2: =IMaxeinstellen*MNennM/INennM -> 5.8 | AB2: =IF(OR($AL$3="EX",$AL$3="NX"),Z2,S2) -> 16 | AC2: =IF(AA2>0,IF(AA2>AB2,AB2,AA2),0) -> 5.8 | AE2: =A2*nNennM*nMaxMFaktor/50 -> 0 | AF2: =AE2*$AL$16/nNennM -> 0 | AG2: =$AL$14-AF2 -> 27.556 | AH2: =SQRT(AG2/$H$2) -> 8.3 | AI2: =AH2*MNennM/INennM -> 4.011666667 | AK2: Motor: | AL2: =Hardware!$B$52 -> AC M2n0290-4/1-3
A3: 1 | B3: 80 | C3: =2*PI()*B3/60 -> 8.37758041 | D3: =VLOOKUP(Hardware!$B$52,MotorenAuswahlMatrix,17,FALSE) -> 3.2 | E3: =VLOOKUP(Hardware!$B$52,MotorenAuswahlMatrix,26,FALSE) -> 3 | F3: =C3*D3/2/1000*E3 -> 0.04021238597 | G3: =VLOOKUP(Hardware!$B$52,MotorenAuswahlMatrix,16,FALSE) -> 0.8 | H3: =VLOOKUP(Hardware!$B$52,MotorenAuswahlMatrix,16,FALSE)/2 -> 0.4 | I3: =VLOOKUP(Hardware!$B$52,MotorenAuswahlMatrix,21,FALSE) -> 30 | J3: =I3*B3/1000 -> 2.4 | K3: =J3/ SQRT(3) -> 1.385640646 | L3: 230 | M3: =L3/SQRT(3) -> 132.7905619 | N3: =M3*0.9 -> 119.5115057 | O3: =SQRT(F3^2+H3^2) -> 0.4020162136 | P3: =SQRT((N3^2-K3^2)/O3^2) -> 297.2603311 | Q3: 143.5767399 | R3: 16 | S3: =IF(Q3>R3,R3,Q3) -> 16 | T3: =F3^2+H3^2 -> 0.161617036 | U3: =2*H3*K3 -> 1.108512517 | V3: =-(M3^2-K3^2) -> -17631.41333 | W3: =(-U3+SQRT(U3^2-4*T3*V3))/(2*T3) -> 326.8818367 | X3: 157.8839271 | Y3: 16 | Z3: =IF(X3>0,IF(X3>Y3,Y3,X3),0) -> 16 | AA3: 5.8 | AB3: =IF(OR($AL$3="EX",$AL$3="NX"),Z3,S3) -> 16 | AC3: 5.8 | AE3: 80 | AF3: 0.26312 | AG3: 27.29288 | AH3: =SQRT(AG3/$H$2) -> 8.260278446 | AI3: 3.992467915 | AK3: Motor Bez: | AL3: =LEFT(AL2,2) -> AC
A4: 2 | B4: 160 | C4: 16.75516082 | D4: =VLOOKUP(Hardware!$B$52,MotorenAuswahlMatrix,17,FALSE) -> 3.2 | E4: =VLOOKUP(Hardware!$B$52,MotorenAuswahlMatrix,26,FALSE) -> 3 | F4: 0.08042477193 | G4: =VLOOKUP(Hardware!$B$52,MotorenAuswahlMatrix,16,FALSE) -> 0.8 | H4: =VLOOKUP(Hardware!$B$52,MotorenAuswahlMatrix,16,FALSE)/2 -> 0.4 | I4: =VLOOKUP(Hardware!$B$52,MotorenAuswahlMatrix,21,FALSE) -> 30 | J4: 4.8 | K4: 2.771281292 | L4: 230 | M4: 132.7905619 | N4: 119.5115057 | O4: 0.4080050783 | P4: 292.8379497 | Q4: 141.4407297 | R4: 16 | S4: 16 | T4: 0.1664681439 | U4: 2.217025034 | V4: -17625.65333 | W4: 318.8012517 | X4: 153.9810046 | Y4: 16 | Z4: 16 | AA4: 5.8 | AB4: 16 | AC4: 5.8 | AE4: 160 | AF4: 0.52624 | AG4: 27.02976 | AH4: 8.220364955 | AI4: 3.973176395 | AK4: Text yR Achse: | AL4: =Parameter!AH34&" Motor "&Parameter!Y34 -> M Motor [Nm]
A5: 3 | B5: 240 | C5: 25.13274123 | D5: =VLOOKUP(Hardware!$B$52,MotorenAuswahlMatrix,17,FALSE) -> 3.2 | E5: =VLOOKUP(Hardware!$B$52,MotorenAuswahlMatrix,26,FALSE) -> 3 | F5: 0.1206371579 | G5: =VLOOKUP(Hardware!$B$52,MotorenAuswahlMatrix,16,FALSE) -> 0.8 | H5: =VLOOKUP(Hardware!$B$52,MotorenAuswahlMatrix,16,FALSE)/2 -> 0.4 | I5: =VLOOKUP(Hardware!$B$52,MotorenAuswahlMatrix,21,FALSE) -> 30 | J5: 7.2 | K5: 4.156921938 | L5: 230 | M5: 132.7905619 | N5: 119.5115057 | O5: 0.4177957921 | P5: 285.8793502 | Q5: 138.0797261 | R5: 16 | S5: 16 | T5: 0.1745533239 | U5: 3.325537551 | V5: -17616.05333 | W5: 308.2972099 | X5: 148.9075524 | Y5: 16 | Z5: 16 | AA5: 5.8 | AB5: 16 | AC5: 5.8 | AE5: 240 | AF5: 0.78936 | AG5: 26.76664 | AH5: 8.18025672 | AI5: 3.953790748 | AK5: Text yL Achse:
A6: 4 | B6: 320 | C6: 33.51032164 | D6: =VLOOKUP(Hardware!$B$52,MotorenAuswahlMatrix,17,FALSE) -> 3.2 | E6: =VLOOKUP(Hardware!$B$52,MotorenAuswahlMatrix,26,FALSE) -> 3 | F6: 0.1608495439 | G6: =VLOOKUP(Hardware!$B$52,MotorenAuswahlMatrix,16,FALSE) -> 0.8 | H6: =VLOOKUP(Hardware!$B$52,MotorenAuswahlMatrix,16,FALSE)/2 -> 0.4 | I6: =VLOOKUP(Hardware!$B$52,MotorenAuswahlMatrix,21,FALSE) -> 30 | J6: 9.6 | K6: 5.542562584 | L6: 230 | M6: 132.7905619 | N6: 119.5115057 | O6: 0.4311294188 | P6: 276.9073697 | Q6: 133.7462596 | R6: 16 | S6: 16 | T6: 0.1858725758 | U6: 4.434050067 | V6: -17602.61333 | W6: 296.041256 | X6: 142.9879266 | Y6: 16 | Z6: 16 | AA6: 5.8 | AB6: 16 | AC6: 5.8 | AE6: 320 | AF6: 1.05248 | AG6: 26.50352 | AH6: 8.13995086 | AI6: 3.934309582 | AK6: Text x Achse: | AL6: =Parameter!AA34&" Motor "&Parameter!R34 -> n Motor [1/min]
A7: 5 | B7: 400 | C7: 41.88790205 | D7: =VLOOKUP(Hardware!$B$52,MotorenAuswahlMatrix,17,FALSE) -> 3.2 | E7: =VLOOKUP(Hardware!$B$52,MotorenAuswahlMatrix,26,FALSE) -> 3 | F7: 0.2010619298 | G7: =VLOOKUP(Hardware!$B$52,MotorenAuswahlMatrix,16,FALSE) -> 0.8 | H7: =VLOOKUP(Hardware!$B$52,MotorenAuswahlMatrix,16,FALSE)/2 -> 0.4 | I7: =VLOOKUP(Hardware!$B$52,MotorenAuswahlMatrix,21,FALSE) -> 30 | J7: 12 | K7: 6.92820323 | L7: 230 | M7: 132.7905619 | N7: 119.5115057 | O7: 0.4476895125 | P7: 266.5028237 | Q7: 128.7208639 | R7: 16 | S7: 16 | T7: 0.2004258996 | U7: 5.542562584 | V7: -17585.33333 | W7: 282.7046717 | X7: 136.5463564 | Y7: 16 | Z7: 16 | AA7: 5.8 | AB7: 16 | AC7: 5.8 | AE7: 400 | AF7: 1.3156 | AG7: 26.2404 | AH7: 8.099444425 | AI7: 3.914731472 | AK7: Text Reihe1: | AL7: ="erf. "&Parameter!AH34&" Motor "&Parameter!Y34 -> erf. M Motor [Nm]
A8: 6 | B8: 480 | C8: 50.26548246 | D8: =VLOOKUP(Hardware!$B$52,MotorenAuswahlMatrix,17,FALSE) -> 3.2 | E8: =VLOOKUP(Hardware!$B$52,MotorenAuswahlMatrix,26,FALSE) -> 3 | F8: 0.2412743158 | G8: =VLOOKUP(Hardware!$B$52,MotorenAuswahlMatrix,16,FALSE) -> 0.8 | H8: =VLOOKUP(Hardware!$B$52,MotorenAuswahlMatrix,16,FALSE)/2 -> 0.4 | I8: =VLOOKUP(Hardware!$B$52,MotorenAuswahlMatrix,21,FALSE) -> 30 | J8: 14.4 | K8: 8.313843876 | L8: 230 | M8: 132.7905619 | N8: 119.5115057 | O8: 0.4671330597 | P8: 255.2205959 | Q8: 123.2715478 | R8: 16 | S8: 16 | T8: 0.2182132955 | U8: 6.651075101 | V8: -17564.21333 | W8: 268.8785862 | X8: 129.8683571 | Y8: 16 | Z8: 16 | AA8: 5.8 | AB8: 16 | AC8: 5.8 | AE8: 480 | AF8: 1.57872 | AG8: 25.97728 | AH8: 8.058734392 | AI8: 3.895054956 | AK8: Text Reihe2: | AL8: =Hardware!G53&" "&Parameter!Y34 -> erf. M Nenn Motor [Nm]
A9: 7 | B9: 560 | C9: 58.64306287 | D9: =VLOOKUP(Hardware!$B$52,MotorenAuswahlMatrix,17,FALSE) -> 3.2 | E9: =VLOOKUP(Hardware!$B$52,MotorenAuswahlMatrix,26,FALSE) -> 3 | F9: 0.2814867018 | G9: =VLOOKUP(Hardware!$B$52,MotorenAuswahlMatrix,16,FALSE) -> 0.8 | H9: =VLOOKUP(Hardware!$B$52,MotorenAuswahlMatrix,16,FALSE)/2 -> 0.4 | I9: =VLOOKUP(Hardware!$B$52,MotorenAuswahlMatrix,21,FALSE) -> 30 | J9: 16.8 | K9: 9.699484522 | L9: 230 | M9: 132.7905619 | N9: 119.5115057 | O9: 0.4891163085 | P9: 243.5356398 | Q9: 117.627714 | R9: 16 | S9: 16 | T9: 0.2392347633 | U9: 7.759587618 | V9: -17539.25333 | W9: 255.0332725 | X9: 123.1810706 | Y9: 16 | Z9: 16 | AA9: 5.8 | AB9: 16 | AC9: 5.8 | AE9: 560 | AF9: 1.84184 | AG9: 25.71416 | AH9: 8.017817658 | AI9: 3.875278535 | AK9: Text Reihe3: | AL9: ="Spannungskennlinie "&Parameter!Y34 -> Spannungskennlinie [Nm]
A10: 8 | B10: 640 | C10: 67.02064328 | D10: =VLOOKUP(Hardware!$B$52,MotorenAuswahlMatrix,17,FALSE) -> 3.2 | E10: =VLOOKUP(Hardware!$B$52,MotorenAuswahlMatrix,26,FALSE) -> 3 | F10: 0.3216990877 | G10: =VLOOKUP(Hardware!$B$52,MotorenAuswahlMatrix,16,FALSE) -> 0.8 | H10: =VLOOKUP(Hardware!$B$52,MotorenAuswahlMatrix,16,FALSE)/2 -> 0.4 | I10: =VLOOKUP(Hardware!$B$52,MotorenAuswahlMatrix,21,FALSE) -> 30 | J10: 19.2 | K10: 11.08512517 | L10: 230 | M10: 132.7905619 | N10: 119.5115057 | O10: 0.5133130653 | P10: 231.8201318 | Q10: 111.9691237 | R10: 16 | S10: 16 | T10: 0.263490303 | U10: 8.868100135 | V10: -17510.45333 | W10: 241.5107232 | X10: 116.6496793 | Y10: 16 | Z10: 16 | AA10: 5.8 | AB10: 16 | AC10: 5.8 | AE10: 640 | AF10: 2.10496 | AG10: 25.45104 | AH10: 7.976691043 | AI10: 3.855400671 | AK10: Text Reihe4: | AL10: =Parameter!AH34&" MaxMotor (I Max_Eingestellt_Regler) "&Parameter!Y34 -> M MaxMotor (I Max_Eingestellt_Regler) [Nm]
A11: 9 | B11: 720 | C11: 75.39822369 | D11: =VLOOKUP(Hardware!$B$52,MotorenAuswahlMatrix,17,FALSE) -> 3.2 | E11: =VLOOKUP(Hardware!$B$52,MotorenAuswahlMatrix,26,FALSE) -> 3 | F11: 0.3619114737 | G11: =VLOOKUP(Hardware!$B$52,MotorenAuswahlMatrix,16,FALSE) -> 0.8 | H11: =VLOOKUP(Hardware!$B$52,MotorenAuswahlMatrix,16,FALSE)/2 -> 0.4 | I11: =VLOOKUP(Hardware!$B$52,MotorenAuswahlMatrix,21,FALSE) -> 30 | J11: 21.6 | K11: 12.47076581 | L11: 230 | M11: 132.7905619 | N11: 119.5115057 | O11: 0.5394255415 | P11: 220.3438048 | Q11: 106.4260577 | R11: 16 | S11: 16 | T11: 0.2909799148 | U11: 9.976612652 | V11: -17477.81333 | W11: 228.5380601 | X11: 110.383883 | Y11: 16 | Z11: 16 | AA11: 5.8 | AB11: 16 | AC11: 5.8 | AE11: 720 | AF11: 2.36808 | AG11: 25.18792 | AH11: 7.935351284 | AI11: 3.835419787 | AK11: Text Reihe3: | AL11: ="S1 Kennlinie "&Parameter!Y34 -> S1 Kennlinie [Nm]
A12: 10 | B12: 800 | C12: 83.7758041 | D12: =VLOOKUP(Hardware!$B$52,MotorenAuswahlMatrix,17,FALSE) -> 3.2 | E12: =VLOOKUP(Hardware!$B$52,MotorenAuswahlMatrix,26,FALSE) -> 3 | F12: 0.4021238597 | G12: =VLOOKUP(Hardware!$B$52,MotorenAuswahlMatrix,16,FALSE) -> 0.8 | H12: =VLOOKUP(Hardware!$B$52,MotorenAuswahlMatrix,16,FALSE)/2 -> 0.4 | I12: =VLOOKUP(Hardware!$B$52,MotorenAuswahlMatrix,21,FALSE) -> 30 | J12: 24 | K12: 13.85640646 | L12: 230 | M12: 132.7905619 | N12: 119.5115057 | O12: 0.5671892087 | P12: 209.2873351 | Q12: 101.0857828 | R12: 16 | S12: 16 | T12: 0.3217035985 | U12: 11.08512517 | V12: -17441.33333 | W12: 216.2500521 | X12: 104.4487752 | Y12: 16 | Z12: 16 | AA12: 5.8 | AB12: 16 | AC12: 5.8 | AE12: 800 | AF12: 2.6312 | AG12: 24.9248 | AH12: 7.893795032 | AI12: 3.815334265
A13: 11 | B13: 880 | C13: 92.15338451 | D13: =VLOOKUP(Hardware!$B$52,MotorenAuswahlMatrix,17,FALSE) -> 3.2 | E13: =VLOOKUP(Hardware!$B$52,MotorenAuswahlMatrix,26,FALSE) -> 3 | F13: 0.4423362456 | G13: =VLOOKUP(Hardware!$B$52,MotorenAuswahlMatrix,16,FALSE) -> 0.8 | H13: =VLOOKUP(Hardware!$B$52,MotorenAuswahlMatrix,16,FALSE)/2 -> 0.4 | I13: =VLOOKUP(Hardware!$B$52,MotorenAuswahlMatrix,21,FALSE) -> 30 | J13: 26.4 | K13: 15.24204711 | L13: 230 | M13: 132.7905619 | N13: 119.5115057 | O13: 0.5963735023 | P13: 198.7606153 | Q13: 96.00137721 | R13: 16 | S13: 16 | T13: 0.3556613542 | U13: 12.19363769 | V13: -17401.01333 | W13: 204.7128108 | X13: 98.87628763 | Y13: 16 | Z13: 16 | AA13: 5.8 | AB13: 16 | AC13: 5.8 | AE13: 880 | AF13: 2.89432 | AG13: 24.66168 | AH13: 7.852018849 | AI13: 3.795142444
A14: 12 | B14: 960 | C14: 100.5309649 | D14: =VLOOKUP(Hardware!$B$52,MotorenAuswahlMatrix,17,FALSE) -> 3.2 | E14: =VLOOKUP(Hardware!$B$52,MotorenAuswahlMatrix,26,FALSE) -> 3 | F14: 0.4825486316 | G14: =VLOOKUP(Hardware!$B$52,MotorenAuswahlMatrix,16,FALSE) -> 0.8 | H14: =VLOOKUP(Hardware!$B$52,MotorenAuswahlMatrix,16,FALSE)/2 -> 0.4 | I14: =VLOOKUP(Hardware!$B$52,MotorenAuswahlMatrix,21,FALSE) -> 30 | J14: 28.8 | K14: 16.62768775 | L14: 230 | M14: 132.7905619 | N14: 119.5115057 | O14: 0.6267800107 | P14: 188.8208661 | Q14: 91.20047833 | R14: 16 | S14: 16 | T14: 0.3928531819 | U14: 13.3021502 | V14: -17356.85333 | W14: 193.944564 | X14: 93.67522441 | Y14: 16 | Z14: 16 | AA14: 5.8 | AB14: 16 | AC14: 5.8 | AE14: 960 | AF14: 3.15744 | AG14: 24.39856 | AH14: 7.810019206 | AI14: 3.774842616 | AK14: PV MaxPh: | AL14: =I0Motor^2*'M Max'!H2 -> 27.556 | AM14: [W]
A15: 13 | B15: 1040 | C15: 108.9085453 | D15: =VLOOKUP(Hardware!$B$52,MotorenAuswahlMatrix,17,FALSE) -> 3.2 | E15: =VLOOKUP(Hardware!$B$52,MotorenAuswahlMatrix,26,FALSE) -> 3 | F15: 0.5227610176 | G15: =VLOOKUP(Hardware!$B$52,MotorenAuswahlMatrix,16,FALSE) -> 0.8 | H15: =VLOOKUP(Hardware!$B$52,MotorenAuswahlMatrix,16,FALSE)/2 -> 0.4 | I15: =VLOOKUP(Hardware!$B$52,MotorenAuswahlMatrix,21,FALSE) -> 30 | J15: 31.2 | K15: 18.0133284 | L15: 230 | M15: 132.7905619 | N15: 119.5115057 | O15: 0.6582393801 | P15: 179.4881683 | Q15: 86.6927853 | R15: 16 | S15: 16 | T15: 0.4332790815 | U15: 14.41066272 | V15: -17308.85333 | W15: 183.9320869 | X15: 88.83919799 | Y15: 16 | Z15: 16 | AA15: 5.8 | AB15: 16 | AC15: 5.8 | AE15: 1040 | AF15: 3.42056 | AG15: 24.13544 | AH15: 7.767792479 | AI15: 3.754433032 | AK15: PCu NennPh: | AL15: =INennM^2*'M Max'!H2 -> 14.4 | AM15: [W]
A16: 14 | B16: 1120 | C16: 117.2861257 | D16: =VLOOKUP(Hardware!$B$52,MotorenAuswahlMatrix,17,FALSE) -> 3.2 | E16: =VLOOKUP(Hardware!$B$52,MotorenAuswahlMatrix,26,FALSE) -> 3 | F16: 0.5629734035 | G16: =VLOOKUP(Hardware!$B$52,MotorenAuswahlMatrix,16,FALSE) -> 0.8 | H16: =VLOOKUP(Hardware!$B$52,MotorenAuswahlMatrix,16,FALSE)/2 -> 0.4 | I16: =VLOOKUP(Hardware!$B$52,MotorenAuswahlMatrix,21,FALSE) -> 30 | J16: 33.6 | K16: 19.39896904 | L16: 230 | M16: 132.7905619 | N16: 119.5115057 | O16: 0.6906077418 | P16: 170.7576967 | Q16: 82.47596752 | R16: 16 | S16: 16 | T16: 0.4769390531 | U16: 15.51917524 | V16: -17257.01333 | W16: 174.6428477 | X16: 84.35249543 | Y16: 16 | Z16: 16 | AA16: 5.8 | AB16: 16 | AC16: 5.8 | AE16: 1120 | AF16: 3.68368 | AG16: 23.87232 | AH16: 7.725334944 | AI16: 3.73391189 | AK16: PFe NennPh: | AL16: =AL14-AL15 -> 13.156 | AM16: [W]
A17: 15 | B17: 1200 | C17: 125.6637061 | D17: =VLOOKUP(Hardware!$B$52,MotorenAuswahlMatrix,17,FALSE) -> 3.2 | E17: =VLOOKUP(Hardware!$B$52,MotorenAuswahlMatrix,26,FALSE) -> 3 | F17: 0.6031857895 | G17: =VLOOKUP(Hardware!$B$52,MotorenAuswahlMatrix,16,FALSE) -> 0.8 | H17: =VLOOKUP(Hardware!$B$52,MotorenAuswahlMatrix,16,FALSE)/2 -> 0.4 | I17: =VLOOKUP(Hardware!$B$52,MotorenAuswahlMatrix,21,FALSE) -> 30 | J17: 36 | K17: 20.78460969 | L17: 230 | M17: 132.7905619 | N17: 119.5115057 | O17: 0.7237631495 | P17: 162.6088197 | Q17: 78.54005991 | R17: 16 | S17: 16 | T17: 0.5238330966 | U17: 16.62768775 | V17: -17201.33333 | W17: 166.0335455 | X17: 80.19420247 | Y17: 16 | Z17: 16 | AA17: 5.8 | AB17: 16 | AC17: 5.8 | AE17: 1200 | AF17: 3.9468 | AG17: 23.6092 | AH17: 7.682642774 | AI17: 3.713277341 | AK17: C ZWK: | AL17: =VLOOKUP(Hardware!$B$68,ReglerAuswahlMatrix,12,FALSE)/1000000+CExt/1000000 -> 0.00066 | AM17: [F]
A18: 16 | B18: 1280 | C18: 134.0412866 | D18: =VLOOKUP(Hardware!$B$52,MotorenAuswahlMatrix,17,FALSE) -> 3.2 | E18: =VLOOKUP(Hardware!$B$52,MotorenAuswahlMatrix,26,FALSE) -> 3 | F18: 0.6433981755 | G18: =VLOOKUP(Hardware!$B$52,MotorenAuswahlMatrix,16,FALSE) -> 0.8 | H18: =VLOOKUP(Hardware!$B$52,MotorenAuswahlMatrix,16,FALSE)/2 -> 0.4 | I18: =VLOOKUP(Hardware!$B$52,MotorenAuswahlMatrix,21,FALSE) -> 30 | J18: 38.4 | K18: 22.17025034 | L18: 230 | M18: 132.7905619 | N18: 119.5115057 | O18: 0.7576022784 | P18: 155.0115878 | Q18: 74.87059693 | R18: 16 | S18: 16 | T18: 0.5739612122 | U18: 17.73620027 | V18: -17141.81333 | W18: 158.0558702 | X18: 76.3409853 | Y18: 16 | Z18: 16 | AA18: 5.8 | AB18: 16 | AC18: 5.8 | AE18: 1280 | AF18: 4.20992 | AG18: 23.34608 | AH18: 7.639712036 | AI18: 3.692527484 | AK18: UREin: | AL18: =VLOOKUP(Hardware!$B$68,ReglerAuswahlMatrix,11,FALSE) -> 375 | AM18: [V]
A19: 17 | B19: 1360 | C19: 142.418867 | D19: =VLOOKUP(Hardware!$B$52,MotorenAuswahlMatrix,17,FALSE) -> 3.2 | E19: =VLOOKUP(Hardware!$B$52,MotorenAuswahlMatrix,26,FALSE) -> 3 | F19: 0.6836105614 | G19: =VLOOKUP(Hardware!$B$52,MotorenAuswahlMatrix,16,FALSE) -> 0.8 | H19: =VLOOKUP(Hardware!$B$52,MotorenAuswahlMatrix,16,FALSE)/2 -> 0.4 | I19: =VLOOKUP(Hardware!$B$52,MotorenAuswahlMatrix,21,FALSE) -> 30 | J19: 40.8 | K19: 23.55589098 | L19: 230 | M19: 132.7905619 | N19: 119.5115057 | O19: 0.7920374989 | P19: 147.9312032 | Q19: 71.45077116 | R19: 16 | S19: 16 | T19: 0.6273233997 | U19: 18.84471279 | V19: -17078.45333 | W19: 150.6602363 | X19: 72.76889413 | Y19: 16 | Z19: 16 | AA19: 5.8 | AB19: 16 | AC19: 5.8 | AE19: 1360 | AF19: 4.47304 | AG19: 23.08296 | AH19: 7.596538685 | AI19: 3.671660365
A20: 18 | B20: 1440 | C20: 150.7964474 | D20: =VLOOKUP(Hardware!$B$52,MotorenAuswahlMatrix,17,FALSE) -> 3.2 | E20: =VLOOKUP(Hardware!$B$52,MotorenAuswahlMatrix,26,FALSE) -> 3 | F20: 0.7238229474 | G20: =VLOOKUP(Hardware!$B$52,MotorenAuswahlMatrix,16,FALSE) -> 0.8 | H20: =VLOOKUP(Hardware!$B$52,MotorenAuswahlMatrix,16,FALSE)/2 -> 0.4 | I20: =VLOOKUP(Hardware!$B$52,MotorenAuswahlMatrix,21,FALSE) -> 30 | J20: 43.2 | K20: 24.94153163 | L20: 230 | M20: 132.7905619 | N20: 119.5115057 | O20: 0.8269943526 | P20: 141.3309995 | Q20: 68.26287274 | R20: 16 | S20: 16 | T20: 0.6839196592 | U20: 19.9532253 | V20: -17011.25333 | W20: 143.7980978 | X20: 69.45448125 | Y20: 16 | Z20: 16 | AA20: 5.8 | AB20: 16 | AC20: 5.8 | AE20: 1440 | AF20: 4.73616 | AG20: 22.81984 | AH20: 7.553118561 | AI20: 3.650673971
A21: 19 | B21: 1520 | C21: 159.1740278 | D21: =VLOOKUP(Hardware!$B$52,MotorenAuswahlMatrix,17,FALSE) -> 3.2 | E21: =VLOOKUP(Hardware!$B$52,MotorenAuswahlMatrix,26,FALSE) -> 3 | F21: 0.7640353334 | G21: =VLOOKUP(Hardware!$B$52,MotorenAuswahlMatrix,16,FALSE) -> 0.8 | H21: =VLOOKUP(Hardware!$B$52,MotorenAuswahlMatrix,16,FALSE)/2 -> 0.4 | I21: =VLOOKUP(Hardware!$B$52,MotorenAuswahlMatrix,21,FALSE) -> 30 | J21: 45.6 | K21: 26.32717228 | L21: 230 | M21: 132.7905619 | N21: 119.5115057 | O21: 0.8624094101 | P21: 135.1743607 | Q21: 65.28921622 | R21: 16 | S21: 16 | T21: 0.7437499906 | U21: 21.06173782 | V21: -16940.21333 | W21: 137.4232988 | X21: 66.37545332 | Y21: 16 | Z21: 16 | AA21: 5.8 | AB21: 16 | AC21: 5.8 | AE21: 1520 | AF21: 4.99928 | AG21: 22.55672 | AH21: 7.509447383 | AI21: 3.629566235
A22: 20 | B22: 1600 | C22: 167.5516082 | D22: =VLOOKUP(Hardware!$B$52,MotorenAuswahlMatrix,17,FALSE) -> 3.2 | E22: =VLOOKUP(Hardware!$B$52,MotorenAuswahlMatrix,26,FALSE) -> 3 | F22: 0.8042477193 | G22: =VLOOKUP(Hardware!$B$52,MotorenAuswahlMatrix,16,FALSE) -> 0.8 | H22: =VLOOKUP(Hardware!$B$52,MotorenAuswahlMatrix,16,FALSE)/2 -> 0.4 | I22: =VLOOKUP(Hardware!$B$52,MotorenAuswahlMatrix,21,FALSE) -> 30 | J22: 48 | K22: 27.71281292 | L22: 230 | M22: 132.7905619 | N22: 119.5115057 | O22: 0.8982284754 | P22: 129.4259037 | Q22: 62.5127115 | R22: 16 | S22: 16 | T22: 0.806814394 | U22: 22.17025034 | V22: -16865.33333 | W22: 131.4927854 | X22: 63.51101534 | Y22: 16 | Z22: 16 | AA22: 5.8 | AB22: 16 | AC22: 5.8 | AE22: 1600 | AF22: 5.2624 | AG22: 22.2936 | AH22: 7.465520745 | AI22: 3.608335027
A23: 21 | B23: 1680 | C23: 175.9291886 | D23: =VLOOKUP(Hardware!$B$52,MotorenAuswahlMatrix,17,FALSE) -> 3.2 | E23: =VLOOKUP(Hardware!$B$52,MotorenAuswahlMatrix,26,FALSE) -> 3 | F23: 0.8444601053 | G23: =VLOOKUP(Hardware!$B$52,MotorenAuswahlMatrix,16,FALSE) -> 0.8 | H23: =VLOOKUP(Hardware!$B$52,MotorenAuswahlMatrix,16,FALSE)/2 -> 0.4 | I23: =VLOOKUP(Hardware!$B$52,MotorenAuswahlMatrix,21,FALSE) -> 30 | J23: 50.4 | K23: 29.09845357 | L23: 230 | M23: 132.7905619 | N23: 119.5115057 | O23: 0.9344050885 | P23: 124.0521592 | Q23: 59.91719291 | R23: 16 | S23: 16 | T23: 0.8731128694 | U23: 23.27876285 | V23: -16786.61333 | W23: 125.9669069 | X23: 60.84201603 | Y23: 16 | Z23: 16 | AA23: 5.8 | AB23: 16 | AC23: 5.8 | AE23: 1680 | AF23: 5.52552 | AG23: 22.03048 | AH23: 7.421334112 | AI23: 3.586978154
A24: 22 | B24: 1760 | C24: 184.306769 | D24: =VLOOKUP(Hardware!$B$52,MotorenAuswahlMatrix,17,FALSE) -> 3.2 | E24: =VLOOKUP(Hardware!$B$52,MotorenAuswahlMatrix,26,FALSE) -> 3 | F24: 0.8846724913 | G24: =VLOOKUP(Hardware!$B$52,MotorenAuswahlMatrix,16,FALSE) -> 0.8 | H24: =VLOOKUP(Hardware!$B$52,MotorenAuswahlMatrix,16,FALSE)/2 -> 0.4 | I24: =VLOOKUP(Hardware!$B$52,MotorenAuswahlMatrix,21,FALSE) -> 30 | J24: 52.8 | K24: 30.48409421 | L24: 230 | M24: 132.7905619 | N24: 119.5115057 | O24: 0.9708992825 | P24: 119.0219203 | Q24: 57.48758748 | R24: 16 | S24: 16 | T24: 0.9426454168 | U24: 24.38727537 | V24: -16704.05333 | W24: 120.8094601 | X24: 58.35096921 | Y24: 16 | Z24: 16 | AA24: 5.8 | AB24: 16 | AC24: 5.8 | AE24: 1760 | AF24: 5.78864 | AG24: 21.76736 | AH24: 7.376882811 | AI24: 3.565493358
A25: 23 | B25: 1840 | C25: 192.6843494 | D25: =VLOOKUP(Hardware!$B$52,MotorenAuswahlMatrix,17,FALSE) -> 3.2 | E25: =VLOOKUP(Hardware!$B$52,MotorenAuswahlMatrix,26,FALSE) -> 3 | F25: 0.9248848772 | G25: =VLOOKUP(Hardware!$B$52,MotorenAuswahlMatrix,16,FALSE) -> 0.8 | H25: =VLOOKUP(Hardware!$B$52,MotorenAuswahlMatrix,16,FALSE)/2 -> 0.4 | I25: =VLOOKUP(Hardware!$B$52,MotorenAuswahlMatrix,21,FALSE) -> 30 | J25: 55.2 | K25: 31.86973486 | L25: 230 | M25: 132.7905619 | N25: 119.5115057 | O25: 1.007676553 | P25: 114.3063741 | Q25: 55.20997867 | R25: 16 | S25: 16 | T25: 1.015412036 | U25: 25.49578789 | V25: -16617.65333 | W25: 115.9875797 | X25: 56.02200101 | Y25: 16 | Z25: 16 | AA25: 5.8 | AB25: 16 | AC25: 5.8 | AE25: 1840 | AF25: 6.05176 | AG25: 21.50424 | AH25: 7.332162028 | AI25: 3.543878313
A26: 24 | B26: 1920 | C26: 201.0619298 | D26: =VLOOKUP(Hardware!$B$52,MotorenAuswahlMatrix,17,FALSE) -> 3.2 | E26: =VLOOKUP(Hardware!$B$52,MotorenAuswahlMatrix,26,FALSE) -> 3 | F26: 0.9650972632 | G26: =VLOOKUP(Hardware!$B$52,MotorenAuswahlMatrix,16,FALSE) -> 0.8 | H26: =VLOOKUP(Hardware!$B$52,MotorenAuswahlMatrix,16,FALSE)/2 -> 0.4 | I26: =VLOOKUP(Hardware!$B$52,MotorenAuswahlMatrix,21,FALSE) -> 30 | J26: 57.6 | K26: 33.25537551 | L26: 230 | M26: 132.7905619 | N26: 119.5115057 | O26: 1.044707006 | P26: 109.8790977 | Q26: 53.07160417 | R26: 16 | S26: 16 | T26: 1.091412727 | U26: 26.6043004 | V26: -16527.41333 | W26: 111.4715436 | X26: 53.84075556 | Y26: 16 | Z26: 16 | AA26: 5.8 | AB26: 16 | AC26: 5.8 | AE26: 1920 | AF26: 6.31488 | AG26: 21.24112 | AH26: 7.287166802 | AI26: 3.522130621
A27: 25 | B27: 2000 | C27: 209.4395102 | D27: =VLOOKUP(Hardware!$B$52,MotorenAuswahlMatrix,17,FALSE) -> 3.2 | E27: =VLOOKUP(Hardware!$B$52,MotorenAuswahlMatrix,26,FALSE) -> 3 | F27: 1.005309649 | G27: =VLOOKUP(Hardware!$B$52,MotorenAuswahlMatrix,16,FALSE) -> 0.8 | H27: =VLOOKUP(Hardware!$B$52,MotorenAuswahlMatrix,16,FALSE)/2 -> 0.4 | I27: =VLOOKUP(Hardware!$B$52,MotorenAuswahlMatrix,21,FALSE) -> 30 | J27: 60 | K27: 34.64101615 | L27: 230 | M27: 132.7905619 | N27: 119.5115057 | O27: 1.081964644 | P27: 105.7159706 | Q27: 51.06081379 | R27: 16 | S27: 16 | T27: 1.170647491 | U27: 27.71281292 | V27: -16433.33333 | W27: 107.2345344 | X27: 51.79428013 | Y27: 16 | Z27: 16 | AA27: 5.8 | AB27: 16 | AC27: 5.8 | AE27: 2000 | AF27: 6.578 | AG27: 20.978 | AH27: 7.241892018 | AI27: 3.500247809
A28: 26 | B28: 2080 | C28: 217.8170906 | D28: =VLOOKUP(Hardware!$B$52,MotorenAuswahlMatrix,17,FALSE) -> 3.2 | E28: =VLOOKUP(Hardware!$B$52,MotorenAuswahlMatrix,26,FALSE) -> 3 | F28: 1.045522035 | G28: =VLOOKUP(Hardware!$B$52,MotorenAuswahlMatrix,16,FALSE) -> 0.8 | H28: =VLOOKUP(Hardware!$B$52,MotorenAuswahlMatrix,16,FALSE)/2 -> 0.4 | I28: =VLOOKUP(Hardware!$B$52,MotorenAuswahlMatrix,21,FALSE) -> 30 | J28: 62.4 | K28: 36.0266568 | L28: 230 | M28: 132.7905619 | N28: 119.5115057 | O28: 1.119426785 | P28: 101.7950408 | Q28: 49.1670047 | R28: 16 | S28: 16 | T28: 1.253116326 | U28: 28.82132544 | V28: -16335.41333 | W28: 103.2523873 | X28: 49.87090306 | Y28: 16 | Z28: 16 | AA28: 5.8 | AB28: 16 | AC28: 5.8 | AE28: 2080 | AF28: 6.84112 | AG28: 20.71488 | AH28: 7.196332399 | AI28: 3.478227326
A29: 27 | B29: 2160 | C29: 226.1946711 | D29: =VLOOKUP(Hardware!$B$52,MotorenAuswahlMatrix,17,FALSE) -> 3.2 | E29: =VLOOKUP(Hardware!$B$52,MotorenAuswahlMatrix,26,FALSE) -> 3 | F29: 1.085734421 | G29: =VLOOKUP(Hardware!$B$52,MotorenAuswahlMatrix,16,FALSE) -> 0.8 | H29: =VLOOKUP(Hardware!$B$52,MotorenAuswahlMatrix,16,FALSE)/2 -> 0.4 | I29: =VLOOKUP(Hardware!$B$52,MotorenAuswahlMatrix,21,FALSE) -> 30 | J29: 64.8 | K29: 37.41229744 | L29: 230 | M29: 132.7905619 | N29: 119.5115057 | O29: 1.157073564 | P29: 98.09636748 | Q29: 47.38054549 | R29: 16 | S29: 16 | T29: 1.338819233 | U29: 29.92983795 | V29: -16233.65333 | W29: 99.50333833 | X29: 48.06011241 | Y29: 16 | Z29: 16 | AA29: 5.8 | AB29: 16 | AC29: 5.8 | AE29: 2160 | AF29: 7.10424 | AG29: 20.45176 | AH29: 7.150482501 | AI29: 3.456066542
A30: 28 | B30: 2240 | C30: 234.5722515 | D30: =VLOOKUP(Hardware!$B$52,MotorenAuswahlMatrix,17,FALSE) -> 3.2 | E30: =VLOOKUP(Hardware!$B$52,MotorenAuswahlMatrix,26,FALSE) -> 3 | F30: 1.125946807 | G30: =VLOOKUP(Hardware!$B$52,MotorenAuswahlMatrix,16,FALSE) -> 0.8 | H30: =VLOOKUP(Hardware!$B$52,MotorenAuswahlMatrix,16,FALSE)/2 -> 0.4 | I30: =VLOOKUP(Hardware!$B$52,MotorenAuswahlMatrix,21,FALSE) -> 30 | J30: 67.2 | K30: 38.79793809 | L30: 230 | M30: 132.7905619 | N30: 119.5115057 | O30: 1.194887531 | P30: 94.60185543 | Q30: 45.69269617 | R30: 16 | S30: 16 | T30: 1.427756212 | U30: 31.03835047 | V30: -16128.05333 | W30: 95.96778476 | X30: 46.35244004 | Y30: 16 | Z30: 16 | AA30: 5.8 | AB30: 16 | AC30: 5.8 | AE30: 2240 | AF30: 7.36736 | AG30: 20.18864 | AH30: 7.104336704 | AI30: 3.43376274
A31: 29 | B31: 2320 | C31: 242.9498319 | D31: =VLOOKUP(Hardware!$B$52,MotorenAuswahlMatrix,17,FALSE) -> 3.2 | E31: =VLOOKUP(Hardware!$B$52,MotorenAuswahlMatrix,26,FALSE) -> 3 | F31: 1.166159193 | G31: =VLOOKUP(Hardware!$B$52,MotorenAuswahlMatrix,16,FALSE) -> 0.8 | H31: =VLOOKUP(Hardware!$B$52,MotorenAuswahlMatrix,16,FALSE)/2 -> 0.4 | I31: =VLOOKUP(Hardware!$B$52,MotorenAuswahlMatrix,21,FALSE) -> 30 | J31: 69.6 | K31: 40.18357874 | L31: 230 | M31: 132.7905619 | N31: 119.5115057 | O31: 1.232853302 | P31: 91.29509068 | Q31: 44.0955288 | R31: 16 | S31: 16 | T31: 1.519927263 | U31: 32.14686299 | V31: -16018.61333 | W31: 92.62806146 | X31: 44.73935368 | Y31: 16 | Z31: 16 | AA31: 5.8 | AB31: 16 | AC31: 5.8 | AE31: 2320 | AF31: 7.63048 | AG31: 19.92552 | AH31: 7.057889203 | AI31: 3.411313115
A32: 30 | B32: 2400 | C32: 251.3274123 | D32: =VLOOKUP(Hardware!$B$52,MotorenAuswahlMatrix,17,FALSE) -> 3.2 | E32: =VLOOKUP(Hardware!$B$52,MotorenAuswahlMatrix,26,FALSE) -> 3 | F32: 1.206371579 | G32: =VLOOKUP(Hardware!$B$52,MotorenAuswahlMatrix,16,FALSE) -> 0.8 | H32: =VLOOKUP(Hardware!$B$52,MotorenAuswahlMatrix,16,FALSE)/2 -> 0.4 | I32: =VLOOKUP(Hardware!$B$52,MotorenAuswahlMatrix,21,FALSE) -> 30 | J32: 72 | K32: 41.56921938 | L32: 230 | M32: 132.7905619 | N32: 119.5115057 | O32: 1.270957272 | P32: 88.16118281 | Q32: 42.5818513 | R32: 16 | S32: 16 | T32: 1.615332387 | U32: 33.25537551 | V32: -15905.33333 | W32: 89.46823617 | X32: 43.21315807 | Y32: 16 | Z32: 16 | AA32: 5.8 | AB32: 16 | AC32: =IF(AA32>0,IF(AA32>AB32,AB32,AA32),0) -> 5.8 | AE32: 2400 | AF32: 7.8936 | AG32: 19.6624 | AH32: 7.011134002 | AI32: 3.388714768
A33: 31 | B33: 2480 | C33: 259.7049927 | D33: =VLOOKUP(Hardware!$B$52,MotorenAuswahlMatrix,17,FALSE) -> 3.2 | E33: =VLOOKUP(Hardware!$B$52,MotorenAuswahlMatrix,26,FALSE) -> 3 | F33: 1.246583965 | G33: =VLOOKUP(Hardware!$B$52,MotorenAuswahlMatrix,16,FALSE) -> 0.8 | H33: =VLOOKUP(Hardware!$B$52,MotorenAuswahlMatrix,16,FALSE)/2 -> 0.4 | I33: =VLOOKUP(Hardware!$B$52,MotorenAuswahlMatrix,21,FALSE) -> 30 | J33: 74.4 | K33: 42.95486003 | L33: 230 | M33: 132.7905619 | N33: 119.5115057 | O33: 1.309187375 | P33: 85.18661725 | Q33: 41.14513613 | R33: 16 | S33: 16 | T33: 1.713971582 | U33: 34.36388802 | V33: -15788.21333 | W33: 86.47392412 | X33: 41.76690535 | Y33: 16 | Z33: 16 | AA33: 5.8 | AB33: 16 | AC33: 5.8 | AE33: 2480 | AF33: 8.15672 | AG33: 19.39928 | AH33: 6.964064905 | AI33: 3.365964704
A34: 32 | B34: =A34*nNennM*1.1*nMaxMFaktor/55 -> 2560 | C34: 268.0825731 | D34: =VLOOKUP(Hardware!$B$52,MotorenAuswahlMatrix,17,FALSE) -> 3.2 | E34: =VLOOKUP(Hardware!$B$52,MotorenAuswahlMatrix,26,FALSE) -> 3 | F34: 1.286796351 | G34: =VLOOKUP(Hardware!$B$52,MotorenAuswahlMatrix,16,FALSE) -> 0.8 | H34: =VLOOKUP(Hardware!$B$52,MotorenAuswahlMatrix,16,FALSE)/2 -> 0.4 | I34: =VLOOKUP(Hardware!$B$52,MotorenAuswahlMatrix,21,FALSE) -> 30 | J34: 76.8 | K34: 44.34050067 | L34: =UNetz -> 230 | M34: 132.7905619 | N34: 119.5115057 | O34: 1.347532875 | P34: 82.35911878 | Q34: =P34*MMaxM/IMaxM -> 39.77945437 | R34: =MMaxM -> 16 | S34: 16 | T34: 1.815844849 | U34: 35.47240054 | V34: -15667.25333 | W34: 83.63212135 | X34: =W34*MMaxM/IMaxM -> 40.39431461 | Y34: =MMaxM -> 16 | Z34: 16 | AA34: =IMaxeinstellen*MNennM/INennM -> 5.8 | AB34: 16 | AC34: 5.8 | AE34: =A34*nNennM*nMaxMFaktor/50 -> 2560 | AF34: =AE34*$AL$16/nNennM -> 8.41984 | AG34: =$AL$14-AF34 -> 19.13616 | AH34: 6.916675502 | AI34: =AH34*MNennM/INennM -> 3.343059826
A35: 33 | B35: 2640 | C35: 276.4601535 | D35: =VLOOKUP(Hardware!$B$52,MotorenAuswahlMatrix,17,FALSE) -> 3.2 | E35: =VLOOKUP(Hardware!$B$52,MotorenAuswahlMatrix,26,FALSE) -> 3 | F35: 1.327008737 | G35: =VLOOKUP(Hardware!$B$52,MotorenAuswahlMatrix,16,FALSE) -> 0.8 | H35: =VLOOKUP(Hardware!$B$52,MotorenAuswahlMatrix,16,FALSE)/2 -> 0.4 | I35: =VLOOKUP(Hardware!$B$52,MotorenAuswahlMatrix,21,FALSE) -> 30 | J35: 79.2 | K35: 45.72614132 | L35: 230 | M35: 132.7905619 | N35: 119.5115057 | O35: 1.385984195 | P35: 79.66752706 | Q35: 38.47941557 | R35: 16 | S35: 16 | T35: 1.920952188 | U35: 36.58091306 | V35: -15542.45333 | W35: 80.93105586 | X35: 39.08969998 | Y35: 16 | Z35: 16 | AA35: 5.8 | AB35: 16 | AC35: 5.8 | AE35: 2640 | AF35: 8.68296 | AG35: 18.87304 | AH35: 6.868959164 | AI35: 3.319996929
A36: 34 | B36: 2720 | C36: 284.8377339 | D36: =VLOOKUP(Hardware!$B$52,MotorenAuswahlMatrix,17,FALSE) -> 3.2 | E36: =VLOOKUP(Hardware!$B$52,MotorenAuswahlMatrix,26,FALSE) -> 3 | F36: 1.367221123 | G36: =VLOOKUP(Hardware!$B$52,MotorenAuswahlMatrix,16,FALSE) -> 0.8 | H36: =VLOOKUP(Hardware!$B$52,MotorenAuswahlMatrix,16,FALSE)/2 -> 0.4 | I36: =VLOOKUP(Hardware!$B$52,MotorenAuswahlMatrix,21,FALSE) -> 30 | J36: 81.6 | K36: 47.11178197 | L36: 230 | M36: 132.7905619 | N36: 119.5115057 | O36: 1.424532765 | P36: 77.10168362 | Q36: 37.24011319 | R36: 16 | S36: 16 | T36: 2.029293599 | U36: 37.68942557 | V36: -15413.81333 | W36: 78.360055 | X36: 37.84790657 | Y36: 16 | Z36: 16 | AA36: 5.8 | AB36: 16 | AC36: 5.8 | AE36: 2720 | AF36: 8.94608 | AG36: 18.60992 | AH36: 6.82090903 | AI36: 3.296772698
A37: 35 | B37: 2800 | C37: 293.2153143 | D37: =VLOOKUP(Hardware!$B$52,MotorenAuswahlMatrix,17,FALSE) -> 3.2 | E37: =VLOOKUP(Hardware!$B$52,MotorenAuswahlMatrix,26,FALSE) -> 3 | F37: 1.407433509 | G37: =VLOOKUP(Hardware!$B$52,MotorenAuswahlMatrix,16,FALSE) -> 0.8 | H37: =VLOOKUP(Hardware!$B$52,MotorenAuswahlMatrix,16,FALSE)/2 -> 0.4 | I37: =VLOOKUP(Hardware!$B$52,MotorenAuswahlMatrix,21,FALSE) -> 30 | J37: 84 | K37: 48.49742261 | L37: 230 | M37: 132.7905619 | N37: 119.5115057 | O37: 1.4631709 | P37: 74.6523301 | Q37: 36.05707544 | R37: 16 | S37: 16 | T37: 2.140869082 | U37: 38.79793809 | V37: -15281.33333 | W37: 75.9094277 | X37: 36.66425358 | Y37: 16 | Z37: 16 | AA37: 5.8 | AB37: 16 | AC37: 5.8 | AE37: 2800 | AF37: 9.2092 | AG37: 18.3468 | AH37: 6.772517996 | AI37: 3.273383698
A38: 36 | B38: 2880 | C38: 301.5928947 | D38: =VLOOKUP(Hardware!$B$52,MotorenAuswahlMatrix,17,FALSE) -> 3.2 | E38: =VLOOKUP(Hardware!$B$52,MotorenAuswahlMatrix,26,FALSE) -> 3 | F38: 1.447645895 | G38: =VLOOKUP(Hardware!$B$52,MotorenAuswahlMatrix,16,FALSE) -> 0.8 | H38: =VLOOKUP(Hardware!$B$52,MotorenAuswahlMatrix,16,FALSE)/2 -> 0.4 | I38: =VLOOKUP(Hardware!$B$52,MotorenAuswahlMatrix,21,FALSE) -> 30 | J38: 86.4 | K38: 49.88306326 | L38: 230 | M38: 132.7905619 | N38: 119.5115057 | O38: 1.501891686 | P38: 72.31101675 | Q38: 34.92622109 | R38: 16 | S38: 16 | T38: 2.255678637 | U38: 39.90645061 | V38: -15145.01333 | W38: 73.57036003 | X38: 35.53448389 | Y38: 16 | Z38: 16 | AA38: 5.8 | AB38: 16 | AC38: 5.8 | AE38: 2880 | AF38: 9.47232 | AG38: 18.08368 | AH38: 6.7237787 | AI38: 3.249826371
A39: 37 | B39: 2960 | C39: 309.9704752 | D39: =VLOOKUP(Hardware!$B$52,MotorenAuswahlMatrix,17,FALSE) -> 3.2 | E39: =VLOOKUP(Hardware!$B$52,MotorenAuswahlMatrix,26,FALSE) -> 3 | F39: 1.487858281 | G39: =VLOOKUP(Hardware!$B$52,MotorenAuswahlMatrix,16,FALSE) -> 0.8 | H39: =VLOOKUP(Hardware!$B$52,MotorenAuswahlMatrix,16,FALSE)/2 -> 0.4 | I39: =VLOOKUP(Hardware!$B$52,MotorenAuswahlMatrix,21,FALSE) -> 30 | J39: 88.8 | K39: 51.2687039 | L39: 230 | M39: 132.7905619 | N39: 119.5115057 | O39: 1.540688893 | P39: 70.07002044 | Q39: 33.84381987 | R39: 16 | S39: 16 | T39: 2.373722264 | U39: 41.01496312 | V39: -15004.85333 | W39: 71.33482261 | X39: 34.45471932 | Y39: 16 | Z39: 16 | AA39: 5.8 | AB39: 16 | AC39: 5.8 | AE39: 2960 | AF39: 9.73544 | AG39: 17.82056 | AH39: 6.674683513 | AI39: 3.226097031
A40: 38 | B40: 3040 | C40: 318.3480556 | D40: =VLOOKUP(Hardware!$B$52,MotorenAuswahlMatrix,17,FALSE) -> 3.2 | E40: =VLOOKUP(Hardware!$B$52,MotorenAuswahlMatrix,26,FALSE) -> 3 | F40: 1.528070667 | G40: =VLOOKUP(Hardware!$B$52,MotorenAuswahlMatrix,16,FALSE) -> 0.8 | H40: =VLOOKUP(Hardware!$B$52,MotorenAuswahlMatrix,16,FALSE)/2 -> 0.4 | I40: =VLOOKUP(Hardware!$B$52,MotorenAuswahlMatrix,21,FALSE) -> 30 | J40: 91.2 | K40: 52.65434455 | L40: 230 | M40: 132.7905619 | N40: 119.5115057 | O40: 1.579556888 | P40: 67.9222713 | Q40: 32.80645704 | R40: 16 | S40: 16 | T40: 2.494999962 | U40: 42.12347564 | V40: -14860.85333 | W40: 69.19548862 | X40: 33.421421 | Y40: 16 | Z40: 16 | AA40: 5.8 | AB40: 16 | AC40: 5.8 | AE40: 3040 | AF40: 9.99856 | AG40: 17.55744 | AH40: 6.625224524 | AI40: 3.202191854
A41: 39 | B41: 3120 | C41: 326.725636 | D41: =VLOOKUP(Hardware!$B$52,MotorenAuswahlMatrix,17,FALSE) -> 3.2 | E41: =VLOOKUP(Hardware!$B$52,MotorenAuswahlMatrix,26,FALSE) -> 3 | F41: 1.568283053 | G41: =VLOOKUP(Hardware!$B$52,MotorenAuswahlMatrix,16,FALSE) -> 0.8 | H41: =VLOOKUP(Hardware!$B$52,MotorenAuswahlMatrix,16,FALSE)/2 -> 0.4 | I41: =VLOOKUP(Hardware!$B$52,MotorenAuswahlMatrix,21,FALSE) -> 30 | J41: 93.6 | K41: 54.0399852 | L41: 230 | M41: 132.7905619 | N41: 119.5115057 | O41: 1.618490573 | P41: 65.86128715 | Q41: 31.81100169 | R41: 16 | S41: 16 | T41: 2.619511733 | U41: 43.23198816 | V41: -14713.01333 | W41: 67.14566107 | X41: 32.4313543 | Y41: 16 | Z41: 16 | AA41: 5.8 | AB41: 16 | AC41: 5.8 | AE41: 3120 | AF41: 10.26168 | AG41: 17.29432 | AH41: 6.575393524 | AI41: 3.17810687
A42: 40 | B42: 3200 | C42: 335.1032164 | D42: =VLOOKUP(Hardware!$B$52,MotorenAuswahlMatrix,17,FALSE) -> 3.2 | E42: =VLOOKUP(Hardware!$B$52,MotorenAuswahlMatrix,26,FALSE) -> 3 | F42: 1.608495439 | G42: =VLOOKUP(Hardware!$B$52,MotorenAuswahlMatrix,16,FALSE) -> 0.8 | H42: =VLOOKUP(Hardware!$B$52,MotorenAuswahlMatrix,16,FALSE)/2 -> 0.4 | I42: =VLOOKUP(Hardware!$B$52,MotorenAuswahlMatrix,21,FALSE) -> 30 | J42: 96 | K42: 55.42562584 | L42: 230 | M42: 132.7905619 | N42: 119.5115057 | O42: 1.657485317 | P42: 63.88111479 | Q42: 30.85457844 | R42: 16 | S42: 16 | T42: 2.747257576 | U42: 44.34050067 | V42: -14561.33333 | W42: 65.17920839 | X42: 31.48155765 | Y42: 16 | Z42: 16 | AA42: 5.8 | AB42: 16 | AC42: 5.8 | AE42: 3200 | AF42: 10.5248 | AG42: 17.0312 | AH42: 6.52518199 | AI42: 3.153837962
A43: 41 | B43: 3280 | C43: 343.4807968 | D43: =VLOOKUP(Hardware!$B$52,MotorenAuswahlMatrix,17,FALSE) -> 3.2 | E43: =VLOOKUP(Hardware!$B$52,MotorenAuswahlMatrix,26,FALSE) -> 3 | F43: 1.648707825 | G43: =VLOOKUP(Hardware!$B$52,MotorenAuswahlMatrix,16,FALSE) -> 0.8 | H43: =VLOOKUP(Hardware!$B$52,MotorenAuswahlMatrix,16,FALSE)/2 -> 0.4 | I43: =VLOOKUP(Hardware!$B$52,MotorenAuswahlMatrix,21,FALSE) -> 30 | J43: 98.4 | K43: 56.81126649 | L43: 230 | M43: 132.7905619 | N43: 119.5115057 | O43: 1.696536911 | P43: 61.97627767 | Q43: 29.93454211 | R43: 16 | S43: 16 | T43: 2.878237491 | U43: 45.44901319 | V43: -14405.81333 | W43: 63.29050718 | X43: 30.56931497 | Y43: 16 | Z43: 16 | AA43: 5.8 | AB43: 16 | AC43: 5.8 | AE43: 3280 | AF43: 10.78792 | AG43: 16.76808 | AH43: 6.474581068 | AI43: 3.129380849
A44: 42 | B44: 3360 | C44: 351.8583772 | D44: =VLOOKUP(Hardware!$B$52,MotorenAuswahlMatrix,17,FALSE) -> 3.2 | E44: =VLOOKUP(Hardware!$B$52,MotorenAuswahlMatrix,26,FALSE) -> 3 | F44: 1.688920211 | G44: =VLOOKUP(Hardware!$B$52,MotorenAuswahlMatrix,16,FALSE) -> 0.8 | H44: =VLOOKUP(Hardware!$B$52,MotorenAuswahlMatrix,16,FALSE)/2 -> 0.4 | I44: =VLOOKUP(Hardware!$B$52,MotorenAuswahlMatrix,21,FALSE) -> 30 | J44: 100.8 | K44: 58.19690713 | L44: 230 | M44: 132.7905619 | N44: 119.5115057 | O44: 1.735641518 | P44: 60.14172889 | Q44: 29.04845505 | R44: 16 | S44: 16 | T44: 3.012451478 | U44: 46.55752571 | V44: -14246.45333 | W44: 61.47439138 | X44: 29.69213104 | Y44: 16 | Z44: 16 | AA44: 5.8 | AB44: 16 | AC44: 5.8 | AE44: 3360 | AF44: 11.05104 | AG44: 16.50496 | AH44: 6.423581555 | AI44: 3.104731085
A45: 43 | B45: 3440 | C45: 360.2359576 | D45: =VLOOKUP(Hardware!$B$52,MotorenAuswahlMatrix,17,FALSE) -> 3.2 | E45: =VLOOKUP(Hardware!$B$52,MotorenAuswahlMatrix,26,FALSE) -> 3 | F45: 1.729132597 | G45: =VLOOKUP(Hardware!$B$52,MotorenAuswahlMatrix,16,FALSE) -> 0.8 | H45: =VLOOKUP(Hardware!$B$52,MotorenAuswahlMatrix,16,FALSE)/2 -> 0.4 | I45: =VLOOKUP(Hardware!$B$52,MotorenAuswahlMatrix,21,FALSE) -> 30 | J45: 103.2 | K45: 59.58254778 | L45: 230 | M45: 132.7905619 | N45: 119.5115057 | O45: 1.774795632 | P45: 58.37280928 | Q45: 28.19406688 | R45: 16 | S45: 16 | T45: 3.149899536 | U45: 47.66603822 | V45: -14083.25333 | W45: 59.72610714 | X45: 28.84770975 | Y45: 16 | Z45: 16 | AA45: 5.8 | AB45: 16 | AC45: 5.8 | AE45: 3440 | AF45: 11.31416 | AG45: 16.24184 | AH45: 6.372173883 | AI45: 3.079884044
A46: 44 | B46: 3520 | C46: 368.613538 | D46: =VLOOKUP(Hardware!$B$52,MotorenAuswahlMatrix,17,FALSE) -> 3.2 | E46: =VLOOKUP(Hardware!$B$52,MotorenAuswahlMatrix,26,FALSE) -> 3 | F46: 1.769344983 | G46: =VLOOKUP(Hardware!$B$52,MotorenAuswahlMatrix,16,FALSE) -> 0.8 | H46: =VLOOKUP(Hardware!$B$52,MotorenAuswahlMatrix,16,FALSE)/2 -> 0.4 | I46: =VLOOKUP(Hardware!$B$52,MotorenAuswahlMatrix,21,FALSE) -> 30 | J46: 105.6 | K46: 60.96818843 | L46: 230 | M46: 132.7905619 | N46: 119.5115057 | O46: 1.813996049 | P46: 56.66520967 | Q46: 27.36929627 | R46: 16 | S46: 16 | T46: 3.290581667 | U46: 48.77455074 | V46: -13916.21333 | W46: 58.04127247 | X46: 28.0339346 | Y46: 16 | Z46: 16 | AA46: 5.8 | AB46: 16 | AC46: 5.8 | AE46: 3520 | AF46: 11.57728 | AG46: 15.97872 | AH46: 6.320348092 | AI46: 3.054834911
A47: 45 | B47: 3600 | C47: 376.9911184 | D47: =VLOOKUP(Hardware!$B$52,MotorenAuswahlMatrix,17,FALSE) -> 3.2 | E47: =VLOOKUP(Hardware!$B$52,MotorenAuswahlMatrix,26,FALSE) -> 3 | F47: 1.809557368 | G47: =VLOOKUP(Hardware!$B$52,MotorenAuswahlMatrix,16,FALSE) -> 0.8 | H47: =VLOOKUP(Hardware!$B$52,MotorenAuswahlMatrix,16,FALSE)/2 -> 0.4 | I47: =VLOOKUP(Hardware!$B$52,MotorenAuswahlMatrix,21,FALSE) -> 30 | J47: 108 | K47: 62.35382907 | L47: 230 | M47: 132.7905619 | N47: 119.5115057 | O47: 1.853239831 | P47: 55.01493715 | Q47: 26.57221464 | R47: 16 | S47: 16 | T47: 3.43449787 | U47: 49.88306326 | V47: -13745.33333 | W47: 56.41584141 | X47: 27.2488514 | Y47: 16 | Z47: 16 | AA47: 5.8 | AB47: 16 | AC47: 5.8 | AE47: 3600 | AF47: 11.8404 | AG47: 15.7156 | AH47: 6.268093809 | AI47: 3.029578674
A48: 46 | B48: 3680 | C48: 385.3686988 | D48: =VLOOKUP(Hardware!$B$52,MotorenAuswahlMatrix,17,FALSE) -> 3.2 | E48: =VLOOKUP(Hardware!$B$52,MotorenAuswahlMatrix,26,FALSE) -> 3 | F48: 1.849769754 | G48: =VLOOKUP(Hardware!$B$52,MotorenAuswahlMatrix,16,FALSE) -> 0.8 | H48: =VLOOKUP(Hardware!$B$52,MotorenAuswahlMatrix,16,FALSE)/2 -> 0.4 | I48: =VLOOKUP(Hardware!$B$52,MotorenAuswahlMatrix,21,FALSE) -> 30 | J48: 110.4 | K48: 63.73946972 | L48: 230 | M48: 132.7905619 | N48: 119.5115057 | O48: 1.892524278 | P48: 53.41828459 | Q48: 25.80103145 | R48: 16 | S48: 16 | T48: 3.581648144 | U48: 50.99157577 | V48: -13570.61333 | W48: 54.84607189 | X48: 26.49065272 | Y48: 16 | Z48: 16 | AA48: 5.8 | AB48: 16 | AC48: 5.8 | AE48: 3680 | AF48: 12.10352 | AG48: 15.45248 | AH48: 6.215400228 | AI48: 3.00411011
A49: 47 | B49: 3760 | C49: 393.7462792 | D49: =VLOOKUP(Hardware!$B$52,MotorenAuswahlMatrix,17,FALSE) -> 3.2 | E49: =VLOOKUP(Hardware!$B$52,MotorenAuswahlMatrix,26,FALSE) -> 3 | F49: 1.88998214 | G49: =VLOOKUP(Hardware!$B$52,MotorenAuswahlMatrix,16,FALSE) -> 0.8 | H49: =VLOOKUP(Hardware!$B$52,MotorenAuswahlMatrix,16,FALSE)/2 -> 0.4 | I49: =VLOOKUP(Hardware!$B$52,MotorenAuswahlMatrix,21,FALSE) -> 30 | J49: 112.8 | K49: 65.12511036 | L49: 230 | M49: 132.7905619 | N49: 119.5115057 | O49: 1.931846912 | P49: 51.87180323 | Q49: 25.05408096 | R49: 16 | S49: 16 | T49: 3.732032491 | U49: 52.10008829 | V49: -13392.05333 | W49: 53.32849705 | X49: 25.75766408 | Y49: 16 | Z49: 16 | AA49: 5.8 | AB49: 16 | AC49: 5.8 | AE49: 3760 | AF49: 12.36664 | AG49: 15.18936 | AH49: 6.16225608 | AI49: 2.978423772
A50: 48 | B50: 3840 | C50: 402.1238597 | D50: =VLOOKUP(Hardware!$B$52,MotorenAuswahlMatrix,17,FALSE) -> 3.2 | E50: =VLOOKUP(Hardware!$B$52,MotorenAuswahlMatrix,26,FALSE) -> 3 | F50: 1.930194526 | G50: =VLOOKUP(Hardware!$B$52,MotorenAuswahlMatrix,16,FALSE) -> 0.8 | H50: =VLOOKUP(Hardware!$B$52,MotorenAuswahlMatrix,16,FALSE)/2 -> 0.4 | I50: =VLOOKUP(Hardware!$B$52,MotorenAuswahlMatrix,21,FALSE) -> 30 | J50: 115.2 | K50: 66.51075101 | L50: 230 | M50: 132.7905619 | N50: 119.5115057 | O50: 1.971205446 | P50: 50.37227794 | Q50: 24.32981024 | R50: 16 | S50: 16 | T50: 3.88565091 | U50: 53.20860081 | V50: -13209.65333 | W50: 51.85989951 | X50: 25.04833146 | Y50: 16 | Z50: 16 | AA50: 5.8 | AB50: 16 | AC50: 5.8 | AE50: 3840 | AF50: 12.62976 | AG50: 14.92624 | AH50: 6.108649605 | AI50: 2.952513976
A51: 49 | B51: 3920 | C51: 410.5014401 | D51: =VLOOKUP(Hardware!$B$52,MotorenAuswahlMatrix,17,FALSE) -> 3.2 | E51: =VLOOKUP(Hardware!$B$52,MotorenAuswahlMatrix,26,FALSE) -> 3 | F51: 1.970406912 | G51: =VLOOKUP(Hardware!$B$52,MotorenAuswahlMatrix,16,FALSE) -> 0.8 | H51: =VLOOKUP(Hardware!$B$52,MotorenAuswahlMatrix,16,FALSE)/2 -> 0.4 | I51: =VLOOKUP(Hardware!$B$52,MotorenAuswahlMatrix,21,FALSE) -> 30 | J51: 117.6 | K51: 67.89639166 | L51: 230 | M51: 132.7905619 | N51: 119.5115057 | O51: 2.010597772 | P51: 48.9167047 | Q51: 23.62676837 | R51: 16 | S51: 16 | T51: 4.0425034 | U51: 54.31711333 | V51: -13023.41333 | W51: 50.43728824 | X51: 24.36121022 | Y51: 16 | Z51: 16 | AA51: 5.8 | AB51: 16 | AC51: 5.8 | AE51: 3920 | AF51: 12.89288 | AG51: 14.66312 | AH51: 6.054568523 | AI51: 2.926374786
A52: 50 | B52: 4000 | C52: 418.8790205 | D52: =VLOOKUP(Hardware!$B$52,MotorenAuswahlMatrix,17,FALSE) -> 3.2 | E52: =VLOOKUP(Hardware!$B$52,MotorenAuswahlMatrix,26,FALSE) -> 3 | F52: 2.010619298 | G52: =VLOOKUP(Hardware!$B$52,MotorenAuswahlMatrix,16,FALSE) -> 0.8 | H52: =VLOOKUP(Hardware!$B$52,MotorenAuswahlMatrix,16,FALSE)/2 -> 0.4 | I52: =VLOOKUP(Hardware!$B$52,MotorenAuswahlMatrix,21,FALSE) -> 30 | J52: 120 | K52: 69.2820323 | L52: 230 | M52: 132.7905619 | N52: 119.5115057 | O52: 2.050021942 | P52: 47.50227022 | Q52: 22.94359651 | R52: 16 | S52: 16 | T52: 4.202589963 | U52: 55.42562584 | V52: -12833.33333 | W52: 49.05787776 | X52: 23.69495496 | Y52: 16 | Z52: 16 | AA52: 5.8 | AB52: 16 | AC52: 5.8 | AE52: 4000 | AF52: 13.156 | AG52: 14.4 | AH52: 6 | AI52: 2.9
A53: 51 | B53: 4080 | C53: 427.2566009 | D53: =VLOOKUP(Hardware!$B$52,MotorenAuswahlMatrix,17,FALSE) -> 3.2 | E53: =VLOOKUP(Hardware!$B$52,MotorenAuswahlMatrix,26,FALSE) -> 3 | F53: =C53*D53/2/1000*E53 -> 2.050831684 | G53: =VLOOKUP(Hardware!$B$52,MotorenAuswahlMatrix,16,FALSE) -> 0.8 | H53: =VLOOKUP(Hardware!$B$52,MotorenAuswahlMatrix,16,FALSE)/2 -> 0.4 | I53: =VLOOKUP(Hardware!$B$52,MotorenAuswahlMatrix,21,FALSE) -> 30 | J53: =I53*B53/1000 -> 122.4 | K53: 70.66767295 | L53: 230 | M53: 132.7905619 | N53: 119.5115057 | O53: =SQRT(F53^2+H53^2) -> 2.089476154 | P53: 46.12633326 | Q53: 22.27901897 | R53: 16 | S53: =IF(Q53>R53,R53,Q53) -> 16 | T53: 4.365910597 | U53: 56.53413836 | V53: -12639.41333 | W53: 47.71906939 | X53: 23.04831052 | Y53: 16 | Z53: 16 | AA53: 5.8 | AB53: 16 | AC53: 5.8
A54: 52 | B54: 4160 | C54: 435.6341813 | D54: =VLOOKUP(Hardware!$B$52,MotorenAuswahlMatrix,17,FALSE) -> 3.2 | E54: =VLOOKUP(Hardware!$B$52,MotorenAuswahlMatrix,26,FALSE) -> 3 | F54: =C54*D54/2/1000*E54 -> 2.09104407 | G54: =VLOOKUP(Hardware!$B$52,MotorenAuswahlMatrix,16,FALSE) -> 0.8 | H54: =VLOOKUP(Hardware!$B$52,MotorenAuswahlMatrix,16,FALSE)/2 -> 0.4 | I54: =VLOOKUP(Hardware!$B$52,MotorenAuswahlMatrix,21,FALSE) -> 30 | J54: =I54*B54/1000 -> 124.8 | K54: 72.05331359 | L54: 230 | M54: 132.7905619 | N54: 119.5115057 | O54: =SQRT(F54^2+H54^2) -> 2.128958737 | P54: 44.78640759 | Q54: 21.63183486 | R54: 16 | S54: =IF(Q54>R54,R54,Q54) -> 16 | T54: 4.532465304 | U54: 57.64265088 | V54: -12441.65333 | W54: 46.41843428 | X54: 22.42010376 | Y54: 16 | Z54: 16 | AA54: 5.8 | AB54: 16 | AC54: 5.8
A55: 53 | B55: 4240 | C55: 444.0117617 | D55: =VLOOKUP(Hardware!$B$52,MotorenAuswahlMatrix,17,FALSE) -> 3.2 | E55: =VLOOKUP(Hardware!$B$52,MotorenAuswahlMatrix,26,FALSE) -> 3 | F55: =C55*D55/2/1000*E55 -> 2.131256456 | G55: =VLOOKUP(Hardware!$B$52,MotorenAuswahlMatrix,16,FALSE) -> 0.8 | H55: =VLOOKUP(Hardware!$B$52,MotorenAuswahlMatrix,16,FALSE)/2 -> 0.4 | I55: =VLOOKUP(Hardware!$B$52,MotorenAuswahlMatrix,21,FALSE) -> 30 | J55: =I55*B55/1000 -> 127.2 | K55: 73.43895424 | L55: 230 | M55: 132.7905619 | N55: 119.5115057 | O55: =SQRT(F55^2+H55^2) -> 2.168468142 | P55: 43.48014613 | Q55: 21.00091058 | R55: 16 | S55: =IF(Q55>R55,R55,Q55) -> 16 | T55: 4.702254082 | U55: 58.75116339 | V55: -12240.05333 | W55: 45.15369803 | X55: 21.80923615 | Y55: 16 | Z55: 16 | AA55: 5.8 | AB55: 16 | AC55: 5.8
A56: 54 | B56: 4320 | C56: 452.3893421 | D56: =VLOOKUP(Hardware!$B$52,MotorenAuswahlMatrix,17,FALSE) -> 3.2 | E56: =VLOOKUP(Hardware!$B$52,MotorenAuswahlMatrix,26,FALSE) -> 3 | F56: =C56*D56/2/1000*E56 -> 2.171468842 | G56: =VLOOKUP(Hardware!$B$52,MotorenAuswahlMatrix,16,FALSE) -> 0.8 | H56: =VLOOKUP(Hardware!$B$52,MotorenAuswahlMatrix,16,FALSE)/2 -> 0.4 | I56: =VLOOKUP(Hardware!$B$52,MotorenAuswahlMatrix,21,FALSE) -> 30 | J56: =I56*B56/1000 -> 129.6 | K56: 74.82459489 | L56: 230 | M56: 132.7905619 | N56: 119.5115057 | O56: =SQRT(F56^2+H56^2) -> 2.208002929 | P56: 42.20532644 | Q56: 20.38517267 | R56: 16 | S56: =IF(Q56>R56,R56,Q56) -> 16 | T56: 4.875276932 | U56: 59.85967591 | V56: -12034.61333 | W56: 43.92272675 | X56: 21.21467702 | Y56: 16 | Z56: 16 | AA56: 5.8 | AB56: 16 | AC56: 5.8
A57: 55 | B57: 4400 | C57: 460.7669225 | D57: =VLOOKUP(Hardware!$B$52,MotorenAuswahlMatrix,17,FALSE) -> 3.2 | E57: =VLOOKUP(Hardware!$B$52,MotorenAuswahlMatrix,26,FALSE) -> 3 | F57: =C57*D57/2/1000*E57 -> 2.211681228 | G57: =VLOOKUP(Hardware!$B$52,MotorenAuswahlMatrix,16,FALSE) -> 0.8 | H57: =VLOOKUP(Hardware!$B$52,MotorenAuswahlMatrix,16,FALSE)/2 -> 0.4 | I57: =VLOOKUP(Hardware!$B$52,MotorenAuswahlMatrix,21,FALSE) -> 30 | J57: =I57*B57/1000 -> 132 | K57: 76.21023553 | L57: 230 | M57: 132.7905619 | N57: 119.5115057 | O57: =SQRT(F57^2+H57^2) -> 2.247561758 | P57: 40.95983698 | Q57: 19.78360126 | R57: 16 | S57: =IF(Q57>R57,R57,Q57) -> 16 | T57: 5.051533855 | U57: 60.96818843 | V57: -11825.33333 | W57: 42.72351433 | X57: 20.63545742 | Y57: 16 | Z57: 16 | AA57: 5.8 | AB57: 16 | AC57: 5.8

Sheet Bedienungsanleitung
A3: Bedienungsanleitung:
A5: Schritt 1: | B5: Geben Sie die Informationen zur verwendeten Mechanik im Tabellenblatt "Hardware" ein:
A58: Schritt 2: | B58: Geben Sie die Bewegung im Tabellenblatt "Bewegungen" vor und drücken Sie "Wegprofil berechnen":
A94: Schritt 3: | B94: Filtern Sie die Auswahl der Getriebe, in dem Sie den Knopf neben der Gertiebeauswahl drücken und wählen Sie danach ein Getriebe aus:
A126: Schritt 4: | B126: Filtern Sie die Auswahl der Motoren, in dem Sie den Knopf neben der Motorenauswahl drücken und wählen Sie danach einen Motor aus:
A174: Schritt 5: | B174: Filtern Sie die Auswahl der Regler, in dem Sie den Knopf neben der Reglerauswahl drücken und wählen Sie danach einen Regler aus:
A176: Schritt 6: | B176: Dokumentieren Sie Ihre Antriebsauslegung und markieren alle Tabellenblätter die Sie ausdrucken möchten und wählen Sie "drucken"

Sheet Hardware
A2: Kunde: | B2: Kunde GmbH | G2: Notizen: | K2: HILFE | X2: 1
A3: Projekt: | B3: Projekt 1
A4: Achse: | B4: X-Achse
A6: Vorgaben der Mechanik: | G6: Ergebnisse aus den Vorgaben:
A7: Hersteller | B7: MECHANIK AG | G7: transl. bewegte Masse | H7: m | I7: Transl. | J7: =mLast*VLOOKUP(B13,AnbauAuswahlMatrix,2,FALSE)+mSchlitten*VLOOKUP(B13,AnbauAuswahlMatrix,3,FALSE)+mBasis*VLOOKUP(B13,AnbauAuswahlMatrix,4,FALSE)+(mMotor+mGetriebe)*VLOOKUP(B13,AnbauAuswahlMatrix,5,FALSE) -> 150 | K7: [kg]
A8: Typ | B8: Zahnriemen / Scheibe | F8: =Parameter!E34 -> 1 | G8: Summe Massen | H8: m | I8: Gesamt | J8: =mLast+mSchlitten+mBasis+mMotor+mGetriebe -> 150 | K8: [kg]
A9: Typbezeichnung | B9: ABC-123-XYZ | G9: translatorische Trägheit | H9: J | I9: Transl. | J9: =mTransl*(sVorschub/(2*PI()))^2/100*Parameter!D34 -> 2400 | K9: [kgcm2]
A10: Einbaulage | B10: 0° horizontal | G10: rotatorische Trägheit | H10: J | I10: Rot. | J10: =rhoS*lS*POWER(dS,4)/1000000000*z_S+JKupplung+JZusatz+mLast*(dS/2/10)^2*Parameter!B34 -> 11.0592 | K10: [kgcm2]
A11: =Parameter!F34 -> Zusatzlast | B11: m | C11: Last | D11: 150 | E11: [kg] | G11: Summe Trägheitsm. | H11: J | I11: Extern | J11: =JTransl+JRot -> 2411.0592 | K11: [kgcm2]
A12: =Parameter!G34 -> Schlittenmasse | B12: m | C12: Schlitten | D12: 0 | E12: [kg]
A13: Anbau Auswahl | B13: Last+Schlitten fährt | G13: =Parameter!AI34&" aus Gewicht" -> Moment aus Gewicht | H13: =Parameter!AH34 -> M | I13: Gewicht | J13: =mTransl*9.81*sVorschub/(2*PI())/1000*SIN(PI()/180*VLOOKUP(B10,EinbaulageAuswahlMatrix,2)) -> 0 | K13: =Parameter!Y34 -> [Nm]
A14: =Parameter!H34 -> Basisgewicht | B14: m | C14: Basis | D14: 0 | E14: [kg] | G14: =Parameter!AI34&" aus Prozess" -> Moment aus Prozess | H14: =Parameter!AH34 -> M | I14: Prozess | J14: =FProzess*sVorschub/(2*PI())/1000 -> 0 | K14: =Parameter!Y34 -> [Nm]
A15: =Parameter!I34 -> Motorgewicht | B15: m | C15: Motor | D15: 0 | E15: [kg]
A16: =Parameter!J34 -> Getriebegewicht | B16: m | C16: Getriebe | D16: 0 | E16: [kg]
A17: =Parameter!K34 -> Scheibenbreite | B17: l | C17: =Parameter!AJ34 -> Scheibe | D17: 25 | E17: [mm]
A18: =Parameter!L34 -> Scheibendurchmesser | B18: d | C18: =Parameter!AJ34 -> Scheibe | D18: 80 | E18: [mm] | G18: äquivalentes Moment | H18: M | I18: 2ä | J18: =(SUM(Rechentabelle!Q:Q)/SUM(Rechentabelle!R:R))^(1/3) -> 23.41777562 | K18: [Nm]
A19: =Parameter!M34 -> Vorschubkonstante | B19: s | C19: Vorschub | D19: 251.3274123 | E19: =Parameter!S34 -> [mm/R] | G19: auftretende Zugkraft | H19: F | I19: Zug | J19: =ABS(MBeschlB/(sVorschub/(2*PI())/1000)) -> 852.8583145 | K19: [N]
A20: =Parameter!N34 -> Scheibenmaterial | B20: ς | C20: =Parameter!AJ34 -> Scheibe | D20: 2.7 | E20: [kg/dm3] | G20: erf. Trumkraft | H20: F | I20: Trum | J20: =FZugDruck*2*VLOOKUP(B8,TypAuswahlMatrix,3,FALSE) -> 1705.716629 | K20: [N]
A21: =Parameter!O34 -> Anzahl der Scheiben | B21: z | C21: =Parameter!AJ34 -> Scheibe | D21: 4 | E21: [-] | G21: auftretende Radialkraft | H21: F | I21: Radial | J21: =IF(JKupplung=0,(FZug+FTrum)*Parameter!C34,0) -> 2558.574944 | K21: [N]
A22: =Parameter!P34 -> Reibung bez. auf Scheibe | B22: =Parameter!AH34 -> M | C22: ReibMech | D22: 0.3 | E22: =Parameter!Y34 -> [Nm] | G22: Einschaltdauer | H22: ED B | J22: =SUM(Rechentabelle!S:S)/TGesamt -> 0.5541666667 | K22: [%]
A23: Prozesskraft | B23: F | C23: Prozess | D23: 0 | E23: [N] | G23: ="erf. "&Parameter!AA34&" Eff Bewegung" -> erf. n Eff Bewegung | H23: =Parameter!AA34 -> n | I23: EffB | J23: =SQRT(SUM(Rechentabelle!P:P)/TGesamt)*Parameter!AQ34 -> 152.0831024 | K23: =Parameter!R34 -> [1/min]
A24: =Parameter!AM34 -> Kupplung | B24: J | C24: Kupplung | D24: 0 | E24: [kgcm2] | G24: ="erf. "&Parameter!AH34&" Max Bewegung" -> erf. M Max Bewegung | H24: =Parameter!AH34 -> M | I24: MaxB | J24: =IF(MAX(Rechentabelle!M:M)>ABS(MIN(Rechentabelle!M:M)),MAX(Rechentabelle!M:M),(MIN(Rechentabelle!M:M))) -> 34.11433258 | K24: =Parameter!Y34 -> [Nm]
A25: =Parameter!AN34 -> zusätzliche Trägheiten | B25: J | C25: Zusatz | D25: 0 | E25: [kgcm2] | G25: ="erf. "&Parameter!AH34&" Eff Bewegung" -> erf. M Eff Bewegung | H25: =Parameter!AH34 -> M | I25: EffB | J25: =SQRT(SUM(Rechentabelle!N:N)/TGesamt) -> 18.3637759 | K25: =Parameter!Y34 -> [Nm]
A26: Max-Drehzahl Mechanik | B26: n | C26: MaxMech | D26: 4000 | E26: [1/min] | G26: ="erf. "&Parameter!AA34&" Max Bewegung" -> erf. n Max Bewegung | H26: =Parameter!AA34 -> n | I26: MaxB | J26: =IF(MAX(Rechentabelle!O:O)>ABS(MIN(Rechentabelle!O:O)),MAX(Rechentabelle!O:O),(MIN(Rechentabelle!O:O)))*Parameter!AQ34 -> 300.0531226 | K26: =Parameter!R34 -> [1/min]
A27: Max-Geschw. Mechanik | B27: v | C27: MaxMech | D27: 3 | E27: [m/s] | G27: erf. v Max Bewegung | H27: v | I27: MaxB | J27: =IF(MAX(Rechentabelle!D:D)>ABS(MIN(Rechentabelle!D:D)),MAX(Rechentabelle!D:D),(MIN(Rechentabelle!D:D))) -> 1.256859581 | K27: =Parameter!V34 -> [m/s]
A28: Max-Beschl. Mechanik | B28: a | C28: MaxMech | D28: 20 | E28: [m/s2] | G28: erf. a Max Bewegung | H28: a | I28: MaxB | J28: =IF(MAX(Rechentabelle!E:E)>ABS(MIN(Rechentabelle!E:E)),MAX(Rechentabelle!E:E),(MIN(Rechentabelle!E:E))) -> -5.609871911 | K28: =Parameter!W34 -> [m/s^2]
A29: geforderte Genauigkeit | B29: ds | C29: Fehler ± | D29: 0.1 | E29: =Parameter!T34 -> [mm] | G29: erforderliches Spiel | H29: dφ | I29: Gmax | J29: =dsFehler*2/sVorschub*360*60 -> 17.18873385 | K29: [arcmin]
D30: HILFE
A31: Vorgaben zum Getriebe | G31: Ergebnisse aus den Vorgaben:
A32: Hersteller | B32: NEUGART | G32: J reduziert | H32: J | I32: Reduziert | J32: =JExtern/iGetriebe^2 -> 16.74346667 | K32: [kgcm2]
A33: Typbezeichnung | B33: PLE 80/90 -012 | G33: Getriebegewicht | H33: m | I33: G | J33: =mG -> 3,7 | K33: [kg] | L33: =65534-COUNTBLANK(Getriebetabelle!$A$3:$A$65536) -> 646
A34: Übersetzung | B34: i | C34: Getriebe | D34: =iGetriebe -> 12 | E34: [-] | G34: erf. M Max Eintrieb | H34: M | I34: MaxE | J34: =IF(MAX(Rechentabelle!Y:Y)>ABS(MIN(Rechentabelle!Y:Y)),MAX(Rechentabelle!Y:Y),(MIN(Rechentabelle!Y:Y))) -> 3.06403428 | K34: [Nm]
A35: Nennmoment | B35: M | C35: NennG | D35: =MNennG -> 120 | E35: [Nm] | G35: erf. M Nenn Eintrieb | H35: M | I35: EffE | J35: =SQRT(SUM(Rechentabelle!Z:Z)/TGesamt) -> 1.598713346 | K35: [Nm]
A36: Beschleunigungsmoment | B36: M | C36: Beschl.G | D36: =MBeschlG -> 120 | E36: [Nm] | G36: erf. α Max Eintrieb | H36: α | I36: MaxE | J36: =IF(MAX(Rechentabelle!U:U)>ABS(MIN(Rechentabelle!U:U)),MAX(Rechentabelle!U:U),(MIN(Rechentabelle!U:U))) -> -1682.961573 | K36: [rad/s2]
A37: NOT-AUS-Moment | B37: M | C37: NotausG | D37: =MNotausG -> 240 | E37: [Nm] | G37: erf. α Eff Eintrieb | H37: α | I37: EffE | J37: =SQRT(SUM(Rechentabelle!AA:AA)/TGesamt) -> 913.9095988 | K37: [rad/s2]
A38: Trägheitsmoment | B38: J | C38: Getriebe | D38: =JGetriebe -> 0.72 | E38: [kgcm2] | G38: Trägheit für Motor | H38: = | J38: =IF(JGetriebe>2*JMotor,"zu groß","ok") -> ok
A39: Reibmoment | B39: M | C39: ReibG | D39: =MReibG -> 0.1 | E39: [Nm] | G39: Reibmoment für Motor | H39: = | J39: =IF(MReibG>MNennM/2,"zu groß","ok") -> ok
A40: Nenndrehzahl | B40: n | C40: NennG | D40: =nNennG -> 4000 | E40: [1/min] | G40: erf n Eff Eintrieb | H40: n | I40: EffE | J40: =nEffB*iGetriebe -> 1824.997229 | K40: [1/min]
A41: Maxdrehzahl | B41: n | C41: MaxG | D41: =nMaxG -> 6000 | E41: [1/min] | G41: erf n Max Eintrieb | H41: n | I41: MaxE | J41: =nMaxB*iGetriebe -> 3600.637472 | K41: [1/min]
A42: Verdrehspiel | B42: dφ | C42: MaxG | D42: =dfMaxG -> 14 | E42: [arcmin] | G42: Positionierfehler Spiel | H42: ds | I42: Spiel ± | J42: =dfMaxG/(360*60)*sVorschub/2 -> 0.08144869843 | K42: =Parameter!T34 -> [mm]
A43: zul. Radialkraft | B43: F | C43: RZul.G | D43: =FRZulG -> 2500 | E43: [N] | G43: Auslastung Getriebe | H43: ξ | I43: G | J43: =MEffB/MNennG -> 0.1530314658 | K43: [%]
A46: Kunde: | B46: =B2 -> Kunde GmbH
A47: Projekt: | B47: =B3 -> Projekt 1
A48: Achse: | B48: =B4 -> X-Achse
A50: Vorgaben zum Motor | G50: Ergebnisse aus den Vorgaben:
A51: Hersteller | B51: SERVOANTRIEBSTECHNIK | G51: Motorgewicht | H51: m | I51: M | J51: =mM -> 5.3 | K51: [kg]
A52: Typbezeichnung | B52: AC M2n0290-4/1-3 | E52: -GW | G52: Bremse erforderlich | H52: = | J52: =IF(B10="0° horizontal","nein","ja") -> nein | L52: =65534-COUNTBLANK(Motorentabelle!$A$3:$A$65536) -> 1498
A53: ="Nenn"&Parameter!AK34 -> Nennmoment | B53: =Parameter!AH34 -> M | C53: NennM | D53: =MNennM -> 2.9 | E53: =Parameter!Y34 -> [Nm] | G53: ="erf. "&Parameter!AH34&" Nenn Motor" -> erf. M Nenn Motor | H53: =Parameter!AH34 -> M | I53: NennMErf | J53: =SQRT(SUM(Rechentabelle!AD:AD)/TGesamt) -> 1.762964185 | K53: =Parameter!Y34 -> [Nm]
A54: Nennstrom | B54: I | C54: NennM | D54: =INennM -> 6 | E54: [A] | G54: erf. I Nenn Motor | H54: I | I54: NennMErf | J54: =SQRT(SUM(Rechentabelle!AF:AF)/TGesamt) -> 3.647512106 | K54: [A]
A55: ="Nenn"&Parameter!AL34 -> Nenndrehzahl | B55: =Parameter!AA34 -> n | C55: NennM | D55: =nNennM -> 4000 | E55: =Parameter!R34 -> [1/min] | F55: 1 | G55: ="erf. "&Parameter!AA34&" Nenn Motor" -> erf. n Nenn Motor | H55: =Parameter!AA34 -> n | I55: NennMErf | J55: =nEffE -> 1824.997229 | K55: =Parameter!R34 -> [1/min]
A56: ="Stillstands"&Parameter!AK34 -> Stillstandsmoment | B56: =Parameter!AH34 -> M | C56: 0 Motor | D56: =M0Motor -> 4 | E56: =Parameter!Y34 -> [Nm] | G56: ="erf. "&Parameter!AA34&" Max Motor" -> erf. n Max Motor | H56: =Parameter!AA34 -> n | I56: MaxMErf | J56: =nMaxE -> 3600.637472 | K56: =Parameter!R34 -> [1/min]
A57: Stillstandsstrom | B57: I | C57: 0 Motor | D57: =I0Motor -> 8.3 | E57: [A]
A58: ="Motor- Maximal"&Parameter!AK34 -> Motor- Maximalmoment | B58: =Parameter!AH34 -> M | C58: MaxM | D58: =MMaxM -> 16 | E58: =Parameter!Y34 -> [Nm] | G58: ="erf. "&Parameter!AH34&" Max Motor" -> erf. M Max Motor | H58: =Parameter!AH34 -> M | I58: MaxMErf | J58: =IF(MAX(Rechentabelle!AC:AC)>ABS(MIN(Rechentabelle!AC:AC)),MAX(Rechentabelle!AC:AC),(MIN(Rechentabelle!AC:AC))) -> 3.366967357 | K58: =Parameter!Y34 -> [Nm]
A59: Motor- Maximalstrom | B59: I | C59: MaxM | D59: =IMaxM -> 33.126294 | E59: [A] | G59: erf. I Max Motor | H59: I | I59: MaxMErf | J59: =IF(MAX(Rechentabelle!AE:AE)>ABS(MIN(Rechentabelle!AE:AE)),MAX(Rechentabelle!AE:AE),(MIN(Rechentabelle!AE:AE))) -> 6.96613936 | K59: [A]
A62: Motor- Trägheitsmoment | B62: J | C62: Motor | D62: =JMotor -> 1.8 | E62: [kgcm2] | G62: Massenanpassung | H62: FI | J62: =JReduziert/(JMotor+JGetriebe) -> 6.644232804 | K62: [ / 1]
A63: Zwischenkreisspannung | B63: U | C63: ZWKM | D63: =UZWKM -> 325 | E63: [VDC] | G63: auftretende Radiallast | H63: F | I63: RadialM | J63: =IF(B33="kein Getriebe",FRadial,IF(B33="Vorgelege",FRadial/iGetriebe,0)) -> 0 | K63: [N]
A64: zul. Radialkraft | B64: F | C64: Rzul.M | D64: =FRZulM -> 250 | E64: [N] | G64: Auslastung Motor | H64: ξ | I64: M | J64: =MNennMErf/MNennM -> 0.6079186844 | K64: [%]
A66: Vorgaben zum Servoverstärker: | G66: Ergebnisse aus den Vorgaben:
A67: Hersteller | B67: SERVOANTRIEBSTECHNIK | G67: Maxstrom wegen Motor | J67: =IMaxM -> 33.126294 | K67: [A]
A68: Typbezeichnung | B68: 638A/06-3-F… | E68: -…-RD2 | G68: Maxstrom wegen Getriebe | J68: =IF(MNotausG/iGetriebe*INennM/MNennM<(MBeschlG/iGetriebe+MReibG+(JMotor+JGetriebe)/10000*ABS(aMaxE))*INennM/MNennM,MNotausG/iGetriebe*INennM/MNennM,(MBeschlG/iGetriebe+MReibG+(JMotor+JGetriebe)/10000*ABS(aMaxE))*INennM/MNennM) -> 21.77401307 | K68: [A] | L68: =65534-COUNTBLANK(Reglertabelle!$A$3:$A$65536) -> 104
A69: Nennstrom | B69: I | C69: NennR | D69: =INennR -> 6 | E69: [A] | G69: erf. I Nenn Regler | H69: I | I69: NennRErf | J69: =SQRT(SUM(Rechentabelle!AF:AF)/TGesamt) -> 3.647512106 | K69: [A]
A70: Regler- Maximalsrom | B70: I | C70: MaxR | D70: =IMaxR -> 12 | E70: [A] | G70: erf. I Max Regler | H70: I | I70: MaxRErf | J70: =IF(MAX(Rechentabelle!AE:AE)>ABS(MIN(Rechentabelle!AE:AE)),MAX(Rechentabelle!AE:AE),(MIN(Rechentabelle!AE:AE))) -> 6.96613936 | K70: [A]
A71: Zwischenkreisspannung | B71: U | C71: ZWKR | D71: =UZWKR -> 325 | E71: [VDC] | G71: Zwischenkreispannung | J71: =ROUNDDOWN(UNetz*SQRT(2),0) -> 325 | K71: [VDC]
A72: Anschlussspannung | B72: U | C72: Netz | D72: 230 | E72: [VAC] | F72: =UNetz -> 230 | G72: Maxstrom Regler einstellen auf: | J72: =MIN(Maxstrom_wegen_Motor,Maxstom_wegen_Getriebe,IMaxR) -> 12 | K72: [A]
A73: Auflösung Motorgeber | D73: 65536 | E73: =Parameter!Z34 -> [Ink/U] | G73: erf. Auflösung Motorgeber | J73: =sVorschub/(2*dsFehler*iGetriebe)*10 -> 1047.197551 | K73: =Parameter!Z34 -> [Ink/U]
A74: Fehler Gebersystem | B74: dφ | C74: Geber ± | D74: =VLOOKUP(TypbezeichnungRegleroption,RegleroptionAuswahlMatrix,2,FALSE) -> 42 | E74: [ ' ] | G74: Positionierfehler Geber | H74: ds | I74: Geber ± | J74: =dfGeber/(360*60)/iGetriebe*sVorschub/2 -> 0.02036217461 | K74: =Parameter!T34 -> [mm]
A75: Leistung interner Bremswiderstand | D75: =PRInt -> 20 | E75: [W] | G75: Positionierfehler Summe | H75: ds | I75: Ges ± | J75: =dsSpiel+dsGeber -> 0.101810873 | K75: =Parameter!T34 -> [mm]
A76: Leistung externer Bremswiderstand | D76: =PRExt -> 200 | E76: [W] | G76: Mittlere Bremsleistung | H76: P | I76: B Mittel | J76: =ABS(SUM(Rechentabelle!AO:AO)/TGesamt) -> 81.08081168 | K76: [W]
A77: Anzahl Stützstellen des Profils | D77: 500 | E77: [-] | G77: Impulsleistung Bremsung | H77: P | I77: B Impuls | J77: =ABS(MIN(Rechentabelle!AN:AN)) -> 624.2101453 | K77: [W]
A78: Masterinkremente an X40 | B78: z | C78: Geber ± | D78: 4096 | E78: [Inkr.] | G78: Frequenz an X40 | H78: f | I78: X40 | J78: =zGeber/TGesamt -> 3.413333333 | K78: [kHz]
A79: Masterstroke | B79: z | C79: Master | D79: =4*zGeber -> 16384 | E79: [Inkr.] | G79: Auflösung Weg | H79: z | I79: mm | J79: =PPR*iGetriebe/sVorschub -> 3129.113505 | K79: =Parameter!X34 -> [Ink/mm]
A80: Minwert Widerstand | B80: R | C80: B Min | D80: =RBMin -> 27 | E80: [Ω] | G80: Maxwert Widerstand | H80: R | I80: B Max | J80: =ABS(MAX(Rechentabelle!AP:AP)) -> 224.9243731 | K80: [Ω]
A81: Externe Kapazität | B81: C | C81: Ext. | D81: =0*3100 -> 0 | E81: [µF] | G81: Auslastung Regler | H81: ξ | I81: R | J81: =INennRErf/INennR -> 0.6079186844 | K81: [%]
A83: Diese Berechnungen wurden von uns anhand der von Ihnen übermittelten Daten durchgeführt. Bitte beachten Sie, dass es sich hierbei um eine unverbindliche Empfehlung und nicht um die Zusicherung von Eigenschaften handelt. Unsere Empfehlung entbindet Sie daher nicht von der Pflicht, die Richtigkeit der Berechnungen für Ihren Anwendungsfall zu überprüfen. Dies ist besonders wichtig, wenn Annahmen zu nicht definierten Werten, z. Bsp. Reibung, Massenträgheitsmomenten, Gewichten usw. getroffen wurden oder diese Werte nachträglich geändert werden.

Sheet Parameter (hidden)
A1: ProfilAuswahl
A2: Nullprofil
A3: 1/2 Trapez
A4: 1/3 Trapez
A5: 1/5 Trapez
A6: 1/7 Trapez
A7: sym. Polynom 5. Ordnung
A8: unsym. Polynom 5. Ordnung
A9: geneigte Sinuslinie
A10: modifizierte Sinuslinie
A11: modifiziertes Beschl. Trapez
A12: 1/2 Sin^2-Trapez
A13: 1/3 Sin^2-Trapez
A14: 1/5 Sin^2-Trapez
A15: 1/7 Sin^2-Trapez
A16: 1/2 Sin-Trapez
A17: 1/3 Sin-Trapez | AF17: α
A18: 1/5 Sin-Trapez
A19: 1/7 Sin-Trapez
A20: Beschleunigung linear
A21: Beschleunigung Sin^2
A22: Beschleunigung quadratisch
A23: Konstantfahrt
A24: Bremsung linear
A25: Bremsung Sin^2
A26: Bremsung quadratisch
A27: EMK - Profil
A28: Profil für elastische Riemen
A29: Kurzschnitt
A30: Langschnitt
A31: Nolte NC-Kurve
A33: Typauswahl | B33: rot. Trägh | C33: Trum | D33: trans. Trägh. | E33: weiß | F33: Texte | S33: Einheiten | AB33: Formelbuchstaben | AI33: Texte | AP33: Vorschubkon | AQ33: Umrechn n->v
B34: =VLOOKUP(Hardware!$B$8,TypAuswahlMatrix,2,FALSE) -> 0 | C34: =VLOOKUP(Hardware!$B$8,TypAuswahlMatrix,3,FALSE) -> 1 | D34: =VLOOKUP(Hardware!$B$8,TypAuswahlMatrix,4,FALSE) -> 1 | E34: =VLOOKUP(Hardware!$B$8,TypAuswahlMatrix,5,FALSE) -> 1 | F34: =VLOOKUP(Hardware!$B$8,TypAuswahlMatrix,6,FALSE) -> Zusatzlast | G34: =VLOOKUP(Hardware!$B$8,TypAuswahlMatrix,7,FALSE) -> Schlittenmasse | H34: =VLOOKUP(Hardware!$B$8,TypAuswahlMatrix,8,FALSE) -> Basisgewicht | I34: =VLOOKUP(Hardware!$B$8,TypAuswahlMatrix,9,FALSE) -> Motorgewicht | J34: =VLOOKUP(Hardware!$B$8,TypAuswahlMatrix,10,FALSE) -> Getriebegewicht | K34: =VLOOKUP(Hardware!$B$8,TypAuswahlMatrix,11,FALSE) -> Scheibenbreite | L34: =VLOOKUP(Hardware!$B$8,TypAuswahlMatrix,12,FALSE) -> Scheibendurchmesser | M34: =VLOOKUP(Hardware!$B$8,TypAuswahlMatrix,13,FALSE) -> Vorschubkonstante | N34: =VLOOKUP(Hardware!$B$8,TypAuswahlMatrix,14,FALSE) -> Scheibenmaterial | O34: =VLOOKUP(Hardware!$B$8,TypAuswahlMatrix,15,FALSE) -> Anzahl der Scheiben | P34: =VLOOKUP(Hardware!$B$8,TypAuswahlMatrix,16,FALSE) -> Reibung bez. auf Scheibe | Q34: =VLOOKUP(Hardware!$B$8,TypAuswahlMatrix,17,FALSE) -> Max-Drehzahl der Scheibe | R34: =VLOOKUP(Hardware!$B$8,TypAuswahlMatrix,18,FALSE) -> [1/min] | S34: =VLOOKUP(Hardware!$B$8,TypAuswahlMatrix,19,FALSE) -> [mm/R] | T34: =VLOOKUP(Hardware!$B$8,TypAuswahlMatrix,20,FALSE) -> [mm] | U34: =VLOOKUP(Hardware!$B$8,TypAuswahlMatrix,21,FALSE) -> mm | V34: =VLOOKUP(Hardware!$B$8,TypAuswahlMatrix,22,FALSE) -> [m/s] | W34: =VLOOKUP(Hardware!$B$8,TypAuswahlMatrix,23,FALSE) -> [m/s^2] | X34: =VLOOKUP(Hardware!$B$8,TypAuswahlMatrix,24,FALSE) -> [Ink/mm] | Y34: =VLOOKUP(Hardware!$B$8,TypAuswahlMatrix,25,FALSE) -> [Nm] | Z34: =VLOOKUP(Hardware!$B$8,TypAuswahlMatrix,26,FALSE) -> [Ink/U] | AA34: =VLOOKUP(Hardware!$B$8,TypAuswahlMatrix,27,FALSE) -> n | AB34: =VLOOKUP(Hardware!$B$8,TypAuswahlMatrix,28,FALSE) -> s | AC34: =VLOOKUP(Hardware!$B$8,TypAuswahlMatrix,29,FALSE) -> v | AD34: =VLOOKUP(Hardware!$B$8,TypAuswahlMatrix,30,FALSE) -> a | AE34: =VLOOKUP(Hardware!$B$8,TypAuswahlMatrix,31,FALSE) -> s [mm] | AF34: =VLOOKUP(Hardware!$B$8,TypAuswahlMatrix,32,FALSE) -> v [m/s] | AG34: =VLOOKUP(Hardware!$B$8,TypAuswahlMatrix,33,FALSE) -> a [m/s^2] | AH34: =VLOOKUP(Hardware!$B$8,TypAuswahlMatrix,34,FALSE) -> M | AI34: =VLOOKUP(Hardware!$B$8,TypAuswahlMatrix,35,FALSE) -> Moment | AJ34: =VLOOKUP(Hardware!$B$8,TypAuswahlMatrix,36,FALSE) -> Scheibe | AK34: =VLOOKUP(Hardware!$B$8,TypAuswahlMatrix,37,FALSE) -> moment | AL34: =VLOOKUP(Hardware!$B$8,TypAuswahlMatrix,38,FALSE) -> drehzahl | AM34: =VLOOKUP(Hardware!$B$8,TypAuswahlMatrix,39,FALSE) -> Kupplung | AN34: =VLOOKUP(Hardware!$B$8,TypAuswahlMatrix,40,FALSE) -> zusätzliche Trägheiten | AO34: =VLOOKUP(Hardware!$B$8,TypAuswahlMatrix,41,FALSE) -> 0 | AP34: =VLOOKUP(Hardware!$B$8,TypAuswahlMatrix,42,FALSE) -> 251.3274123 | AQ34: =VLOOKUP(Hardware!$B$8,TypAuswahlMatrix,43,FALSE) -> 1
A35: Spindel | B35: 0 | C35: 0 | D35: 1 | E35: 1 | F35: Zusatzlast | G35: Schlittenmasse | H35: Basisgewicht | I35: Motorgewicht | J35: Getriebegewicht | K35: Spindellänge | L35: Spindeldurchmesser | M35: Vorschubkonstante | N35: Spindelmaterial | O35: Anzahl der Spindeln | P35: Reibung bez. auf Spindel | Q35: Max-Drehzahl der Spindel | R35: [1/min] | S35: [mm/R] | T35: [mm] | U35: mm | V35: [m/s] | W35: [m/s^2] | X35: [Ink/mm] | Y35: [Nm] | Z35: [Ink/U] | AA35: n | AB35: s | AC35: v | AD35: a | AE35: s [mm] | AF35: v [m/s] | AG35: a [m/s^2] | AH35: M | AI35: Moment | AJ35: Spindel | AK35: moment | AL35: drehzahl | AM35: Kupplung | AN35: zusätzliche Trägheiten | AP35: 10 | AQ35: 1
A36: Zahnriemen / Scheibe | B36: 0 | C36: 1 | D36: 1 | E36: 1 | F36: Zusatzlast | G36: Schlittenmasse | H36: Basisgewicht | I36: Motorgewicht | J36: Getriebegewicht | K36: Scheibenbreite | L36: Scheibendurchmesser | M36: Vorschubkonstante | N36: Scheibenmaterial | O36: Anzahl der Scheiben | P36: Reibung bez. auf Scheibe | Q36: Max-Drehzahl der Scheibe | R36: [1/min] | S36: [mm/R] | T36: [mm] | U36: mm | V36: [m/s] | W36: [m/s^2] | X36: [Ink/mm] | Y36: [Nm] | Z36: [Ink/U] | AA36: n | AB36: s | AC36: v | AD36: a | AE36: s [mm] | AF36: v [m/s] | AG36: a [m/s^2] | AH36: M | AI36: Moment | AJ36: Scheibe | AK36: moment | AL36: drehzahl | AM36: Kupplung | AN36: zusätzliche Trägheiten | AP36: =dS*PI() -> 251.3274123 | AQ36: 1
A37: Zahnstange / Ritzel | B37: 0 | C37: 0 | D37: 1 | E37: 1 | F37: Zusatzlast | G37: Schlittenmasse | H37: Basisgewicht | I37: Motorgewicht | J37: Getriebegewicht | K37: Ritzelbleite | L37: Ritzeldurchmesser | M37: Vorschubkonstante | N37: Ritzelmaterial | O37: Anzahl der Ritzel | P37: Reibung bez. auf Ritzel | Q37: Max-Drehzahl der Ritzel | R37: [1/min] | S37: [mm/R] | T37: [mm] | U37: mm | V37: [m/s] | W37: [m/s^2] | X37: [Ink/mm] | Y37: [Nm] | Z37: [Ink/U] | AA37: n | AB37: s | AC37: v | AD37: a | AE37: s [mm] | AF37: v [m/s] | AG37: a [m/s^2] | AH37: M | AI37: Moment | AJ37: Ritzel | AK37: moment | AL37: drehzahl | AM37: Kupplung | AN37: zusätzliche Trägheiten | AP37: =dS*PI() -> 251.3274123 | AQ37: 1
A38: Rundschalttisch | B38: 1 | C38: 0 | D38: 0 | E38: 1 | F38: Null eintragen | G38: Null eintragen | H38: Null eintragen | I38: Null eintragen | J38: Null eintragen | K38: Tischdicke | L38: Tischdurchmesser | M38: Vorschubkonstante | N38: Tischmaterial | O38: Anzahl der Scheiben | P38: Reibung bez. auf Tisch | Q38: Max-Drehzahl Tisch | R38: [1/min] | S38: [°/R] | T38: [°] | U38: Grad | V38: [°/ms] | W38: [k°/s^2] | X38: [Ink/°] | Y38: [Nm] | Z38: [Ink/U] | AA38: n | AB38: φ | AC38: ω | AD38: α | AE38: φ [°] | AF38: ω [°/ms] | AG38: α [k°/s^2] | AH38: M | AI38: Moment | AJ38: Tisch | AK38: moment | AL38: drehzahl | AM38: Kupplung | AN38: zusätzliche Trägheiten | AP38: 360 | AQ38: 1
A39: Torque- Motor | B39: 1 | C39: 0 | D39: 0 | E39: 1 | F39: Null eintragen | G39: Null eintragen | H39: Null eintragen | I39: Null eintragen | J39: Null eintragen | K39: Tischdicke | L39: Tischdurchmesser | M39: Vorschubkonstante | N39: Tischmaterial | O39: Anzahl der Scheiben | P39: Reibung bez. auf Tisch | Q39: Max-Drehzahl Tisch | R39: [1/min] | S39: [°/R] | T39: [°] | U39: Grad | V39: [°/ms] | W39: [k°/s^2] | X39: [Ink/°] | Y39: [Nm] | Z39: [Ink/U] | AA39: n | AB39: φ | AC39: ω | AD39: α | AE39: φ [°] | AF39: ω [°/ms] | AG39: α [k°/s^2] | AH39: M | AI39: Moment | AJ39: Tisch | AK39: moment | AL39: drehzahl | AM39: Null eintragen | AN39: zusätzliche Trägheiten | AP39: 360 | AQ39: 1
A40: Linear- Motor | B40: 0 | C40: 0 | D40: 0 | E40: 0 | F40: Zusatzlast | G40: Schlittenmasse | H40: Basisgewicht | I40: Null eintragen | J40: Null eintragen | K40: Null eintragen | L40: Null eintragen | M40: 6283,19 eintragen | N40: Null eintragen | O40: Null eintragen | P40: Zusatzreibung | Q40: Max | R40: [mm/s] | S40: [-] | T40: [mm] | U40: mm | V40: [m/s] | W40: [m/s^2] | X40: [Ink/mm] | Y40: [N] | Z40: [Ink/mm] | AA40: v | AB40: s | AC40: v | AD40: a | AE40: s [mm] | AF40: v [m/s] | AG40: a [m/s^2] | AH40: F | AI40: Kraft | AJ40: ------ | AK40: kraft | AL40: geschwindigkeit | AM40: Null eintragen | AN40: Null eintragen | AP40: 6283.1853 | AQ40: =sVorschub/60 -> 4.188790205
A43: EinbaulageAuswahl | B43: α
A44: 0° horizontal | B44: 0
A45: 30° | B45: 30
A46: 45° | B46: 45
A47: 60° | B47: 60
A48: 90° vertikal | B48: 90
A50: AnbauAuswahl | B50: Last | C50: Schlitten | D50: Basis | E50: MG
A51: Last+Schlitten fährt | B51: 1 | C51: 1 | D51: 0 | E51: 0
A52: Last+Basis fährt | B52: 1 | C52: 0 | D52: 1 | E52: 0
A53: Last+Basis+MG fährt | B53: 1 | C53: 0 | D53: 1 | E53: 1
A55: MotorgewichtAuswahl
A57: =mM -> 5.3
A59: GetriebegewichtAuswahl
A61: =mG -> 3,7
A63: VorschubAuswahl
A65: =AP34 -> 251.3274123
A66: 20
A67: 30
A68: 50
A71: MaterialAuswahl
A73: 2.7
A74: 7.8
A76: MotoroptionAuswahl | B76: Bremse?
A77: =VLOOKUP(Hardware!B52,MotorenAuswahlMatrix,28,FALSE) -> 90 | B77: =IF(OR(A77="-BR",A77="-BG",A77="7300",A77="7301",A77="1500",A77="1501"),"ja","nein") -> nein
A78: =VLOOKUP(Hardware!B52,MotorenAuswahlMatrix,29,FALSE) -> -… | B78: =IF(OR(A78="-BR",A78="-BG",A78="7300",A78="7301",A78="1500",A78="1501"),"ja","nein") -> nein
A79: =VLOOKUP(Hardware!B52,MotorenAuswahlMatrix,30,FALSE) -> -GW | B79: =IF(OR(A79="-BR",A79="-BG",A79="7300",A79="7301",A79="1500",A79="1501"),"ja","nein") -> nein
A80: =VLOOKUP(Hardware!B52,MotorenAuswahlMatrix,31,FALSE) -> -BR | B80: =IF(OR(A80="-BR",A80="-BG",A80="7300",A80="7301",A80="1500",A80="1501"),"ja","nein") -> ja
A83: RegleroptionAuswahl | B83: Fehler [']
A84: =VLOOKUP(Hardware!B68,ReglerAuswahlMatrix,15,FALSE) -> -…-RD2 | B84: =IF(OR(A84="-…",A84="-…-RD2",A84="-F10"),42,0) -> 42
A85: =VLOOKUP(Hardware!B68,ReglerAuswahlMatrix,16,FALSE) -> -…-HF2 | B85: =IF(OR(A85="-…",A85="-…-RD2",A85="-F10"),42,0) -> 0
A86: =VLOOKUP(Hardware!B68,ReglerAuswahlMatrix,17,FALSE) -> -…-SC2 | B86: =IF(OR(A86="-…",A86="-…-RD2",A86="-F10"),42,0) -> 0
B87: =IF(OR(A87="-…",A87="-…-RD2",A87="-F10"),42,0) -> 0
A89: DateinameAuswahlprf
A91: =Hardware!B2&" "&Hardware!B3&" "&Hardware!B4&".csv" -> Kunde GmbH Projekt 1 X-Achse.csv
A92: =Hardware!B3&" "&Hardware!B4&".csv" -> Projekt 1 X-Achse.csv
A93: =Hardware!B4&".csv" -> X-Achse.csv
A95: DateinameAuswahltxt
A97: =Hardware!B2&Hardware!B3&Hardware!B4&".txt" -> Kunde GmbHProjekt 1X-Achse.txt
A98: =Hardware!B3&Hardware!B4&".txt" -> Projekt 1X-Achse.txt
A99: =Hardware!B4&".txt" -> X-Achse.txt
A101: AuflösungAuswahl
A103: =VLOOKUP(Hardware!$B$68,ReglerAuswahlMatrix,7,FALSE) -> 65536

Sheet Bewegungen
A2: Kunde: | C2: =Hardware!B2 -> Kunde GmbH | I2: Notizen:
A3: Projekt: | C3: =Hardware!B3 -> Projekt 1
A4: Achse: | C4: =Hardware!B4 -> X-Achse
A6: Vorgaben der Bewegungen:
A7: Bewegung 1 von | C7: 0 | D7: [ms] | E7: bis | F7: 700 | G7: [ms] | H7: Weg | I7: 500 | J7: =Parameter!T34 -> [mm] | K7: modifizierte Sinuslinie
A8: Bewegung 2 von | C8: =F7 -> 700 | D8: [ms] | E8: bis | F8: 1200 | G8: [ms] | H8: Weg | I8: 0 | J8: =Parameter!T34 -> [mm] | K8: Nullprofil
A9: Bewegung 3 von | C9: =F8 -> 1200 | D9: [ms] | E9: bis | F9: 1200 | G9: [ms] | H9: Weg | I9: 0 | J9: =Parameter!T34 -> [mm] | K9: Nullprofil
A10: Bewegung 4 von | C10: 1200 | D10: [ms] | E10: bis | F10: 1200 | G10: [ms] | H10: Weg | I10: 0 | J10: =Parameter!T34 -> [mm] | K10: Nullprofil
A11: Bewegung 5 von | C11: 1200 | D11: [ms] | E11: bis | F11: 1200 | G11: [ms] | H11: Weg | I11: 0 | J11: =Parameter!T34 -> [mm] | K11: Nullprofil
A12: Bewegung 6 von | C12: 1200 | D12: [ms] | E12: bis | F12: 1200 | G12: [ms] | H12: Weg | I12: 0 | J12: =Parameter!T34 -> [mm] | K12: Nullprofil
A13: Bewegung 7 von | C13: 1200 | D13: [ms] | E13: bis | F13: 1200 | G13: [ms] | H13: Weg | I13: 0 | J13: =Parameter!T34 -> [mm] | K13: Nullprofil
A14: Bewegung 8 von | C14: 1200 | D14: [ms] | E14: bis | F14: 1200 | G14: [ms] | H14: Weg | I14: 0 | J14: =Parameter!T34 -> [mm] | K14: Nullprofil
A16: Gesamtzeit: | C16: T Gesamt | E16: =MAX(F7:F14) -> 1200 | G16: [ms]
A17: Gesamtweg: | C17: s Gesamt | E17: =SUM(I7:I14) -> 500 | G17: =Parameter!T34 -> [mm]
A20: Ergebnisse aus den Vorgaben
A21: Bewegung 1 von | C21: 0 | D21: [SS] | E21: bis | F21: =ROUND(T1E*zStütz/TGesamt,0) -> 292 | G21: [SS] | H21: Weg | I21: =ROUND(_WEG1/sVorschub*iGetriebe*PPR,0) -> 1564557 | J21: [Inkr.] | K21: =PROFIL1 -> modifizierte Sinuslinie
A22: Bewegung 2 von | C22: =F21 -> 292 | D22: [SS] | E22: bis | F22: =ROUND(T2E*zStütz/TGesamt,0) -> 500 | G22: [SS] | H22: Weg | I22: =ROUND(_WEG2/sVorschub*iGetriebe*PPR,0) -> 0 | J22: [Inkr.] | K22: =PROFIL2 -> Nullprofil
A23: Bewegung 3 von | C23: 500 | D23: [SS] | E23: bis | F23: =ROUND(T3E*zStütz/TGesamt,0) -> 500 | G23: [SS] | H23: Weg | I23: =ROUND(_WEG3/sVorschub*iGetriebe*PPR,0) -> 0 | J23: [Inkr.] | K23: =PROFIL3 -> Nullprofil
A24: Bewegung 4 von | C24: 500 | D24: [SS] | E24: bis | F24: =ROUND(T4E*zStütz/TGesamt,0) -> 500 | G24: [SS] | H24: Weg | I24: =ROUND(_WEG4/sVorschub*iGetriebe*PPR,0) -> 0 | J24: [Inkr.] | K24: =PROFIL4 -> Nullprofil
A25: Bewegung 5 von | C25: 500 | D25: [SS] | E25: bis | F25: =ROUND(T5E*zStütz/TGesamt,0) -> 500 | G25: [SS] | H25: Weg | I25: =ROUND(_WEG5/sVorschub*iGetriebe*PPR,0) -> 0 | J25: [Inkr.] | K25: =PROFIL5 -> Nullprofil
A26: Bewegung 6 von | C26: 500 | D26: [SS] | E26: bis | F26: =ROUND(T6E*zStütz/TGesamt,0) -> 500 | G26: [SS] | H26: Weg | I26: =ROUND(_WEG6/sVorschub*iGetriebe*PPR,0) -> 0 | J26: [Inkr.] | K26: =PROFIL6 -> Nullprofil
A27: Bewegung 7 von | C27: 500 | D27: [SS] | E27: bis | F27: =ROUND(T7E*zStütz/TGesamt,0) -> 500 | G27: [SS] | H27: Weg | I27: =ROUND(_WEG7/sVorschub*iGetriebe*PPR,0) -> 0 | J27: [Inkr.] | K27: =PROFIL7 -> Nullprofil
A28: Bewegung 8 von | C28: 500 | D28: [SS] | E28: bis | F28: =ROUND(T8E*zStütz/TGesamt,0) -> 500 | G28: [SS] | H28: Weg | I28: =ROUND(_WEG8/sVorschub*iGetriebe*PPR,0) -> 0 | J28: [Inkr.] | K28: =PROFIL8 -> Nullprofil
A30: Dateiname: | C30: Kunde GmbH Projekt 1 X-Achse.csv
A33: Dateiname: | C33: X-Achse.txt

Sheet Rechentabelle (hidden)
A1: t [ms] | B1: dt [ms] | C1: =Parameter!AE34 -> s [mm] | D1: =Parameter!AF34 -> v [m/s] | E1: =Parameter!AG34 -> a [m/s^2] | F1: αG [rad/s2] | G1: MJ [Nm] | H1: FT [N] | I1: MT [Nm] | J1: MR [Nm] | K1: MG [Nm] | L1: MP [Nm] | M1: MJRGP [Nm] | N1: MJRGP^2*dt [Nm2*ms] | O1: nS [1/min] | P1: nS^2*dt [ms/min2] | Q1: nS*dt*MJRGP3 [ms*Nm3/min] | R1: nS*dt [ms/min] | S1: ED [ms] | T1: nE [1/min] | U1: αE [rad/s2] | V1: MRGetr [Nm] | W1: MJGetr [Nm] | X1: MJRGP/i [Nm] | Y1: MGE [Nm] | Z1: MGE^2*dt [Nm2*ms] | AA1: αE^2*dt [rad2/s4*ms] | AB1: MJM [Nm] | AC1: MErfM [Nm] | AD1: MErfM2*dt [Nm2*ms] | AE1: Imotor [A] | AF1: IMotor2*dt [A2*ms] | AG1: P [W] | AH1: PBrems [W] | AI1: PBrems *dt [W*ms] | AJ1: PVRMot [W] | AK1: UCC [V] | AL1: IZWK [A] | AM1: dUCC [V] | AN1: PBrems [W] | AO1: PBrems *dt [W*ms] | AP1: R max [O]
A2: 0 | B2: 35 | C2: 0 | D2: 0 | E2: 0 | F2: =E2/(sVorschub/1000)*2*PI() -> 0 | G2: =JExtern/10000*F2 -> 0 | H2: =mTransl*E2 -> 0 | I2: =mTransl*E2*sVorschub/(2*PI())/1000 -> 0 | J2: =MReibS*SIGN(D2) -> 0 | K2: =MGewicht -> 0 | L2: =MProzess -> 0 | M2: =G2+J2+K2+L2 -> 0 | N2: =M2^2*B2 -> 0 | O2: =D2/(sVorschub/1000)*60 -> 0 | P2: =O2^2*B2 -> 0 | Q2: =ABS(O2)*ABS(B2)*(ABS(M2)^3) -> 0 | R2: =ABS(O2)*ABS(B2) -> 0 | S2: =IF(O2<>0,B2,0) -> 0 | T2: =O2*iGetriebe*Faktor_n_v -> 0 | U2: =E2/(sVorschub/1000)*2*PI()*iGetriebe -> 0 | V2: =MReibG*SIGN(T2) -> 0 | W2: =JGetriebe/10000*U2 -> 0 | X2: =M2/iGetriebe -> 0 | Y2: =V2+W2+X2 -> 0 | Z2: =Y2^2*B2 -> 0 | AA2: =U2^2*B2 -> 0 | AB2: =JMotor/10000*U2 -> 0 | AC2: =AB2+Y2 -> 0 | AD2: =AC2^2*B2 -> 0 | AE2: =AC2*INennM/MNennM -> 0 | AF2: =AE2^2*B2 -> 0 | AG2: =AC2*2*PI()*T2/60 -> 0 | AH2: =IF(AG2<0,AG2,0) -> 0 | AI2: =AH2*B2 -> 0 | AJ2: =3*AE2^2*R_ph -> 0 | AK2: =Hardware!J71 -> 325 | AL2: =(AG2+AJ2)/AK2 -> 0 | AM2: =-AL2*B2/1000/CZWK -> 0 | AN2: =IF(AND(AK2>=UREin,AK2*AL2<0),AK2*AL2,0) -> 0 | AO2: =AN2*B2 -> 0 | AP2: =UREin^2/(AN2-1) -> -140625
A3: 35 | B3: 35 | C3: 0.7094580165 | D3: 0.06000970834 | E3: 3.315563012 | F3: 82.88907531 | G3: 19.98504676 | H3: =mTransl*E3 -> 497.3344519 | I3: =mTransl*E3*sVorschub/(2*PI())/1000 -> 19.89337807 | J3: 0.3 | K3: 0 | L3: 0 | M3: =G3+J3+K3+L3 -> 20.28504676 | N3: =M3^2*B3 -> 14401.90927 | O3: 14.32626257 | P3: =O3^2*B3 -> 7183.462976 | Q3: =ABS(O3)*ABS(B3)*(ABS(M3)^3) -> 4185323.101 | R3: =ABS(O3)*ABS(B3) -> 501.41919 | S3: =IF(O3<>0,B3,0) -> 35 | T3: 171.9151509 | U3: 994.6689037 | V3: 0.1 | W3: 0.07161616107 | X3: 1.690420563 | Y3: =V3+W3+X3 -> 1.862036724 | Z3: =Y3^2*B3 -> 121.3513267 | AA3: =U3^2*B3 -> 34627817.98 | AB3: 0.1790404027 | AC3: =AB3+Y3 -> 2.041077127 | AD3: =AC3^2*B3 -> 145.8098544 | AE3: 4.222918194 | AF3: =AE3^2*B3 -> 624.1563326 | AG3: =AC3*2*PI()*T3/60 -> 36.74533293 | AH3: =IF(AG3<0,AG3,0) -> 0 | AI3: =AH3*B3 -> 0 | AJ3: 21.39964569 | AK3: =IF((AK2+AM2)<$AK$2*0.95,$AK$2*0.95,IF((AK2+AM2)>UREin,UREin,(AK2+AM2))) -> 325 | AL3: =(AG3+AJ3)/AK3 -> 0.1789076265 | AM3: -9.487525648 | AN3: 0 | AO3: =AN3*B3 -> 0 | AP3: -140625
A4: 70 | B4: 35 | C4: 5.348606753 | D4: 0.2171171632 | E4: 5.364693578 | F4: 134.1173394 | G4: 32.33648451 | H4: 804.7040367 | I4: 32.18816147 | J4: 0.3 | K4: 0 | L4: 0 | M4: 32.63648451 | N4: 37279.90425 | O4: 51.83290463 | P4: 94032.75007 | Q4: 63064318.49 | R4: 1814.151662 | S4: 35 | T4: 621.9948555 | U4: 1609.408073 | V4: 0.1 | W4: 0.1158773813 | X4: 2.719707043 | Y4: 2.935584424 | Z4: 301.6179569 | AA4: 90656802.13 | AB4: 0.2896934532 | AC4: 3.225277877 | AD4: 364.0846085 | AE4: 6.672988712 | AF4: 1558.507242 | AG4: 210.078955 | AH4: 0 | AI4: 0 | AJ4: 53.43453402 | AK4: 315.5124744 | AL4: 0.8351919826 | AM4: -44.29048392 | AN4: 0 | AO4: 0 | AP4: -140625
A5: 105 | B5: 35 | C5: 16.35242067 | D5: 0.4127481394 | E5: 5.609871808 | F5: 140.2467952 | G5: 33.81433258 | H5: 841.4807711 | I5: 33.65923085 | J5: 0.3 | K5: 0 | L5: 0 | M5: 34.11433258 | N5: 40732.56906 | O5: 98.53635995 | P5: 339829.4981 | Q5: 136922618.7 | R5: 3448.772598 | S5: 35 | T5: 1182.436319 | U5: 1682.961542 | V5: 0.1 | W5: 0.121173231 | X5: 2.842861048 | Y5: 3.06403428 | Z5: 328.5907123 | AA5: 99132584.35 | AB5: 0.3029330776 | AC5: 3.366967357 | AD5: 396.7764214 | AE5: 6.96613936 | AF5: 1698.448415 | AG5: 416.9128536 | AH5: 0 | AI5: 0 | AJ5: 58.23251709 | AK5: 308.75 | AL5: 1.538932375 | AM5: -81.61005017 | AN5: 0 | AO5: 0 | AP5: -140625
A6: 140 | B6: 35 | C6: 34.19695303 | D6: 0.6055081698 | E6: 5.364693425 | F6: 134.1173356 | G6: 32.3364836 | H6: 804.7040138 | I6: 32.18816055 | J6: 0.3 | K6: 0 | L6: 0 | M6: 32.6364836 | N6: 37279.90215 | O6: 144.5544275 | P6: 731359.3875 | Q6: 175877191.3 | R6: 5059.404961 | S6: 35 | T6: 1734.65313 | U6: 1609.408028 | V6: 0.1 | W6: 0.115877378 | X6: 2.719706966 | Y6: 2.935584344 | Z6: 301.6179405 | AA6: 90656796.98 | AB6: 0.289693445 | AC6: 3.225277789 | AD6: 364.0845886 | AE6: 6.67298853 | AF6: 1558.507157 | AG6: 585.8796154 | AH6: 0 | AI6: 0 | AJ6: 53.4345311 | AK6: 308.75 | AL6: 2.070653106 | AM6: -109.8073617 | AN6: 0 | AO6: 0 | AP6: -140625
A7: 175 | B7: 35 | C7: 58.58924771 | D7: 0.7855372857 | E7: 4.885052185 | F7: 122.1263046 | G7: 29.44537503 | H7: 732.7578277 | I7: 29.31031311 | J7: 0.3 | K7: 0 | L7: 0 | M7: 29.74537503 | N7: 30967.55675 | O7: 187.533213 | P7: 1230904.709 | Q7: 172744641.9 | R7: 6563.662455 | S7: 35 | T7: 2250.398556 | U7: 1465.515655 | V7: 0.1 | W7: 0.1055171272 | X7: 2.478781253 | Y7: 2.68429838 | Z7: 252.1910227 | AA7: 75170764.77 | AB7: 0.263792818 | AC7: 2.948091198 | AD7: 304.1934599 | AE7: 6.09949903 | AF7: 1302.136095 | AG7: 694.7506672 | AH7: 0 | AI7: 0 | AJ7: 44.6446661 | AK7: 308.75 | AL7: 2.394802699 | AM7: -126.9971128 | AN7: 0 | AO7: 0 | AP7: -140625
A8: 210 | B8: 35 | C8: 88.94388882 | D8: 0.9449673503 | E8: 4.191910711 | F8: 104.7977678 | G8: 25.26736221 | H8: 628.7866066 | I8: 25.15146426 | J8: 0.3 | K8: 0 | L8: 0 | M8: 25.56736221 | N8: 22879.15037 | O8: 225.5943373 | P8: 1781248.176 | Q8: 131963556.3 | R8: 7895.801805 | S8: 35 | T8: 2707.132048 | U8: 1257.573213 | V8: 0.1 | W8: 0.09054527135 | X8: 2.130613518 | Y8: 2.321158789 | Z8: 188.5722343 | AA8: 55352163.53 | AB8: 0.2263631784 | AC8: 2.547521967 | AD8: 227.1453861 | AE8: 5.270735105 | AF8: 972.3226991 | AG8: 722.197525 | AH8: 0 | AI8: 0 | AJ8: 33.33677826 | AK8: 308.75 | AL8: 2.447074666 | AM8: -129.7691111 | AN8: 0 | AO8: 0 | AP8: -140625
A9: 245 | B9: 35 | C9: 124.4148773 | D9: 1.076830504 | E9: 3.315562613 | F9: 82.88906534 | G9: 19.98504436 | H9: 497.334392 | I9: 19.89337568 | J9: 0.3 | K9: 0 | L9: 0 | M9: 20.28504436 | N9: 14401.90586 | O9: 257.0743465 | P9: 2313052.687 | Q9: 75102547.7 | R9: 8997.602127 | S9: 35 | T9: 3084.892158 | U9: 994.668784 | V9: 0.1 | W9: 0.07161615245 | X9: 1.690420363 | Y9: 1.862036515 | Z9: 121.3512995 | AA9: 34627809.65 | AB9: 0.1790403811 | AC9: 2.041076897 | AD9: 145.8098214 | AE9: 4.222917717 | AF9: 624.1561916 | AG9: 659.3681592 | AH9: 0 | AI9: 0 | AJ9: 21.39964085 | AK9: 308.75 | AL9: 2.204915952 | AM9: -116.9273611 | AN9: 0 | AO9: 0 | AP9: -140625
A10: 280 | B10: 35 | C10: 163.9326051 | D10: 1.175363695 | E10: 2.294308512 | F10: 57.3577128 | G10: 13.82928411 | H10: 344.1462768 | I10: 13.76585107 | J10: 0.3 | K10: 0 | L10: 0 | M10: 14.12928411 | N10: 6987.283435 | O10: 280.597413 | P10: 2755721.787 | Q10: 27702067.38 | R10: 9820.909456 | S10: 35 | T10: 3367.168956 | U10: 688.2925536 | V10: 0.1 | W10: 0.04955706386 | X10: 1.177440343 | Y10: 1.326997407 | Z10: 61.63227411 | AA10: 16581132.38 | AB10: 0.1238926597 | AC10: 1.450890066 | AD10: 73.67786947 | AE10: 3.001841517 | AF10: 315.3868372 | AG10: 511.5970529 | AH10: 0 | AI10: 0 | AJ10: 10.81326299 | AK10: 308.75 | AL10: 1.692017217 | AM10: -89.72818577 | AN10: 0 | AO10: 0 | AP10: -140625
A11: 315 | B11: 35 | C11: 206.2506023 | D11: 1.236260549 | E11: 1.172782114 | F11: 29.31955285 | G11: 7.069117763 | H11: 175.9173171 | I11: 7.036692683 | J11: 0.3 | K11: 0 | L11: 0 | M11: 7.369117763 | N11: 1900.636381 | O11: 295.135466 | P11: 3048673.015 | Q11: 4133671.267 | R11: 10329.74131 | S11: 35 | T11: 3541.625592 | U11: 351.8346342 | V11: 0.1 | W11: 0.02533209366 | X11: 0.6140931469 | Y11: 0.7394252406 | Z11: 19.13623903 | AA11: 4332566.343 | AB11: 0.06333023415 | AC11: 0.8027554748 | AD11: 22.55457233 | AE11: 1.660873396 | AF11: 96.54751532 | AG11: 297.7244772 | AH11: 0 | AI11: 0 | AJ11: 3.310200525 | AK11: 308.75 | AL11: 0.9750111018 | AM11: -51.70513419 | AN11: 0 | AO11: 0 | AP11: -140625
A12: 350 | B12: 35 | C12: 250.0000138 | D12: 1.256859581 | E12: -4.931320201e-07 | F12: -1.23283005e-05 | G12: -2.972426235e-06 | H12: -7.396980301e-05 | I12: -2.958792121e-06 | J12: 0.3 | K12: 0 | L12: 0 | M12: 0.2999970276 | N12: 3.149937579 | O12: 300.0531226 | P12: 3151115.674 | Q12: 283.5417726 | R12: 10501.85929 | S12: 35 | T12: 3600.637472 | U12: -0.000147939606 | V12: 0.1 | W12: -1.065165163e-08 | X12: 0.0249997523 | Y12: 0.1249997416 | Z12: 0.5468727394 | AA12: 7.660144461e-07 | AB12: -2.662912909e-08 | AC12: 0.124999715 | AD12: 0.5468725064 | AE12: 0.2586201 | AF12: 2.340952465 | AG12: 47.13212683 | AH12: 0 | AI12: 0 | AJ12: 0.08026122737 | AK12: 308.75 | AL12: 0.1529146172 | AM12: -8.109108488 | AN12: 0 | AO12: 0 | AP12: -140625
A13: 385 | B13: 35 | C13: 293.7494246 | D13: 1.236260515 | E13: -1.172783079 | F13: -29.31957697 | G13: -7.069123578 | H13: -175.9174618 | I13: -7.036698472 | J13: 0.3 | K13: 0 | L13: 0 | M13: -6.769123578 | N13: 1603.736191 | O13: 295.1354578 | P13: 3048672.846 | Q13: 3203957.611 | R13: 10329.74102 | S13: 35 | T13: 3541.625493 | U13: -351.8349236 | V13: 0.1 | W13: -0.0253321145 | X13: -0.5640936315 | Y13: -0.489425746 | Z13: 8.383814631 | AA13: 4332573.471 | AB13: -0.06333028625 | AC13: -0.5527560323 | AD13: 10.69387309 | AE13: -1.14363317 | AF13: 45.77638898 | AG13: -205.0051371 | AH13: -205.0051371 | AI13: -7175.179798 | AJ13: 1.569476194 | AK13: 308.75 | AL13: -0.658900926 | AM13: 34.94171577 | AN13: 0 | AO13: 0 | AP13: -140625
A14: 420 | B14: 35 | C14: 336.0674201 | D14: 1.175363628 | E14: -2.294309413 | F14: -57.35773533 | G14: -13.82928955 | H14: -344.146412 | I14: -13.76585648 | J14: 0.3 | K14: 0 | L14: 0 | M14: -13.52928955 | N14: 6406.458646 | O14: 280.597397 | P14: 2755721.472 | Q14: 24320732.8 | R14: 9820.908895 | S14: 35 | T14: 3367.168764 | U14: -688.2928239 | V14: 0.1 | W14: -0.04955708332 | X14: -1.127440795 | Y14: -1.076997879 | Z14: 40.59735508 | AA14: 16581145.4 | AB14: -0.1238927083 | AC14: -1.200890587 | AD14: 50.47483707 | AE14: -2.484601215 | AF14: 216.0635119 | AG14: -423.4449352 | AH14: -423.4449352 | AI14: -14820.57273 | AJ14: 7.407891835 | AK14: 343.6917158 | AL14: -1.210494825 | AM14: 64.19290739 | AN14: 0 | AO14: 0 | AP14: -140625
A15: 455 | B15: 35 | C15: 375.585145 | D15: 1.076830408 | E15: -3.315563411 | F15: -82.88908528 | G15: -19.98504917 | H15: -497.3345117 | I15: -19.89338047 | J15: 0.3 | K15: 0 | L15: 0 | M15: -19.68504917 | N15: 13562.54062 | O15: 257.0743233 | P15: 2313052.27 | Q15: 68633517.49 | R15: 8997.601317 | S15: 35 | T15: 3084.89188 | U15: -994.6690234 | V15: 0.1 | W15: -0.07161616969 | X15: -1.640420764 | Y15: -1.612036933 | Z15: 90.95320762 | AA15: 34627826.31 | AB15: -0.1790404242 | AC15: -1.791077358 | AD15: 112.2785335 | AE15: -3.705677292 | AF15: 480.6215467 | AG15: -578.6059683 | AH15: -578.6059683 | AI15: -20251.20889 | AJ15: 16.47845303 | AK15: 375 | AL15: -1.499006707 | AM15: 79.49277994 | AN15: -562.1275153 | AO15: -19674.46303 | AP15: -249.7214151
A16: 490 | B16: 35 | C16: 411.0561296 | D16: 0.9449672278 | E16: -4.191911371 | F16: -104.7977843 | G16: -25.26736619 | H16: -628.7867056 | I16: -25.15146822 | J16: 0.3 | K16: 0 | L16: 0 | M16: -24.96736619 | N16: 21817.92811 | O16: 225.5943081 | P16: 1781247.714 | Q16: 122889386.2 | R16: 7895.800782 | S16: 35 | T16: 2707.131697 | U16: -1257.573411 | V16: 0.1 | W16: -0.09054528561 | X16: -2.080613849 | Y16: -2.071159135 | Z16: 150.1395056 | AA16: 55352180.96 | AB16: -0.226363214 | AC16: -2.297522349 | AD16: 184.751313 | AE16: -4.753494515 | AF16: 790.8498535 | AG16: -651.3249974 | AH16: -651.3249974 | AI16: -22796.37491 | AJ16: 27.11485212 | AK16: 375 | AL16: -1.664560387 | AM16: 88.27214176 | AN16: -624.2101453 | AO16: -21847.35509 | AP16: -224.9243731
A17: 525 | B17: 35 | C17: 441.4107661 | D17: 0.785537143 | E17: -4.885052678 | F17: -122.1263169 | G17: -29.445378 | H17: -732.7579017 | I17: -29.31031607 | J17: 0.3 | K17: 0 | L17: 0 | M17: -29.145378 | N17: 29730.85706 | O17: 187.5331789 | P17: 1230904.262 | Q17: 162500700.3 | R17: 6563.661262 | S17: 35 | T17: 2250.398147 | U17: -1465.515803 | V17: 0.1 | W17: -0.1055171378 | X17: -2.4287815 | Y17: -2.434298638 | Z17: 207.4033451 | AA17: 75170779.95 | AB17: -0.2637928446 | AC17: -2.698091483 | AD17: 254.7894177 | AE17: -5.58225824 | AF17: 1090.656247 | AG17: -635.8353224 | AH17: -635.8353224 | AI17: -22254.23629 | AJ17: 37.39392847 | AK17: 375 | AL17: -1.595843717 | AM17: 84.62807591 | AN17: -598.441394 | AO17: -20945.44879 | AP17: -234.5934088
A18: 560 | B18: 35 | C18: 465.8030555 | D18: 0.6055080131 | E18: -5.36469373 | F18: -134.1173433 | G18: -32.33648543 | H18: -804.7040595 | I18: -32.18816238 | J18: 0.3 | K18: 0 | L18: 0 | M18: -32.03648543 | N18: 35921.77396 | O18: 144.55439 | P18: 731359.0088 | Q18: 166354260.1 | R18: 5059.403652 | S18: 35 | T18: 1734.652681 | U18: -1609.408119 | V18: 0.1 | W18: -0.1158773846 | X18: -2.669707119 | Y18: -2.685584504 | Z18: 252.4327445 | AA18: 90656807.28 | AB18: -0.2896934614 | AC18: -2.975277965 | AD18: 309.829764 | AE18: -6.155747515 | AF18: 1326.262961 | AG18: -540.4663948 | AH18: -540.4663948 | AI18: -18916.32382 | AJ18: 45.47187296 | AK18: 375 | AL18: -1.319985391 | AM18: 69.9992253 | AN18: -494.9945218 | AO18: -17324.80826 | AP18: -283.5212766
A19: 595 | B19: 35 | C19: 483.6475822 | D19: 0.4127479755 | E19: -5.609871911 | F19: -140.2467978 | G19: -33.8143332 | H19: -841.4807866 | I19: -33.65923146 | J19: 0.3 | K19: 0 | L19: 0 | M19: -33.5143332 | N19: 39312.36855 | O19: 98.53632082 | P19: 339829.2282 | Q19: 129824343.8 | R19: 3448.771229 | S19: 35 | T19: 1182.43585 | U19: -1682.961573 | V19: 0.1 | W19: -0.1211732333 | X19: -2.7928611 | Y19: -2.814034334 | Z19: 277.1576231 | AA19: 99132587.99 | AB19: -0.3029330832 | AC19: -3.116967417 | AD19: 340.0420057 | AE19: -6.448898104 | AF19: 1455.590036 | AG19: -385.9565972 | AH19: -385.9565972 | AI19: -13508.4809 | AJ19: 49.9059441 | AK19: 375 | AL19: -0.896135075 | AM19: 47.52231459 | AN19: -336.0506531 | AO19: -11761.77286 | AP19: -417.2221555
A20: 630 | B20: 35 | C20: 494.6513914 | D20: 0.2171170587 | E20: -5.364692968 | F20: -134.1173242 | G20: -32.33648084 | H20: -804.7039452 | I20: -32.18815781 | J20: 0.3 | K20: 0 | L20: 0 | M20: -32.03648084 | N20: 35921.76366 | O20: 51.83287968 | P20: 94032.65955 | Q20: 59649635.23 | R20: 1814.150789 | S20: 35 | T20: 621.9945561 | U20: -1609.40789 | V20: 0.1 | W20: -0.1158773681 | X20: -2.669706737 | Y20: -2.685584105 | Z20: 252.4326694 | AA20: 90656781.53 | AB20: -0.2896934203 | AC20: -2.975277525 | AD20: 309.8296723 | AE20: -6.155746604 | AF20: 1326.262569 | AG20: -193.7950515 | AH20: -193.7950515 | AI20: -6782.826803 | AJ20: 45.4718595 | AK20: 375 | AL20: -0.395528512 | AM20: 20.97499685 | AN20: -148.323192 | AO20: -5191.31172 | AP20: -941.7492227
A21: 665 | B21: 35 | C21: 499.290537 | D21: 0.06000964375 | E21: -3.315561417 | F21: -82.88903541 | G21: -19.98503714 | H21: -497.3342125 | I21: -19.8933685 | J21: 0.3 | K21: 0 | L21: 0 | M21: -19.68503714 | N21: 13562.52405 | O21: 14.32624715 | P21: 7183.447513 | Q21: 3824804.127 | R21: 501.4186504 | S21: 35 | T21: 171.9149659 | U21: -994.668425 | V21: 0.1 | W21: -0.0716161266 | X21: -1.640419762 | Y21: -1.612035888 | Z21: 90.95308969 | AA21: 34627784.65 | AB21: -0.1790403165 | AC21: -1.791076205 | AD21: 112.278389 | AE21: -3.705674907 | AF21: 480.620928 | AG21: -32.2445535 | AH21: -32.2445535 | AI21: -1128.559372 | AJ21: 16.47843182 | AK21: 375 | AL21: -0.04204299114 | AM21: 2.229552561 | AN21: -15.76612168 | AO21: -551.8142588 | AP21: -8387.449566
A22: 700 | B22: 100 | C22: 500 | D22: 0 | E22: 0 | F22: 0 | G22: 0 | H22: 0 | I22: 0 | J22: 0 | K22: 0 | L22: 0 | M22: 0 | N22: 0 | O22: 0 | P22: 0 | Q22: 0 | R22: 0 | S22: 0 | T22: 0 | U22: 0 | V22: 0 | W22: 0 | X22: 0 | Y22: 0 | Z22: 0 | AA22: 0 | AB22: 0 | AC22: 0 | AD22: 0 | AE22: 0 | AF22: 0 | AG22: 0 | AH22: 0 | AI22: 0 | AJ22: 0 | AK22: 375 | AL22: 0 | AM22: 0 | AN22: 0 | AO22: 0 | AP22: -140625
A23: 800 | B23: 100 | C23: 500 | D23: 0 | E23: 0 | F23: 0 | G23: 0 | H23: 0 | I23: 0 | J23: 0 | K23: 0 | L23: 0 | M23: 0 | N23: 0 | O23: 0 | P23: 0 | Q23: 0 | R23: 0 | S23: 0 | T23: 0 | U23: 0 | V23: 0 | W23: 0 | X23: 0 | Y23: 0 | Z23: 0 | AA23: 0 | AB23: 0 | AC23: 0 | AD23: 0 | AE23: 0 | AF23: 0 | AG23: 0 | AH23: 0 | AI23: 0 | AJ23: 0 | AK23: 375 | AL23: 0 | AM23: 0 | AN23: 0 | AO23: 0 | AP23: -140625
A24: 900 | B24: 100 | C24: 500 | D24: 0 | E24: 0 | F24: 0 | G24: 0 | H24: 0 | I24: 0 | J24: 0 | K24: 0 | L24: 0 | M24: 0 | N24: 0 | O24: 0 | P24: 0 | Q24: 0 | R24: 0 | S24: 0 | T24: 0 | U24: 0 | V24: 0 | W24: 0 | X24: 0 | Y24: 0 | Z24: 0 | AA24: 0 | AB24: 0 | AC24: 0 | AD24: 0 | AE24: 0 | AF24: 0 | AG24: 0 | AH24: 0 | AI24: 0 | AJ24: 0 | AK24: 375 | AL24: 0 | AM24: 0 | AN24: 0 | AO24: 0 | AP24: -140625
A25: 1000 | B25: 100 | C25: 500 | D25: 0 | E25: 0 | F25: 0 | G25: 0 | H25: 0 | I25: 0 | J25: 0 | K25: 0 | L25: 0 | M25: 0 | N25: 0 | O25: 0 | P25: 0 | Q25: 0 | R25: 0 | S25: 0 | T25: 0 | U25: 0 | V25: 0 | W25: 0 | X25: 0 | Y25: 0 | Z25: 0 | AA25: 0 | AB25: 0 | AC25: 0 | AD25: 0 | AE25: 0 | AF25: 0 | AG25: 0 | AH25: 0 | AI25: 0 | AJ25: 0 | AK25: 375 | AL25: 0 | AM25: 0 | AN25: 0 | AO25: 0 | AP25: -140625
A26: 1100 | B26: 100 | C26: 500 | D26: 0 | E26: 0 | F26: 0 | G26: 0 | H26: 0 | I26: 0 | J26: 0 | K26: 0 | L26: 0 | M26: 0 | N26: 0 | O26: 0 | P26: 0 | Q26: 0 | R26: 0 | S26: 0 | T26: 0 | U26: 0 | V26: 0 | W26: 0 | X26: 0 | Y26: 0 | Z26: 0 | AA26: 0 | AB26: 0 | AC26: 0 | AD26: 0 | AE26: 0 | AF26: 0 | AG26: 0 | AH26: 0 | AI26: 0 | AJ26: 0 | AK26: 375 | AL26: 0 | AM26: 0 | AN26: 0 | AO26: 0 | AP26: -140625
A27: 1200 | B27: 100 | C27: 500 | D27: 0 | E27: 0 | F27: 0 | G27: 0 | H27: 0 | I27: 0 | J27: 0 | K27: 0 | L27: 0 | M27: 0 | N27: 0 | O27: 0 | P27: 0 | Q27: 0 | R27: 0 | S27: 0 | T27: 0 | U27: 0 | V27: 0 | W27: 0 | X27: 0 | Y27: 0 | Z27: 0 | AA27: 0 | AB27: 0 | AC27: 0 | AD27: 0 | AE27: 0 | AF27: 0 | AG27: 0 | AH27: 0 | AI27: 0 | AJ27: 0 | AK27: 375 | AL27: 0 | AM27: 0 | AN27: 0 | AO27: 0 | AP27: -140625
F28: 0 | G28: 0 | H28: 0 | I28: 0 | J28: 0 | K28: 0 | L28: 0 | M28: 0 | N28: 0 | O28: 0 | P28: 0 | Q28: 0 | R28: 0 | S28: 0 | T28: 0 | U28: 0 | V28: 0 | W28: 0 | X28: 0 | Y28: 0 | Z28: 0 | AA28: 0 | AB28: 0 | AC28: 0 | AD28: 0 | AE28: 0 | AF28: 0 | AG28: 0 | AH28: 0 | AI28: 0 | AJ28: 0 | AK28: 375 | AL28: 0 | AM28: 0 | AN28: 0 | AO28: 0 | AP28: -140625
F29: 0 | G29: 0 | H29: 0 | I29: 0 | J29: 0 | K29: 0 | L29: 0 | M29: 0 | N29: 0 | O29: 0 | P29: 0 | Q29: 0 | R29: 0 | S29: 0 | T29: 0 | U29: 0 | V29: 0 | W29: 0 | X29: 0 | Y29: 0 | Z29: 0 | AA29: 0 | AB29: 0 | AC29: 0 | AD29: 0 | AE29: 0 | AF29: 0 | AG29: 0 | AH29: 0 | AI29: 0 | AJ29: 0 | AK29: 375 | AL29: 0 | AM29: 0 | AN29: 0 | AO29: 0 | AP29: -140625
F30: 0 | G30: 0 | H30: 0 | I30: 0 | J30: 0 | K30: 0 | L30: 0 | M30: 0 | N30: 0 | O30: 0 | P30: 0 | Q30: 0 | R30: 0 | S30: 0 | T30: 0 | U30: 0 | V30: 0 | W30: 0 | X30: 0 | Y30: 0 | Z30: 0 | AA30: 0 | AB30: 0 | AC30: 0 | AD30: 0 | AE30: 0 | AF30: 0 | AG30: 0 | AH30: 0 | AI30: 0 | AJ30: 0 | AK30: 375 | AL30: 0 | AM30: 0 | AN30: 0 | AO30: 0 | AP30: -140625
F31: 0 | G31: 0 | H31: 0 | I31: 0 | J31: 0 | K31: 0 | L31: 0 | M31: 0 | N31: 0 | O31: 0 | P31: 0 | Q31: 0 | R31: 0 | S31: 0 | T31: 0 | U31: 0 | V31: 0 | W31: 0 | X31: 0 | Y31: 0 | Z31: 0 | AA31: 0 | AB31: 0 | AC31: 0 | AD31: 0 | AE31: 0 | AF31: 0 | AG31: 0 | AH31: 0 | AI31: 0 | AJ31: 0 | AK31: 375 | AL31: 0 | AM31: 0 | AN31: 0 | AO31: 0 | AP31: -140625
F32: 0 | G32: 0 | H32: 0 | I32: 0 | J32: 0 | K32: 0 | L32: 0 | M32: 0 | N32: 0 | O32: 0 | P32: 0 | Q32: 0 | R32: 0 | S32: 0 | T32: 0 | U32: 0 | V32: 0 | W32: 0 | X32: 0 | Y32: 0 | Z32: 0 | AA32: 0 | AB32: 0 | AC32: 0 | AD32: 0 | AE32: 0 | AF32: 0 | AG32: 0 | AH32: 0 | AI32: 0 | AJ32: 0 | AK32: 375 | AL32: 0 | AM32: 0 | AN32: 0 | AO32: 0 | AP32: -140625
F33: 0 | G33: 0 | H33: 0 | I33: 0 | J33: 0 | K33: 0 | L33: 0 | M33: 0 | N33: 0 | O33: 0 | P33: 0 | Q33: 0 | R33: 0 | S33: 0 | T33: 0 | U33: 0 | V33: 0 | W33: 0 | X33: 0 | Y33: 0 | Z33: 0 | AA33: 0 | AB33: 0 | AC33: 0 | AD33: 0 | AE33: 0 | AF33: 0 | AG33: 0 | AH33: 0 | AI33: 0 | AJ33: 0 | AK33: 375 | AL33: 0 | AM33: 0 | AN33: 0 | AO33: 0 | AP33: -140625
F34: 0 | G34: 0 | H34: 0 | I34: 0 | J34: =MReibS*SIGN(D34) -> 0 | K34: 0 | L34: =MProzess -> 0 | M34: 0 | N34: 0 | O34: =D34/(sVorschub/1000)*60 -> 0 | P34: 0 | Q34: 0 | R34: 0 | S34: 0 | T34: =O34*iGetriebe*Faktor_n_v -> 0 | U34: 0 | V34: =MReibG*SIGN(T34) -> 0 | W34: 0 | X34: 0 | Y34: 0 | Z34: 0 | AA34: 0 | AB34: 0 | AC34: 0 | AD34: 0 | AE34: =AC34*INennM/MNennM -> 0 | AF34: 0 | AG34: 0 | AH34: 0 | AI34: 0 | AJ34: =3*AE34^2*R_ph -> 0 | AK34: 375 | AL34: 0 | AM34: =-AL34*B34/1000/CZWK -> 0 | AN34: =IF(AND(AK34>=UREin,AK34*AL34<0),AK34*AL34,0) -> 0 | AO34: 0 | AP34: =UREin^2/(AN34-1) -> -140625
F35: 0 | G35: 0 | H35: 0 | I35: 0 | J35: 0 | K35: 0 | L35: 0 | M35: 0 | N35: 0 | O35: 0 | P35: 0 | Q35: 0 | R35: 0 | S35: 0 | T35: 0 | U35: 0 | V35: 0 | W35: 0 | X35: 0 | Y35: 0 | Z35: 0 | AA35: 0 | AB35: 0 | AC35: 0 | AD35: 0 | AE35: 0 | AF35: 0 | AG35: 0 | AH35: 0 | AI35: 0 | AJ35: 0 | AK35: =IF((AK34+AM34)<$AK$2*0.95,$AK$2*0.95,IF((AK34+AM34)>UREin,UREin,(AK34+AM34))) -> 375 | AL35: 0 | AM35: 0 | AN35: 0 | AO35: 0 | AP35: -140625
F36: 0 | G36: 0 | H36: 0 | I36: 0 | J36: 0 | K36: 0 | L36: 0 | M36: 0 | N36: 0 | O36: 0 | P36: 0 | Q36: 0 | R36: 0 | S36: 0 | T36: 0 | U36: 0 | V36: 0 | W36: 0 | X36: 0 | Y36: 0 | Z36: 0 | AA36: 0 | AB36: 0 | AC36: 0 | AD36: 0 | AE36: 0 | AF36: 0 | AG36: 0 | AH36: 0 | AI36: 0 | AJ36: 0 | AK36: 375 | AL36: 0 | AM36: 0 | AN36: 0 | AO36: 0 | AP36: -140625
F37: 0 | G37: 0 | H37: 0 | I37: 0 | J37: 0 | K37: 0 | L37: 0 | M37: 0 | N37: 0 | O37: 0 | P37: 0 | Q37: 0 | R37: 0 | S37: 0 | T37: 0 | U37: 0 | V37: 0 | W37: 0 | X37: 0 | Y37: 0 | Z37: 0 | AA37: 0 | AB37: 0 | AC37: 0 | AD37: 0 | AE37: 0 | AF37: 0 | AG37: 0 | AH37: 0 | AI37: 0 | AJ37: 0 | AK37: 375 | AL37: 0 | AM37: 0 | AN37: 0 | AO37: 0 | AP37: -140625
F38: 0 | G38: 0 | H38: 0 | I38: 0 | J38: 0 | K38: 0 | L38: 0 | M38: 0 | N38: 0 | O38: 0 | P38: 0 | Q38: 0 | R38: 0 | S38: 0 | T38: 0 | U38: 0 | V38: 0 | W38: 0 | X38: 0 | Y38: 0 | Z38: 0 | AA38: 0 | AB38: 0 | AC38: 0 | AD38: 0 | AE38: 0 | AF38: 0 | AG38: 0 | AH38: 0 | AI38: 0 | AJ38: 0 | AK38: 375 | AL38: 0 | AM38: 0 | AN38: 0 | AO38: 0 | AP38: -140625
F39: 0 | G39: 0 | H39: 0 | I39: 0 | J39: 0 | K39: 0 | L39: 0 | M39: 0 | N39: 0 | O39: 0 | P39: 0 | Q39: 0 | R39: 0 | S39: 0 | T39: 0 | U39: 0 | V39: 0 | W39: 0 | X39: 0 | Y39: 0 | Z39: 0 | AA39: 0 | AB39: 0 | AC39: 0 | AD39: 0 | AE39: 0 | AF39: 0 | AG39: 0 | AH39: 0 | AI39: 0 | AJ39: 0 | AK39: 375 | AL39: 0 | AM39: 0 | AN39: 0 | AO39: 0 | AP39: -140625
F40: 0 | G40: 0 | H40: 0 | I40: 0 | J40: 0 | K40: 0 | L40: 0 | M40: 0 | N40: 0 | O40: 0 | P40: 0 | Q40: 0 | R40: 0 | S40: 0 | T40: 0 | U40: 0 | V40: 0 | W40: 0 | X40: 0 | Y40: 0 | Z40: 0 | AA40: 0 | AB40: 0 | AC40: 0 | AD40: 0 | AE40: 0 | AF40: 0 | AG40: 0 | AH40: 0 | AI40: 0 | AJ40: 0 | AK40: 375 | AL40: 0 | AM40: 0 | AN40: 0 | AO40: 0 | AP40: -140625
F41: 0 | G41: 0 | H41: 0 | I41: 0 | J41: 0 | K41: 0 | L41: 0 | M41: 0 | N41: 0 | O41: 0 | P41: 0 | Q41: 0 | R41: 0 | S41: 0 | T41: 0 | U41: 0 | V41: 0 | W41: 0 | X41: 0 | Y41: 0 | Z41: 0 | AA41: 0 | AB41: 0 | AC41: 0 | AD41: 0 | AE41: 0 | AF41: 0 | AG41: 0 | AH41: 0 | AI41: 0 | AJ41: 0 | AK41: 375 | AL41: 0 | AM41: 0 | AN41: 0 | AO41: 0 | AP41: -140625
F42: 0 | G42: 0 | H42: 0 | I42: 0 | J42: 0 | K42: 0 | L42: 0 | M42: 0 | N42: 0 | O42: 0 | P42: 0 | Q42: 0 | R42: 0 | S42: 0 | T42: 0 | U42: 0 | V42: 0 | W42: 0 | X42: 0 | Y42: 0 | Z42: 0 | AA42: 0 | AB42: 0 | AC42: 0 | AD42: 0 | AE42: 0 | AF42: 0 | AG42: 0 | AH42: 0 | AI42: 0 | AJ42: 0 | AK42: 375 | AL42: 0 | AM42: 0 | AN42: 0 | AO42: 0 | AP42: -140625
F43: 0 | G43: 0 | H43: =mTransl*E43 -> 0 | I43: =mTransl*E43*sVorschub/(2*PI())/1000 -> 0 | J43: 0 | K43: 0 | L43: 0 | M43: =G43+J43+K43+L43 -> 0 | N43: 0 | O43: 0 | P43: =O43^2*B43 -> 0 | Q43: 0 | R43: 0 | S43: 0 | T43: 0 | U43: =E43/(sVorschub/1000)*2*PI()*iGetriebe -> 0 | V43: 0 | W43: =JGetriebe/10000*U43 -> 0 | X43: =M43/iGetriebe -> 0 | Y43: =V43+W43+X43 -> 0 | Z43: =Y43^2*B43 -> 0 | AA43: =U43^2*B43 -> 0 | AB43: =JMotor/10000*U43 -> 0 | AC43: =AB43+Y43 -> 0 | AD43: =AC43^2*B43 -> 0 | AE43: 0 | AF43: =AE43^2*B43 -> 0 | AG43: 0 | AH43: 0 | AI43: 0 | AJ43: 0 | AK43: 375 | AL43: 0 | AM43: 0 | AN43: 0 | AO43: 0 | AP43: -140625
F44: 0 | G44: 0 | H44: 0 | I44: 0 | J44: 0 | K44: 0 | L44: 0 | M44: 0 | N44: 0 | O44: 0 | P44: 0 | Q44: 0 | R44: 0 | S44: 0 | T44: 0 | U44: 0 | V44: 0 | W44: 0 | X44: 0 | Y44: 0 | Z44: 0 | AA44: 0 | AB44: 0 | AC44: 0 | AD44: 0 | AE44: 0 | AF44: 0 | AG44: 0 | AH44: 0 | AI44: 0 | AJ44: 0 | AK44: 375 | AL44: 0 | AM44: 0 | AN44: 0 | AO44: 0 | AP44: -140625
F45: 0 | G45: 0 | H45: 0 | I45: 0 | J45: 0 | K45: 0 | L45: 0 | M45: 0 | N45: 0 | O45: 0 | P45: 0 | Q45: 0 | R45: 0 | S45: 0 | T45: 0 | U45: 0 | V45: 0 | W45: 0 | X45: 0 | Y45: 0 | Z45: 0 | AA45: 0 | AB45: 0 | AC45: 0 | AD45: 0 | AE45: 0 | AF45: 0 | AG45: 0 | AH45: 0 | AI45: 0 | AJ45: 0 | AK45: 375 | AL45: 0 | AM45: 0 | AN45: 0 | AO45: 0 | AP45: -140625
F46: 0 | G46: 0 | H46: 0 | I46: 0 | J46: 0 | K46: 0 | L46: 0 | M46: 0 | N46: 0 | O46: 0 | P46: 0 | Q46: 0 | R46: 0 | S46: 0 | T46: 0 | U46: 0 | V46: 0 | W46: 0 | X46: 0 | Y46: 0 | Z46: 0 | AA46: 0 | AB46: 0 | AC46: 0 | AD46: 0 | AE46: 0 | AF46: 0 | AG46: 0 | AH46: 0 | AI46: 0 | AJ46: 0 | AK46: 375 | AL46: 0 | AM46: 0 | AN46: 0 | AO46: 0 | AP46: -140625
F47: 0 | G47: 0 | H47: 0 | I47: 0 | J47: 0 | K47: 0 | L47: 0 | M47: 0 | N47: 0 | O47: 0 | P47: 0 | Q47: 0 | R47: 0 | S47: 0 | T47: 0 | U47: 0 | V47: 0 | W47: 0 | X47: 0 | Y47: 0 | Z47: 0 | AA47: 0 | AB47: 0 | AC47: 0 | AD47: 0 | AE47: 0 | AF47: 0 | AG47: 0 | AH47: 0 | AI47: 0 | AJ47: 0 | AK47: 375 | AL47: 0 | AM47: 0 | AN47: 0 | AO47: 0 | AP47: -140625
F48: 0 | G48: 0 | H48: 0 | I48: 0 | J48: 0 | K48: 0 | L48: 0 | M48: 0 | N48: 0 | O48: 0 | P48: 0 | Q48: 0 | R48: 0 | S48: 0 | T48: 0 | U48: 0 | V48: 0 | W48: 0 | X48: 0 | Y48: 0 | Z48: 0 | AA48: 0 | AB48: 0 | AC48: 0 | AD48: 0 | AE48: 0 | AF48: 0 | AG48: 0 | AH48: 0 | AI48: 0 | AJ48: 0 | AK48: 375 | AL48: 0 | AM48: 0 | AN48: 0 | AO48: 0 | AP48: -140625
F49: 0 | G49: 0 | H49: 0 | I49: 0 | J49: 0 | K49: 0 | L49: 0 | M49: 0 | N49: 0 | O49: 0 | P49: 0 | Q49: 0 | R49: 0 | S49: 0 | T49: 0 | U49: 0 | V49: 0 | W49: 0 | X49: 0 | Y49: 0 | Z49: 0 | AA49: 0 | AB49: 0 | AC49: 0 | AD49: 0 | AE49: 0 | AF49: 0 | AG49: 0 | AH49: 0 | AI49: 0 | AJ49: 0 | AK49: 375 | AL49: 0 | AM49: 0 | AN49: 0 | AO49: 0 | AP49: -140625
F50: 0 | G50: 0 | H50: 0 | I50: 0 | J50: 0 | K50: 0 | L50: 0 | M50: 0 | N50: 0 | O50: 0 | P50: 0 | Q50: 0 | R50: 0 | S50: 0 | T50: 0 | U50: 0 | V50: 0 | W50: 0 | X50: 0 | Y50: 0 | Z50: 0 | AA50: 0 | AB50: 0 | AC50: 0 | AD50: 0 | AE50: 0 | AF50: 0 | AG50: 0 | AH50: 0 | AI50: 0 | AJ50: 0 | AK50: 375 | AL50: 0 | AM50: 0 | AN50: 0 | AO50: 0 | AP50: -140625
F51: 0 | G51: 0 | H51: 0 | I51: 0 | J51: 0 | K51: 0 | L51: 0 | M51: 0 | N51: 0 | O51: 0 | P51: 0 | Q51: 0 | R51: 0 | S51: 0 | T51: 0 | U51: 0 | V51: 0 | W51: 0 | X51: 0 | Y51: 0 | Z51: 0 | AA51: 0 | AB51: 0 | AC51: 0 | AD51: 0 | AE51: 0 | AF51: 0 | AG51: 0 | AH51: 0 | AI51: 0 | AJ51: 0 | AK51: 375 | AL51: 0 | AM51: 0 | AN51: 0 | AO51: 0 | AP51: -140625
F52: 0 | G52: 0 | H52: 0 | I52: 0 | J52: 0 | K52: 0 | L52: 0 | M52: 0 | N52: 0 | O52: 0 | P52: 0 | Q52: 0 | R52: 0 | S52: 0 | T52: 0 | U52: 0 | V52: 0 | W52: 0 | X52: 0 | Y52: 0 | Z52: 0 | AA52: 0 | AB52: 0 | AC52: 0 | AD52: 0 | AE52: 0 | AF52: 0 | AG52: 0 | AH52: 0 | AI52: 0 | AJ52: 0 | AK52: 375 | AL52: 0 | AM52: 0 | AN52: 0 | AO52: 0 | AP52: -140625
F53: 0 | G53: 0 | H53: 0 | I53: 0 | J53: 0 | K53: 0 | L53: 0 | M53: 0 | N53: 0 | O53: 0 | P53: 0 | Q53: 0 | R53: 0 | S53: 0 | T53: 0 | U53: 0 | V53: 0 | W53: 0 | X53: 0 | Y53: 0 | Z53: 0 | AA53: 0 | AB53: 0 | AC53: 0 | AD53: 0 | AE53: 0 | AF53: 0 | AG53: 0 | AH53: 0 | AI53: 0 | AJ53: 0 | AK53: 375 | AL53: 0 | AM53: 0 | AN53: 0 | AO53: 0 | AP53: -140625
F54: 0 | G54: 0 | H54: 0 | I54: 0 | J54: 0 | K54: 0 | L54: 0 | M54: 0 | N54: 0 | O54: 0 | P54: 0 | Q54: 0 | R54: 0 | S54: 0 | T54: 0 | U54: 0 | V54: 0 | W54: 0 | X54: 0 | Y54: 0 | Z54: 0 | AA54: 0 | AB54: 0 | AC54: 0 | AD54: 0 | AE54: 0 | AF54: 0 | AG54: 0 | AH54: 0 | AI54: 0 | AJ54: 0 | AK54: 375 | AL54: 0 | AM54: 0 | AN54: 0 | AO54: 0 | AP54: -140625
F55: 0 | G55: 0 | H55: 0 | I55: 0 | J55: 0 | K55: 0 | L55: 0 | M55: 0 | N55: 0 | O55: 0 | P55: 0 | Q55: 0 | R55: 0 | S55: 0 | T55: 0 | U55: 0 | V55: 0 | W55: 0 | X55: 0 | Y55: 0 | Z55: 0 | AA55: 0 | AB55: 0 | AC55: 0 | AD55: 0 | AE55: 0 | AF55: 0 | AG55: 0 | AH55: 0 | AI55: 0 | AJ55: 0 | AK55: 375 | AL55: 0 | AM55: 0 | AN55: 0 | AO55: 0 | AP55: -140625
F56: 0 | G56: 0 | H56: 0 | I56: 0 | J56: 0 | K56: 0 | L56: 0 | M56: 0 | N56: 0 | O56: 0 | P56: 0 | Q56: 0 | R56: 0 | S56: 0 | T56: 0 | U56: 0 | V56: 0 | W56: 0 | X56: 0 | Y56: 0 | Z56: 0 | AA56: 0 | AB56: 0 | AC56: 0 | AD56: 0 | AE56: 0 | AF56: 0 | AG56: 0 | AH56: 0 | AI56: 0 | AJ56: 0 | AK56: 375 | AL56: 0 | AM56: 0 | AN56: 0 | AO56: 0 | AP56: -140625
F57: 0 | G57: 0 | H57: 0 | I57: 0 | J57: 0 | K57: 0 | L57: 0 | M57: 0 | N57: 0 | O57: 0 | P57: 0 | Q57: 0 | R57: 0 | S57: 0 | T57: 0 | U57: 0 | V57: 0 | W57: 0 | X57: 0 | Y57: 0 | Z57: 0 | AA57: 0 | AB57: 0 | AC57: 0 | AD57: 0 | AE57: 0 | AF57: 0 | AG57: 0 | AH57: 0 | AI57: 0 | AJ57: 0 | AK57: 375 | AL57: 0 | AM57: 0 | AN57: 0 | AO57: 0 | AP57: -140625
F58: 0 | G58: 0 | H58: 0 | I58: 0 | J58: 0 | K58: 0 | L58: 0 | M58: 0 | N58: 0 | O58: 0 | P58: 0 | Q58: 0 | R58: 0 | S58: 0 | T58: 0 | U58: 0 | V58: 0 | W58: 0 | X58: 0 | Y58: 0 | Z58: 0 | AA58: 0 | AB58: 0 | AC58: 0 | AD58: 0 | AE58: 0 | AF58: 0 | AG58: 0 | AH58: 0 | AI58: 0 | AJ58: 0 | AK58: 375 | AL58: 0 | AM58: 0 | AN58: 0 | AO58: 0 | AP58: -140625
F59: 0 | G59: 0 | H59: 0 | I59: 0 | J59: 0 | K59: 0 | L59: 0 | M59: 0 | N59: 0 | O59: 0 | P59: 0 | Q59: 0 | R59: 0 | S59: 0 | T59: 0 | U59: 0 | V59: 0 | W59: 0 | X59: 0 | Y59: 0 | Z59: 0 | AA59: 0 | AB59: 0 | AC59: 0 | AD59: 0 | AE59: 0 | AF59: 0 | AG59: 0 | AH59: 0 | AI59: 0 | AJ59: 0 | AK59: 375 | AL59: 0 | AM59: 0 | AN59: 0 | AO59: 0 | AP59: -140625
F60: 0 | G60: 0 | H60: 0 | I60: 0 | J60: 0 | K60: 0 | L60: 0 | M60: 0 | N60: 0 | O60: 0 | P60: 0 | Q60: 0 | R60: 0 | S60: 0 | T60: 0 | U60: 0 | V60: 0 | W60: 0 | X60: 0 | Y60: 0 | Z60: 0 | AA60: 0 | AB60: 0 | AC60: 0 | AD60: 0 | AE60: 0 | AF60: 0 | AG60: 0 | AH60: 0 | AI60: 0 | AJ60: 0 | AK60: 375 | AL60: 0 | AM60: 0 | AN60: 0 | AO60: 0 | AP60: -140625
F61: 0 | G61: 0 | H61: 0 | I61: 0 | J61: 0 | K61: 0 | L61: 0 | M61: 0 | N61: 0 | O61: 0 | P61: 0 | Q61: 0 | R61: 0 | S61: 0 | T61: 0 | U61: 0 | V61: 0 | W61: 0 | X61: 0 | Y61: 0 | Z61: 0 | AA61: 0 | AB61: 0 | AC61: 0 | AD61: 0 | AE61: 0 | AF61: 0 | AG61: 0 | AH61: 0 | AI61: 0 | AJ61: 0 | AK61: 375 | AL61: 0 | AM61: 0 | AN61: 0 | AO61: 0 | AP61: -140625
F62: 0 | G62: 0 | H62: 0 | I62: 0 | J62: 0 | K62: 0 | L62: 0 | M62: 0 | N62: 0 | O62: 0 | P62: 0 | Q62: 0 | R62: 0 | S62: 0 | T62: 0 | U62: 0 | V62: 0 | W62: 0 | X62: 0 | Y62: 0 | Z62: 0 | AA62: 0 | AB62: 0 | AC62: 0 | AD62: 0 | AE62: 0 | AF62: 0 | AG62: 0 | AH62: 0 | AI62: 0 | AJ62: 0 | AK62: 375 | AL62: 0 | AM62: 0 | AN62: 0 | AO62: 0 | AP62: -140625
F63: =E63/(sVorschub/1000)*2*PI() -> 0 | G63: =JExtern/10000*F63 -> 0 | H63: =mTransl*E63 -> 0 | I63: =mTransl*E63*sVorschub/(2*PI())/1000 -> 0 | J63: 0 | K63: =MGewicht -> 0 | L63: 0 | M63: =G63+J63+K63+L63 -> 0 | N63: 0 | O63: 0 | P63: 0 | Q63: 0 | R63: 0 | S63: 0 | T63: 0 | U63: 0 | V63: 0 | W63: 0 | X63: 0 | Y63: 0 | Z63: 0 | AA63: 0 | AB63: 0 | AC63: 0 | AD63: 0 | AE63: 0 | AF63: 0 | AG63: 0 | AH63: 0 | AI63: 0 | AJ63: 0 | AK63: 375 | AL63: 0 | AM63: 0 | AN63: 0 | AO63: 0 | AP63: -140625
F64: 0 | G64: 0 | H64: 0 | I64: 0 | J64: 0 | K64: 0 | L64: 0 | M64: 0 | N64: 0 | O64: 0 | P64: 0 | Q64: 0 | R64: 0 | S64: 0 | T64: 0 | U64: 0 | V64: 0 | W64: 0 | X64: 0 | Y64: 0 | Z64: 0 | AA64: 0 | AB64: 0 | AC64: 0 | AD64: 0 | AE64: 0 | AF64: 0 | AG64: 0 | AH64: 0 | AI64: 0 | AJ64: 0 | AK64: 375 | AL64: 0 | AM64: 0 | AN64: 0 | AO64: 0 | AP64: -140625
F65: 0 | G65: 0 | H65: 0 | I65: 0 | J65: 0 | K65: 0 | L65: 0 | M65: 0 | N65: 0 | O65: 0 | P65: 0 | Q65: 0 | R65: 0 | S65: 0 | T65: 0 | U65: 0 | V65: 0 | W65: 0 | X65: 0 | Y65: 0 | Z65: 0 | AA65: 0 | AB65: 0 | AC65: 0 | AD65: 0 | AE65: 0 | AF65: 0 | AG65: 0 | AH65: 0 | AI65: 0 | AJ65: 0 | AK65: 375 | AL65: 0 | AM65: 0 | AN65: 0 | AO65: 0 | AP65: -140625
F66: 0 | G66: 0 | H66: 0 | I66: 0 | J66: =MReibS*SIGN(D66) -> 0 | K66: 0 | L66: =MProzess -> 0 | M66: 0 | N66: 0 | O66: =D66/(sVorschub/1000)*60 -> 0 | P66: 0 | Q66: 0 | R66: 0 | S66: 0 | T66: =O66*iGetriebe*Faktor_n_v -> 0 | U66: 0 | V66: =MReibG*SIGN(T66) -> 0 | W66: 0 | X66: 0 | Y66: 0 | Z66: 0 | AA66: 0 | AB66: 0 | AC66: 0 | AD66: 0 | AE66: =AC66*INennM/MNennM -> 0 | AF66: 0 | AG66: 0 | AH66: 0 | AI66: 0 | AJ66: =3*AE66^2*R_ph -> 0 | AK66: 375 | AL66: 0 | AM66: =-AL66*B66/1000/CZWK -> 0 | AN66: =IF(AND(AK66>=UREin,AK66*AL66<0),AK66*AL66,0) -> 0 | AO66: 0 | AP66: =UREin^2/(AN66-1) -> -140625
F67: 0 | G67: 0 | H67: 0 | I67: 0 | J67: 0 | K67: 0 | L67: 0 | M67: 0 | N67: =M67^2*B67 -> 0 | O67: 0 | P67: 0 | Q67: =ABS(O67)*ABS(B67)*(ABS(M67)^3) -> 0 | R67: =ABS(O67)*ABS(B67) -> 0 | S67: =IF(O67<>0,B67,0) -> 0 | T67: 0 | U67: 0 | V67: 0 | W67: 0 | X67: 0 | Y67: 0 | Z67: 0 | AA67: 0 | AB67: 0 | AC67: 0 | AD67: 0 | AE67: 0 | AF67: 0 | AG67: =AC67*2*PI()*T67/60 -> 0 | AH67: =IF(AG67<0,AG67,0) -> 0 | AI67: =AH67*B67 -> 0 | AJ67: 0 | AK67: =IF((AK66+AM66)<$AK$2*0.95,$AK$2*0.95,IF((AK66+AM66)>UREin,UREin,(AK66+AM66))) -> 375 | AL67: =(AG67+AJ67)/AK67 -> 0 | AM67: 0 | AN67: 0 | AO67: =AN67*B67 -> 0 | AP67: -140625
F68: 0 | G68: 0 | H68: 0 | I68: 0 | J68: 0 | K68: 0 | L68: 0 | M68: 0 | N68: 0 | O68: 0 | P68: 0 | Q68: 0 | R68: 0 | S68: 0 | T68: 0 | U68: 0 | V68: 0 | W68: 0 | X68: 0 | Y68: 0 | Z68: 0 | AA68: 0 | AB68: 0 | AC68: 0 | AD68: 0 | AE68: 0 | AF68: 0 | AG68: 0 | AH68: 0 | AI68: 0 | AJ68: 0 | AK68: 375 | AL68: 0 | AM68: 0 | AN68: 0 | AO68: 0 | AP68: -140625
F69: 0 | G69: 0 | H69: 0 | I69: 0 | J69: 0 | K69: 0 | L69: 0 | M69: 0 | N69: 0 | O69: 0 | P69: 0 | Q69: 0 | R69: 0 | S69: 0 | T69: 0 | U69: 0 | V69: 0 | W69: 0 | X69: 0 | Y69: 0 | Z69: 0 | AA69: 0 | AB69: 0 | AC69: 0 | AD69: 0 | AE69: 0 | AF69: 0 | AG69: 0 | AH69: 0 | AI69: 0 | AJ69: 0 | AK69: 375 | AL69: 0 | AM69: 0 | AN69: 0 | AO69: 0 | AP69: -140625
F70: 0 | G70: 0 | H70: 0 | I70: 0 | J70: 0 | K70: 0 | L70: 0 | M70: 0 | N70: 0 | O70: 0 | P70: 0 | Q70: 0 | R70: 0 | S70: 0 | T70: 0 | U70: 0 | V70: 0 | W70: 0 | X70: 0 | Y70: 0 | Z70: 0 | AA70: 0 | AB70: 0 | AC70: 0 | AD70: 0 | AE70: 0 | AF70: 0 | AG70: 0 | AH70: 0 | AI70: 0 | AJ70: 0 | AK70: 375 | AL70: 0 | AM70: 0 | AN70: 0 | AO70: 0 | AP70: -140625
F71: 0 | G71: 0 | H71: 0 | I71: 0 | J71: 0 | K71: 0 | L71: 0 | M71: 0 | N71: 0 | O71: 0 | P71: 0 | Q71: 0 | R71: 0 | S71: 0 | T71: 0 | U71: 0 | V71: 0 | W71: 0 | X71: 0 | Y71: 0 | Z71: 0 | AA71: 0 | AB71: 0 | AC71: 0 | AD71: 0 | AE71: 0 | AF71: 0 | AG71: 0 | AH71: 0 | AI71: 0 | AJ71: 0 | AK71: 375 | AL71: 0 | AM71: 0 | AN71: 0 | AO71: 0 | AP71: -140625
F72: 0 | G72: 0 | H72: 0 | I72: 0 | J72: 0 | K72: 0 | L72: 0 | M72: 0 | N72: 0 | O72: 0 | P72: 0 | Q72: 0 | R72: 0 | S72: 0 | T72: 0 | U72: 0 | V72: 0 | W72: 0 | X72: 0 | Y72: 0 | Z72: 0 | AA72: 0 | AB72: 0 | AC72: 0 | AD72: 0 | AE72: 0 | AF72: 0 | AG72: 0 | AH72: 0 | AI72: 0 | AJ72: 0 | AK72: 375 | AL72: 0 | AM72: 0 | AN72: 0 | AO72: 0 | AP72: -140625
F73: 0 | G73: 0 | H73: 0 | I73: 0 | J73: 0 | K73: 0 | L73: 0 | M73: 0 | N73: 0 | O73: 0 | P73: 0 | Q73: 0 | R73: 0 | S73: 0 | T73: 0 | U73: 0 | V73: 0 | W73: 0 | X73: 0 | Y73: 0 | Z73: 0 | AA73: 0 | AB73: 0 | AC73: 0 | AD73: 0 | AE73: 0 | AF73: 0 | AG73: 0 | AH73: 0 | AI73: 0 | AJ73: 0 | AK73: 375 | AL73: 0 | AM73: 0 | AN73: 0 | AO73: 0 | AP73: -140625
F74: 0 | G74: 0 | H74: 0 | I74: 0 | J74: 0 | K74: 0 | L74: 0 | M74: 0 | N74: 0 | O74: 0 | P74: 0 | Q74: 0 | R74: 0 | S74: 0 | T74: 0 | U74: 0 | V74: 0 | W74: 0 | X74: 0 | Y74: 0 | Z74: 0 | AA74: 0 | AB74: 0 | AC74: 0 | AD74: 0 | AE74: 0 | AF74: 0 | AG74: 0 | AH74: 0 | AI74: 0 | AJ74: 0 | AK74: 375 | AL74: 0 | AM74: 0 | AN74: 0 | AO74: 0 | AP74: -140625
F75: 0 | G75: 0 | H75: 0 | I75: 0 | J75: 0 | K75: 0 | L75: 0 | M75: 0 | N75: 0 | O75: 0 | P75: 0 | Q75: 0 | R75: 0 | S75: 0 | T75: 0 | U75: 0 | V75: 0 | W75: 0 | X75: 0 | Y75: 0 | Z75: 0 | AA75: 0 | AB75: 0 | AC75: 0 | AD75: 0 | AE75: 0 | AF75: 0 | AG75: 0 | AH75: 0 | AI75: 0 | AJ75: 0 | AK75: 375 | AL75: 0 | AM75: 0 | AN75: 0 | AO75: 0 | AP75: -140625
F76: 0 | G76: 0 | H76: 0 | I76: 0 | J76: 0 | K76: 0 | L76: 0 | M76: 0 | N76: 0 | O76: 0 | P76: 0 | Q76: 0 | R76: 0 | S76: 0 | T76: 0 | U76: 0 | V76: 0 | W76: 0 | X76: 0 | Y76: 0 | Z76: 0 | AA76: 0 | AB76: 0 | AC76: 0 | AD76: 0 | AE76: 0 | AF76: 0 | AG76: 0 | AH76: 0 | AI76: 0 | AJ76: 0 | AK76: 375 | AL76: 0 | AM76: 0 | AN76: 0 | AO76: 0 | AP76: -140625
F77: 0 | G77: 0 | H77: 0 | I77: 0 | J77: 0 | K77: 0 | L77: 0 | M77: 0 | N77: 0 | O77: 0 | P77: 0 | Q77: 0 | R77: 0 | S77: 0 | T77: 0 | U77: 0 | V77: 0 | W77: 0 | X77: 0 | Y77: 0 | Z77: 0 | AA77: 0 | AB77: 0 | AC77: 0 | AD77: 0 | AE77: 0 | AF77: 0 | AG77: 0 | AH77: 0 | AI77: 0 | AJ77: 0 | AK77: 375 | AL77: 0 | AM77: 0 | AN77: 0 | AO77: 0 | AP77: -140625
F78: 0 | G78: 0 | H78: 0 | I78: 0 | J78: 0 | K78: 0 | L78: 0 | M78: 0 | N78: 0 | O78: 0 | P78: 0 | Q78: 0 | R78: 0 | S78: 0 | T78: 0 | U78: 0 | V78: 0 | W78: 0 | X78: 0 | Y78: 0 | Z78: 0 | AA78: 0 | AB78: 0 | AC78: 0 | AD78: 0 | AE78: 0 | AF78: 0 | AG78: 0 | AH78: 0 | AI78: 0 | AJ78: 0 | AK78: 375 | AL78: 0 | AM78: 0 | AN78: 0 | AO78: 0 | AP78: -140625
F79: 0 | G79: 0 | H79: 0 | I79: 0 | J79: 0 | K79: 0 | L79: 0 | M79: 0 | N79: 0 | O79: 0 | P79: 0 | Q79: 0 | R79: 0 | S79: 0 | T79: 0 | U79: 0 | V79: 0 | W79: 0 | X79: 0 | Y79: 0 | Z79: 0 | AA79: 0 | AB79: 0 | AC79: 0 | AD79: 0 | AE79: 0 | AF79: 0 | AG79: 0 | AH79: 0 | AI79: 0 | AJ79: 0 | AK79: 375 | AL79: 0 | AM79: 0 | AN79: 0 | AO79: 0 | AP79: -140625
F80: 0 | G80: 0 | H80: 0 | I80: 0 | J80: 0 | K80: 0 | L80: 0 | M80: 0 | N80: 0 | O80: 0 | P80: 0 | Q80: 0 | R80: 0 | S80: 0 | T80: 0 | U80: 0 | V80: 0 | W80: 0 | X80: 0 | Y80: 0 | Z80: 0 | AA80: 0 | AB80: 0 | AC80: 0 | AD80: 0 | AE80: 0 | AF80: 0 | AG80: 0 | AH80: 0 | AI80: 0 | AJ80: 0 | AK80: 375 | AL80: 0 | AM80: 0 | AN80: 0 | AO80: 0 | AP80: -140625
F81: 0 | G81: 0 | H81: 0 | I81: 0 | J81: 0 | K81: 0 | L81: 0 | M81: 0 | N81: 0 | O81: 0 | P81: 0 | Q81: 0 | R81: 0 | S81: 0 | T81: 0 | U81: 0 | V81: 0 | W81: 0 | X81: 0 | Y81: 0 | Z81: 0 | AA81: 0 | AB81: 0 | AC81: 0 | AD81: 0 | AE81: 0 | AF81: 0 | AG81: 0 | AH81: 0 | AI81: 0 | AJ81: 0 | AK81: 375 | AL81: 0 | AM81: 0 | AN81: 0 | AO81: 0 | AP81: -140625
F82: 0 | G82: 0 | H82: 0 | I82: 0 | J82: 0 | K82: 0 | L82: 0 | M82: 0 | N82: 0 | O82: 0 | P82: 0 | Q82: 0 | R82: 0 | S82: 0 | T82: 0 | U82: 0 | V82: 0 | W82: 0 | X82: 0 | Y82: 0 | Z82: 0 | AA82: 0 | AB82: 0 | AC82: 0 | AD82: 0 | AE82: 0 | AF82: 0 | AG82: 0 | AH82: 0 | AI82: 0 | AJ82: 0 | AK82: 375 | AL82: 0 | AM82: 0 | AN82: 0 | AO82: 0 | AP82: -140625
F83: 0 | G83: 0 | H83: 0 | I83: 0 | J83: 0 | K83: 0 | L83: 0 | M83: 0 | N83: 0 | O83: 0 | P83: 0 | Q83: 0 | R83: 0 | S83: 0 | T83: 0 | U83: 0 | V83: 0 | W83: 0 | X83: 0 | Y83: 0 | Z83: 0 | AA83: 0 | AB83: 0 | AC83: 0 | AD83: 0 | AE83: 0 | AF83: 0 | AG83: 0 | AH83: 0 | AI83: 0 | AJ83: 0 | AK83: 375 | AL83: 0 | AM83: 0 | AN83: 0 | AO83: 0 | AP83: -140625
F84: 0 | G84: 0 | H84: 0 | I84: 0 | J84: 0 | K84: 0 | L84: 0 | M84: 0 | N84: 0 | O84: 0 | P84: 0 | Q84: 0 | R84: 0 | S84: 0 | T84: 0 | U84: 0 | V84: 0 | W84: 0 | X84: 0 | Y84: 0 | Z84: 0 | AA84: 0 | AB84: 0 | AC84: 0 | AD84: 0 | AE84: 0 | AF84: 0 | AG84: 0 | AH84: 0 | AI84: 0 | AJ84: 0 | AK84: 375 | AL84: 0 | AM84: 0 | AN84: 0 | AO84: 0 | AP84: -140625
F85: 0 | G85: 0 | H85: 0 | I85: 0 | J85: 0 | K85: 0 | L85: 0 | M85: 0 | N85: 0 | O85: 0 | P85: 0 | Q85: 0 | R85: 0 | S85: 0 | T85: 0 | U85: 0 | V85: 0 | W85: 0 | X85: 0 | Y85: 0 | Z85: 0 | AA85: 0 | AB85: 0 | AC85: 0 | AD85: 0 | AE85: 0 | AF85: 0 | AG85: 0 | AH85: 0 | AI85: 0 | AJ85: 0 | AK85: 375 | AL85: 0 | AM85: 0 | AN85: 0 | AO85: 0 | AP85: -140625
F86: 0 | G86: 0 | H86: 0 | I86: 0 | J86: 0 | K86: 0 | L86: 0 | M86: 0 | N86: 0 | O86: 0 | P86: 0 | Q86: 0 | R86: 0 | S86: 0 | T86: 0 | U86: 0 | V86: 0 | W86: 0 | X86: 0 | Y86: 0 | Z86: 0 | AA86: 0 | AB86: 0 | AC86: 0 | AD86: 0 | AE86: 0 | AF86: 0 | AG86: 0 | AH86: 0 | AI86: 0 | AJ86: 0 | AK86: 375 | AL86: 0 | AM86: 0 | AN86: 0 | AO86: 0 | AP86: -140625
F87: 0 | G87: 0 | H87: 0 | I87: 0 | J87: 0 | K87: 0 | L87: 0 | M87: 0 | N87: 0 | O87: 0 | P87: 0 | Q87: 0 | R87: 0 | S87: 0 | T87: 0 | U87: 0 | V87: 0 | W87: 0 | X87: 0 | Y87: 0 | Z87: 0 | AA87: 0 | AB87: 0 | AC87: 0 | AD87: 0 | AE87: 0 | AF87: 0 | AG87: 0 | AH87: 0 | AI87: 0 | AJ87: 0 | AK87: 375 | AL87: 0 | AM87: 0 | AN87: 0 | AO87: 0 | AP87: -140625
F88: 0 | G88: 0 | H88: 0 | I88: 0 | J88: 0 | K88: 0 | L88: 0 | M88: 0 | N88: 0 | O88: 0 | P88: 0 | Q88: 0 | R88: 0 | S88: 0 | T88: 0 | U88: 0 | V88: 0 | W88: 0 | X88: 0 | Y88: 0 | Z88: 0 | AA88: 0 | AB88: 0 | AC88: 0 | AD88: 0 | AE88: 0 | AF88: 0 | AG88: 0 | AH88: 0 | AI88: 0 | AJ88: 0 | AK88: 375 | AL88: 0 | AM88: 0 | AN88: 0 | AO88: 0 | AP88: -140625
F89: 0 | G89: 0 | H89: 0 | I89: 0 | J89: 0 | K89: 0 | L89: 0 | M89: 0 | N89: 0 | O89: 0 | P89: 0 | Q89: 0 | R89: 0 | S89: 0 | T89: 0 | U89: 0 | V89: 0 | W89: 0 | X89: 0 | Y89: 0 | Z89: 0 | AA89: 0 | AB89: 0 | AC89: 0 | AD89: 0 | AE89: 0 | AF89: 0 | AG89: 0 | AH89: 0 | AI89: 0 | AJ89: 0 | AK89: 375 | AL89: 0 | AM89: 0 | AN89: 0 | AO89: 0 | AP89: -140625
F90: 0 | G90: 0 | H90: 0 | I90: 0 | J90: 0 | K90: 0 | L90: 0 | M90: 0 | N90: 0 | O90: 0 | P90: 0 | Q90: 0 | R90: 0 | S90: 0 | T90: 0 | U90: 0 | V90: 0 | W90: 0 | X90: 0 | Y90: 0 | Z90: 0 | AA90: 0 | AB90: 0 | AC90: 0 | AD90: 0 | AE90: 0 | AF90: 0 | AG90: 0 | AH90: 0 | AI90: 0 | AJ90: 0 | AK90: 375 | AL90: 0 | AM90: 0 | AN90: 0 | AO90: 0 | AP90: -140625
F91: 0 | G91: 0 | H91: 0 | I91: 0 | J91: 0 | K91: 0 | L91: 0 | M91: 0 | N91: 0 | O91: 0 | P91: 0 | Q91: 0 | R91: 0 | S91: 0 | T91: 0 | U91: 0 | V91: 0 | W91: 0 | X91: 0 | Y91: 0 | Z91: 0 | AA91: 0 | AB91: 0 | AC91: 0 | AD91: 0 | AE91: 0 | AF91: 0 | AG91: 0 | AH91: 0 | AI91: 0 | AJ91: 0 | AK91: 375 | AL91: 0 | AM91: 0 | AN91: 0 | AO91: 0 | AP91: -140625
F92: 0 | G92: 0 | H92: 0 | I92: 0 | J92: 0 | K92: 0 | L92: 0 | M92: 0 | N92: 0 | O92: 0 | P92: 0 | Q92: 0 | R92: 0 | S92: 0 | T92: 0 | U92: 0 | V92: 0 | W92: 0 | X92: 0 | Y92: 0 | Z92: 0 | AA92: 0 | AB92: 0 | AC92: 0 | AD92: 0 | AE92: 0 | AF92: 0 | AG92: 0 | AH92: 0 | AI92: 0 | AJ92: 0 | AK92: 375 | AL92: 0 | AM92: 0 | AN92: 0 | AO92: 0 | AP92: -140625
F93: 0 | G93: 0 | H93: 0 | I93: 0 | J93: 0 | K93: 0 | L93: 0 | M93: 0 | N93: 0 | O93: 0 | P93: 0 | Q93: 0 | R93: 0 | S93: 0 | T93: 0 | U93: 0 | V93: 0 | W93: 0 | X93: 0 | Y93: 0 | Z93: 0 | AA93: 0 | AB93: 0 | AC93: 0 | AD93: 0 | AE93: 0 | AF93: 0 | AG93: 0 | AH93: 0 | AI93: 0 | AJ93: 0 | AK93: 375 | AL93: 0 | AM93: 0 | AN93: 0 | AO93: 0 | AP93: -140625
F94: 0 | G94: 0 | H94: 0 | I94: 0 | J94: 0 | K94: 0 | L94: 0 | M94: 0 | N94: 0 | O94: 0 | P94: 0 | Q94: 0 | R94: 0 | S94: 0 | T94: 0 | U94: 0 | V94: 0 | W94: 0 | X94: 0 | Y94: 0 | Z94: 0 | AA94: 0 | AB94: 0 | AC94: 0 | AD94: 0 | AE94: 0 | AF94: 0 | AG94: 0 | AH94: 0 | AI94: 0 | AJ94: 0 | AK94: 375 | AL94: 0 | AM94: 0 | AN94: 0 | AO94: 0 | AP94: -140625
F95: 0 | G95: 0 | H95: 0 | I95: 0 | J95: 0 | K95: 0 | L95: 0 | M95: 0 | N95: 0 | O95: 0 | P95: 0 | Q95: 0 | R95: 0 | S95: 0 | T95: 0 | U95: 0 | V95: 0 | W95: 0 | X95: 0 | Y95: 0 | Z95: 0 | AA95: 0 | AB95: 0 | AC95: 0 | AD95: 0 | AE95: 0 | AF95: 0 | AG95: 0 | AH95: 0 | AI95: 0 | AJ95: 0 | AK95: 375 | AL95: 0 | AM95: 0 | AN95: 0 | AO95: 0 | AP95: -140625
F96: 0 | G96: 0 | H96: 0 | I96: 0 | J96: 0 | K96: 0 | L96: 0 | M96: 0 | N96: 0 | O96: 0 | P96: 0 | Q96: 0 | R96: 0 | S96: 0 | T96: 0 | U96: 0 | V96: 0 | W96: 0 | X96: 0 | Y96: 0 | Z96: 0 | AA96: 0 | AB96: 0 | AC96: 0 | AD96: 0 | AE96: 0 | AF96: 0 | AG96: 0 | AH96: 0 | AI96: 0 | AJ96: 0 | AK96: 375 | AL96: 0 | AM96: 0 | AN96: 0 | AO96: 0 | AP96: -140625
F97: 0 | G97: 0 | H97: 0 | I97: 0 | J97: 0 | K97: 0 | L97: 0 | M97: 0 | N97: 0 | O97: 0 | P97: 0 | Q97: 0 | R97: 0 | S97: 0 | T97: 0 | U97: 0 | V97: 0 | W97: 0 | X97: 0 | Y97: 0 | Z97: 0 | AA97: 0 | AB97: 0 | AC97: 0 | AD97: 0 | AE97: 0 | AF97: 0 | AG97: 0 | AH97: 0 | AI97: 0 | AJ97: 0 | AK97: 375 | AL97: 0 | AM97: 0 | AN97: 0 | AO97: 0 | AP97: -140625
F98: 0 | G98: 0 | H98: 0 | I98: 0 | J98: =MReibS*SIGN(D98) -> 0 | K98: 0 | L98: =MProzess -> 0 | M98: 0 | N98: 0 | O98: =D98/(sVorschub/1000)*60 -> 0 | P98: 0 | Q98: 0 | R98: 0 | S98: 0 | T98: =O98*iGetriebe*Faktor_n_v -> 0 | U98: 0 | V98: =MReibG*SIGN(T98) -> 0 | W98: 0 | X98: 0 | Y98: 0 | Z98: 0 | AA98: 0 | AB98: 0 | AC98: 0 | AD98: 0 | AE98: =AC98*INennM/MNennM -> 0 | AF98: 0 | AG98: 0 | AH98: 0 | AI98: 0 | AJ98: =3*AE98^2*R_ph -> 0 | AK98: 375 | AL98: 0 | AM98: =-AL98*B98/1000/CZWK -> 0 | AN98: =IF(AND(AK98>=UREin,AK98*AL98<0),AK98*AL98,0) -> 0 | AO98: 0 | AP98: =UREin^2/(AN98-1) -> -140625
F99: 0 | G99: 0 | H99: 0 | I99: 0 | J99: 0 | K99: 0 | L99: 0 | M99: 0 | N99: 0 | O99: 0 | P99: 0 | Q99: 0 | R99: 0 | S99: 0 | T99: 0 | U99: 0 | V99: 0 | W99: 0 | X99: 0 | Y99: 0 | Z99: 0 | AA99: 0 | AB99: 0 | AC99: 0 | AD99: 0 | AE99: 0 | AF99: 0 | AG99: 0 | AH99: 0 | AI99: 0 | AJ99: 0 | AK99: =IF((AK98+AM98)<$AK$2*0.95,$AK$2*0.95,IF((AK98+AM98)>UREin,UREin,(AK98+AM98))) -> 375 | AL99: 0 | AM99: 0 | AN99: 0 | AO99: 0 | AP99: -140625
F100: 0 | G100: 0 | H100: 0 | I100: 0 | J100: 0 | K100: 0 | L100: 0 | M100: 0 | N100: 0 | O100: 0 | P100: 0 | Q100: 0 | R100: 0 | S100: 0 | T100: 0 | U100: 0 | V100: 0 | W100: 0 | X100: 0 | Y100: 0 | Z100: 0 | AA100: 0 | AB100: 0 | AC100: 0 | AD100: 0 | AE100: 0 | AF100: 0 | AG100: 0 | AH100: 0 | AI100: 0 | AJ100: 0 | AK100: 375 | AL100: 0 | AM100: 0 | AN100: 0 | AO100: 0 | AP100: -140625
F101: 0 | G101: 0 | H101: 0 | I101: 0 | J101: 0 | K101: 0 | L101: 0 | M101: 0 | N101: 0 | O101: 0 | P101: 0 | Q101: 0 | R101: 0 | S101: 0 | T101: 0 | U101: 0 | V101: 0 | W101: 0 | X101: 0 | Y101: 0 | Z101: 0 | AA101: 0 | AB101: 0 | AC101: 0 | AD101: 0 | AE101: 0 | AF101: 0 | AG101: 0 | AH101: 0 | AI101: 0 | AJ101: 0 | AK101: 375 | AL101: 0 | AM101: 0 | AN101: 0 | AO101: 0 | AP101: -140625
F102: 0 | G102: 0 | H102: 0 | I102: 0 | J102: 0 | K102: 0 | L102: 0 | M102: 0 | N102: 0 | O102: 0 | P102: 0 | Q102: 0 | R102: 0 | S102: 0 | T102: 0 | U102: 0 | V102: 0 | W102: 0 | X102: 0 | Y102: 0 | Z102: 0 | AA102: 0 | AB102: 0 | AC102: 0 | AD102: 0 | AE102: 0 | AF102: 0 | AG102: 0 | AH102: 0 | AI102: 0 | AJ102: 0 | AK102: 375 | AL102: 0 | AM102: 0 | AN102: 0 | AO102: 0 | AP102: -140625
F103: 0 | G103: 0 | H103: 0 | I103: 0 | J103: 0 | K103: 0 | L103: 0 | M103: 0 | N103: 0 | O103: 0 | P103: 0 | Q103: 0 | R103: 0 | S103: 0 | T103: 0 | U103: 0 | V103: 0 | W103: 0 | X103: 0 | Y103: 0 | Z103: 0 | AA103: 0 | AB103: 0 | AC103: 0 | AD103: 0 | AE103: 0 | AF103: 0 | AG103: 0 | AH103: 0 | AI103: 0 | AJ103: 0 | AK103: 375 | AL103: 0 | AM103: 0 | AN103: 0 | AO103: 0 | AP103: -140625
F104: 0 | G104: 0 | H104: 0 | I104: 0 | J104: 0 | K104: 0 | L104: 0 | M104: 0 | N104: 0 | O104: 0 | P104: 0 | Q104: 0 | R104: 0 | S104: 0 | T104: 0 | U104: 0 | V104: 0 | W104: 0 | X104: 0 | Y104: 0 | Z104: 0 | AA104: 0 | AB104: 0 | AC104: 0 | AD104: 0 | AE104: 0 | AF104: 0 | AG104: 0 | AH104: 0 | AI104: 0 | AJ104: 0 | AK104: 375 | AL104: 0 | AM104: 0 | AN104: 0 | AO104: 0 | AP104: -140625
F105: 0 | G105: 0 | H105: 0 | I105: 0 | J105: 0 | K105: 0 | L105: 0 | M105: 0 | N105: 0 | O105: 0 | P105: 0 | Q105: 0 | R105: 0 | S105: 0 | T105: 0 | U105: 0 | V105: 0 | W105: 0 | X105: 0 | Y105: 0 | Z105: 0 | AA105: 0 | AB105: 0 | AC105: 0 | AD105: 0 | AE105: 0 | AF105: 0 | AG105: 0 | AH105: 0 | AI105: 0 | AJ105: 0 | AK105: 375 | AL105: 0 | AM105: 0 | AN105: 0 | AO105: 0 | AP105: -140625
F106: 0 | G106: 0 | H106: 0 | I106: 0 | J106: 0 | K106: 0 | L106: 0 | M106: 0 | N106: 0 | O106: 0 | P106: 0 | Q106: 0 | R106: 0 | S106: 0 | T106: 0 | U106: 0 | V106: 0 | W106: 0 | X106: 0 | Y106: 0 | Z106: 0 | AA106: 0 | AB106: 0 | AC106: 0 | AD106: 0 | AE106: 0 | AF106: 0 | AG106: 0 | AH106: 0 | AI106: 0 | AJ106: 0 | AK106: 375 | AL106: 0 | AM106: 0 | AN106: 0 | AO106: 0 | AP106: -140625
F107: 0 | G107: 0 | H107: 0 | I107: 0 | J107: 0 | K107: 0 | L107: 0 | M107: 0 | N107: 0 | O107: 0 | P107: =O107^2*B107 -> 0 | Q107: 0 | R107: 0 | S107: 0 | T107: 0 | U107: =E107/(sVorschub/1000)*2*PI()*iGetriebe -> 0 | V107: 0 | W107: =JGetriebe/10000*U107 -> 0 | X107: =M107/iGetriebe -> 0 | Y107: =V107+W107+X107 -> 0 | Z107: =Y107^2*B107 -> 0 | AA107: =U107^2*B107 -> 0 | AB107: =JMotor/10000*U107 -> 0 | AC107: =AB107+Y107 -> 0 | AD107: =AC107^2*B107 -> 0 | AE107: 0 | AF107: =AE107^2*B107 -> 0 | AG107: 0 | AH107: 0 | AI107: 0 | AJ107: 0 | AK107: 375 | AL107: 0 | AM107: 0 | AN107: 0 | AO107: 0 | AP107: -140625
F108: 0 | G108: 0 | H108: 0 | I108: 0 | J108: 0 | K108: 0 | L108: 0 | M108: 0 | N108: 0 | O108: 0 | P108: 0 | Q108: 0 | R108: 0 | S108: 0 | T108: 0 | U108: 0 | V108: 0 | W108: 0 | X108: 0 | Y108: 0 | Z108: 0 | AA108: 0 | AB108: 0 | AC108: 0 | AD108: 0 | AE108: 0 | AF108: 0 | AG108: 0 | AH108: 0 | AI108: 0 | AJ108: 0 | AK108: 375 | AL108: 0 | AM108: 0 | AN108: 0 | AO108: 0 | AP108: -140625
F109: 0 | G109: 0 | H109: 0 | I109: 0 | J109: 0 | K109: 0 | L109: 0 | M109: 0 | N109: 0 | O109: 0 | P109: 0 | Q109: 0 | R109: 0 | S109: 0 | T109: 0 | U109: 0 | V109: 0 | W109: 0 | X109: 0 | Y109: 0 | Z109: 0 | AA109: 0 | AB109: 0 | AC109: 0 | AD109: 0 | AE109: 0 | AF109: 0 | AG109: 0 | AH109: 0 | AI109: 0 | AJ109: 0 | AK109: 375 | AL109: 0 | AM109: 0 | AN109: 0 | AO109: 0 | AP109: -140625
F110: 0 | G110: 0 | H110: 0 | I110: 0 | J110: 0 | K110: 0 | L110: 0 | M110: 0 | N110: 0 | O110: 0 | P110: 0 | Q110: 0 | R110: 0 | S110: 0 | T110: 0 | U110: 0 | V110: 0 | W110: 0 | X110: 0 | Y110: 0 | Z110: 0 | AA110: 0 | AB110: 0 | AC110: 0 | AD110: 0 | AE110: 0 | AF110: 0 | AG110: 0 | AH110: 0 | AI110: 0 | AJ110: 0 | AK110: 375 | AL110: 0 | AM110: 0 | AN110: 0 | AO110: 0 | AP110: -140625
F111: 0 | G111: 0 | H111: 0 | I111: 0 | J111: 0 | K111: 0 | L111: 0 | M111: 0 | N111: 0 | O111: 0 | P111: 0 | Q111: 0 | R111: 0 | S111: 0 | T111: 0 | U111: 0 | V111: 0 | W111: 0 | X111: 0 | Y111: 0 | Z111: 0 | AA111: 0 | AB111: 0 | AC111: 0 | AD111: 0 | AE111: 0 | AF111: 0 | AG111: 0 | AH111: 0 | AI111: 0 | AJ111: 0 | AK111: 375 | AL111: 0 | AM111: 0 | AN111: 0 | AO111: 0 | AP111: -140625
F112: 0 | G112: 0 | H112: 0 | I112: 0 | J112: 0 | K112: 0 | L112: 0 | M112: 0 | N112: 0 | O112: 0 | P112: 0 | Q112: 0 | R112: 0 | S112: 0 | T112: 0 | U112: 0 | V112: 0 | W112: 0 | X112: 0 | Y112: 0 | Z112: 0 | AA112: 0 | AB112: 0 | AC112: 0 | AD112: 0 | AE112: 0 | AF112: 0 | AG112: 0 | AH112: 0 | AI112: 0 | AJ112: 0 | AK112: 375 | AL112: 0 | AM112: 0 | AN112: 0 | AO112: 0 | AP112: -140625
F113: 0 | G113: 0 | H113: 0 | I113: 0 | J113: 0 | K113: 0 | L113: 0 | M113: 0 | N113: 0 | O113: 0 | P113: 0 | Q113: 0 | R113: 0 | S113: 0 | T113: 0 | U113: 0 | V113: 0 | W113: 0 | X113: 0 | Y113: 0 | Z113: 0 | AA113: 0 | AB113: 0 | AC113: 0 | AD113: 0 | AE113: 0 | AF113: 0 | AG113: 0 | AH113: 0 | AI113: 0 | AJ113: 0 | AK113: 375 | AL113: 0 | AM113: 0 | AN113: 0 | AO113: 0 | AP113: -140625
F114: 0 | G114: 0 | H114: 0 | I114: 0 | J114: 0 | K114: 0 | L114: 0 | M114: 0 | N114: 0 | O114: 0 | P114: 0 | Q114: 0 | R114: 0 | S114: 0 | T114: 0 | U114: 0 | V114: 0 | W114: 0 | X114: 0 | Y114: 0 | Z114: 0 | AA114: 0 | AB114: 0 | AC114: 0 | AD114: 0 | AE114: 0 | AF114: 0 | AG114: 0 | AH114: 0 | AI114: 0 | AJ114: 0 | AK114: 375 | AL114: 0 | AM114: 0 | AN114: 0 | AO114: 0 | AP114: -140625
F115: 0 | G115: 0 | H115: 0 | I115: 0 | J115: 0 | K115: 0 | L115: 0 | M115: 0 | N115: 0 | O115: 0 | P115: 0 | Q115: 0 | R115: 0 | S115: 0 | T115: 0 | U115: 0 | V115: 0 | W115: 0 | X115: 0 | Y115: 0 | Z115: 0 | AA115: 0 | AB115: 0 | AC115: 0 | AD115: 0 | AE115: 0 | AF115: 0 | AG115: 0 | AH115: 0 | AI115: 0 | AJ115: 0 | AK115: 375 | AL115: 0 | AM115: 0 | AN115: 0 | AO115: 0 | AP115: -140625
F116: 0 | G116: 0 | H116: 0 | I116: 0 | J116: 0 | K116: 0 | L116: 0 | M116: 0 | N116: 0 | O116: 0 | P116: 0 | Q116: 0 | R116: 0 | S116: 0 | T116: 0 | U116: 0 | V116: 0 | W116: 0 | X116: 0 | Y116: 0 | Z116: 0 | AA116: 0 | AB116: 0 | AC116: 0 | AD116: 0 | AE116: 0 | AF116: 0 | AG116: 0 | AH116: 0 | AI116: 0 | AJ116: 0 | AK116: 375 | AL116: 0 | AM116: 0 | AN116: 0 | AO116: 0 | AP116: -140625
F117: 0 | G117: 0 | H117: 0 | I117: 0 | J117: 0 | K117: 0 | L117: 0 | M117: 0 | N117: 0 | O117: 0 | P117: 0 | Q117: 0 | R117: 0 | S117: 0 | T117: 0 | U117: 0 | V117: 0 | W117: 0 | X117: 0 | Y117: 0 | Z117: 0 | AA117: 0 | AB117: 0 | AC117: 0 | AD117: 0 | AE117: 0 | AF117: 0 | AG117: 0 | AH117: 0 | AI117: 0 | AJ117: 0 | AK117: 375 | AL117: 0 | AM117: 0 | AN117: 0 | AO117: 0 | AP117: -140625
F118: 0 | G118: 0 | H118: 0 | I118: 0 | J118: 0 | K118: 0 | L118: 0 | M118: 0 | N118: 0 | O118: 0 | P118: 0 | Q118: 0 | R118: 0 | S118: 0 | T118: 0 | U118: 0 | V118: 0 | W118: 0 | X118: 0 | Y118: 0 | Z118: 0 | AA118: 0 | AB118: 0 | AC118: 0 | AD118: 0 | AE118: 0 | AF118: 0 | AG118: 0 | AH118: 0 | AI118: 0 | AJ118: 0 | AK118: 375 | AL118: 0 | AM118: 0 | AN118: 0 | AO118: 0 | AP118: -140625
F119: 0 | G119: 0 | H119: 0 | I119: 0 | J119: 0 | K119: 0 | L119: 0 | M119: 0 | N119: 0 | O119: 0 | P119: 0 | Q119: 0 | R119: 0 | S119: 0 | T119: 0 | U119: 0 | V119: 0 | W119: 0 | X119: 0 | Y119: 0 | Z119: 0 | AA119: 0 | AB119: 0 | AC119: 0 | AD119: 0 | AE119: 0 | AF119: 0 | AG119: 0 | AH119: 0 | AI119: 0 | AJ119: 0 | AK119: 375 | AL119: 0 | AM119: 0 | AN119: 0 | AO119: 0 | AP119: -140625
F120: 0 | G120: 0 | H120: 0 | I120: 0 | J120: 0 | K120: 0 | L120: 0 | M120: 0 | N120: 0 | O120: 0 | P120: 0 | Q120: 0 | R120: 0 | S120: 0 | T120: 0 | U120: 0 | V120: 0 | W120: 0 | X120: 0 | Y120: 0 | Z120: 0 | AA120: 0 | AB120: 0 | AC120: 0 | AD120: 0 | AE120: 0 | AF120: 0 | AG120: 0 | AH120: 0 | AI120: 0 | AJ120: 0 | AK120: 375 | AL120: 0 | AM120: 0 | AN120: 0 | AO120: 0 | AP120: -140625
F121: 0 | G121: 0 | H121: 0 | I121: 0 | J121: 0 | K121: 0 | L121: 0 | M121: 0 | N121: 0 | O121: 0 | P121: 0 | Q121: 0 | R121: 0 | S121: 0 | T121: 0 | U121: 0 | V121: 0 | W121: 0 | X121: 0 | Y121: 0 | Z121: 0 | AA121: 0 | AB121: 0 | AC121: 0 | AD121: 0 | AE121: 0 | AF121: 0 | AG121: 0 | AH121: 0 | AI121: 0 | AJ121: 0 | AK121: 375 | AL121: 0 | AM121: 0 | AN121: 0 | AO121: 0 | AP121: -140625
F122: 0 | G122: 0 | H122: 0 | I122: 0 | J122: 0 | K122: 0 | L122: 0 | M122: 0 | N122: 0 | O122: 0 | P122: 0 | Q122: 0 | R122: 0 | S122: 0 | T122: 0 | U122: 0 | V122: 0 | W122: 0 | X122: 0 | Y122: 0 | Z122: 0 | AA122: 0 | AB122: 0 | AC122: 0 | AD122: 0 | AE122: 0 | AF122: 0 | AG122: 0 | AH122: 0 | AI122: 0 | AJ122: 0 | AK122: 375 | AL122: 0 | AM122: 0 | AN122: 0 | AO122: 0 | AP122: -140625
F123: 0 | G123: 0 | H123: 0 | I123: 0 | J123: 0 | K123: 0 | L123: 0 | M123: 0 | N123: 0 | O123: 0 | P123: =O123^2*B123 -> 0 | Q123: 0 | R123: 0 | S123: 0 | T123: 0 | U123: =E123/(sVorschub/1000)*2*PI()*iGetriebe -> 0 | V123: 0 | W123: =JGetriebe/10000*U123 -> 0 | X123: =M123/iGetriebe -> 0 | Y123: =V123+W123+X123 -> 0 | Z123: =Y123^2*B123 -> 0 | AA123: =U123^2*B123 -> 0 | AB123: =JMotor/10000*U123 -> 0 | AC123: =AB123+Y123 -> 0 | AD123: =AC123^2*B123 -> 0 | AE123: 0 | AF123: =AE123^2*B123 -> 0 | AG123: 0 | AH123: 0 | AI123: 0 | AJ123: 0 | AK123: 375 | AL123: 0 | AM123: 0 | AN123: 0 | AO123: 0 | AP123: -140625
F124: 0 | G124: 0 | H124: 0 | I124: 0 | J124: 0 | K124: 0 | L124: 0 | M124: 0 | N124: 0 | O124: 0 | P124: 0 | Q124: 0 | R124: 0 | S124: 0 | T124: 0 | U124: 0 | V124: 0 | W124: 0 | X124: 0 | Y124: 0 | Z124: 0 | AA124: 0 | AB124: 0 | AC124: 0 | AD124: 0 | AE124: 0 | AF124: 0 | AG124: 0 | AH124: 0 | AI124: 0 | AJ124: 0 | AK124: 375 | AL124: 0 | AM124: 0 | AN124: 0 | AO124: 0 | AP124: -140625
F125: 0 | G125: 0 | H125: 0 | I125: 0 | J125: 0 | K125: 0 | L125: 0 | M125: 0 | N125: 0 | O125: 0 | P125: 0 | Q125: 0 | R125: 0 | S125: 0 | T125: 0 | U125: 0 | V125: 0 | W125: 0 | X125: 0 | Y125: 0 | Z125: 0 | AA125: 0 | AB125: 0 | AC125: 0 | AD125: 0 | AE125: 0 | AF125: 0 | AG125: 0 | AH125: 0 | AI125: 0 | AJ125: 0 | AK125: 375 | AL125: 0 | AM125: 0 | AN125: 0 | AO125: 0 | AP125: -140625
F126: 0 | G126: 0 | H126: 0 | I126: 0 | J126: 0 | K126: 0 | L126: 0 | M126: 0 | N126: 0 | O126: 0 | P126: 0 | Q126: 0 | R126: 0 | S126: 0 | T126: 0 | U126: 0 | V126: 0 | W126: 0 | X126: 0 | Y126: 0 | Z126: 0 | AA126: 0 | AB126: 0 | AC126: 0 | AD126: 0 | AE126: 0 | AF126: 0 | AG126: 0 | AH126: 0 | AI126: 0 | AJ126: 0 | AK126: 375 | AL126: 0 | AM126: 0 | AN126: 0 | AO126: 0 | AP126: -140625
F127: =E127/(sVorschub/1000)*2*PI() -> 0 | G127: =JExtern/10000*F127 -> 0 | H127: =mTransl*E127 -> 0 | I127: =mTransl*E127*sVorschub/(2*PI())/1000 -> 0 | J127: 0 | K127: =MGewicht -> 0 | L127: 0 | M127: =G127+J127+K127+L127 -> 0 | N127: 0 | O127: 0 | P127: 0 | Q127: 0 | R127: 0 | S127: 0 | T127: 0 | U127: 0 | V127: 0 | W127: 0 | X127: 0 | Y127: 0 | Z127: 0 | AA127: 0 | AB127: 0 | AC127: 0 | AD127: 0 | AE127: 0 | AF127: 0 | AG127: 0 | AH127: 0 | AI127: 0 | AJ127: 0 | AK127: 375 | AL127: 0 | AM127: 0 | AN127: 0 | AO127: 0 | AP127: -140625
F128: 0 | G128: 0 | H128: 0 | I128: 0 | J128: 0 | K128: 0 | L128: 0 | M128: 0 | N128: 0 | O128: 0 | P128: 0 | Q128: 0 | R128: 0 | S128: 0 | T128: 0 | U128: 0 | V128: 0 | W128: 0 | X128: 0 | Y128: 0 | Z128: 0 | AA128: 0 | AB128: 0 | AC128: 0 | AD128: 0 | AE128: 0 | AF128: 0 | AG128: 0 | AH128: 0 | AI128: 0 | AJ128: 0 | AK128: 375 | AL128: 0 | AM128: 0 | AN128: 0 | AO128: 0 | AP128: -140625
F129: 0 | G129: 0 | H129: 0 | I129: 0 | J129: 0 | K129: 0 | L129: 0 | M129: 0 | N129: 0 | O129: 0 | P129: 0 | Q129: 0 | R129: 0 | S129: 0 | T129: 0 | U129: 0 | V129: 0 | W129: 0 | X129: 0 | Y129: 0 | Z129: 0 | AA129: 0 | AB129: 0 | AC129: 0 | AD129: 0 | AE129: 0 | AF129: 0 | AG129: 0 | AH129: 0 | AI129: 0 | AJ129: 0 | AK129: 375 | AL129: 0 | AM129: 0 | AN129: 0 | AO129: 0 | AP129: -140625
F130: 0 | G130: 0 | H130: 0 | I130: 0 | J130: =MReibS*SIGN(D130) -> 0 | K130: 0 | L130: =MProzess -> 0 | M130: 0 | N130: 0 | O130: =D130/(sVorschub/1000)*60 -> 0 | P130: 0 | Q130: 0 | R130: 0 | S130: 0 | T130: =O130*iGetriebe*Faktor_n_v -> 0 | U130: 0 | V130: =MReibG*SIGN(T130) -> 0 | W130: 0 | X130: 0 | Y130: 0 | Z130: 0 | AA130: 0 | AB130: 0 | AC130: 0 | AD130: 0 | AE130: =AC130*INennM/MNennM -> 0 | AF130: 0 | AG130: 0 | AH130: 0 | AI130: 0 | AJ130: =3*AE130^2*R_ph -> 0 | AK130: 375 | AL130: 0 | AM130: =-AL130*B130/1000/CZWK -> 0 | AN130: =IF(AND(AK130>=UREin,AK130*AL130<0),AK130*AL130,0) -> 0 | AO130: 0 | AP130: =UREin^2/(AN130-1) -> -140625
F131: 0 | G131: 0 | H131: 0 | I131: 0 | J131: 0 | K131: 0 | L131: 0 | M131: 0 | N131: =M131^2*B131 -> 0 | O131: 0 | P131: 0 | Q131: =ABS(O131)*ABS(B131)*(ABS(M131)^3) -> 0 | R131: =ABS(O131)*ABS(B131) -> 0 | S131: =IF(O131<>0,B131,0) -> 0 | T131: 0 | U131: 0 | V131: 0 | W131: 0 | X131: 0 | Y131: 0 | Z131: 0 | AA131: 0 | AB131: 0 | AC131: 0 | AD131: 0 | AE131: 0 | AF131: 0 | AG131: =AC131*2*PI()*T131/60 -> 0 | AH131: =IF(AG131<0,AG131,0) -> 0 | AI131: =AH131*B131 -> 0 | AJ131: 0 | AK131: =IF((AK130+AM130)<$AK$2*0.95,$AK$2*0.95,IF((AK130+AM130)>UREin,UREin,(AK130+AM130))) -> 375 | AL131: =(AG131+AJ131)/AK131 -> 0 | AM131: 0 | AN131: 0 | AO131: =AN131*B131 -> 0 | AP131: -140625
F132: 0 | G132: 0 | H132: 0 | I132: 0 | J132: 0 | K132: 0 | L132: 0 | M132: 0 | N132: 0 | O132: 0 | P132: 0 | Q132: 0 | R132: 0 | S132: 0 | T132: 0 | U132: 0 | V132: 0 | W132: 0 | X132: 0 | Y132: 0 | Z132: 0 | AA132: 0 | AB132: 0 | AC132: 0 | AD132: 0 | AE132: 0 | AF132: 0 | AG132: 0 | AH132: 0 | AI132: 0 | AJ132: 0 | AK132: 375 | AL132: 0 | AM132: 0 | AN132: 0 | AO132: 0 | AP132: -140625
F133: 0 | G133: 0 | H133: 0 | I133: 0 | J133: 0 | K133: 0 | L133: 0 | M133: 0 | N133: 0 | O133: 0 | P133: 0 | Q133: 0 | R133: 0 | S133: 0 | T133: 0 | U133: 0 | V133: 0 | W133: 0 | X133: 0 | Y133: 0 | Z133: 0 | AA133: 0 | AB133: 0 | AC133: 0 | AD133: 0 | AE133: 0 | AF133: 0 | AG133: 0 | AH133: 0 | AI133: 0 | AJ133: 0 | AK133: 375 | AL133: 0 | AM133: 0 | AN133: 0 | AO133: 0 | AP133: -140625
F134: 0 | G134: 0 | H134: 0 | I134: 0 | J134: 0 | K134: 0 | L134: 0 | M134: 0 | N134: 0 | O134: 0 | P134: 0 | Q134: 0 | R134: 0 | S134: 0 | T134: 0 | U134: 0 | V134: 0 | W134: 0 | X134: 0 | Y134: 0 | Z134: 0 | AA134: 0 | AB134: 0 | AC134: 0 | AD134: 0 | AE134: 0 | AF134: 0 | AG134: 0 | AH134: 0 | AI134: 0 | AJ134: 0 | AK134: 375 | AL134: 0 | AM134: 0 | AN134: 0 | AO134: 0 | AP134: -140625
F135: 0 | G135: 0 | H135: 0 | I135: 0 | J135: 0 | K135: 0 | L135: 0 | M135: 0 | N135: 0 | O135: 0 | P135: 0 | Q135: 0 | R135: 0 | S135: 0 | T135: 0 | U135: 0 | V135: 0 | W135: 0 | X135: 0 | Y135: 0 | Z135: 0 | AA135: 0 | AB135: 0 | AC135: 0 | AD135: 0 | AE135: 0 | AF135: 0 | AG135: 0 | AH135: 0 | AI135: 0 | AJ135: 0 | AK135: 375 | AL135: 0 | AM135: 0 | AN135: 0 | AO135: 0 | AP135: -140625
F136: 0 | G136: 0 | H136: 0 | I136: 0 | J136: 0 | K136: 0 | L136: 0 | M136: 0 | N136: 0 | O136: 0 | P136: 0 | Q136: 0 | R136: 0 | S136: 0 | T136: 0 | U136: 0 | V136: 0 | W136: 0 | X136: 0 | Y136: 0 | Z136: 0 | AA136: 0 | AB136: 0 | AC136: 0 | AD136: 0 | AE136: 0 | AF136: 0 | AG136: 0 | AH136: 0 | AI136: 0 | AJ136: 0 | AK136: 375 | AL136: 0 | AM136: 0 | AN136: 0 | AO136: 0 | AP136: -140625
F137: 0 | G137: 0 | H137: 0 | I137: 0 | J137: 0 | K137: 0 | L137: 0 | M137: 0 | N137: 0 | O137: 0 | P137: 0 | Q137: 0 | R137: 0 | S137: 0 | T137: 0 | U137: 0 | V137: 0 | W137: 0 | X137: 0 | Y137: 0 | Z137: 0 | AA137: 0 | AB137: 0 | AC137: 0 | AD137: 0 | AE137: 0 | AF137: 0 | AG137: 0 | AH137: 0 | AI137: 0 | AJ137: 0 | AK137: 375 | AL137: 0 | AM137: 0 | AN137: 0 | AO137: 0 | AP137: -140625
F138: 0 | G138: 0 | H138: 0 | I138: 0 | J138: 0 | K138: 0 | L138: 0 | M138: 0 | N138: 0 | O138: 0 | P138: 0 | Q138: 0 | R138: 0 | S138: 0 | T138: 0 | U138: 0 | V138: 0 | W138: 0 | X138: 0 | Y138: 0 | Z138: 0 | AA138: 0 | AB138: 0 | AC138: 0 | AD138: 0 | AE138: 0 | AF138: 0 | AG138: 0 | AH138: 0 | AI138: 0 | AJ138: 0 | AK138: 375 | AL138: 0 | AM138: 0 | AN138: 0 | AO138: 0 | AP138: -140625
F139: 0 | G139: 0 | H139: 0 | I139: 0 | J139: 0 | K139: 0 | L139: 0 | M139: 0 | N139: 0 | O139: 0 | P139: 0 | Q139: 0 | R139: 0 | S139: 0 | T139: 0 | U139: 0 | V139: 0 | W139: 0 | X139: 0 | Y139: 0 | Z139: 0 | AA139: 0 | AB139: 0 | AC139: 0 | AD139: 0 | AE139: 0 | AF139: 0 | AG139: 0 | AH139: 0 | AI139: 0 | AJ139: 0 | AK139: 375 | AL139: 0 | AM139: 0 | AN139: 0 | AO139: 0 | AP139: -140625
F140: 0 | G140: 0 | H140: 0 | I140: 0 | J140: 0 | K140: 0 | L140: 0 | M140: 0 | N140: 0 | O140: 0 | P140: 0 | Q140: 0 | R140: 0 | S140: 0 | T140: 0 | U140: 0 | V140: 0 | W140: 0 | X140: 0 | Y140: 0 | Z140: 0 | AA140: 0 | AB140: 0 | AC140: 0 | AD140: 0 | AE140: 0 | AF140: 0 | AG140: 0 | AH140: 0 | AI140: 0 | AJ140: 0 | AK140: 375 | AL140: 0 | AM140: 0 | AN140: 0 | AO140: 0 | AP140: -140625
F141: 0 | G141: 0 | H141: 0 | I141: 0 | J141: 0 | K141: 0 | L141: 0 | M141: 0 | N141: 0 | O141: 0 | P141: 0 | Q141: 0 | R141: 0 | S141: 0 | T141: 0 | U141: 0 | V141: 0 | W141: 0 | X141: 0 | Y141: 0 | Z141: 0 | AA141: 0 | AB141: 0 | AC141: 0 | AD141: 0 | AE141: 0 | AF141: 0 | AG141: 0 | AH141: 0 | AI141: 0 | AJ141: 0 | AK141: 375 | AL141: 0 | AM141: 0 | AN141: 0 | AO141: 0 | AP141: -140625
F142: 0 | G142: 0 | H142: 0 | I142: 0 | J142: 0 | K142: 0 | L142: 0 | M142: 0 | N142: 0 | O142: 0 | P142: =O142^2*B142 -> 0 | Q142: 0 | R142: 0 | S142: 0 | T142: 0 | U142: =E142/(sVorschub/1000)*2*PI()*iGetriebe -> 0 | V142: 0 | W142: =JGetriebe/10000*U142 -> 0 | X142: =M142/iGetriebe -> 0 | Y142: =V142+W142+X142 -> 0 | Z142: =Y142^2*B142 -> 0 | AA142: =U142^2*B142 -> 0 | AB142: =JMotor/10000*U142 -> 0 | AC142: =AB142+Y142 -> 0 | AD142: =AC142^2*B142 -> 0 | AE142: 0 | AF142: =AE142^2*B142 -> 0 | AG142: 0 | AH142: 0 | AI142: 0 | AJ142: 0 | AK142: 375 | AL142: 0 | AM142: 0 | AN142: 0 | AO142: 0 | AP142: -140625
F143: 0 | G143: 0 | H143: 0 | I143: 0 | J143: 0 | K143: 0 | L143: 0 | M143: 0 | N143: 0 | O143: 0 | P143: 0 | Q143: 0 | R143: 0 | S143: 0 | T143: 0 | U143: 0 | V143: 0 | W143: 0 | X143: 0 | Y143: 0 | Z143: 0 | AA143: 0 | AB143: 0 | AC143: 0 | AD143: 0 | AE143: 0 | AF143: 0 | AG143: 0 | AH143: 0 | AI143: 0 | AJ143: 0 | AK143: 375 | AL143: 0 | AM143: 0 | AN143: 0 | AO143: 0 | AP143: -140625
F144: 0 | G144: 0 | H144: 0 | I144: 0 | J144: 0 | K144: 0 | L144: 0 | M144: 0 | N144: 0 | O144: 0 | P144: 0 | Q144: 0 | R144: 0 | S144: 0 | T144: 0 | U144: 0 | V144: 0 | W144: 0 | X144: 0 | Y144: 0 | Z144: 0 | AA144: 0 | AB144: 0 | AC144: 0 | AD144: 0 | AE144: 0 | AF144: 0 | AG144: 0 | AH144: 0 | AI144: 0 | AJ144: 0 | AK144: 375 | AL144: 0 | AM144: 0 | AN144: 0 | AO144: 0 | AP144: -140625
F145: 0 | G145: 0 | H145: 0 | I145: 0 | J145: 0 | K145: 0 | L145: 0 | M145: 0 | N145: 0 | O145: 0 | P145: 0 | Q145: 0 | R145: 0 | S145: 0 | T145: 0 | U145: 0 | V145: 0 | W145: 0 | X145: 0 | Y145: 0 | Z145: 0 | AA145: 0 | AB145: 0 | AC145: 0 | AD145: 0 | AE145: 0 | AF145: 0 | AG145: 0 | AH145: 0 | AI145: 0 | AJ145: 0 | AK145: 375 | AL145: 0 | AM145: 0 | AN145: 0 | AO145: 0 | AP145: -140625
F146: 0 | G146: 0 | H146: 0 | I146: 0 | J146: 0 | K146: 0 | L146: 0 | M146: 0 | N146: 0 | O146: 0 | P146: 0 | Q146: 0 | R146: 0 | S146: 0 | T146: 0 | U146: 0 | V146: 0 | W146: 0 | X146: 0 | Y146: 0 | Z146: 0 | AA146: 0 | AB146: 0 | AC146: 0 | AD146: 0 | AE146: 0 | AF146: 0 | AG146: 0 | AH146: 0 | AI146: 0 | AJ146: 0 | AK146: 375 | AL146: 0 | AM146: 0 | AN146: 0 | AO146: 0 | AP146: -140625
F147: 0 | G147: 0 | H147: 0 | I147: 0 | J147: 0 | K147: 0 | L147: 0 | M147: 0 | N147: 0 | O147: 0 | P147: 0 | Q147: 0 | R147: 0 | S147: 0 | T147: 0 | U147: 0 | V147: 0 | W147: 0 | X147: 0 | Y147: 0 | Z147: 0 | AA147: 0 | AB147: 0 | AC147: 0 | AD147: 0 | AE147: 0 | AF147: 0 | AG147: 0 | AH147: 0 | AI147: 0 | AJ147: 0 | AK147: 375 | AL147: 0 | AM147: 0 | AN147: 0 | AO147: 0 | AP147: -140625
F148: 0 | G148: 0 | H148: 0 | I148: 0 | J148: 0 | K148: 0 | L148: 0 | M148: 0 | N148: 0 | O148: 0 | P148: 0 | Q148: 0 | R148: 0 | S148: 0 | T148: 0 | U148: 0 | V148: 0 | W148: 0 | X148: 0 | Y148: 0 | Z148: 0 | AA148: 0 | AB148: 0 | AC148: 0 | AD148: 0 | AE148: 0 | AF148: 0 | AG148: 0 | AH148: 0 | AI148: 0 | AJ148: 0 | AK148: 375 | AL148: 0 | AM148: 0 | AN148: 0 | AO148: 0 | AP148: -140625
F149: 0 | G149: 0 | H149: 0 | I149: 0 | J149: 0 | K149: 0 | L149: 0 | M149: 0 | N149: 0 | O149: 0 | P149: 0 | Q149: 0 | R149: 0 | S149: 0 | T149: 0 | U149: 0 | V149: 0 | W149: 0 | X149: 0 | Y149: 0 | Z149: 0 | AA149: 0 | AB149: 0 | AC149: 0 | AD149: 0 | AE149: 0 | AF149: 0 | AG149: 0 | AH149: 0 | AI149: 0 | AJ149: 0 | AK149: 375 | AL149: 0 | AM149: 0 | AN149: 0 | AO149: 0 | AP149: -140625
F150: 0 | G150: 0 | H150: 0 | I150: 0 | J150: 0 | K150: 0 | L150: 0 | M150: 0 | N150: 0 | O150: 0 | P150: 0 | Q150: 0 | R150: 0 | S150: 0 | T150: 0 | U150: 0 | V150: 0 | W150: 0 | X150: 0 | Y150: 0 | Z150: 0 | AA150: 0 | AB150: 0 | AC150: 0 | AD150: 0 | AE150: 0 | AF150: 0 | AG150: 0 | AH150: 0 | AI150: 0 | AJ150: 0 | AK150: 375 | AL150: 0 | AM150: 0 | AN150: 0 | AO150: 0 | AP150: -140625
F151: 0 | G151: 0 | H151: 0 | I151: 0 | J151: 0 | K151: 0 | L151: 0 | M151: 0 | N151: 0 | O151: 0 | P151: 0 | Q151: 0 | R151: 0 | S151: 0 | T151: 0 | U151: 0 | V151: 0 | W151: 0 | X151: 0 | Y151: 0 | Z151: 0 | AA151: 0 | AB151: 0 | AC151: 0 | AD151: 0 | AE151: 0 | AF151: 0 | AG151: 0 | AH151: 0 | AI151: 0 | AJ151: 0 | AK151: 375 | AL151: 0 | AM151: 0 | AN151: 0 | AO151: 0 | AP151: -140625
F152: 0 | G152: 0 | H152: 0 | I152: 0 | J152: 0 | K152: 0 | L152: 0 | M152: 0 | N152: 0 | O152: 0 | P152: 0 | Q152: 0 | R152: 0 | S152: 0 | T152: 0 | U152: 0 | V152: 0 | W152: 0 | X152: 0 | Y152: 0 | Z152: 0 | AA152: 0 | AB152: 0 | AC152: 0 | AD152: 0 | AE152: 0 | AF152: 0 | AG152: 0 | AH152: 0 | AI152: 0 | AJ152: 0 | AK152: 375 | AL152: 0 | AM152: 0 | AN152: 0 | AO152: 0 | AP152: -140625
F153: 0 | G153: 0 | H153: 0 | I153: 0 | J153: 0 | K153: 0 | L153: 0 | M153: 0 | N153: 0 | O153: 0 | P153: 0 | Q153: 0 | R153: 0 | S153: 0 | T153: 0 | U153: 0 | V153: 0 | W153: 0 | X153: 0 | Y153: 0 | Z153: 0 | AA153: 0 | AB153: 0 | AC153: 0 | AD153: 0 | AE153: 0 | AF153: 0 | AG153: 0 | AH153: 0 | AI153: 0 | AJ153: 0 | AK153: 375 | AL153: 0 | AM153: 0 | AN153: 0 | AO153: 0 | AP153: -140625
F154: 0 | G154: 0 | H154: 0 | I154: 0 | J154: 0 | K154: 0 | L154: 0 | M154: 0 | N154: 0 | O154: 0 | P154: 0 | Q154: 0 | R154: 0 | S154: 0 | T154: 0 | U154: 0 | V154: 0 | W154: 0 | X154: 0 | Y154: 0 | Z154: 0 | AA154: 0 | AB154: 0 | AC154: 0 | AD154: 0 | AE154: 0 | AF154: 0 | AG154: 0 | AH154: 0 | AI154: 0 | AJ154: 0 | AK154: 375 | AL154: 0 | AM154: 0 | AN154: 0 | AO154: 0 | AP154: -140625
F155: 0 | G155: 0 | H155: 0 | I155: 0 | J155: 0 | K155: 0 | L155: 0 | M155: 0 | N155: 0 | O155: 0 | P155: 0 | Q155: 0 | R155: 0 | S155: 0 | T155: 0 | U155: 0 | V155: 0 | W155: 0 | X155: 0 | Y155: 0 | Z155: 0 | AA155: 0 | AB155: 0 | AC155: 0 | AD155: 0 | AE155: 0 | AF155: 0 | AG155: 0 | AH155: 0 | AI155: 0 | AJ155: 0 | AK155: 375 | AL155: 0 | AM155: 0 | AN155: 0 | AO155: 0 | AP155: -140625
F156: 0 | G156: 0 | H156: 0 | I156: 0 | J156: 0 | K156: 0 | L156: 0 | M156: 0 | N156: 0 | O156: 0 | P156: 0 | Q156: 0 | R156: 0 | S156: 0 | T156: 0 | U156: 0 | V156: 0 | W156: 0 | X156: 0 | Y156: 0 | Z156: 0 | AA156: 0 | AB156: 0 | AC156: 0 | AD156: 0 | AE156: 0 | AF156: 0 | AG156: 0 | AH156: 0 | AI156: 0 | AJ156: 0 | AK156: 375 | AL156: 0 | AM156: 0 | AN156: 0 | AO156: 0 | AP156: -140625
F157: 0 | G157: 0 | H157: 0 | I157: 0 | J157: 0 | K157: 0 | L157: 0 | M157: 0 | N157: 0 | O157: 0 | P157: 0 | Q157: 0 | R157: 0 | S157: 0 | T157: 0 | U157: 0 | V157: 0 | W157: 0 | X157: 0 | Y157: 0 | Z157: 0 | AA157: 0 | AB157: 0 | AC157: 0 | AD157: 0 | AE157: 0 | AF157: 0 | AG157: 0 | AH157: 0 | AI157: 0 | AJ157: 0 | AK157: 375 | AL157: 0 | AM157: 0 | AN157: 0 | AO157: 0 | AP157: -140625
F158: 0 | G158: 0 | H158: 0 | I158: 0 | J158: 0 | K158: 0 | L158: 0 | M158: 0 | N158: 0 | O158: 0 | P158: 0 | Q158: 0 | R158: 0 | S158: 0 | T158: 0 | U158: 0 | V158: 0 | W158: 0 | X158: 0 | Y158: 0 | Z158: 0 | AA158: 0 | AB158: 0 | AC158: 0 | AD158: 0 | AE158: 0 | AF158: 0 | AG158: 0 | AH158: 0 | AI158: 0 | AJ158: 0 | AK158: 375 | AL158: 0 | AM158: 0 | AN158: 0 | AO158: 0 | AP158: -140625
F159: 0 | G159: 0 | H159: 0 | I159: 0 | J159: 0 | K159: 0 | L159: 0 | M159: 0 | N159: 0 | O159: 0 | P159: 0 | Q159: 0 | R159: 0 | S159: 0 | T159: 0 | U159: 0 | V159: 0 | W159: 0 | X159: 0 | Y159: 0 | Z159: 0 | AA159: 0 | AB159: 0 | AC159: 0 | AD159: 0 | AE159: 0 | AF159: 0 | AG159: 0 | AH159: 0 | AI159: 0 | AJ159: 0 | AK159: 375 | AL159: 0 | AM159: 0 | AN159: 0 | AO159: 0 | AP159: -140625
F160: 0 | G160: 0 | H160: 0 | I160: 0 | J160: 0 | K160: 0 | L160: 0 | M160: 0 | N160: 0 | O160: 0 | P160: 0 | Q160: 0 | R160: 0 | S160: 0 | T160: 0 | U160: 0 | V160: 0 | W160: 0 | X160: 0 | Y160: 0 | Z160: 0 | AA160: 0 | AB160: 0 | AC160: 0 | AD160: 0 | AE160: 0 | AF160: 0 | AG160: 0 | AH160: 0 | AI160: 0 | AJ160: 0 | AK160: 375 | AL160: 0 | AM160: 0 | AN160: 0 | AO160: 0 | AP160: -140625
F161: 0 | G161: 0 | H161: =mTransl*E161 -> 0 | I161: =mTransl*E161*sVorschub/(2*PI())/1000 -> 0 | J161: 0 | K161: 0 | L161: 0 | M161: =G161+J161+K161+L161 -> 0 | N161: 0 | O161: 0 | P161: 0 | Q161: 0 | R161: 0 | S161: 0 | T161: 0 | U161: 0 | V161: 0 | W161: 0 | X161: 0 | Y161: 0 | Z161: 0 | AA161: 0 | AB161: 0 | AC161: 0 | AD161: 0 | AE161: 0 | AF161: 0 | AG161: 0 | AH161: 0 | AI161: 0 | AJ161: 0 | AK161: 375 | AL161: 0 | AM161: 0 | AN161: 0 | AO161: 0 | AP161: -140625
F162: 0 | G162: 0 | H162: =mTransl*E162 -> 0 | I162: =mTransl*E162*sVorschub/(2*PI())/1000 -> 0 | J162: 0 | K162: 0 | L162: 0 | M162: =G162+J162+K162+L162 -> 0 | N162: 0 | O162: 0 | P162: 0 | Q162: 0 | R162: 0 | S162: 0 | T162: 0 | U162: 0 | V162: 0 | W162: 0 | X162: 0 | Y162: 0 | Z162: 0 | AA162: 0 | AB162: 0 | AC162: 0 | AD162: 0 | AE162: 0 | AF162: 0 | AG162: 0 | AH162: 0 | AI162: 0 | AJ162: 0 | AK162: 375 | AL162: 0 | AM162: =-AL162*B162/1000/CZWK -> 0 | AN162: 0 | AO162: 0 | AP162: -140625

Sheet CAM-Tabelle (hidden)
A1: Profiletype | B1: 255
A2: Masterstroke | B2: 16384
A3: Slavestroke | B3: 1564557
A4: Incrementalcorrection | B4: 0
A5: Profilepoints | B5: 500
A6: Syncstartaddress | B6: 0
A7: Slaveposition | B7: IP-Factor
A8: 0 | B8: 1455
A9: 1 | B9: 10182
A10: 6 | B10: 27619
A11: 20 | B11: 53734
A12: 46 | B12: 88479
A13: 91 | B13: 131790
A14: 157 | B14: 183585
A15: 248 | B15: 243771
A16: 370 | B16: 312234
A17: 526 | B17: 388848
A18: 721 | B18: 473471
A19: 958 | B19: 565947
A20: 1241 | B20: 666105
A21: 1574 | B21: 773758
A22: 1960 | B22: 888708
A23: 2405 | B23: 1010741
A24: 2910 | B24: 1139632
A25: 3480 | B25: 1275143
A26: 4118 | B26: 1417019
A27: 4826 | B27: 1565004
A28: 5609 | B28: 1718818
A29: 6468 | B29: 1878180
A30: 7407 | B30: 2042791
A31: 8429 | B31: 2212351
A32: 9535 | B32: 2386543
A33: 10728 | B33: 2565043
A34: 12010 | B34: 2747525
A35: 13384 | B35: 2933648
A36: 14851 | B36: 3123066
A37: 16413 | B37: 3315433
A38: 18070 | B38: 3510387
A39: 19826 | B39: 3707574
A40: 21679 | B40: 3906617
A41: 23633 | B41: 4107164
A42: 25686 | B42: 4308832
A43: 27841 | B43: 4511246
A44: 30096 | B44: 4714043
A45: 32453 | B45: 4916902
A46: 34912 | B46: 5119726
A47: 37472 | B47: 5322461
A48: 40133 | B48: 5525078
A49: 42895 | B49: 5727515
A50: 45759 | B50: 5929758
A51: 48724 | B51: 6131742
A52: 51790 | B52: 6333437
A53: 54957 | B53: 6534797
A54: 58224 | B54: 6735781
A55: 61592 | B55: 6936359
A56: 65060 | B56: 7136468
A57: 68628 | B57: 7336078
A58: 72296 | B58: 7535172
A59: 76064 | B59: 7733656
A60: 79931 | B60: 7931515
A61: 83896 | B61: 8128750
A62: 87961 | B62: 8325250
A63: 92123 | B63: 8521000
A64: 96384 | B64: 8716000
A65: 100742 | B65: 8910156
A66: 105197 | B66: 9103453
A67: 109749 | B67: 9295843
A68: 114397 | B68: 9487281
A69: 119140 | B69: 9677765
A70: 123979 | B70: 9867203
A71: 128913 | B71: 10055578
A72: 133941 | B72: 10242875
A73: 139062 | B73: 10429031
A74: 144277 | B74: 10613999
A75: 149584 | B75: 10797749
A76: 154982 | B76: 10980249
A77: 160473 | B77: 11161468
A78: 166053 | B78: 11341374
A79: 171724 | B79: 11519874
A80: 177484 | B80: 11697031
A81: 183332 | B81: 11872687
A82: 189269 | B82: 12046937
A83: 195292 | B83: 12219624
A84: 201402 | B84: 12390781
A85: 207597 | B85: 12560374
A86: 213878 | B86: 12728343
A87: 220242 | B87: 12894656
A88: 226689 | B88: 13059281
A89: 233219 | B89: 13222218
A90: 239830 | B90: 13383374
A91: 246522 | B91: 13542749
A92: 253293 | B92: 13700343
A93: 260143 | B93: 13856062
A94: 267071 | B94: 14009874
A95: 274076 | B95: 14161749
A96: 281157 | B96: 14311812
A97: 288313 | B97: 14459749
A98: 295543 | B98: 14605812
A99: 302846 | B99: 14749749
A100: 310221 | B100: 14891624
A101: 317666 | B101: 15031437
A102: 325182 | B102: 15169124
A103: 332767 | B103: 15304687
A104: 340419 | B104: 15437999
A105: 348138 | B105: 15569124
A106: 355923 | B106: 15698062
A107: 363772 | B107: 15824687
A108: 371684 | B108: 15949062
A109: 379658 | B109: 16071124
A110: 387694 | B110: 16190812
A111: 395789 | B111: 16308187
A112: 403944 | B112: 16423124
A113: 412155 | B113: 16535749
A114: 420423 | B114: 16645812
A115: 428746 | B115: 16753499
A116: 437123 | B116: 16858687
A117: 445552 | B117: 16961374
A118: 454033 | B118: 17061499
A119: 462563 | B119: 17159187
A120: 471143 | B120: 17254249
A121: 479770 | B121: 17346749
A122: 488443 | B122: 17436624
A123: 497162 | B123: 17523874
A124: 505924 | B124: 17608499
A125: 514728 | B125: 17690562
A126: 523573 | B126: 17769749
A127: 532458 | B127: 17846499
A128: 541381 | B128: 17920374
A129: 550342 | B129: 17991624
A130: 559337 | B130: 18059999
A131: 568367 | B131: 18125749
A132: 577430 | B132: 18188749
A133: 586525 | B133: 18248874
A134: 595649 | B134: 18306374
A135: 604802 | B135: 18360999
A136: 613983 | B136: 18412749
A137: 623189 | B137: 18461749
A138: 632420 | B138: 18507874
A139: 641674 | B139: 18551124
A140: 650950 | B140: 18591749
A141: 660245 | B141: 18629249
A142: 669560 | B142: 18664124
A143: 678892 | B143: 18695874
A144: 688240 | B144: 18724874
A145: 697602 | B145: 18751124
A146: 706978 | B146: 18774249
A147: 716365 | B147: 18794624
A148: 725762 | B148: 18811999
A149: 735168 | B149: 18826624
A150: 744582 | B150: 18838249
A151: 754001 | B151: 18846874
A152: 763424 | B152: 18852749
A153: 772851 | B153: 18855749
A154: 782279 | B154: 18855624
A155: 791706 | B155: 18852749
A156: 801133 | B156: 18846999
A157: 810556 | B157: 18838249
A158: 819975 | B158: 18826499
A159: 829389 | B159: 18812124
A160: 838795 | B160: 18794624
A161: 848192 | B161: 18774249
A162: 857579 | B162: 18750999
A163: 866955 | B163: 18724874
A164: 876317 | B164: 18695999
A165: 885665 | B165: 18663999
A166: 894997 | B166: 18629249
A167: 904312 | B167: 18591749
A168: 913608 | B168: 18551249
A169: 922883 | B169: 18507874
A170: 932137 | B170: 18461749
A171: 941368 | B171: 18412749
A172: 950574 | B172: 18360874
A173: 959755 | B173: 18306374
A174: 968908 | B174: 18248874
A175: 978032 | B175: 18188749
A176: 987127 | B176: 18125749
A177: 996190 | B177: 18060124
A178: 1005220 | B178: 17991499
A179: 1014216 | B179: 17920374
A180: 1023176 | B180: 17846499
A181: 1032099 | B181: 17769749
A182: 1040984 | B182: 17690624
A183: 1049829 | B183: 17608499
A184: 1058633 | B184: 17523749
A185: 1067395 | B185: 17436749
A186: 1076114 | B186: 17346749
A187: 1084787 | B187: 17254249
A188: 1093414 | B188: 17159249
A189: 1101994 | B189: 17061499
A190: 1110524 | B190: 16961249
A191: 1119005 | B191: 16858749
A192: 1127434 | B192: 16753499
A193: 1135811 | B193: 16645749
A194: 1144134 | B194: 16535749
A195: 1152402 | B195: 16423249
A196: 1160614 | B196: 16307999
A197: 1168768 | B197: 16190999
A198: 1176863 | B198: 16070999
A199: 1184899 | B199: 15948999
A200: 1192873 | B200: 15824749
... 308 more rows

Sheet Profiltabelle (hidden)
A1: Stützstelle [SS] | B1: dt [ms] | C1: s [Inkr.] | D1: v [Inkr./ms] | E1: a [Inkr./ms2] | F1: Slavestroke [Inkr.] | G1: IP Faktor [Tabelle] | H1: IP Faktor [CAM]
A2: 0 | B2: 1 | C2: 0 | D2: 0 | E2: 0 | F2: =C2 -> 0 | G2: ='CAM-Tabelle'!B8 -> 1455 | H2: =G2/65536 -> 0.02220153809
A3: 1 | B3: 1 | C3: 0.7274881524 | D3: 2.182329722 | E3: 4363.985644 | F3: =C3 -> 0.7274881524 | G3: ='CAM-Tabelle'!B9 -> 10182 | H3: =G3/65536 -> 0.1553649902
A4: 2 | B4: 1 | C4: 5.818288608 | D4: 8.725277715 | E4: 8719.890192 | F4: 5.818288608 | G4: ='CAM-Tabelle'!B10 -> 27619 | H4: 0.4214324951
A5: 3 | B5: 1 | C5: 19.62763382 | D5: 19.61672794 | E5: 13059.64751 | F5: 19.62763382 | G5: ='CAM-Tabelle'!B11 -> 53734 | H5: 0.8199157715
A6: 4 | B6: 1 | C6: 46.4946115 | D6: 34.83651195 | E6: 17375.22136 | F6: 46.4946115 | G6: ='CAM-Tabelle'!B12 -> 88479 | H6: 1.350082397
A7: 5 | B7: 1 | C7: 90.73412963 | D7: 54.3564462 | E7: 21658.62031 | F7: 90.73412963 | G7: ='CAM-Tabelle'!B13 -> 131790 | H7: 2.010955811
A8: 6 | B8: 1 | C8: 156.6289263 | D8: 78.14038426 | E8: 25901.91247 | F8: 156.6289263 | G8: ='CAM-Tabelle'!B14 -> 183585 | H8: 2.80128479
A9: 7 | B9: 1 | C9: 248.4216388 | D9: 106.1442837 | E9: 30097.24025 | F9: 248.4216388 | G9: ='CAM-Tabelle'!B15 -> 243771 | H9: 3.719650269
A10: 8 | B10: 1 | C10: 370.3069477 | D10: 138.3162879 | E10: 34236.83486 | F10: 370.3069477 | G10: ='CAM-Tabelle'!B16 -> 312234 | H10: 4.764312744
A11: 9 | B11: 1 | C11: 526.423809 | D11: 174.5968215 | E11: 38313.03074 | F11: 526.423809 | G11: ='CAM-Tabelle'!B17 -> 388848 | H11: 5.933349609
A12: 10 | B12: 1 | C12: 720.8477894 | D12: 214.9187015 | E12: 42318.2797 | F12: 720.8477894 | G12: ='CAM-Tabelle'!B18 -> 473471 | H12: 7.224594116
A13: 11 | B13: 1 | C13: 957.5835201 | D13: 259.2072609 | E13: 46245.16494 | F13: 957.5835201 | G13: ='CAM-Tabelle'!B19 -> 565947 | H13: 8.635665894
A14: 12 | B14: 1 | C14: 1240.55728 | D14: 307.3804876 | E14: 50086.41478 | F14: 1240.55728 | G14: ='CAM-Tabelle'!B20 -> 666105 | H14: 10.16395569
A15: 13 | B15: 1 | C15: 1573.609727 | D15: 359.3491757 | E15: 53834.9161 | F15: 1573.609727 | G15: ='CAM-Tabelle'!B21 -> 773758 | H15: 11.80661011
A16: 14 | B16: 1 | C16: 1960.488784 | D16: 415.0170914 | E16: 57483.72755 | F16: 1960.488784 | G16: ='CAM-Tabelle'!B22 -> 888708 | H16: 13.56060791
A17: 15 | B17: 1 | C17: 2404.842698 | D17: 474.2811503 | E17: 61026.09236 | F17: 2404.842698 | G17: ='CAM-Tabelle'!B23 -> 1010741 | H17: 15.42268372
A18: 16 | B18: 1 | C18: 2910.213289 | D18: 537.0316091 | E18: 64455.45089 | F18: 2910.213289 | G18: ='CAM-Tabelle'!B24 -> 1139632 | H18: 17.3894043
A19: 17 | B19: 1 | C19: 3480.029386 | D19: 603.1522683 | E19: 67765.45275 | F19: 3480.029386 | G19: ='CAM-Tabelle'!B25 -> 1275143 | H19: 19.45713806
A20: 18 | B20: 1 | C20: 4117.60048 | D20: 672.5206878 | E20: 70949.96859 | F20: 4117.60048 | G20: ='CAM-Tabelle'!B26 -> 1417019 | H20: 21.62199402
A21: 19 | B21: 1 | C21: 4826.110595 | D21: 745.0084132 | E21: 74003.10142 | F21: 4826.110595 | G21: ='CAM-Tabelle'!B27 -> 1565004 | H21: 23.88006592
A22: 20 | B22: 1 | C22: 5608.612393 | D22: 820.4812139 | E22: 76919.19752 | F22: 5608.612393 | G22: ='CAM-Tabelle'!B28 -> 1718818 | H22: 26.2270813
A23: 21 | B23: 1 | C23: 6468.02152 | D23: 898.7993316 | E23: 79692.85698 | F23: 6468.02152 | G23: ='CAM-Tabelle'!B29 -> 1878180 | H23: 28.65875244
A24: 22 | B24: 1 | C24: 7407.111208 | D24: 979.8177392 | E24: 82318.9436 | F24: 7407.111208 | G24: ='CAM-Tabelle'!B30 -> 2042791 | H24: 31.17051697
A25: 23 | B25: 1 | C25: 8428.507138 | D25: 1063.386409 | E25: 84792.59447 | F25: 8428.507138 | G25: ='CAM-Tabelle'!B31 -> 2212351 | H25: 33.75779724
A26: 24 | B26: 1 | C26: 9534.68258 | D26: 1149.350592 | E26: 87109.22898 | F26: 9534.68258 | G26: ='CAM-Tabelle'!B32 -> 2386543 | H26: 36.41575623
A27: 25 | B27: 1 | C27: 10727.95381 | D27: 1237.551101 | E27: 89264.55723 | F27: 10727.95381 | G27: ='CAM-Tabelle'!B33 -> 2565043 | H27: 39.13945007
A28: 26 | B28: 1 | C28: 12010.47582 | D28: 1327.82461 | E28: 91254.58807 | F28: 12010.47582 | G28: ='CAM-Tabelle'!B34 -> 2747525 | H28: 41.92390442
A29: 27 | B29: 1 | C29: 13384.23835 | D29: 1420.003952 | E29: 93075.6364 | F29: 13384.23835 | G29: ='CAM-Tabelle'!B35 -> 2933648 | H29: 44.76391602
A30: 28 | B30: 1 | C30: 14851.06214 | D30: 1513.918434 | E30: 94724.33008 | F30: 14851.06214 | G30: ='CAM-Tabelle'!B36 -> 3123066 | H30: 47.65420532
A31: 29 | B31: 1 | C31: 16412.59566 | D31: 1609.394146 | E31: 96197.61609 | F31: 16412.59566 | G31: ='CAM-Tabelle'!B37 -> 3315433 | H31: 50.5894928
A32: 30 | B32: 1 | C32: 18070.31194 | D32: 1706.25429 | E32: 97492.76625 | F32: 18070.31194 | G32: ='CAM-Tabelle'!B38 -> 3510387 | H32: 53.56425476
A33: 31 | B33: 1 | C33: 19825.50595 | D33: 1804.319503 | E33: 98607.38224 | F33: 19825.50595 | G33: ='CAM-Tabelle'!B39 -> 3707574 | H33: 56.5730896
A34: 32 | B34: 1 | C34: 21679.29213 | D34: 1903.408191 | E34: 99539.40005 | F34: 21679.29213 | G34: ='CAM-Tabelle'!B40 -> 3906617 | H34: 59.61024475
A35: 33 | B35: 1 | C35: 23632.60234 | D35: 2003.336865 | E35: 100287.0938 | F35: 23632.60234 | G35: ='CAM-Tabelle'!B41 -> 4107164 | H35: 62.67034912
A36: 34 | B36: 1 | C36: 25686.18418 | D36: 2103.920479 | E36: 100849.0789 | F36: 25686.18418 | G36: ='CAM-Tabelle'!B42 -> 4308832 | H36: 65.74755859
A37: 35 | B37: 1 | C37: 27840.59954 | D37: 2204.972776 | E37: 101224.3148 | F37: 27840.59954 | G37: ='CAM-Tabelle'!B43 -> 4511246 | H37: 68.83615112
A38: 36 | B38: 1 | C38: 30096.22359 | D38: 2306.30663 | E38: 101412.1064 | F38: 30096.22359 | G38: ='CAM-Tabelle'!B44 -> 4714043 | H38: 71.93058777
A39: 37 | B39: 1 | C39: 32453.24464 | D39: 2407.738079 | E39: 101432.9792 | F39: 32453.24464 | G39: ='CAM-Tabelle'!B45 -> 4916902 | H39: 75.02597046
A40: 38 | B40: 1 | C40: 34911.6966 | D40: 2509.162365 | E40: 101412.1063 | F40: 34911.6966 | G40: ='CAM-Tabelle'!B46 -> 5119726 | H40: 78.12081909
A41: 39 | B41: 1 | C41: 37471.55894 | D41: 2610.555342 | E41: 101370.3646 | F41: 37471.55894 | G41: ='CAM-Tabelle'!B47 -> 5322461 | H41: 81.21430969
A42: 40 | B42: 1 | C42: 40132.7899 | D42: 2711.896147 | E42: 101307.763 | F42: 40132.7899 | G42: ='CAM-Tabelle'!B48 -> 5525078 | H42: 84.30599976
A43: 41 | B43: 1 | C43: 42895.32689 | D43: 2813.163926 | E43: 101224.3142 | F43: 42895.32689 | G43: ='CAM-Tabelle'!B49 -> 5727515 | H43: 87.39494324
A44: 42 | B44: 1 | C44: 45759.08646 | D44: 2914.337839 | E44: 101120.0354 | F44: 45759.08646 | G44: ='CAM-Tabelle'!B50 -> 5929758 | H44: 90.48092651
A45: 43 | B45: 1 | C45: 48723.96434 | D45: 3015.397067 | E45: 100994.9481 | F45: 48723.96434 | G45: ='CAM-Tabelle'!B51 -> 6131742 | H45: 93.56295776
A46: 44 | B46: 1 | C46: 51789.83543 | D46: 3116.320814 | E46: 100849.078 | F46: 51789.83543 | G46: ='CAM-Tabelle'!B52 -> 6333437 | H46: 96.64057922
A47: 45 | B47: 1 | C47: 54956.55388 | D47: 3217.088312 | E47: 100682.4551 | F47: 54956.55388 | G47: ='CAM-Tabelle'!B53 -> 6534797 | H47: 99.71308899
A48: 46 | B48: 1 | C48: 58223.95306 | D48: 3317.678825 | E48: 100495.1137 | F48: 58223.95306 | G48: ='CAM-Tabelle'!B54 -> 6735781 | H48: 102.7798615
A49: 47 | B49: 1 | C49: 61591.84564 | D49: 3418.071653 | E49: 100287.0925 | F49: 61591.84564 | G49: ='CAM-Tabelle'!B55 -> 6936359 | H49: 105.8404388
A50: 48 | B50: 1 | C50: 65060.02359 | D50: 3518.246137 | E50: 100058.4341 | F50: 65060.02359 | G50: ='CAM-Tabelle'!B56 -> 7136468 | H50: 108.8938599
A51: 49 | B51: 1 | C51: 68628.25826 | D51: 3618.181664 | E51: 99809.18559 | F51: 68628.25826 | G51: ='CAM-Tabelle'!B57 -> 7336078 | H51: 111.9396667
A52: 50 | B52: 1 | C52: 72296.30041 | D52: 3717.857669 | E52: 99539.39834 | F52: 72296.30041 | G52: ='CAM-Tabelle'!B58 -> 7535172 | H52: 114.9776001
A53: 51 | B53: 1 | C53: 76063.88025 | D53: 3817.25364 | E53: 99249.12783 | F53: 76063.88025 | G53: ='CAM-Tabelle'!B59 -> 7733656 | H53: 118.0062256
A54: 52 | B54: 1 | C54: 79930.70752 | D54: 3916.349123 | E54: 98938.4338 | F54: 79930.70752 | G54: ='CAM-Tabelle'!B60 -> 7931515 | H54: 121.0253143
A55: 53 | B55: 1 | C55: 83896.47154 | D55: 4015.123727 | E55: 98607.38016 | F55: 83896.47154 | G55: ='CAM-Tabelle'!B61 -> 8128750 | H55: 124.0348816
A56: 54 | B56: 1 | C56: 87960.84124 | D56: 4113.557126 | E56: 98256.03506 | F56: 87960.84124 | G56: ='CAM-Tabelle'!B62 -> 8325250 | H56: 127.0332336
A57: 55 | B57: 1 | C57: 92123.4653 | D57: 4211.629064 | E57: 97884.47079 | F57: 92123.4653 | G57: ='CAM-Tabelle'!B63 -> 8521000 | H57: 130.0201416
A58: 56 | B58: 1 | C58: 96383.97216 | D58: 4309.31936 | E58: 97492.7638 | F58: 96383.97216 | G58: ='CAM-Tabelle'!B64 -> 8716000 | H58: 132.9956055
A59: 57 | B59: 1 | C59: 100741.9701 | D59: 4406.607911 | E59: 97080.99471 | F59: 100741.9701 | G59: ='CAM-Tabelle'!B65 -> 8910156 | H59: 135.9581909
A60: 58 | B60: 1 | C60: 105197.0474 | D60: 4503.474697 | E60: 96649.24826 | F60: 105197.0474 | G60: ='CAM-Tabelle'!B66 -> 9103453 | H60: 138.9076691
A61: 59 | B61: 1 | C61: 109748.7723 | D61: 4599.899784 | E61: 96197.61328 | F61: 109748.7723 | G61: ='CAM-Tabelle'!B67 -> 9295843 | H61: 141.8433075
A62: 60 | B62: 1 | C62: 114396.6931 | D62: 4695.863331 | E62: 95726.18271 | F62: 114396.6931 | G62: ='CAM-Tabelle'!B68 -> 9487281 | H62: 144.7644196
A63: 61 | B63: 1 | C63: 119140.3385 | D63: 4791.34559 | E63: 95235.05356 | F63: 119140.3385 | G63: ='CAM-Tabelle'!B69 -> 9677765 | H63: 147.6709747
A64: 62 | B64: 1 | C64: 123979.2173 | D64: 4886.326912 | E64: 94724.32691 | F64: 123979.2173 | G64: ='CAM-Tabelle'!B70 -> 9867203 | H64: 150.5615692
A65: 63 | B65: 1 | C65: 128912.8188 | D65: 4980.787753 | E65: 94194.10784 | F65: 128912.8188 | G65: ='CAM-Tabelle'!B71 -> 10055578 | H65: 153.4359436
A66: 64 | B66: 1 | C66: 133940.6128 | D66: 5074.708673 | E66: 93644.50546 | F66: 133940.6128 | G66: ='CAM-Tabelle'!B72 -> 10242875 | H66: 156.293869
A67: 65 | B67: 1 | C67: 139062.0498 | D67: 5168.070346 | E67: 93075.63288 | F67: =C67 -> 139062.0498 | G67: ='CAM-Tabelle'!B73 -> 10429031 | H67: =G67/65536 -> 159.1343842
A68: 66 | B68: 1 | C68: 144276.5607 | D68: 5260.853561 | E68: 92487.60715 | F68: 144276.5607 | G68: ='CAM-Tabelle'!B74 -> 10613999 | H68: 161.9567719
A69: 67 | B69: 1 | C69: 149583.5577 | D69: 5353.039223 | E69: 91880.54928 | F69: 149583.5577 | G69: ='CAM-Tabelle'!B75 -> 10797749 | H69: 164.7605743
A70: 68 | B70: 1 | C70: 154982.4336 | D70: 5444.608363 | E70: 91254.5842 | F70: 154982.4336 | G70: ='CAM-Tabelle'!B76 -> 10980249 | H70: 167.5453033
A71: 69 | B71: 1 | C71: 160472.5626 | D71: 5535.542138 | E71: 90609.8407 | F71: 160472.5626 | G71: ='CAM-Tabelle'!B77 -> 11161468 | H71: 170.3104858
A72: 70 | B72: 1 | C72: 166053.2999 | D72: 5625.821835 | E72: 89946.45147 | F72: 166053.2999 | G72: ='CAM-Tabelle'!B78 -> 11341374 | H72: 173.0556335
A73: 71 | B73: 1 | C73: 171723.9821 | D73: 5715.428877 | E73: 89264.55302 | F73: 171723.9821 | G73: ='CAM-Tabelle'!B79 -> 11519874 | H73: 175.7793274
A74: 72 | B74: 1 | C74: 177483.9273 | D74: 5804.344824 | E74: 88564.28567 | F74: 177483.9273 | G74: ='CAM-Tabelle'!B80 -> 11697031 | H74: 178.4825287
A75: 73 | B75: 1 | C75: 183332.4353 | D75: 5892.551379 | E75: 87845.79353 | F75: 183332.4353 | G75: ='CAM-Tabelle'!B81 -> 11872687 | H75: 181.1628265
A76: 74 | B76: 1 | C76: 189268.7875 | D76: 5980.030391 | E76: 87109.22443 | F76: 189268.7875 | G76: ='CAM-Tabelle'!B82 -> 12046937 | H76: 183.8216705
A77: 75 | B77: 1 | C77: 195292.2475 | D77: 6066.763859 | E77: 86354.72997 | F77: 195292.2475 | G77: ='CAM-Tabelle'!B83 -> 12219624 | H77: 186.456665
A78: 76 | B78: 1 | C78: 201402.0608 | D78: 6152.733934 | E78: 85582.46539 | F78: 201402.0608 | G78: ='CAM-Tabelle'!B84 -> 12390781 | H78: 189.0683136
A79: 77 | B79: 1 | C79: 207597.455 | D79: 6237.922925 | E79: 84792.58961 | F79: 207597.455 | G79: ='CAM-Tabelle'!B85 -> 12560374 | H79: 191.6560974
A80: 78 | B80: 1 | C80: 213877.6404 | D80: 6322.313302 | E80: 83985.26517 | F80: 213877.6404 | G80: ='CAM-Tabelle'!B86 -> 12728343 | H80: 194.219101
A81: 79 | B81: 1 | C81: 220241.8096 | D81: 6405.8877 | E81: 83160.65821 | F81: 220241.8096 | G81: ='CAM-Tabelle'!B87 -> 12894656 | H81: 196.7568359
A82: 80 | B82: 1 | C82: 226689.1381 | D82: 6488.62892 | E82: 82318.93841 | F82: 226689.1381 | G82: ='CAM-Tabelle'!B88 -> 13059281 | H82: 199.2688141
A83: 81 | B83: 1 | C83: 233218.7841 | D83: 6570.519936 | E83: 81460.27899 | F83: 233218.7841 | G83: ='CAM-Tabelle'!B89 -> 13222218 | H83: 201.7550354
A84: 82 | B84: 1 | C84: 239829.8889 | D84: 6651.543896 | E84: 80584.85663 | F84: 239829.8889 | G84: ='CAM-Tabelle'!B90 -> 13383374 | H84: 204.2140808
A85: 83 | B85: 1 | C85: 246521.5773 | D85: 6731.684127 | E85: 79692.85149 | F85: 246521.5773 | G85: ='CAM-Tabelle'!B91 -> 13542749 | H85: 206.6459503
A86: 84 | B86: 1 | C86: 253292.9571 | D86: 6810.924137 | E86: 78784.44712 | F86: 253292.9571 | G86: ='CAM-Tabelle'!B92 -> 13700343 | H86: 209.0506439
A87: 85 | B87: 1 | C87: 260143.1201 | D87: 6889.247622 | E87: 77859.83044 | F87: 260143.1201 | G87: ='CAM-Tabelle'!B93 -> 13856062 | H87: 211.4267273
A88: 86 | B88: 1 | C88: 267071.1415 | D88: 6966.638463 | E88: 76919.19174 | F88: 267071.1415 | G88: ='CAM-Tabelle'!B94 -> 14009874 | H88: 213.7737122
A89: 87 | B89: 1 | C89: 274076.0808 | D89: 7043.080734 | E89: 75962.72458 | F89: 274076.0808 | G89: ='CAM-Tabelle'!B95 -> 14161749 | H89: 216.0911407
A90: 88 | B90: 1 | C90: 281156.9815 | D90: 7118.558706 | E90: 74990.62577 | F90: 281156.9815 | G90: ='CAM-Tabelle'!B96 -> 14311812 | H90: 218.3809204
A91: 89 | B91: 1 | C91: 288312.8716 | D91: 7193.056847 | E91: 74003.09535 | F91: 288312.8716 | G91: ='CAM-Tabelle'!B97 -> 14459749 | H91: 220.6382599
A92: 90 | B92: 1 | C92: 295542.7635 | D92: 7266.559826 | E92: 73000.33655 | F92: 295542.7635 | G92: ='CAM-Tabelle'!B98 -> 14605812 | H92: 222.8670044
A93: 91 | B93: 1 | C93: 302845.6545 | D93: 7339.052518 | E93: 71982.5557 | F93: 302845.6545 | G93: ='CAM-Tabelle'!B99 -> 14749749 | H93: 225.0633087
A94: 92 | B94: 1 | C94: 310220.5268 | D94: 7410.520005 | E94: 70949.96226 | F94: 310220.5268 | G94: ='CAM-Tabelle'!B100 -> 14891624 | H94: 227.2281494
A95: 93 | B95: 1 | C95: 317666.3478 | D95: 7480.94758 | E95: 69902.76869 | F95: 317666.3478 | G95: ='CAM-Tabelle'!B101 -> 15031437 | H95: 229.3615265
A96: 94 | B96: 1 | C96: 325182.0705 | D96: 7550.320752 | E96: 68841.19051 | F96: 325182.0705 | G96: ='CAM-Tabelle'!B102 -> 15169124 | H96: 231.4624634
A97: 95 | B97: 1 | C97: 332766.6331 | D97: 7618.625244 | E97: 67765.44615 | F97: 332766.6331 | G97: ='CAM-Tabelle'!B103 -> 15304687 | H97: 233.5309906
A98: 96 | B98: 1 | C98: 340418.96 | D98: 7685.847 | E98: 66675.757 | F98: 340418.96 | G98: ='CAM-Tabelle'!B104 -> 15437999 | H98: 235.5651703
A99: 97 | B99: 1 | C99: 348137.9616 | D99: 7751.972189 | E99: 65572.34727 | F99: 348137.9616 | G99: ='CAM-Tabelle'!B105 -> 15569124 | H99: 237.565979
A100: 98 | B100: 1 | C100: 355922.5344 | D100: 7816.987201 | E100: 64455.44404 | F100: 355922.5344 | G100: ='CAM-Tabelle'!B106 -> 15698062 | H100: 239.5334167
A101: 99 | B101: 1 | C101: 363771.5615 | D101: 7880.87866 | E101: 63325.27714 | F101: 363771.5615 | G101: ='CAM-Tabelle'!B107 -> 15824687 | H101: 241.4655609
A102: 100 | B102: 1 | C102: 371683.9128 | D102: 7943.633416 | E102: 62182.07914 | F102: 371683.9128 | G102: ='CAM-Tabelle'!B108 -> 15949062 | H102: 243.3633728
A103: 101 | B103: 1 | C103: 379658.4451 | D103: 8005.238557 | E103: 61026.08528 | F103: 379658.4451 | G103: ='CAM-Tabelle'!B109 -> 16071124 | H103: 245.2258911
A104: 102 | B104: 1 | C104: 387694.0025 | D104: 8065.681405 | E104: 59857.53344 | F104: 387694.0025 | G104: ='CAM-Tabelle'!B110 -> 16190812 | H104: 247.0521851
A105: 103 | B105: 1 | C105: 395789.4163 | D105: 8124.949522 | E105: 58676.6641 | F105: 395789.4163 | G105: ='CAM-Tabelle'!B111 -> 16308187 | H105: 248.8431854
A106: 104 | B106: 1 | C106: 403943.5059 | D106: 8183.030712 | E106: 57483.72024 | F106: 403943.5059 | G106: ='CAM-Tabelle'!B112 -> 16423124 | H106: 250.5969849
A107: 105 | B107: 1 | C107: 412155.0781 | D107: 8239.913023 | E107: 56278.94736 | F107: 412155.0781 | G107: ='CAM-Tabelle'!B113 -> 16535749 | H107: 252.315506
A108: 106 | B108: 1 | C108: 420422.9284 | D108: 8295.58475 | E108: 55062.59338 | F108: 420422.9284 | G108: ='CAM-Tabelle'!B114 -> 16645812 | H108: 253.9949341
A109: 107 | B109: 1 | C109: 428745.8403 | D109: 8350.034437 | E109: 53834.90859 | F109: 428745.8403 | G109: ='CAM-Tabelle'!B115 -> 16753499 | H109: 255.6381073
A110: 108 | B110: 1 | C110: 437122.5862 | D110: 8403.250878 | E110: 52596.14563 | F110: 437122.5862 | G110: ='CAM-Tabelle'!B116 -> 16858687 | H110: 257.2431488
A111: 109 | B111: 1 | C111: 445551.9273 | D111: 8455.223124 | E111: 51346.55941 | F111: 445551.9273 | G111: ='CAM-Tabelle'!B117 -> 16961374 | H111: 258.8100281
A112: 110 | B112: 1 | C112: 454032.6141 | D112: 8505.940478 | E112: 50086.40707 | F112: 454032.6141 | G112: ='CAM-Tabelle'!B118 -> 17061499 | H112: 260.3378143
A113: 111 | B113: 1 | C113: 462563.3865 | D113: 8555.392505 | E113: 48815.94793 | F113: 462563.3865 | G113: ='CAM-Tabelle'!B119 -> 17159187 | H113: 261.8284149
A114: 112 | B114: 1 | C114: 471142.974 | D114: 8603.569029 | E114: 47535.44342 | F114: 471142.974 | G114: ='CAM-Tabelle'!B120 -> 17254249 | H114: 263.2789459
A115: 113 | B115: 1 | C115: 479770.0961 | D115: 8650.460135 | E115: 46245.15705 | F115: 479770.0961 | G115: ='CAM-Tabelle'!B121 -> 17346749 | H115: 264.6903839
A116: 114 | B116: 1 | C116: 488443.4625 | D116: 8696.056174 | E116: 44945.35433 | F116: 488443.4625 | G116: ='CAM-Tabelle'!B122 -> 17436624 | H116: 266.0617676
A117: 115 | B117: 1 | C117: 497161.7736 | D117: 8740.347763 | E117: 43636.30273 | F117: 497161.7736 | G117: ='CAM-Tabelle'!B123 -> 17523874 | H117: 267.3930969
A118: 116 | B118: 1 | C118: 505923.7202 | D118: 8783.325789 | E118: 42318.27164 | F118: 505923.7202 | G118: ='CAM-Tabelle'!B124 -> 17608499 | H118: 268.6843719
A119: 117 | B119: 1 | C119: 514727.9844 | D119: 8824.981407 | E119: 40991.53228 | F119: 514727.9844 | G119: ='CAM-Tabelle'!B125 -> 17690562 | H119: 269.936554
A120: 118 | B120: 1 | C120: 523573.2393 | D120: 8865.306045 | E120: 39656.35765 | F120: 523573.2393 | G120: ='CAM-Tabelle'!B126 -> 17769749 | H120: 271.1448517
A121: 119 | B121: 1 | C121: 532458.15 | D121: 8904.291405 | E121: 38313.02253 | F121: 532458.15 | G121: ='CAM-Tabelle'!B127 -> 17846499 | H121: 272.3159637
A122: 120 | B122: 1 | C122: 541381.3731 | D122: 8941.929464 | E122: 36961.80334 | F122: 541381.3731 | G122: ='CAM-Tabelle'!B128 -> 17920374 | H122: 273.4432068
A123: 121 | B123: 1 | C123: 550341.5573 | D123: 8978.212478 | E123: 35602.97812 | F123: 550341.5573 | G123: ='CAM-Tabelle'!B129 -> 17991624 | H123: 274.5303955
A124: 122 | B124: 1 | C124: 559337.3438 | D124: 9013.132981 | E124: 34236.82652 | F124: 559337.3438 | G124: ='CAM-Tabelle'!B130 -> 18059999 | H124: 275.5737152
A125: 123 | B125: 1 | C125: 568367.3667 | D125: 9046.683785 | E125: 32863.62964 | F125: 568367.3667 | G125: ='CAM-Tabelle'!B131 -> 18125749 | H125: 276.5769806
A126: 124 | B126: 1 | C126: 577430.2525 | D126: 9078.857988 | E126: 31483.67007 | F126: 577430.2525 | G126: ='CAM-Tabelle'!B132 -> 18188749 | H126: 277.5382843
A127: 125 | B127: 1 | C127: 586524.6216 | D127: 9109.648968 | E127: 30097.23178 | F127: 586524.6216 | G127: ='CAM-Tabelle'!B133 -> 18248874 | H127: 278.455719
A128: 126 | B128: 1 | C128: 595649.0873 | D128: 9139.050389 | E128: 28704.60007 | F128: 595649.0873 | G128: ='CAM-Tabelle'!B134 -> 18306374 | H128: 279.3330994
A129: 127 | B129: 1 | C129: 604802.2571 | D129: 9167.056201 | E129: 27306.06151 | F129: 604802.2571 | G129: ='CAM-Tabelle'!B135 -> 18360999 | H129: 280.1666107
A130: 128 | B130: 1 | C130: 613982.7326 | D130: 9193.660641 | E130: 25901.90389 | F130: 613982.7326 | G130: ='CAM-Tabelle'!B136 -> 18412749 | H130: 280.9562531
A131: 129 | B131: 1 | C131: 623189.1095 | D131: 9218.858234 | E131: 24492.41618 | F131: =C131 -> 623189.1095 | G131: ='CAM-Tabelle'!B137 -> 18461749 | H131: =G131/65536 -> 281.7039337
A132: 130 | B132: 1 | C132: 632419.9783 | D132: 9242.643795 | E132: 23077.8884 | F132: 632419.9783 | G132: ='CAM-Tabelle'!B138 -> 18507874 | H132: 282.4077454
A133: 131 | B133: 1 | C133: 641673.9247 | D133: 9265.012429 | E133: 21658.61164 | F133: 641673.9247 | G133: ='CAM-Tabelle'!B139 -> 18551124 | H133: 283.067688
A134: 132 | B134: 1 | C134: 650949.5294 | D134: 9285.959534 | E134: 20234.87797 | F134: 650949.5294 | G134: ='CAM-Tabelle'!B140 -> 18591749 | H134: 283.6875763
A135: 133 | B135: 1 | C135: 660245.3685 | D135: 9305.480798 | E135: 18806.98035 | F135: 660245.3685 | G135: ='CAM-Tabelle'!B141 -> 18629249 | H135: 284.2597809
A136: 134 | B136: 1 | C136: 669560.0143 | D136: 9323.572206 | E136: 17375.21263 | F136: 669560.0143 | G136: ='CAM-Tabelle'!B142 -> 18664124 | H136: 284.7919312
A137: 135 | B137: 1 | C137: 678892.0351 | D137: 9340.230033 | E137: 15939.86942 | F137: 678892.0351 | G137: ='CAM-Tabelle'!B143 -> 18695874 | H137: 285.2763977
A138: 136 | B138: 1 | C138: 688239.9954 | D138: 9355.450852 | E138: 14501.2461 | F138: 688239.9954 | G138: ='CAM-Tabelle'!B144 -> 18724874 | H138: 285.7189026
A139: 137 | B139: 1 | C139: 697602.4567 | D139: 9369.231531 | E139: 13059.63871 | F139: 697602.4567 | G139: ='CAM-Tabelle'!B145 -> 18751124 | H139: 286.1194458
A140: 138 | B140: 1 | C140: 706977.9775 | D140: 9381.569235 | E140: 11615.34391 | F140: 706977.9775 | G140: ='CAM-Tabelle'!B146 -> 18774249 | H140: 286.4723053
A141: 139 | B141: 1 | C141: 716365.1133 | D141: 9392.461423 | E141: 10168.65889 | F141: 716365.1133 | G141: ='CAM-Tabelle'!B147 -> 18794624 | H141: 286.7832031
A142: 140 | B142: 1 | C142: 725762.4177 | D142: 9401.905856 | E142: 8719.881357 | F142: 725762.4177 | G142: ='CAM-Tabelle'!B148 -> 18811999 | H142: 287.0483246
A143: 141 | B143: 1 | C143: 735168.4418 | D143: 9409.900588 | E143: 7269.309445 | F143: 735168.4418 | G143: ='CAM-Tabelle'!B149 -> 18826624 | H143: 287.2714844
A144: 142 | B144: 1 | C144: 744581.7351 | D144: 9416.443976 | E144: 5817.241652 | F144: 744581.7351 | G144: ='CAM-Tabelle'!B150 -> 18838249 | H144: 287.4488678
A145: 143 | B145: 1 | C145: 754000.8455 | D145: 9421.534673 | E145: 4363.976785 | F145: 754000.8455 | G145: ='CAM-Tabelle'!B151 -> 18846874 | H145: 287.5804749
A146: 144 | B146: 1 | C146: 763424.3199 | D146: 9425.171631 | E146: 2909.813896 | F146: 763424.3199 | G146: ='CAM-Tabelle'!B152 -> 18852749 | H146: 287.6701202
A147: 145 | B147: 1 | C147: 772850.704 | D147: 9427.354102 | E147: 1455.052225 | F147: 772850.704 | G147: ='CAM-Tabelle'!B153 -> 18855749 | H147: 287.7158966
A148: 146 | B148: 1 | C148: 782278.5431 | D148: 9428.081636 | E148: -0.008867781137 | F148: 782278.5431 | G148: ='CAM-Tabelle'!B154 -> 18855624 | H148: 287.7139893
A149: 147 | B149: 1 | C149: 791706.3822 | D149: 9427.354084 | E149: -1455.069959 | F149: 791706.3822 | G149: ='CAM-Tabelle'!B155 -> 18852749 | H149: 287.6701202
A150: 148 | B150: 1 | C150: 801132.7663 | D150: 9425.171596 | E150: -2909.831625 | F150: 801132.7663 | G150: ='CAM-Tabelle'!B156 -> 18846999 | H150: 287.5823822
A151: 149 | B151: 1 | C151: 810556.2406 | D151: 9421.53462 | E151: -4363.994504 | F151: 810556.2406 | G151: ='CAM-Tabelle'!B157 -> 18838249 | H151: 287.4488678
A152: 150 | B152: 1 | C152: 819975.3509 | D152: 9416.443906 | E152: -5817.259359 | F152: 819975.3509 | G152: ='CAM-Tabelle'!B158 -> 18826499 | H152: 287.269577
A153: 151 | B153: 1 | C153: 829388.6441 | D153: 9409.9005 | E153: -7269.327135 | F153: 829388.6441 | G153: ='CAM-Tabelle'!B159 -> 18812124 | H153: 287.0502319
A154: 152 | B154: 1 | C154: 838794.6681 | D154: 9401.905749 | E154: -8719.899027 | F154: 838794.6681 | G154: ='CAM-Tabelle'!B160 -> 18794624 | H154: 286.7832031
A155: 153 | B155: 1 | C155: 848191.9724 | D155: 9392.461299 | E155: -10168.67653 | F155: 848191.9724 | G155: ='CAM-Tabelle'!B161 -> 18774249 | H155: 286.4723053
A156: 154 | B156: 1 | C156: 857579.1082 | D156: 9381.569093 | E156: -11615.36152 | F156: 857579.1082 | G156: ='CAM-Tabelle'!B162 -> 18750999 | H156: 286.1175385
A157: 155 | B157: 1 | C157: 866954.6288 | D157: 9369.231372 | E157: -13059.6563 | F157: 866954.6288 | G157: ='CAM-Tabelle'!B163 -> 18724874 | H157: 285.7189026
A158: 156 | B158: 1 | C158: 876317.0899 | D158: 9355.450676 | E158: -14501.26366 | F158: 876317.0899 | G158: ='CAM-Tabelle'!B164 -> 18695999 | H158: 285.2783051
A159: 157 | B159: 1 | C159: 885665.0501 | D159: 9340.229839 | E159: -15939.88694 | F159: 885665.0501 | G159: ='CAM-Tabelle'!B165 -> 18663999 | H159: 284.7900238
A160: 158 | B160: 1 | C160: 894997.0706 | D160: 9323.571994 | E160: -17375.2301 | F160: 894997.0706 | G160: ='CAM-Tabelle'!B166 -> 18629249 | H160: 284.2597809
A161: 159 | B161: 1 | C161: 904311.7162 | D161: 9305.480569 | E161: -18806.99778 | F161: 904311.7162 | G161: ='CAM-Tabelle'!B167 -> 18591749 | H161: 283.6875763
A162: 160 | B162: 1 | C162: 913607.5551 | D162: 9285.959287 | E162: -20234.89535 | F162: 913607.5551 | G162: ='CAM-Tabelle'!B168 -> 18551249 | H162: 283.0695953
A163: 161 | B163: 1 | C163: 922883.1595 | D163: 9265.012165 | E163: -21658.62897 | F163: 922883.1595 | G163: ='CAM-Tabelle'!B169 -> 18507874 | H163: 282.4077454
A164: 162 | B164: 1 | C164: 932137.1056 | D164: 9242.643513 | E164: -23077.90567 | F164: 932137.1056 | G164: ='CAM-Tabelle'!B170 -> 18461749 | H164: 281.7039337
A165: 163 | B165: 1 | C165: 941367.9742 | D165: 9218.857935 | E165: -24492.43339 | F165: 941367.9742 | G165: ='CAM-Tabelle'!B171 -> 18412749 | H165: 280.9562531
A166: 164 | B166: 1 | C166: 950574.3508 | D166: 9193.660325 | E166: -25901.92104 | F166: 950574.3508 | G166: ='CAM-Tabelle'!B172 -> 18360874 | H166: 280.1647034
A167: 165 | B167: 1 | C167: 959754.8259 | D167: 9167.055868 | E167: -27306.07859 | F167: 959754.8259 | G167: ='CAM-Tabelle'!B173 -> 18306374 | H167: 279.3330994
A168: 166 | B168: 1 | C168: 968907.9954 | D168: 9139.050039 | E168: -28704.61708 | F168: 968907.9954 | G168: ='CAM-Tabelle'!B174 -> 18248874 | H168: 278.455719
A169: 167 | B169: 1 | C169: 978032.4608 | D169: 9109.648601 | E169: -30097.24872 | F169: 978032.4608 | G169: ='CAM-Tabelle'!B175 -> 18188749 | H169: 277.5382843
A170: 168 | B170: 1 | C170: 987126.8294 | D170: 9078.857604 | E170: -31483.68693 | F170: 987126.8294 | G170: ='CAM-Tabelle'!B176 -> 18125749 | H170: 276.5769806
A171: 169 | B171: 1 | C171: 996189.7149 | D171: 9046.683385 | E171: -32863.64642 | F171: 996189.7149 | G171: ='CAM-Tabelle'!B177 -> 18060124 | H171: 275.5756226
A172: 170 | B172: 1 | C172: 1005219.737 | D172: 9013.132563 | E172: -34236.84321 | F172: 1005219.737 | G172: ='CAM-Tabelle'!B178 -> 17991499 | H172: 274.5284882
A173: 171 | B173: 1 | C173: 1014215.523 | D173: 8978.212044 | E173: -35602.99473 | F173: 1014215.523 | G173: ='CAM-Tabelle'!B179 -> 17920374 | H173: 273.4432068
A174: 172 | B174: 1 | C174: 1023175.707 | D174: 8941.929014 | E174: -36961.81985 | F174: 1023175.707 | G174: ='CAM-Tabelle'!B180 -> 17846499 | H174: 272.3159637
A175: 173 | B175: 1 | C175: 1032098.93 | D175: 8904.290938 | E175: -38313.03895 | F175: 1032098.93 | G175: ='CAM-Tabelle'!B181 -> 17769749 | H175: 271.1448517
A176: 174 | B176: 1 | C176: 1040983.84 | D176: 8865.305561 | E176: -39656.37398 | F176: 1040983.84 | G176: ='CAM-Tabelle'!B182 -> 17690624 | H176: 269.9375
A177: 175 | B177: 1 | C177: 1049829.094 | D177: 8824.980907 | E177: -40991.5485 | F177: 1049829.094 | G177: ='CAM-Tabelle'!B183 -> 17608499 | H177: 268.6843719
A178: 176 | B178: 1 | C178: 1058633.358 | D178: 8783.325273 | E178: -42318.28776 | F178: 1058633.358 | G178: ='CAM-Tabelle'!B184 -> 17523749 | H178: 267.3911896
A179: 177 | B179: 1 | C179: 1067395.304 | D179: 8740.347232 | E179: -43636.31874 | F179: 1067395.304 | G179: ='CAM-Tabelle'!B185 -> 17436749 | H179: 266.0636749
A180: 178 | B180: 1 | C180: 1076113.615 | D180: 8696.055626 | E180: -44945.37023 | F180: 1076113.615 | G180: ='CAM-Tabelle'!B186 -> 17346749 | H180: 264.6903839
A181: 179 | B181: 1 | C181: 1084786.981 | D181: 8650.459571 | E181: -46245.17284 | F181: 1084786.981 | G181: ='CAM-Tabelle'!B187 -> 17254249 | H181: 263.2789459
A182: 180 | B182: 1 | C182: 1093414.102 | D182: 8603.568449 | E182: -47535.45909 | F182: 1093414.102 | G182: ='CAM-Tabelle'!B188 -> 17159249 | H182: 261.829361
A183: 181 | B183: 1 | C183: 1101993.689 | D183: 8555.39191 | E183: -48815.96348 | F183: 1101993.689 | G183: ='CAM-Tabelle'!B189 -> 17061499 | H183: 260.3378143
A184: 182 | B184: 1 | C184: 1110524.461 | D184: 8505.939868 | E184: -50086.42249 | F184: 1110524.461 | G184: ='CAM-Tabelle'!B190 -> 16961249 | H184: 258.8081207
A185: 183 | B185: 1 | C185: 1119005.147 | D185: 8455.222498 | E185: -51346.5747 | F185: 1119005.147 | G185: ='CAM-Tabelle'!B191 -> 16858749 | H185: 257.2440948
A186: 184 | B186: 1 | C186: 1127434.488 | D186: 8403.250237 | E186: -52596.16079 | F186: 1127434.488 | G186: ='CAM-Tabelle'!B192 -> 16753499 | H186: 255.6381073
A187: 185 | B187: 1 | C187: 1135811.233 | D187: 8350.03378 | E187: -53834.92362 | F187: 1135811.233 | G187: ='CAM-Tabelle'!B193 -> 16645749 | H187: 253.9939728
A188: 186 | B188: 1 | C188: 1144134.144 | D188: 8295.584079 | E188: -55062.60827 | F188: 1144134.144 | G188: ='CAM-Tabelle'!B194 -> 16535749 | H188: 252.315506
A189: 187 | B189: 1 | C189: 1152401.994 | D189: 8239.912337 | E189: -56278.96212 | F189: 1152401.994 | G189: ='CAM-Tabelle'!B195 -> 16423249 | H189: 250.5988922
A190: 188 | B190: 1 | C190: 1160613.565 | D190: 8183.030011 | E190: -57483.73486 | F190: 1160613.565 | G190: ='CAM-Tabelle'!B196 -> 16307999 | H190: 248.8403168
A191: 189 | B191: 1 | C191: 1168767.654 | D191: 8124.948807 | E191: -58676.67856 | F191: 1168767.654 | G191: ='CAM-Tabelle'!B197 -> 16190999 | H191: 247.0550385
A192: 190 | B192: 1 | C192: 1176863.067 | D192: 8065.680675 | E192: -59857.54776 | F192: 1176863.067 | G192: ='CAM-Tabelle'!B198 -> 16070999 | H192: 245.2239838
A193: 191 | B193: 1 | C193: 1184898.624 | D193: 8005.237813 | E193: -61026.09944 | F193: 1184898.624 | G193: ='CAM-Tabelle'!B199 -> 15948999 | H193: 243.3624115
A194: 192 | B194: 1 | C194: 1192873.155 | D194: 7943.632658 | E194: -62182.09315 | F194: 1192873.155 | G194: ='CAM-Tabelle'!B200 -> 15824749 | H194: 241.466507
A195: 193 | B195: 1 | C195: 1200785.506 | D195: 7880.877888 | E195: -63325.291 | F195: =C195 -> 1200785.506 | G195: ='CAM-Tabelle'!B201 -> 15697999 | H195: =G195/65536 -> 239.5324554
A196: 194 | B196: 1 | C196: 1208634.532 | D196: 7816.986416 | E196: -64455.45774 | F196: 1208634.532 | G196: ='CAM-Tabelle'!B202 -> 15569249 | H196: 237.5678864
A197: 195 | B197: 1 | C197: 1216419.104 | D197: 7751.971389 | E197: -65572.3608 | F197: 1216419.104 | G197: ='CAM-Tabelle'!B203 -> 15437999 | H197: 235.5651703
A198: 196 | B198: 1 | C198: 1224138.105 | D198: 7685.846188 | E198: -66675.77036 | F198: 1224138.105 | G198: ='CAM-Tabelle'!B204 -> 15304499 | H198: 233.5281219
A199: 197 | B199: 1 | C199: 1231790.431 | D199: 7618.624418 | E199: -67765.45935 | F199: 1231790.431 | G199: ='CAM-Tabelle'!B205 -> 15169249 | H199: 231.4643707
A200: 198 | B200: 1 | C200: 1239374.993 | D200: 7550.319913 | E200: -68841.20354 | F200: 1239374.993 | G200: ='CAM-Tabelle'!B206 -> 15031499 | H200: 229.3624725
... 1850 more rows

Sheet DCINOUT (hidden)
A1: [VerbundProjekt]
A2: VerbundProjektName= | B2: LeeresProjekt
A3: VerbundProjektVerzeichnis=
A4: AnzahlProjekte= | B4: 1
A5: [CamProjekt]
A6: CamProjektName= | B6: =Hardware!B2 &" "& Hardware!B3 -> Kunde GmbH Projekt 1
A7: AnzahlAchsen= | B7: 1
A8: Taktrate=
A9: Zykluszeit= | B9: =T1E -> 700
A10: AnzahlStuetzpunkte= | B10: =zStütz -> 500
A11: KennzifferBewegungsgesetz= | B11: 6
A12: AktualisierungDiagramme= | B12: 0
A13: LaengeZeitachse= | B13: =T1E -> 700
A14: [Achse1]
A15: Compression= | B15: 0
A16: Nmax= | B16: 5400
A17: Mmax= | B17: 14200
A18: GetriebefaktorZähler= | B18: =Hardware!D34 -> 12
A19: GetriebefaktorNenner= | B19: 1
A20: Jred= | B20: 0
A21: m_abtrieb= | B21: 77 | D21: geht nicht
A22: VorschubFolgeachseZaehler= | B22: 345.575191896000; [SlaveUnit] | D22: geht nicht
A23: VorschubFolgeachseNenner= | B23: 1 | D23: geht nicht
A24: Interpolationstoleranz= | B24: 0.00010000000000000000
A25: AchsName= | B25: =Hardware!B4 -> X-Achse
A26: SlaveUnit= | B26: =Parameter!U34 -> mm
A27: FangrasterTakt= | B27: 10.000000
A28: FangrasterWeg= | B28: 1.000000

Sheet Nolte-NC-Kurve (hidden)
A1: Zeit | B1: Weg
A2: 0 | B2: 0
A3: 2 | B3: 0
A4: 4 | B4: 0
A5: 6 | B5: 0
A6: 8 | B6: 0
A7: 10 | B7: 0
A8: 12 | B8: 0
A9: 14 | B9: 0
A10: 16 | B10: 0
A11: 18 | B11: 0
A12: 20 | B12: 0
A13: 22 | B13: 0
A14: 24 | B14: 0
A15: 26 | B15: 0
A16: 28 | B16: 0
A17: 30 | B17: 0
A18: 32 | B18: 0
A19: 34 | B19: 0
A20: 36 | B20: 0
A21: 38 | B21: 0
A22: 40 | B22: 0
A23: 42 | B23: 0
A24: 44 | B24: 0
A25: 46 | B25: 0
A26: 48 | B26: 0
A27: 50 | B27: 0
A28: 52 | B28: 0
A29: 54 | B29: 0
A30: 56 | B30: 0
A31: 58 | B31: 0
A32: 60 | B32: 0
A33: 62 | B33: 0
A34: 64 | B34: 0
A35: 66 | B35: 0
A36: 68 | B36: 0
A37: 70 | B37: 0
A38: 72 | B38: 0
A39: 74 | B39: 0
A40: 76 | B40: 0
A41: 78 | B41: 0
A42: 80 | B42: 0
A43: 82 | B43: 0
A44: 84 | B44: 0
A45: 86 | B45: 0
A46: 88 | B46: 0
A47: 90 | B47: 0
A48: 92 | B48: 0
A49: 94 | B49: 0
A50: 96 | B50: 0
A51: 98 | B51: 0
A52: 100 | B52: 0
A53: 102 | B53: 0
A54: 104 | B54: 0
A55: 106 | B55: 0
A56: 108 | B56: 0
A57: 110 | B57: 0
A58: 112 | B58: 0
A59: 114 | B59: 0
A60: 116 | B60: 0
A61: 118 | B61: 0
A62: 120 | B62: 0
A63: 122 | B63: 0
A64: 124 | B64: 0
A65: 126 | B65: 0
A66: 128 | B66: 0
A67: 130 | B67: 0
A68: 132 | B68: 0
A69: 134 | B69: 0
A70: 136 | B70: 0
A71: 138 | B71: 0
A72: 140 | B72: 0
A73: 142 | B73: 0
A74: 144 | B74: 0
A75: 146 | B75: 0
A76: 148 | B76: 0
A77: 150 | B77: 0
A78: 152 | B78: 0
A79: 154 | B79: 0
A80: 156 | B80: 0
A81: 158 | B81: 0
A82: 160 | B82: 0
A83: 162 | B83: 0
A84: 164 | B84: 0
A85: 166 | B85: 0
A86: 168 | B86: 0
A87: 170 | B87: 0
A88: 172 | B88: 0
A89: 174 | B89: 0
A90: 176 | B90: 0
A91: 178 | B91: 0
A92: 180 | B92: 0
A93: 182 | B93: 0
A94: 184 | B94: 0
A95: 186 | B95: 0
A96: 188 | B96: 0
A97: 190 | B97: 0
A98: 192 | B98: 0
A99: 194 | B99: 0
A100: 196 | B100: 0
A101: 198 | B101: 0
A102: 200 | B102: 0
A103: 202 | B103: 0
A104: 204 | B104: 0
A105: 206 | B105: 0
A106: 208 | B106: 0
A107: 210 | B107: 0
A108: 212 | B108: 0
A109: 214 | B109: 0
A110: 216 | B110: 0
A111: 218 | B111: 0
A112: 220 | B112: 0
A113: 222 | B113: 0
A114: 224 | B114: 0
A115: 226 | B115: 0
A116: 228 | B116: 0
A117: 230 | B117: 0
A118: 232 | B118: 0
A119: 234 | B119: 0
A120: 236 | B120: 0
A121: 238 | B121: 0
A122: 240 | B122: 0
A123: 242 | B123: 0
A124: 244 | B124: 0
A125: 246 | B125: 0
A126: 248 | B126: 0
A127: 250 | B127: 0
A128: 252 | B128: 0
A129: 254 | B129: 0
A130: 256 | B130: 0
A131: 258 | B131: 0
A132: 260 | B132: 0
A133: 262 | B133: 0
A134: 264 | B134: 0
A135: 266 | B135: 0
A136: 268 | B136: 0
A137: 270 | B137: 0
A138: 272 | B138: 0
A139: 274 | B139: 0
A140: 276 | B140: 0
A141: 278 | B141: 0
A142: 280 | B142: 0
A143: 282 | B143: 0
A144: 284 | B144: 0
A145: 286 | B145: 0
A146: 288 | B146: 0
A147: 290 | B147: 0
A148: 292 | B148: 0
A149: 294 | B149: 0
A150: 296 | B150: 0
A151: 298 | B151: 0
A152: 300 | B152: 0
A153: 302 | B153: 0
A154: 304 | B154: 0
A155: 306 | B155: 0
A156: 308 | B156: 0
A157: 310 | B157: 0
A158: 312 | B158: 0
A159: 314 | B159: 0
A160: 316 | B160: 0
A161: 318 | B161: 0
A162: 320 | B162: 0
A163: 322 | B163: 0
A164: 324 | B164: 0
A165: 326 | B165: 0
A166: 328 | B166: 0
A167: 330 | B167: 0
A168: 332 | B168: 0
A169: 334 | B169: 0
A170: 336 | B170: 0
A171: 338 | B171: 0
A172: 340 | B172: 0
A173: 342 | B173: 0
A174: 344 | B174: 0
A175: 346 | B175: 0
A176: 348 | B176: 0
A177: 350 | B177: 0
A178: 352 | B178: 0
A179: 354 | B179: 0
A180: 356 | B180: 0
A181: 358 | B181: 0
A182: 360 | B182: 0
A183: 362 | B183: 0
A184: 364 | B184: 0
A185: 366 | B185: 0
A186: 368 | B186: 0
A187: 370 | B187: 0
A188: 372 | B188: 0
A189: 374 | B189: 0
A190: 376 | B190: 0
A191: 378 | B191: 0
A192: 380 | B192: 0
A193: 382 | B193: 0
A194: 384 | B194: 0
A195: 386 | B195: 0
A196: 388 | B196: 0
A197: 390 | B197: 0
A198: 392 | B198: 0
A199: 394 | B199: 0
A200: 396 | B200: 0
... 305 more rows

Sheet Stromregelkreis (hidden)
D1: Funktion | G1: gewählt | H1: [ ] | I1: umgerechnet | J1: [ ] | K1: ω | L1: [ ] | O1: Index 637 | P1: kp 637 | Q1: 1/TN 637 | R1: Index 631 | S1: kp 631 | T1: 1/TN 631 | U1: Index 635 | V1: kp 635 | W1: 1/TN 635 | AA1: ωx | AB1: ω | AC1: s=jω | AD1: Strecke H(jω) | AE1: Betrag Strecke [dB] | AF1: Phase Strecke [°] | AH1: Regler H(jw) | AI1: Betrag Regler [dB] | AJ1: Phase Regler [°] | AL1: Regler+Strecke H(jw) | AM1: Betrag Regler+Strecke [dB] | AN1: Phase Regler+Strecke [°] | AO1: Anzeigen? | AP1: Geschlossener Kreis | AQ1: Betrag Kreis [dB] | AR1: Phase Kreis [°]
O2: 0 | P2: 0.76 | Q2: =1/40 -> 0.025 | R2: 0 | S2: 0.12 | T2: =1/160 -> 0.00625 | U2: 0 | V2: 0.77 | W2: =1/80 -> 0.0125 | AA2: =$G$33 -> 0 | AB2: =10^AA2 -> 1 | AC2: =COMPLEX(0,AB2,"j") -> j | AD2: =IMPRODUCT(V_S_Strom,IMDIV(1,(IMSUM(1,IMPRODUCT(AC2,T_Anker)))),IMEXP(IMPRODUCT(AC2,T_t_Strom,-1))) -> 14,2862205315884-0,0594057141481672j | AE2: =20*LOG10(IMABS(AD2)) -> 23.09842209 | AF2: =IMARGUMENT(AD2)*180/PI() -> -0.2382489529 | AH2: =IMPRODUCT(P_Anteil_Strom,IMSUM(1,IMDIV(I_Anteil_Strom,AC2))) -> 1,44-167,053364269141j | AI2: =20*LOG10(IMABS(AH2)) -> 44.45742721 | AJ2: =IF(IMARGUMENT(AH2)*180/PI()>0,"",IMARGUMENT(AH2)*180/PI()) -> -89.50612261 | AL2: =IMPRODUCT(AH2,AD2) -> 10,6482331602251-2386,64674672109j | AM2: =20*LOG10(IMABS(AL2)) -> 67.5558493 | AN2: =AF2+AJ2 -> -89.74437157 | AO2: 1 | AP2: =IMDIV(AL2,IMSUM(1,AL2)) -> 0,999997955093644-0,000418987930169305j | AQ2: =20*LOG10(IMABS(AP2)) -> -1.699943823e-05 | AR2: =IMARGUMENT(AP2)*180/PI() -> -0.02400628775
O3: 1 | P3: 0.867 | Q3: =1/34.8 -> 0.02873563218 | R3: 4 | S3: 0.15 | T3: =1/130.32 -> 0.007673419276 | U3: 1 | V3: 0.87 | W3: =1/69.9 -> 0.01430615165 | AA3: =AA2+$G$35 -> 0.1 | AB3: 1.258925412 | AC3: 1,25892541179417j | AD3: 14,2860814464936-0,074786662748919j | AE3: 23.09838145 | AF3: -0.2999367611 | AH3: 1,44-132,695203944659j | AI3: 42.45761594 | AJ3: =IF(AJ2="","",IF(IMARGUMENT(AH3)*180/PI()>0,"",IMARGUMENT(AH3)*180/PI())) -> -89.37825421 | AL3: 10,6481258171425-1895,80218390684j | AM3: 65.55599739 | AN3: =AF3+AJ3 -> -89.67819097 | AO3: 1 | AP3: 0,999996759189629-0,000527461282153577j | AQ3: -2.694108502e-05 | AR3: -0.03022140046
O4: 2 | P4: 0.982 | Q4: =1/30.28 -> 0.03302509908 | R4: 8 | S4: 0.18 | T4: =1/106.15 -> 0.009420631182 | U4: 2 | V4: 0.99 | W4: =1/60.55 -> 0.01651527663 | AA4: 0.2 | AB4: 1.584893192 | AC4: 1,58489319246111j | AD4: 14,285861016806-0,0941494327539846j | AE4: 23.09831704 | AF4: -0.3775962147 | AH4: 1,44-105,40354710574j | AI4: 40.45791504 | AJ4: -89.2172864 | AL4: 10,6479556939373-1505,91599981413j | AM4: 63.55623207 | AN4: -89.59488261 | AO4: 1 | AP4: 0,999994864032899-0,000664007937100198j | AQ4: -4.269570596e-05 | AR4: -0.03804504217
B5: kp | D5: Reglertyp: | G5: =Hardware!B68 -> 638A/06-3-F… | I5: =LEFT(G5,3) -> 638 | O5: 3 | P5: 1.12 | Q5: =1/26.34 -> 0.03796507213 | R5: 12 | S5: 0.22 | T5: =1/86.46 -> 0.0115660421 | U5: 3 | V5: 1.12 | W5: =1/52.68 -> 0.01898253607 | AA5: 0.3 | AB5: 1.995262315 | AC5: 1,99526231496888j | AD5: 14,2855116726878-0,11852432523972j | AE5: 23.09821495 | AF5: -0.4753618872 | AH5: 1,44-83,72501350618j | AI5: 38.45838903 | AJ5: -89.01465781 | AL5: 10,647686077164-1196,22533276682j | AM5: 61.55660398 | AN5: -89.49001969 | AO5: 1 | AP5: 0,999991860972926-0,000835883651498109j | AQ5: -6.766050832e-05 | AR5: -0.04789298404
B6: 1.44 | D6: Reglernennstrom | G6: =INennR -> 6 | H6: [A] | I6: =G6 -> 6 | J6: [A] | O6: 4 | P6: 1.27 | Q6: =1/22.92 -> 0.04363001745 | R6: 16 | S6: 0.27 | T6: =1/70.42 -> 0.01420051122 | U6: 4 | V6: 1.27 | W6: =1/45.83 -> 0.02181976871 | AA6: 0.4 | AB6: 2.511886432 | AC6: 2,51188643150958j | AD6: 14,2849580332129-0,149207722186908j | AE6: 23.09805317 | AF6: -0.5984380112 | AH6: 1,44-66,5051421806306j | AI6: 36.45914015 | AJ6: -88.75959919 | AL6: 10,6472587893382-950,238024163114j | AM6: 59.55719331 | AN6: -89.3580372 | AO6: 1 | AP6: 0,999987102852336-0,0010522098233904j | AQ6: -0.0001072155304 | AR6: -0.06028793734
D7: Abtastzeit Tt | G7: =IF(I5="637",106,211) -> 211 | H7: [µs] | I7: =G7/1000000 -> 0.000211 | J7: [s] | K7: =1/I7 -> 4739.336493 | L7: [1/s] | O7: 5 | P7: 1.44 | Q7: =1/19.94 -> 0.05015045135 | R7: 20 | S7: 0.33 | T7: =1/57.36 -> 0.01743375174 | U7: 5 | V7: 1.44 | W7: =1/39.87 -> 0.02508151492 | AA7: 0.5 | AB7: 3.16227766 | AC7: 3,16227766016838j | AD7: 14,2840806582672-0,187830294974137j | AE7: 23.09779676 | AF7: -0.7533745573 | AH7: 1,44-52,8269121884277j | AI7: 34.46033033 | AJ7: -88.43857055 | AL7: 10,6465816489796-754,854350251463j | AM7: 57.55812709 | AN7: -89.19194511 | AO7: 1 | AP7: 0,999979565275869-0,00132444358965923j | AQ7: -0.0001698770872 | AR7: -0.07588653424
D8: Totzeit Stromregler | G8: =G7/2*1.5 -> 158.25 | H8: [µs] | I8: =G8/1000000 -> 0.00015825 | J8: [s] | K8: =1/T_t_Strom -> 6319.115324 | L8: [1/s] | O8: 6 | P8: 1.64 | Q8: =1/17.35 -> 0.05763688761 | R8: 24 | S8: 0.41 | T8: =1/46.72 -> 0.02140410959 | U8: 6 | V8: 1.68 | W8: =1/34.69 -> 0.02882675123 | AA8: 0.6 | AB8: 3.981071706 | AC8: 3,98107170553497j | AD8: 14,2826903248755-0,236442191160302j | AE8: 23.09739042 | AF8: -0.9484139204 | AH8: 1,44-41,9619079045685j | AI8: 32.46221597 | AJ8: -88.0345613 | AL8: 10,6455086175977-599,669412797168j | AM8: 55.55960639 | AN8: -88.98297522 | AO8: 1 | AP8: 0,999967627897201-0,00166695680831065j | AQ8: -0.0002691163628 | AR8: -0.09551259322
D9: UCC | G9: =Hardware!J71 -> 325 | H9: [V] | I9: =G9 -> 325 | J9: [V] | O9: 7 | P9: 1.86 | Q9: =1/15.09 -> 0.06626905235 | R9: 28 | S9: 0.5 | T9: =1/38.05 -> 0.02628120894 | U9: 7 | V9: 1.86 | W9: =1/30.18 -> 0.03313452618 | AA9: 0.7 | AB9: 5.011872336 | AC9: 5,01187233627272j | AD9: 14,2804873277768-0,297618917872725j | AE9: 23.09674649 | AF9: -1.193925619 | AH9: 1,44-33,3315282314987j | AI9: 30.46520283 | AJ9: -87.52622657 | AL9: 10,6438083886958-476,419037767089j | AM9: 53.56194932 | AN9: -88.72015219 | AO9: 1 | AP9: 0,999948730687168-0,00209773949132937j | AQ9: -0.000426217915 | AR9: -0.1201976055
D10: interner Faktor | G10: 0.211 | H10: [1] | I10: =G10 -> 0.211 | J10: [1] | O10: 8 | P10: 2.11 | Q10: =1/13.13 -> 0.0761614623 | R10: 32 | S10: 0.61 | T10: =1/30.99 -> 0.0322684737 | U10: 8 | V10: 2.11 | W10: =1/26.26 -> 0.03808073115 | AA10: 0.8 | AB10: 6.309573445 | AC10: 6,30957344480193j | AD10: 14,2769971504404-0,374591931744951j | AE10: 23.09572613 | AF10: -1.502950065 | AH10: 1,44-26,4761739807889j | AI10: 28.46993248 | AJ10: -86.88683445 | AL10: 10,6411147399551-378,53967286j | AM10: 51.5656586 | AN10: -88.38978452 | AO10: 1 | AP10: 0,999918836412592-0,00263923503134576j | AQ10: -0.0006747507185 | AR10: -0.1512289516
D11: Verstärkung der Stecke | I11: =F_Strom/I_NR*UCC/R_ph_ph -> 14.28645833 | J11: [1] | O11: 9 | P11: 2.4 | Q11: =1/11.42 -> 0.08756567426 | R11: 36 | S11: 0.75 | T11: =1/25.24 -> 0.03961965135 | U11: 9 | V11: 2.4 | W11: =1/22.85 -> 0.04376367615 | AA11: 0.9 | AB11: 7.943282347 | AC11: 7,94328234724281j | AD11: 14,2714689499236-0,471407651951133j | AE11: 23.09410945 | AF11: -1.891876175 | AH11: 1,44-21,030772540413j | AI11: 26.47741793 | AJ11: -86.083009 | AL11: 10,6368481858955-300,81884432222j | AM11: 49.57152738 | AN11: -87.97488518 | AO11: 1 | AP11: 0,999871596790356-0,0033192926912293j | AQ11: -0.001067506411 | AR11: -0.1902051865
O12: 10 | P12: 2.73 | Q12: =1/9.94 -> 0.1006036217 | R12: 40 | S12: 0.92 | T12: =1/20.56 -> 0.0486381323 | U12: 10 | V12: 2.73 | W12: =1/19.88 -> 0.05030181087 | AA12: 1 | AB12: 10 | AC12: 10j | AD12: 14,2627157668416-0,593116941549806j | AE12: 23.09154842 | AF12: -2.381280614 | AH12: 1,44-16,7053364269141j | AI12: 24.48925522 | AJ12: -85.07328228 | AL12: 10,63009265516-239,117553642373j | AM12: 47.58080364 | AN12: -87.45456289 | AO12: 1 | AP12: 0,999797075680544-0,00417217371190917j | AQ12: -0.001687129285 | AR12: -0.2390950757
D13: Motortyp: | G13: =Hardware!B52 -> AC M2n0290-4/1-3 | O13: 11 | P13: 3.1 | Q13: =1/8.65 -> 0.1156069364 | R13: 44 | S13: 1.13 | T13: =1/16.75 -> 0.05970149254 | U13: 11 | V13: 3.1 | W13: =1/17.3 -> 0.05780346821 | AA13: 1.1 | AB13: 12.58925412 | AC13: 12,5892541179417j | AD13: 14,2488640273267-0,745992450659435j | AE13: 23.08749255 | AF13: -2.996956874 | AH13: 1,44-13,2695203944659j | AI13: 22.50795021 | AJ13: -83.80653455 | AL13: 10,6194021612075-190,149820937533j | AM13: 45.59544276 | AN13: -86.80349142 | AO13: 1 | AP13: 0,999679835407361-0,00523944684211741j | AQ13: -0.002662063182 | AR13: -0.3002915851
D14: R ph-ph | G14: ='M Max'!G2 -> 0.8 | H14: [Ω] | I14: =G14 -> 0.8 | J14: [Ω] | O14: 12 | P14: 3.52 | Q14: =1/7.52 -> 0.1329787234 | R14: 48 | S14: 1.39 | T14: =1/13.64 -> 0.07331378299 | U14: 12 | V14: 3.52 | W14: =1/15.05 -> 0.06644518272 | AA14: 1.2 | AB14: 15.84893192 | AC14: 15,8489319246111j | AD14: 14,2269633936032-0,937760432666055j | AE14: 23.08107218 | AF14: -3.771156404 | AH14: 1,44-10,540354710574j | AI14: 20.5374159 | AJ14: -82.22053819 | AL14: 10,602499692947-151,307615645968j | AM14: 43.61848809 | AN14: -85.9916946 | AO14: 1 | AP14: 0,999496170267881-0,0065704182267595j | AQ14: -0.004189640595 | AR14: -0.3766415747
D15: L ph-ph | G15: ='M Max'!D2 -> 3.2 | H15: [mH] | I15: =G15/1000 -> 0.0032 | J15: [H] | O15: 13 | P15: 4.01 | Q15: =1/6.54 -> 0.1529051988 | R15: 52 | S15: 1.71 | T15: =1/11.11 -> 0.0900090009 | U15: 13 | V15: 4 | W15: =1/13.09 -> 0.07639419404 | AA15: 1.3 | AB15: 19.95262315 | AC15: 19,9526231496888j | AD15: 14,1923854621579-1,17781072945488j | AE15: 23.07091599 | AF15: -4.744043746 | AH15: 1,44-8,372501350618j | AI15: 18.5837102 | AJ15: -80.24108555 | AL15: 10,575813142374-120,521813900823j | AM15: 41.65462619 | AN15: -84.98512929 | AO15: 1 | AP15: 0,999210354544496-0,00822140971570289j | AQ15: -0.00656748202 | AR15: -0.4714136986
D16: Zeitkonstante Anker | G16: =G15/G14 -> 4 | H16: [ms] | I16: =L_ph_ph/R_ph_ph -> 0.004 | J16: [s] | K16: =1/T_Anker -> 250 | L16: [1/s] | O16: 14 | P16: 4.55 | Q16: =1/5.69 -> 0.1757469244 | R16: 56 | S16: 2.1 | T16: =1/9.05 -> 0.1104972376 | U16: 14 | V16: 4.55 | W16: =1/11.39 -> 0.08779631255 | AA16: 1.4 | AB16: 25.11886432 | AC16: 25,1188643150958j | AD16: 14,1379128045864-1,47730263722433j | AE16: 23.054868 | AF16: -5.965318018 | AH16: 1,44-6,65051421806306j | AI16: 16.65608561 | AJ16: -77.78265182 | AL16: 10,533772245362-96,1517059182407j | AM16: 39.71095361 | AN16: -83.74796984 | AO16: 1 | AP16: 0,998770147923403-0,0102527059383772j | AQ16: -0.01023131121 | AR16: -0.5881394706
O17: 15 | P17: 5.17 | Q17: =1/4.95 -> 0.202020202 | R17: 60 | S17: 2.57 | T17: =1/7.37 -> 0.1356852103 | U17: 15 | V17: 5.17 | W17: =1/9.91 -> 0.1009081736 | AA17: 1.5 | AB17: 31.6227766 | AC17: 31,6227766016838j | AD17: 14,052397790347-1,84899683202318j | AE17: 23.0295545 | AF17: -7.495846108 | AH17: 1,44-5,28269121884277j | AI17: 14.76837807 | AJ17: -74.75229103 | AL17: 10,4677734899027-76,897033848865j | AM17: 37.79793257 | AN17: -82.24813713 | AO17: 1 | AP17: 0,998102826862483-0,0127214744083691j | AQ17: -0.01578882613 | AR17: -0.7302327049
D18: Reglereinstellung: | O18: 16 | P18: 5.88 | Q18: =1/4.31 -> 0.2320185615 | R18: 64 | S18: 3.16 | T18: =1/6 -> 0.1666666667 | U18: 16 | V18: 5.88 | W18: =1/8.62 -> 0.1160092807 | AA18: 1.6 | AB18: 39.81071706 | AC18: 39,8107170553498j | AD18: 13,9188831115545-2,30648761803523j | AE18: 22.9897351 | AF18: -9.408940341 | AH18: 1,44-4,19619079045683j | AI18: 12.9406078 | AJ18: -71.05940022 | AL18: 10,3647295795363-61,7276312961208j | AM18: 35.9303429 | AN18: -80.46834056 | AO18: 1 | AP18: 0,997115153684727-0,015669068801757j | AQ18: -0.02402134482 | AR18: -0.9002948351
B19: 1 / TN | D19: P-Anteil | G19: =B6 -> 1.44 | H19: [1] | I19: =G19 -> 1.44 | J19: [1] | O19: 17 | P19: 6.68 | Q19: =1/3.75 -> 0.2666666667 | R19: 68 | S19: 3.88 | T19: =1/4.89 -> 0.2044989775 | U19: 17 | V19: 6.68 | W19: =1/7.5 -> 0.1333333333 | AA19: 1.7 | AB19: 50.11872336 | AC19: 50,1187233627273j | AD19: 13,7121976806495-2,86226019618627j | AE19: 22.92736407 | AF19: -11.79052229 | AH19: 1,44-3,33315282314987j | AI19: 11.20030979 | AJ19: -66.63452589 | AL19: 10,2052140066275-49,8265050933542j | AM19: 34.12767386 | AN19: -78.42504818 | AO19: 1 | AP19: 0,995703913349869-0,0191035158478579j | AQ19: -0.03579737463 | AR19: -1.099138555
B20: ="1 / "&1/B22&" ms" -> 1 / 8,62 ms | D20: 1 / Nachstellzeit Stromregler | G20: =B22 -> 0.1160092807 | H20: [1/ms] | I20: =G20*1000 -> 116.0092807 | J20: [1/s] | K20: =I_Anteil_Strom -> 116.0092807 | L20: [1/s] | O20: 18 | P20: 7.59 | Q20: =1/3.26 -> 0.3067484663 | R20: 72 | S20: 4.76 | T20: =1/3.98 -> 0.2512562814 | U20: 18 | V20: 7.569 | W20: =1/6.53 -> 0.1531393568 | AA20: 1.8 | AB20: 63.09573445 | AC20: 63,0957344480194j | AD20: 13,3964302421855-3,52367690763018j | AE20: 22.83031163 | AF20: -14.73676484 | AH20: 1,44-2,64761739807889j | AI20: 9.582521633 | AJ20: -61.45888367 | AL20: 9,96151126289663-40,542716528348j | AM20: 32.41283327 | AN20: -76.19564851 | AO20: 1 | AP20: 0,993785521360583-0,0229851377065319j | AQ20: -0.05182408303 | AR20: -1.324950502
D21: Nachstellzeit Stromregler | G21: =1/G20 -> 8.62 | H21: [ms] | I21: =G21/1000 -> 0.00862 | J21: [s] | K21: =1/I21 -> 116.0092807 | L21: [1/s] | O21: 19 | P21: 8.63 | Q21: =1/2.84 -> 0.3521126761 | R21: 76 | S21: 5.85 | T21: =1/3.24 -> 0.3086419753 | U21: 19 | V21: 8.62 | W21: =1/5.68 -> 0.176056338 | AA21: 1.9 | AB21: 79.43282347 | AC21: 79,4328234724283j | AD21: 12,9235937734336-4,28580971363157j | AE21: 22.6808031 | AF21: -18.34690304 | AH21: 1,44-2,1030772540413j | AI21: 8.126817115 | AJ21: -55.60013075 | AL21: 9,59658610985657-33,3508820930074j | AM21: 30.80762021 | AN21: -73.9470338 | AO21: 1 | AP21: 0,991346680882331-0,0272347926600725j | AQ21: -0.07221230724 | AR21: -1.573663692
B22: 0.1160092807 | O22: 20 | P22: 9.8 | Q22: =1/2.47 -> 0.4048582996 | R22: 80 | S22: 7.18 | T22: =1/2.64 -> 0.3787878788 | U22: 20 | V22: 9.8 | W22: =1/4.94 -> 0.2024291498 | AA22: 2 | AB22: 100 | AC22: 100j | AD22: 12,2364137763513-5,12063927742403j | AE22: 22.45391169 | AF22: -22.7081152 | AH22: 1,44-1,67053364269141j | AI22: 6.870188028 | AJ22: -49.23866169 | AL22: 9,066235652922-27,8150614387781j | AM22: 29.32409971 | AN22: -71.94677689 | AO22: 1 | AP22: 0,988495819337708-0,0317883966715562j | AQ22: -0.09601428493 | AR22: -1.84190309
D23: errechnete Standardwerte: | O23: 21 | P23: 11.14 | Q23: =1/2.15 -> 0.4651162791 | R23: 84 | S23: 8.81 | T23: =1/2.15 -> 0.4651162791 | U23: 21 | V23: 11.14 | W23: =1/4.3 -> 0.2325581395 | AA23: 2.1 | AB23: 125.8925412 | AC23: 125,892541179417j | AD23: 11,2799125654407-5,96483049053461j | AE23: 22.11696095 | AF23: -27.86993653 | AH23: 1,44-1,32695203944659j | AI23: 5.836976102 | AJ23: -42.66039652 | AL23: 8,3280301098665-23,5572588898606j | AM23: 27.95393705 | AN23: -70.53033305 | AO23: 1 | AP23: 0,985469375617982-0,0366960308196746j | AQ23: -0.1211195795 | AR23: -2.132543903
D24: P-Anteil | G24: =T_Anker/(2*V_S_Strom*T_t_Strom) -> 0.8846300709 | H24: [1] | I24: =G24 -> 0.8846300709 | J24: [1] | O24: 22 | P24: 12.66 | Q24: =1/1.87 -> 0.5347593583 | R24: 88 | S24: 10.82 | T24: =1/1.75 -> 0.5714285714 | U24: 22 | V24: 12.66 | W24: =1/3.74 -> 0.2673796791 | AA24: 2.2 | AB24: 158.4893192 | AC24: 158,489319246112j | AD24: 10,0255456472105-6,71404778270867j | AE24: 21.63131555 | AF24: -33.809983 | AH24: 1,44-1,0540354710574j | AI24: 5.030536326 | AJ24: -36.20297409 | AL24: 7,35994121463389-20,2355095359655j | AM24: 26.66185188 | AN24: -70.01295709 | AO24: 1 | AP24: 0,98256036511923-0,0422132032837553j | AQ24: -0.144806473 | AR24: -2.460054399
D25: 1 / Nachstellzeit Stromregler | G25: =1/G16 -> 0.25 | H25: [1/ms] | I25: =G25*1000 -> 250 | J25: [1/s] | K25: =I25 -> 250 | L25: [1/s] | O25: 23 | P25: 14.39 | Q25: =1/1.63 -> 0.6134969325 | R25: 92 | S25: 13.29 | T25: =1/1.43 -> 0.6993006993 | U25: 23 | V25: 14.39 | W25: =1/3.25 -> 0.3076923077 | AA25: 2.3 | AB25: 199.5262315 | AC25: 199,526231496888j | AD25: 8,50312661214202-7,23740757875656j | AE25: 20.95808047 | AF25: -40.4026556 | AH25: 1,44-0,8372501350618j | AI25: 4.431984706 | AJ25: -30.17473426 | AL25: 6,18498184867328-17,5411108178729j | AM25: 25.39006517 | AN25: -70.57738986 | AO25: 1 | AP25: 0,98000364251657-0,0488182614734667j | AQ25: -0.1646826587 | AR25: -2.851795685
D26: Nachstellzeit Stromregler | G26: =1/G25 -> 4 | H26: [ms] | I26: =G26/1000 -> 0.004 | J26: [s] | K26: =1/I26 -> 250 | L26: [1/s] | O26: 24 | P26: 16.35 | Q26: =1/1.41 -> 0.7092198582 | R26: 96 | S26: 16.31 | T26: =1/1.16 -> 0.8620689655 | U26: 24 | V26: 16.35 | W26: =1/2.83 -> 0.3533568905 | AA26: 2.4 | AB26: 251.1886432 | AC26: 251,188643150959j | AD26: 6,81986116726034-7,42003247824381j | AE26: 20.06754285 | AF26: -47.41342695 | AH26: 1,44-0,665051421806304j | AI26: 4.006922347 | AJ26: -24.78944157 | AL26: 4,88589693134989-15,2204051344792j | AM26: 24.0744652 | AN26: -72.20286852 | AO26: 1 | AP26: 0,977897870307742-0,0571541384727936j | AQ26: -0.1793200991 | AR26: -3.344899237
O27: 25 | P27: 18.58 | Q27: =1/1.23 -> 0.8130081301 | R27: 100 | S27: 20.03 | T27: =1/0.95 -> 1.052631579 | U27: 25 | V27: 18.58 | W27: =1/2.46 -> 0.406504065 | AA27: 2.5 | AB27: 316.227766 | AC27: 316,227766016839j | AD27: 5,14023762594601-7,2165829410455j | AE27: 18.9487581 | AF27: -54.53843711 | AH27: 1,44-0,528269121884275j | AI27: 3.715606944 | AJ27: -20.14574186 | AL27: 3,58964424809111-13,1073082520405j | AM27: 22.66436504 | AN27: -74.68417897 | AO27: 1 | AP27: 0,976202982446616-0,0679605711665255j | AQ27: -0.188199887 | AR27: -3.982349572
O28: 26 | P28: 21.11 | Q28: =1/1.07 -> 0.9345794393 | R28: 104 | S28: 24.59 | T28: =1/0.77 -> 1.298701299 | U28: 26 | V28: 21.11 | W28: =1/2.14 -> 0.4672897196 | AA28: 2.6 | AB28: 398.1071706 | AC28: 398,107170553498j | AD28: 3,62737916451676-6,67580079000386j | AE28: 17.61357891 | AF28: -61.48200615 | AH28: 1,44-0,419619079045683j | AI28: 3.521207805 | AJ28: -16.24623561 | AL28: 2,42213261751027-11,1352706419696j | AM28: 21.13478672 | AN28: -77.72824176 | AO28: 1 | AP28: 0,974782605899269-0,0820548294242144j | AQ28: -0.1911795842 | AR28: -4.811675832
D29: Bodediagramm: | O29: 27 | P29: 23.99 | Q29: =1/0.93 -> 1.075268817 | R29: 108 | S29: 30.19 | T29: =1/0.63 -> 1.587301587 | U29: 27 | V29: 23.99 | W29: =1/1.86 -> 0.5376344086 | AA29: 2.7 | AB29: 501.1872336 | AC29: 501,187233627274j | AD29: 2,38539610314772-5,9140328539021j | AE29: 16.09230379 | AF29: -68.03355768 | AH29: 1,44-0,333315282314985j | AI29: 3.393916253 | AJ29: -13.03267462 | AL29: 1,46373285821424-9,31129628517277j | AM29: 19.48622005 | AN29: -81.0662323 | AO29: 1 | AP29: 0,973442631606462-0,100369455577237j | AQ29: -0.1878657291 | AR29: -5.886834938
B30: HILFE | D30: untere Grenze von ω | G30: 1 | O30: 28 | P30: 27.26 | Q30: =1/0.81 -> 1.234567901 | R30: 112 | S30: 37.06 | T30: =1/0.51 -> 1.960784314 | U30: 28 | V30: 27.26 | W30: =1/1.62 -> 0.6172839506 | AA30: 2.8 | AB30: 630.9573445 | AC30: 630,957344480195j | AD30: 1,44117739141633-5,06140528892618j | AE30: 14.42398481 | AF30: -74.10630169 | AH30: 1,44-0,264761739807889j | AI30: 3.311637606 | AJ30: -10.41817814 | AL30: 0,735228973470569-7,66999224957688j | AM30: 17.73562241 | AN30: -84.52447983 | AO30: 1 | AP30: 0,971939932634675-0,124030028604349j | AQ30: -0.1770584014 | AR30: -7.272254965
D31: obere Grenze von ω | G31: 100000 | O31: 29 | P31: 30.98 | Q31: =1/0.76 -> 1.315789474 | R31: 116 | S31: 45.5 | T31: =1/0.42 -> 2.380952381 | U31: 29 | V31: 30.98 | W31: =1/1.41 -> 0.7092198582 | AA31: 2.9 | AB31: 794.3282347 | AC31: 794,328234724284j | AD31: 0,76453842124592-4,22029488658264j | AE31: 12.64709423 | AF31: -79.73179613 | AH31: 1,44-0,210307725404129j | AI31: 3.258909605 | AJ31: -8.309133634 | AL31: 0,213374708462253-6,23801297303529j | AM31: 15.90600383 | AN31: -88.04092976 | AO31: 1 | AP31: 0,969954879692366-0,154463290645766j | AQ31: -0.1562060743 | AR31: -9.048256212
D32: feste Anzahl der Intervalle von ω | G32: 50 | O32: 30 | P32: 35.2 | Q32: =1/0.61 -> 1.639344262 | R32: 120 | S32: 55.87 | T32: =1/0.34 -> 2.941176471 | U32: 30 | V32: 35.2 | W32: =1/1.23 -> 0.8130081301 | AA32: 3 | AB32: 1000 | AC32: 1000j | AD32: 0,300136064236108-3,45195173727536j | AE32: 10.79400236 | AF32: -85.03081364 | AH32: 1,44-0,167053364269141j | AI32: 3.225308051 | AJ32: -6.617262585 | AL32: -0,144464218506559-5,02094924094566j | AM32: 14.01931042 | AN32: -91.64807622 | AO32: 1 | AP32: 0,967021047800963-0,193546136342644j | AQ32: -0.1207028324 | AR32: -11.31801795
D33: untere Grenze für Exponent von ω | G33: =LOG10(G30) -> 0 | O33: 31 | P33: 40 | Q33: =1/0.53 -> 1.886792453 | R33: 124 | S33: 68.59 | T33: =1/0.28 -> 3.571428571 | U33: 31 | V33: 40 | W33: =1/1.07 -> 0.9345794393 | AA33: 3.1 | AB33: 1258.925412 | AC33: 1258,92541179417j | AD33: -0,00888558989868793-2,78268303290884j | AE33: 8.889319081 | AF33: -90.18295475 | AH33: 1,44-0,132695203944659j | AI33: 3.203972352 | AJ33: -5.264905652 | AL33: -0,382043942019291-4,00588449222495j | AM33: 12.09329143 | AN33: -95.4478604 | AO33: 1 | AP33: 0,962386219448644-0,243830379617916j | AQ33: -0.06281464305 | AR33: -14.21730079
D34: obere Grenze für Exponent von ω | G34: =LOG10(G31) -> 5 | O34: 31 | P34: 40 | Q34: =1/0.53 -> 1.886792453 | R34: 127 | S34: 80 | T34: =1/0.24 -> 4.166666667 | U34: 31 | V34: 40 | W34: =1/1.07 -> 0.9345794393 | AA34: 3.2 | AB34: =10^AA34 -> 1584.893192 | AC34: =COMPLEX(0,AB34,"j") -> 1584,89319246112j | AD34: =IMPRODUCT(V_S_Strom,IMDIV(1,(IMSUM(1,IMPRODUCT(AC34,T_Anker)))),IMEXP(IMPRODUCT(AC34,T_t_Strom,-1))) -> -0,209733028305596-2,21611065691978j | AE34: =20*LOG10(IMABS(AD34)) -> 6.950554374 | AF34: =IMARGUMENT(AD34)*180/PI() -> -95.40637791 | AH34: =IMPRODUCT(P_Anteil_Strom,IMSUM(1,IMDIV(I_Anteil_Strom,AC34))) -> 1,44-0,10540354710574j | AI34: =20*LOG10(IMABS(AH34)) -> 3.190456304 | AJ34: -4.18640791 | AL34: =IMPRODUCT(AH34,AD34) -> -0,535601484778235-3,16909274083584j | AM34: =20*LOG10(IMABS(AL34)) -> 10.14101068 | AN34: -99.59278582 | AO34: 1 | AP34: =IMDIV(AL34,IMSUM(1,AL34)) -> 0,954731757504411-0,308914120051958j | AQ34: =20*LOG10(IMABS(AP34)) -> 0.03003878924 | AR34: =IMARGUMENT(AP34)*180/PI() -> -17.9295667
D35: Schrittweite Exponent von ω | G35: =ABS((G34-G33)/G32) -> 0.1 | AA35: =AA34+$G$35 -> 3.3 | AB35: 1995.262315 | AC35: 1995,26231496889j | AD35: -0,337367264916243-1,74382528512593j | AE35: 4.989640262 | AF35: -100.9493974 | AH35: 1,44-0,0837250135061796j | AI35: 3.18190656 | AJ35: =IF(AJ34="","",IF(IMARGUMENT(AH35)*180/PI()>0,"",IMARGUMENT(AH35)*180/PI())) -> -3.327566163 | AL35: -0,631810657028976-2,48286233176968j | AM35: 8.171546822 | AN35: -104.2769635 | AO35: 1 | AP35: 0,941558812543811-0,394094575872291j | AQ35: 0.1780249996 | AR35: -22.71201379
AA36: 3.4 | AB36: 2511.886432 | AC36: 2511,88643150959j | AD36: -0,415839563435114-1,35240719447757j | AE36: 3.014484023 | AF36: -107.0916702 | AH36: 1,44-0,0665051421806304j | AI36: 3.176503363 | AJ36: -2.644276541 | AL36: -0,688751004101402-1,91981089075712j | AM36: 6.190987386 | AN36: -109.7359467 | AO36: 1 | AP36: 0,917714501362136-0,507544115862202j | AQ36: 0.4131408478 | AR36: -28.94488855
D37: Nulldurchgang Betrag Regler+Strecke | G37: =MATCH(-0.5,AM2:AM51,-1)+1 -> 39 | H37: [Zeile] | AA37: 3.5 | AB37: 3162.27766 | AC37: 3162,2776601684j | AD37: -0,460690200569695-1,0273676865588j | AE37: 1.030232818 | AF37: -114.1523245 | AH37: 1,44-0,0528269121884274j | AI37: 3.173090714 | AJ37: -2.100973881 | AL37: -0,71766655138343-1,45507262787311j | AM37: 4.203323532 | AN37: -116.2532984 | AO37: 1 | AP37: 0,871488364455516-0,662315301854068j | AQ37: 0.7851247105 | AR37: -37.23417323
D38: ω der Zeile | G38: =INDEX(AA1:AR51,G37,2) -> 5011.872336 | H38: [1/s] | AA38: 3.6 | AB38: 3981.071706 | AC38: 3981,07170553499j | AD38: -0,481133798908442-0,755132494623819j | AE38: -0.9598008992 | AF38: -122.5033106 | AH38: 1,44-0,0419619079045682j | AI38: 3.170936098 | AJ38: -1.669138922 | AL38: -0,724519470623308-1,06720150009873j | AM38: 2.211135198 | AN38: -124.1724496 | AO38: 1 | AP38: 0,77323132420376-0,878493560081078j | AQ38: 1.36605675 | AR38: -48.64645286
D39: Phase Regler+Strecke | G39: =INDEX(AA1:AR51,G37,14) -> -133.9132794 | H39: [°] | AA39: 3.7 | AB39: 5011.872336 | AC39: 5011,87233627275j | AD39: -0,481647509890948-0,524020866187085j | AE39: -2.953500811 | AF39: -132.5872968 | AH39: 1,44-0,0333315282314985j | AI39: 3.169576076 | AJ39: -1.325982592 | AL39: -0,711038830538174-0,738535999735841j | AM39: 0.2160752648 | AN39: -133.9132794 | AO39: 1 | AP39: 0,540554051006678-1,17426633445707j | AQ39: 2.230024668 | AR39: -65.28180402
D40: Punkt auf Nulldurchgang | G40: -90 | H40: [°] | AA40: 3.8 | AB40: 6309.573445 | AC40: 6309,57344480197j | AD40: -0,462989384640466-0,32490863822285j | AE40: -4.949521017 | AF40: -144.9402574 | AH40: 1,44-0,0264761739807888j | AI40: 3.168717742 | AJ40: -1.053334807 | AL40: -0,67530705151572-0,455610251541905j | AM40: -1.780803276 | AN40: -145.9935922 | AO40: 1 | AP40: -0,0373370748783987-1,45559491767642j | AQ40: 3.263667155 | AR40: -91.46935647
AA41: 3.9 | AB41: 7943.282347 | AC41: 7943,28234724286j | AD41: -0,422899729108166-0,152090606753353j | AE41: -6.947008059 | AF41: -160.2195119 | AH41: 1,44-0,0210307725404129j | AI41: 3.168176082 | AJ41: -0.8367283644 | AL41: -0,612174192871922-0,210116565714552j | AM41: -3.778831977 | AN41: -161.0562403 | AO41: 1 | AP41: -0,993370358774353-1,07996973456831j | AQ41: 3.330680933 | AR41: -132.6082571
D42: Maxwert ω | G42: =G31 -> 100000 | H42: [1/s] | AA42: 4 | AB42: 10000 | AC42: 10000j | AD42: -0,357018361007984-0,00474545346365006j | AE42: -8.945421741 | AF42: -179.2384749 | AH42: 1,44-0,0167053364269141j | AI42: 3.167834283 | AJ42: -0.6646544014 | AL42: -0,514185714248105-0,000869341156432243j | AM42: -5.777587458 | AN42: -179.9031293 | AO42: 1 | AP42: -1,05839314981339-0,0036833949386265j | AQ42: 0.4929930063 | AR42: -179.8006014
AA43: 4.1 | AB43: 12589.25412 | AC43: 12589,2541179417j | AD43: -0,261079862119403+0,110874769618141j | AE43: -10.94442054 | AF43: 156.9901558 | AH43: 1,44-0,0132695203944659j | AI43: 3.167618608 | AJ43: -0.5279624971 | AL43: -0,374483746435261+0,163124072805101j | AM43: -7.776801936 | AN43: 156.4621933 | AO43: 1 | AP43: -0,496879926789641+0,39036099984068j | AQ43: -3.98731828 | AR43: 141.8459574
AA44: 4.2 | AB44: 15848.93192 | AC44: 15848,9319246112j | AD44: -0,136233339948257+0,179477323616294j | AE44: -12.94378871 | AF44: 127.200534 | AH44: 1,44-0,010540354710574j | AI44: 3.167482521 | AJ44: -0.4193798988 | AL44: -0,19428425487207+0,259883293733924j | AM44: -9.776306191 | AN44: 126.7811541 | AO44: 1 | AP44: -0,12417527899513+0,362602289959122j | AQ44: -8.32978439 | AR44: 108.9040685
AA45: 4.3 | AB45: 19952.62315 | AC45: 19952,6231496889j | AD45: 0,000605154750559591+0,178989690680679j | AE45: -14.94339001 | AF45: 89.80628671 | AH45: 1,44-0,00837250135061796j | AI45: 3.167396654 | AJ45: -0.3331274902 | AL45: 0,00237001426777649+0,257740087921211j | AM45: -11.77599335 | AN45: 89.47315922 | AO45: 1 | AP45: 0,0642337113151373+0,240614226369814j | AQ45: -12.07460006 | AR45: 75.05304028
AA46: 4.4 | AB46: 25118.86432 | AC46: 25118,8643150959j | AD46: 0,104295743582267+0,096633201473179j | AE46: -16.94313842 | AF46: 42.81605046 | AH46: 1,44-0,00665051421806304j | AI46: 3.167342475 | AJ46: -0.2646136716 | AL46: 0,150828531238799+0,1384581897958j | AM46: -13.77579595 | AN46: 42.55143679 | AO46: 1 | AP46: 0,143459176854783+0,103051921845586j | AQ46: -15.05842149 | AR46: 35.69105586
AA47: 4.5 | AB47: 31622.7766 | AC47: 31622,7766016838j | AD47: 0,108416380929707-0,0316468300290885j | AE47: -18.94297967 | AF47: -16.27256789 | AH47: 1,44-0,00528269121884277j | AI47: 3.16730829 | AJ47: -0.2101906622 | AL47: 0,155952408107679-0,0461441655054035j | AM47: -15.77567138 | AN47: -16.48275855 | AO47: 1 | AP47: 0,136288810606759-0,0344782638045406j | AQ47: -17.04138547 | AR47: -14.19679685
AA48: 4.6 | AB48: 39810.71706 | AC48: 39810,7170553497j | AD48: -0,000949239936754155-0,0897081111942041j | AE48: -20.94287951 | AF48: -90.60624855 | AH48: 1,44-0,00419619079045685j | AI48: 3.16728672 | AJ48: -0.166960654 | AL48: -0,00174333785894838-0,129175696927773j | AM48: -17.77559279 | AN48: -90.7732092 | AO48: 1 | AP48: 0,0147513046381995-0,127492449284107j | AQ48: -17.83255628 | AR48: -83.40003328
AA49: 4.7 | AB49: 50118.72336 | AC49: 50118,7233627272j | AD49: -0,0710759264814269+0,00514906429407507j | AE49: -22.94281631 | AF49: 175.856471 | AH49: 1,44-0,00333315282314987j | AI49: 3.16727311 | AJ49: -0.1326217001 | AL49: -0,102332171515066+0,00765155950847766j | AM49: -19.7755432 | AN49: 175.7238493 | AO49: 1 | AP49: -0,113916883318472+0,00949482765199967j | AQ49: -18.83817194 | AR49: 175.2354822
AA50: 4.8 | AB50: 63095.73445 | AC50: 63095,7344480192j | AD50: 0,029883841235437+0,0480746945494407j | AE50: -24.94277643 | AF50: 58.13439053 | AH50: 1,44-0,00264761739807889j | AI50: 3.167264523 | AJ50: -0.1053452304 | AL50: 0,0431600147767257+0,0691484391732182j | AM50: -21.77551191 | AN50: 58.0290453 | AO50: 1 | AP50: 0,0455681006608644+0,0632668767989127j | AQ50: -22.16157176 | AR50: 54.23660119
AA51: 4.9 | AB51: 79432.82347 | AC51: 79432,823472428j | AD51: -0,0000326615243033753-0,0449637290428425j | AE51: -26.94275127 | AF51: -90.04161948 | AH51: 1,44-0,0021030772540413j | AI51: 3.167259105 | AJ51: -0.08367872568 | AL51: -0,000141594790803739-0,0647477011319843j | AM51: -23.77549216 | AN51: -90.12529821 | AO51: 1 | AP51: 0,00403491718447972-0,0644955817584382j | AQ51: -23.79243605 | AR51: -86.42017615
AO52: 1
AA53: ωx | AB53: ω | AC53: s=jω | AD53: Strecke H(jω) | AE53: Betrag Strecke [dB] | AF53: Phase Strecke [°] | AH53: Regler H(jw) | AI53: Betrag Regler [dB] | AJ53: Phase Regler [°] | AL53: Regler+Strecke H(jw) | AM53: Betrag Regler+Strecke [dB] | AN53: Phase Regler+Strecke [°] | AO53: 1 | AP53: Geschlossener Kreis | AQ53: Betrag Kreis [dB] | AR53: Phase Kreis [°]
AB54: =10^AA2 -> 1 | AF54: =IMARGUMENT(AD2)*180/PI() -> -0.2382489529 | AJ54: =IF(IMARGUMENT(AH2)*180/PI()>0,"",IMARGUMENT(AH2)*180/PI()) -> -89.50612261 | AN54: =AF54+AJ54 -> -89.74437157 | AO54: =IF(AN54<0,1,0) -> 1
AB55: =10^AA3 -> 1.258925412 | AF55: -0.2999367611 | AJ55: -89.37825421 | AN55: =AF55+AJ55 -> -89.67819097 | AO55: =IF(AO54=0,0,IF(AN55<0,1,0)) -> 1
AB56: 1.584893192 | AF56: -0.3775962147 | AJ56: -89.2172864 | AN56: -89.59488261 | AO56: =IF(AO55=0,0,IF(AN56<0,1,0)) -> 1
AB57: 1.995262315 | AF57: -0.4753618872 | AJ57: -89.01465781 | AN57: -89.49001969 | AO57: 1
AB58: 2.511886432 | AF58: -0.5984380112 | AJ58: -88.75959919 | AN58: -89.3580372 | AO58: 1
AB59: 3.16227766 | AF59: -0.7533745573 | AJ59: -88.43857055 | AN59: -89.19194511 | AO59: 1
AB60: 3.981071706 | AF60: -0.9484139204 | AJ60: -88.0345613 | AN60: -88.98297522 | AO60: 1
AB61: 5.011872336 | AF61: -1.193925619 | AJ61: -87.52622657 | AN61: -88.72015219 | AO61: 1
AB62: 6.309573445 | AF62: -1.502950065 | AJ62: -86.88683445 | AN62: -88.38978452 | AO62: 1
AB63: 7.943282347 | AF63: -1.891876175 | AJ63: -86.083009 | AN63: -87.97488518 | AO63: 1
AB64: 10 | AF64: -2.381280614 | AJ64: -85.07328228 | AN64: -87.45456289 | AO64: 1
AB65: 12.58925412 | AF65: -2.996956874 | AJ65: -83.80653455 | AN65: -86.80349142 | AO65: 1
AB66: 15.84893192 | AF66: -3.771156404 | AJ66: -82.22053819 | AN66: -85.9916946 | AO66: 1
AB67: 19.95262315 | AF67: -4.744043746 | AJ67: -80.24108555 | AN67: -84.98512929 | AO67: 1
AB68: 25.11886432 | AF68: -5.965318018 | AJ68: -77.78265182 | AN68: -83.74796984 | AO68: 1
AB69: 31.6227766 | AF69: -7.495846108 | AJ69: -74.75229103 | AN69: -82.24813713 | AO69: 1
AB70: 39.81071706 | AF70: -9.408940341 | AJ70: -71.05940022 | AN70: -80.46834056 | AO70: 1
AB71: 50.11872336 | AF71: -11.79052229 | AJ71: -66.63452589 | AN71: -78.42504818 | AO71: 1
AB72: 63.09573445 | AF72: -14.73676484 | AJ72: -61.45888367 | AN72: -76.19564851 | AO72: 1
AB73: 79.43282347 | AF73: -18.34690304 | AJ73: -55.60013075 | AN73: -73.9470338 | AO73: 1
AB74: 100 | AF74: -22.7081152 | AJ74: -49.23866169 | AN74: -71.94677689 | AO74: 1
AB75: 125.8925412 | AF75: -27.86993653 | AJ75: -42.66039652 | AN75: -70.53033305 | AO75: 1
AB76: 158.4893192 | AF76: -33.809983 | AJ76: -36.20297409 | AN76: -70.01295709 | AO76: 1
AB77: 199.5262315 | AF77: -40.4026556 | AJ77: -30.17473426 | AN77: -70.57738986 | AO77: 1
AB78: 251.1886432 | AF78: -47.41342695 | AJ78: -24.78944157 | AN78: -72.20286852 | AO78: 1
AB79: 316.227766 | AF79: -54.53843711 | AJ79: -20.14574186 | AN79: -74.68417897 | AO79: 1
AB80: 398.1071706 | AF80: -61.48200615 | AJ80: -16.24623561 | AN80: -77.72824176 | AO80: 1
AB81: 501.1872336 | AF81: -68.03355768 | AJ81: -13.03267462 | AN81: -81.0662323 | AO81: 1
AB82: 630.9573445 | AF82: -74.10630169 | AJ82: -10.41817814 | AN82: -84.52447983 | AO82: 1
AB83: 794.3282347 | AF83: -79.73179613 | AJ83: -8.309133634 | AN83: -88.04092976 | AO83: 1
AB84: 1000 | AF84: -85.03081364 | AJ84: -6.617262585 | AN84: -91.64807622 | AO84: 1
AB85: 1258.925412 | AF85: -90.18295475 | AJ85: -5.264905652 | AN85: -95.4478604 | AO85: 1
AB86: 1584.893192 | AF86: =IMARGUMENT(AD34)*180/PI() -> -95.40637791 | AJ86: =IF(IMARGUMENT(AH34)*180/PI()>0,"",IMARGUMENT(AH34)*180/PI()) -> -4.18640791 | AN86: -99.59278582 | AO86: 1
AB87: 1995.262315 | AF87: -100.9493974 | AJ87: -3.327566163 | AN87: -104.2769635 | AO87: 1
AB88: 2511.886432 | AF88: -107.0916702 | AJ88: -2.644276541 | AN88: -109.7359467 | AO88: 1
AB89: 3162.27766 | AF89: -114.1523245 | AJ89: -2.100973881 | AN89: -116.2532984 | AO89: 1
AB90: 3981.071706 | AF90: -122.5033106 | AJ90: -1.669138922 | AN90: -124.1724496 | AO90: 1
AB91: 5011.872336 | AF91: -132.5872968 | AJ91: -1.325982592 | AN91: -133.9132794 | AO91: 1
AB92: 6309.573445 | AF92: -144.9402574 | AJ92: -1.053334807 | AN92: -145.9935922 | AO92: 1
AB93: 7943.282347 | AF93: -160.2195119 | AJ93: -0.8367283644 | AN93: -161.0562403 | AO93: 1
AB94: 10000 | AF94: -179.2384749 | AJ94: -0.6646544014 | AN94: -179.9031293 | AO94: 1
AB95: 12589.25412 | AF95: 156.9901558 | AJ95: -0.5279624971 | AN95: 156.4621933 | AO95: 0
AB96: 15848.93192 | AF96: 127.200534 | AJ96: -0.4193798988 | AN96: 126.7811541 | AO96: 0
AB97: 19952.62315 | AF97: 89.80628671 | AJ97: -0.3331274902 | AN97: 89.47315922 | AO97: 0
AB98: 25118.86432 | AF98: 42.81605046 | AJ98: -0.2646136716 | AN98: 42.55143679 | AO98: 0
AB99: 31622.7766 | AF99: -16.27256789 | AJ99: -0.2101906622 | AN99: -16.48275855 | AO99: 0
AB100: 39810.71706 | AF100: -90.60624855 | AJ100: -0.166960654 | AN100: -90.7732092 | AO100: 0
AB101: 50118.72336 | AF101: 175.856471 | AJ101: -0.1326217001 | AN101: 175.7238493 | AO101: 0
AB102: 63095.73445 | AF102: 58.13439053 | AJ102: -0.1053452304 | AN102: 58.0290453 | AO102: 0
AB103: 79432.82347 | AF103: -90.04161948 | AJ103: -0.08367872568 | AN103: -90.12529821 | AO103: 0

Sheet Drehzahlregelkreis (hidden)
D1: Funktion | G1: gewählt | H1: [ ] | I1: umgerechnet | J1: [ ] | K1: ω | L1: [ ] | O1: Index 637 | P1: kp 637 | Q1: 1/TN 637 | R1: Index 631 | S1: kp 631 | T1: 1/TN 631 | U1: Index 635 | V1: kp 635 | W1: 1/TN 635 | AA1: ωx | AB1: ω | AC1: s=jω | AD1: Strecke H(jω) | AE1: Betrag Strecke [dB] | AF1: Phase Strecke [°] | AH1: Regler H(jw) | AI1: Betrag Regler [dB] | AJ1: Phase Regler [°] | AL1: Regler+Strecke H(jw) | AM1: Betrag Regler+Strecke [dB] | AN1: Phase Regler+Strecke [°] | AO1: Anzeigen? | AP1: Geschlossener Kreis | AQ1: Betrag Kreis [dB] | AR1: Phase Kreis [°]
D2: Reglertyp: | G2: =Hardware!B68 -> 638A/06-3-F… | I2: =LEFT(G2,3) -> 638 | O2: 0 | P2: 0.75 | Q2: =1/100000 -> 1e-05 | R2: 0 | S2: 0.24 | T2: =1/100000 -> 1e-05 | U2: 0 | V2: 0.75 | W2: =1/100000 -> 1e-05 | AA2: =$G$33 -> 0 | AB2: =10^AA2 -> 1 | AC2: =COMPLEX(0,AB2,"j") -> j | AD2: =IMPRODUCT(V_S_Dreh,Stromregelkreis!AP2,IMDIV(1,IMPRODUCT(AC2,J_M+J_G+J_EXT_R)),IMEXP(IMPRODUCT(AC2,T_t_Dreh,-1))) -> -0,00455961399147623-4,81739753374248j | AE2: =20*LOG10(IMABS(AD2)) -> 13.65625361 | AF2: =IMARGUMENT(AD2)*180/PI() -> -90.05422981 | AH2: =IMPRODUCT(P_Anteil_Dreh,IMSUM(1,IMDIV(I_Anteil_Dreh,AC2))) -> 23,94-7411,76470588235j | AI2: =20*LOG10(IMABS(AH2)) -> 77.39847778 | AJ2: =IF(IMARGUMENT(AH2)*180/PI()>0,"",IMARGUMENT(AH2)*180/PI()) -> -89.81493528 | AL2: =IMPRODUCT(AH2,AD2) -> -35705,5261719562-81,5337109033241j | AM2: =20*LOG10(IMABS(AL2)) -> 91.05473139 | AN2: =AF2+AJ2 -> -179.8691651 | AO2: 1 | AP2: =IMDIV(AL2,IMSUM(1,AL2)) -> 1,00002800750752-6,39570459624603E-08j | AQ2: =20*LOG10(IMABS(AP2)) -> 0.0002432667127 | AR2: =IMARGUMENT(AP2)*180/PI() -> -3.664366174e-06
D3: Motortyp: | G3: =Hardware!B52 -> AC M2n0290-4/1-3 | O3: 1 | P3: 0.87 | Q3: =1/103.2 -> 0.009689922481 | R3: 4 | S3: 0.29 | T3: =1/195.48 -> 0.00511561285 | U3: 1 | V3: 0.87 | W3: =1/103.2 -> 0.009689922481 | AA3: =AA2+$G$35 -> 0.1 | AB3: 1.258925412 | AC3: 1,25892541179417j | AD3: =IMPRODUCT(V_S_Dreh,Stromregelkreis!AP3,IMDIV(1,IMPRODUCT(AC3,J_M+J_G+J_EXT_R)),IMEXP(IMPRODUCT(AC3,T_t_Dreh,-1))) -> -0,00455955993883823-3,82658949666847j | AE3: 11.65624367 | AF3: -90.06827056 | AH3: 23,94-5887,37397501524j | AI3: 75.39850428 | AJ3: =IF(AJ2="","",IF(IMARGUMENT(AH3)*180/PI()>0,"",IMARGUMENT(AH3)*180/PI())) -> -89.76701779 | AL3: -22528,6725716176-64,7647180288049j | AM3: 87.05474795 | AN3: =AF3+AJ3 -> -179.8352884 | AO3: 1 | AP3: 1,00004438948284-1,27615151118098E-07j | AQ3: 0.0003855535919 | AR3: -7.311485008e-06
D4: Abtastzeit | G4: =IF(I2="637",106,211) -> 211 | H4: [µs] | I4: =G4/1000000 -> 0.000211 | J4: [s] | K4: =1/I4 -> 4739.336493 | L4: [1/s] | O4: 2 | P4: 1.01 | Q4: =1/88.75 -> 0.01126760563 | R4: 8 | S4: 0.36 | T4: =1/159.22 -> 0.006280618013 | U4: 2 | V4: 1.01 | W4: =1/88.75 -> 0.01126760563 | AA4: 0.2 | AB4: 1.584893192 | AC4: 1,58489319246111j | AD4: =IMPRODUCT(V_S_Dreh,Stromregelkreis!AP4,IMDIV(1,IMPRODUCT(AC4,J_M+J_G+J_EXT_R)),IMEXP(IMPRODUCT(AC4,T_t_Dreh,-1))) -> -0,00455947428128483-3,03956130474209j | AE4: 9.656227914 | AF4: -90.0859461 | AH4: 23,94-4676,50737673555j | AI4: 73.39854629 | AJ4: -89.70669372 | AL4: -14214,6400174806-51,4446825250611j | AM4: 83.0547742 | AN4: -179.7926398 | AO4: 1 | AP4: 1,0000703540331-2,54638564963825E-07j | AQ4: 0.0006110658722 | AR4: -1.45886887e-05
B5: kp | D5: Totzeit Drehzahlregler | G5: =IF(I2="637",G4/2+G4*1.5,G4/2+G4*2) -> 527.5 | H5: [µs] | I5: =G5/1000000 -> 0.0005275 | J5: [s] | K5: =1/T_t_Dreh -> 1895.734597 | L5: [1/s] | O5: 3 | P5: 1.17 | Q5: =1/76.33 -> 0.01310100878 | R5: 12 | S5: 0.44 | T5: =1/129.69 -> 0.007710694734 | U5: 3 | V5: 1.17 | W5: =1/76.33 -> 0.01310100878 | AA5: 0.3 | AB5: 1.995262315 | AC5: 1,99526231496888j | AD5: =IMPRODUCT(V_S_Dreh,Stromregelkreis!AP5,IMDIV(1,IMPRODUCT(AC5,J_M+J_G+J_EXT_R)),IMEXP(IMPRODUCT(AC5,T_t_Dreh,-1))) -> -0,00455933854858728-2,41440083754742j | AE5: 7.656202949 | AF5: -90.10819684 | AH5: 23,94-3714,68184923743j | AI5: 71.39861285 | AJ5: -89.63075116 | AL5: -8968,8401185859-40,8642638999195j | AM5: 79.0548158 | AN5: -179.738948 | AO5: 1 | AP5: 1,00011150725517-5,08111411626992E-07j | AQ5: 0.0009684857178 | AR5: -2.91093935e-05
B6: 23.94 | D6: Reglernennstrom | G6: =INennR -> 6 | H6: [A] | I6: =G6 -> 6 | O6: 4 | P6: 1.36 | Q6: =1/65.64 -> 0.01523461304 | R6: 16 | S6: 0.54 | T6: =1/105.63 -> 0.009467007479 | U6: 4 | V6: 1.36 | W6: =1/65.64 -> 0.01523461304 | AA6: 0.4 | AB6: 2.511886432 | AC6: 2,51188643150958j | AD6: =IMPRODUCT(V_S_Dreh,Stromregelkreis!AP6,IMDIV(1,IMPRODUCT(AC6,J_M+J_G+J_EXT_R)),IMEXP(IMPRODUCT(AC6,T_t_Dreh,-1))) -> -0,00455912349047632-1,91781602197721j | AE6: 5.656163394 | AF6: -90.136206 | AH6: 23,94-2950,6766758671j | AI6: 69.39871835 | AJ6: -89.53514701 | AL6: -5658,96415006874-32,4600162203881j | AM6: 75.05488174 | AN6: -179.671353 | AO6: 1 | AP6: 1,00017673620066-1,01394420112923E-06j | AQ6: 0.0015349755 | AR6: -5.808445776e-05
D7: interner Faktor | G7: =0.0032 -> 0.0032 | H7: [s/rad] | J7: [1] | O7: 5 | P7: 1.58 | Q7: =1/56.45 -> 0.01771479185 | R7: 20 | S7: 0.66 | T7: =1/86.04 -> 0.01162250116 | U7: 5 | V7: 1.58 | W7: =1/56.45 -> 0.01771479185 | AA7: 0.5 | AB7: 3.16227766 | AC7: 3,16227766016838j | AD7: =IMPRODUCT(V_S_Dreh,Stromregelkreis!AP7,IMDIV(1,IMPRODUCT(AC7,J_M+J_G+J_EXT_R)),IMEXP(IMPRODUCT(AC7,T_t_Dreh,-1))) -> -0,00455878280629732-1,52336190864754j | AE7: 3.656100732 | AF7: -90.17146171 | AH7: 23,94-2343,80579518362j | AI7: 67.39888555 | AJ7: -89.41479227 | AL7: -3570,57360691047-25,784382532639j | AM7: 71.05498628 | AN7: -179.586254 | AO7: 1 | AP7: 1,00028013088835-2,02349153701008E-06j | AQ7: 0.002432845257 | AR7: -0.0001159050564
D8: P_V_SHIFT | G8: =2^B32 -> 1 | H8: [1] | I8: =G8 -> 1 | O8: 6 | P8: 1.84 | Q8: =1/48.55 -> 0.02059732235 | R8: 24 | S8: 0.81 | T8: =1/70.08 -> 0.01426940639 | U8: 6 | V8: 1.84 | W8: =1/48.55 -> 0.02059732235 | AA8: 0.6 | AB8: 3.981071706 | AC8: 3,98107170553497j | AD8: =IMPRODUCT(V_S_Dreh,Stromregelkreis!AP8,IMDIV(1,IMPRODUCT(AC8,J_M+J_G+J_EXT_R)),IMEXP(IMPRODUCT(AC8,T_t_Dreh,-1))) -> -0,00455824325968266-1,21003238332052j | AE8: 1.656001493 | AF8: -90.21583461 | AH8: 23,94-1861,75111982475j | AI8: 65.39915052 | AJ8: -89.2632821 | AL8: -2252,88826901483-20,4818607635454j | AM8: 67.05515202 | AN8: -179.4791167 | AO8: 1 | AP8: 1,00044403503229-4,03868337105058E-06j | AQ8: 0.003855983324 | AR8: -0.0002312968081
D9: KT Faktor | G9: =MNennM/INennM -> 0.4833333333 | H9: [Nm/A] | I9: =G9 -> 0.4833333333 | O9: 7 | P9: 2.14 | Q9: =1/41.75 -> 0.02395209581 | R9: 28 | S9: 1 | T9: =1/57.08 -> 0.0175192712 | U9: 7 | V9: 2.14 | W9: =1/41.75 -> 0.02395209581 | AA9: 0.7 | AB9: 5.011872336 | AC9: 5,01187233627272j | AD9: =IMPRODUCT(V_S_Dreh,Stromregelkreis!AP9,IMDIV(1,IMPRODUCT(AC9,J_M+J_G+J_EXT_R)),IMEXP(IMPRODUCT(AC9,T_t_Dreh,-1))) -> -0,00455738914276998-0,961141517522994j | AE9: -0.3441556086 | AF9: -90.27167405 | AH9: 23,94-1478,84148050635j | AI9: 63.39957045 | AJ9: -89.07255701 | AL9: -1421,4850486459-16,270071822363j | AM9: 63.05541484 | AN9: -179.3442311 | AO9: 1 | AP9: 1,00070389253776-8,06230389784262E-06j | AQ9: 0.006111782415 | AR9: -0.0004616110619
D10: Trägheitsmoment Motor | G10: =JMotor -> 1.8 | H10: [kgcm^2] | I10: =G10/10000 -> 0.00018 | J10: [kgm^2] | O10: 8 | P10: 2.49 | Q10: =1/35.91 -> 0.02784739627 | R10: 32 | S10: 1.22 | T10: =1/46.49 -> 0.02151000215 | U10: 8 | V10: 2.49 | W10: =1/35.91 -> 0.02784739627 | AA10: 0.8 | AB10: 6.309573445 | AC10: 6,30957344480193j | AD10: =IMPRODUCT(V_S_Dreh,Stromregelkreis!AP10,IMDIV(1,IMPRODUCT(AC10,J_M+J_G+J_EXT_R)),IMEXP(IMPRODUCT(AC10,T_t_Dreh,-1))) -> -0,00455603798188647-0,763434987565426j | AE10: -2.344404141 | AF10: -90.34192649 | AH10: 23,94-1174,68554264765j | AI10: 61.4002359 | AJ10: -88.83247809 | AL10: -896,905114193781-12,9247216532407j | AM10: 59.05583176 | AN10: -179.1744046 | AO10: 1 | AP10: 1,00111595737683-0,0000160992924852424j | AQ10: 0.009687679226 | AR10: -0.0009213932768
D11: Trägheitsmoment Getriebe | G11: =JGetriebe -> 0.72 | H11: [kgcm^2] | I11: =G11/10000 -> 7.2e-05 | J11: [kgm^2] | O11: 9 | P11: 2.9 | Q11: =1/30.88 -> 0.03238341969 | R11: 36 | S11: 1.5 | T11: =1/37.87 -> 0.02640612622 | U11: 9 | V11: 2.9 | W11: =1/30.88 -> 0.03238341969 | AA11: 0.9 | AB11: 7.943282347 | AC11: 7,94328234724281j | AD11: =IMPRODUCT(V_S_Dreh,Stromregelkreis!AP11,IMDIV(1,IMPRODUCT(AC11,J_M+J_G+J_EXT_R)),IMEXP(IMPRODUCT(AC11,T_t_Dreh,-1))) -> -0,00455390285086993-0,606384244452616j | AE11: -4.344796897 | AF11: -90.43027917 | AH11: 23,94-933,085893447442j | AI11: 59.40129037 | AJ11: -88.53029596 | AL11: -565,917604941771-10,2676563019188j | AM11: 55.05649347 | AN11: -178.9605751 | AO11: 1 | AP11: 1,00176958507184-0,0000321630821128004j | AQ11: 0.01535684151 | AR11: -0.001839553614
D12: red. Ext. Trägheitsmoment | G12: =JReduziert -> 16.74346667 | H12: [kgcm^2] | I12: =G12/10000 -> 0.001674346667 | J12: [kgm^2] | O12: 10 | P12: 3.37 | Q12: =1/25.56 -> 0.03912363067 | R12: 40 | S12: 1.85 | T12: =1/30.84 -> 0.03242542153 | U12: 10 | V12: 3.37 | W12: =1/25.56 -> 0.03912363067 | AA12: 1 | AB12: 10 | AC12: 10j | AD12: =IMPRODUCT(V_S_Dreh,Stromregelkreis!AP12,IMDIV(1,IMPRODUCT(AC12,J_M+J_G+J_EXT_R)),IMEXP(IMPRODUCT(AC12,T_t_Dreh,-1))) -> -0,00455053466577987-0,481625851834255j | AE12: -6.34541652 | AF12: -90.54133031 | AH12: 23,94-741,176470588235j | AI12: 57.40296106 | AJ12: -88.14998951 | AL12: -357,078688806464-8,15737367003993j | AM12: 51.05754454 | AN12: -178.6913198 | AO12: 1 | AP12: 1,00280689490462-0,000064302895144613j | AQ12: 0.02434624454 | AR12: -0.003673972044
O13: 11 | P13: 3.92 | Q13: =1/22.84 -> 0.04378283713 | R13: 44 | S13: 2.27 | T13: =1/25.12 -> 0.0398089172 | U13: 11 | V13: 3.92 | W13: =1/22.84 -> 0.04378283713 | AA13: 1.1 | AB13: 12.58925412 | AC13: 12,5892541179417j | AD13: =IMPRODUCT(V_S_Dreh,Stromregelkreis!AP13,IMDIV(1,IMPRODUCT(AC13,J_M+J_G+J_EXT_R)),IMEXP(IMPRODUCT(AC13,T_t_Dreh,-1))) -> -0,00454523570009912-0,38251614454842j | AE13: -8.346391454 | AF13: -90.68078321 | AH13: 23,94-588,737397501524j | AI13: 55.40560762 | AJ13: -87.67144791 | AL13: -225,310372386414-6,4814862633818j | AM13: 47.05921616 | AN13: -178.3522311 | AO13: 1 | AP13: 1,00445438949198-0,000128710340038372j | AQ13: 0.03860449097 | AR13: -0.007341855738
O14: 12 | P14: 4.56 | Q14: =1/19.64 -> 0.05091649695 | R14: 48 | S14: 2.78 | T14: =1/20.46 -> 0.04887585533 | U14: 12 | V14: 4.56 | W14: =1/19.64 -> 0.05091649695 | AA14: 1.2 | AB14: 15.84893192 | AC14: 15,8489319246111j | AD14: =IMPRODUCT(V_S_Dreh,Stromregelkreis!AP14,IMDIV(1,IMPRODUCT(AC14,J_M+J_G+J_EXT_R)),IMEXP(IMPRODUCT(AC14,T_t_Dreh,-1))) -> -0,00453693456892246-0,303777509921908j | AE14: -10.34791903 | AF14: -90.85565214 | AH14: 23,94-467,650737673555j | AI14: 53.40979882 | AJ14: -87.06946974 | AL14: -142,170390817196-5,15073278959724j | AM14: 43.06187979 | AN14: -177.9251219 | AO14: 1 | AP14: 1,00707422102494-0,00025810952270582j | AQ14: 0.06122986703 | AR14: -0.01468470314
D15: Verstärkung der Stecke | G15: =G8*G6*G7*G9 -> 0.00928 | H15: [Nm*s/rad] | O15: 13 | P15: 5.3 | Q15: =1/16.89 -> 0.05920663114 | R15: 52 | S15: 3.41 | T15: =1/16.67 -> 0.0599880024 | U15: 13 | V15: 5.3 | W15: =1/16.89 -> 0.05920663114 | AA15: 1.3 | AB15: 19.95262315 | AC15: 19,9526231496888j | AD15: =IMPRODUCT(V_S_Dreh,Stromregelkreis!AP15,IMDIV(1,IMPRODUCT(AC15,J_M+J_G+J_EXT_R)),IMEXP(IMPRODUCT(AC15,T_t_Dreh,-1))) -> -0,0045240167054981-0,241217487084644j | AE15: -12.35029687 | AF15: -91.07445228 | AH15: 23,94-371,468184923743j | AI15: 51.41643316 | AJ15: -86.31255997 | AL15: -89,7129270591288-4,09421836665031j | AM15: 39.06613629 | AN15: -177.3870122 | AO15: 1 | AP15: 1,0112483559735-0,000519126435661868j | AQ15: 0.09715771592 | AR15: -0.02941290437
D16: Summenzeitkonstante T_Ersatz_I+T_s | G16: =1/Stromregelkreis!G38+T_t_Dreh -> 0.0007270262315 | H16: [s] | I16: =G16*1000 -> 0.7270262315 | J16: [ms] | K16: =1/G16 -> 1375.466189 | L16: [1/s] | O16: 14 | P16: 6.16 | Q16: =1/14.53 -> 0.06882312457 | R16: 56 | S16: 4.19 | T16: =1/13.57 -> 0.07369196758 | U16: 14 | V16: 6.16 | W16: =1/14.53 -> 0.06882312457 | AA16: 1.4 | AB16: 25.11886432 | AC16: 25,1188643150958j | AD16: =IMPRODUCT(V_S_Dreh,Stromregelkreis!AP16,IMDIV(1,IMPRODUCT(AC16,J_M+J_G+J_EXT_R)),IMEXP(IMPRODUCT(AC16,T_t_Dreh,-1))) -> -0,00450412135606438-0,191505776944465j | AE16: -14.3539607 | AF16: -91.34732006 | AH16: 23,94-295,06766758671j | AI16: 49.42692716 | AJ16: -85.36152824 | AL16: -56,6149915976482-3,25562771698909j | AM16: 35.07296646 | AN16: -176.7088483 | AO16: 1 | AP16: 1,01791935767705-0,0010489753904147j | AQ16: 0.1542720796 | AR16: -0.05904381418
O17: 15 | P17: 7.16 | Q17: =1/12.5 -> 0.08 | R17: 60 | S17: 5.15 | T17: =1/11.06 -> 0.0904159132 | U17: 15 | V17: 7.16 | W17: =1/12.5 -> 0.08 | AA17: 1.5 | AB17: 31.6227766 | AC17: 31,6227766016838j | AD17: =IMPRODUCT(V_S_Dreh,Stromregelkreis!AP17,IMDIV(1,IMPRODUCT(AC17,J_M+J_G+J_EXT_R)),IMEXP(IMPRODUCT(AC17,T_t_Dreh,-1))) -> -0,00447396253251493-0,151997357163689j | AE17: -16.35951822 | AF17: -91.68598444 | AH17: 23,94-234,380579518362j | AI17: 47.44350726 | AJ17: -84.16794485 | AL17: -35,7323353203133-2,59020679938443j | AM17: 31.08398904 | AN17: -175.8539293 | AO17: 1 | AP17: 1,02863237200983-0,00213529450232484j | AQ17: 0.2452224715 | AR17: -0.1189377183
D18: Reglereinstellung: | O18: 16 | P18: 8.33 | Q18: =1/10.75 -> 0.09302325581 | R18: 64 | S18: 6.32 | T18: =1/9.01 -> 0.1109877913 | U18: 16 | V18: 8.33 | W18: =1/10.75 -> 0.09302325581 | AA18: 1.6 | AB18: 39.81071706 | AC18: 39,8107170553498j | AD18: =IMPRODUCT(V_S_Dreh,Stromregelkreis!AP18,IMDIV(1,IMPRODUCT(AC18,J_M+J_G+J_EXT_R)),IMEXP(IMPRODUCT(AC18,T_t_Dreh,-1))) -> -0,00442932833924147-0,120592337277172j | AE18: -18.36775074 | AF18: -92.10351499 | AH18: 23,94-186,175111982474j | AI18: 45.46965598 | AJ18: -82.67262458 | AL18: -22,5573300172472-2,06234985485007j | AM18: 27.10190524 | AN18: -174.7761396 | AO18: 1 | AP18: 1,0459672237304-0,00439759919769343j | AQ18: 0.3904382824 | AR18: -0.2408893737
B19: 1 / TN | D19: P-Anteil | G19: =B6 -> 23.94 | H19: [1] | I19: =G19 -> 23.94 | J19: [1] | O19: 17 | P19: 9.69 | Q19: =1/9.25 -> 0.1081081081 | R19: 68 | S19: 7.76 | T19: =1/7.34 -> 0.136239782 | U19: 17 | V19: 9.69 | W19: =1/9.25 -> 0.1081081081 | AA19: 1.7 | AB19: 50.11872336 | AC19: 50,1187233627273j | AD19: =IMPRODUCT(V_S_Dreh,Stromregelkreis!AP19,IMDIV(1,IMPRODUCT(AC19,J_M+J_G+J_EXT_R)),IMEXP(IMPRODUCT(AC19,T_t_Dreh,-1))) -> -0,00436555870999875-0,0956250240491476j | AE19: -20.37952677 | AF19: -92.61390298 | AH19: 23,94-147,884148050634j | AI19: 43.51077907 | AJ19: -80.80453253 | AL19: -14,245936689347-1,6436661451434j | AM19: 23.13125231 | AN19: -173.4184355 | AO19: 1 | AP19: 1,07435001465787-0,00922596905376597j | AQ19: 0.6232361404 | AR19: -0.4920147885
B20: =IF(B22=0.00001,"1 / ----- ms","1 / "&1/B22&" ms") -> 1 / 3,23 ms | D20: 1 / Nachstellzeit Drehzahlregler | G20: =B22 -> 0.3095975232 | H20: [1/ms] | I20: =G20*1000 -> 309.5975232 | J20: [1/s] | K20: =I_Anteil_Strom -> 116.0092807 | L20: [1/s] | O20: 18 | P20: 11.27 | Q20: =1/7.96 -> 0.1256281407 | R20: 72 | S20: 9.53 | T20: =1/5.97 -> 0.1675041876 | U20: 18 | V20: 11.27 | W20: =1/7.96 -> 0.1256281407 | AA20: 1.8 | AB20: 63.09573445 | AC20: 63,0957344480194j | AD20: =IMPRODUCT(V_S_Dreh,Stromregelkreis!AP20,IMDIV(1,IMPRODUCT(AC20,J_M+J_G+J_EXT_R)),IMEXP(IMPRODUCT(AC20,T_t_Dreh,-1))) -> -0,00427888642590572-0,0757758877622024j | AE20: -22.39555347 | AF20: -93.23192593 | AH20: 23,94-117,468554264765j | AI20: 41.5751675 | AJ20: -78.48091415 | AL20: -9,0037205245912-1,31144015071285j | AM20: 19.17961403 | AN20: -171.7128401 | AO20: 1 | AP20: 1,12167515049861-0,0199369377301017j | AQ20: 0.9987137972 | AR20: -1.018282447
D21: Nachstellzeit Drehzahlregler | G21: =1/G20 -> 3.23 | H21: [ms] | I21: =G21/1000 -> 0.00323 | J21: [s] | K21: =1/I21 -> 309.5975232 | L21: [1/s] | O21: 19 | P21: 13.1 | Q21: =1/6.85 -> 0.1459854015 | R21: 76 | S21: 11.7 | T21: =1/4.87 -> 0.205338809 | U21: 19 | V21: 13.1 | W21: =1/6.85 -> 0.1459854015 | AA21: 1.9 | AB21: 79.43282347 | AC21: 79,4328234724283j | AD21: =IMPRODUCT(V_S_Dreh,Stromregelkreis!AP21,IMDIV(1,IMPRODUCT(AC21,J_M+J_G+J_EXT_R)),IMEXP(IMPRODUCT(AC21,T_t_Dreh,-1))) -> -0,00416873129377275-0,0600008259084629j | AE21: -24.4159417 | AF21: -93.97440351 | AH21: 23,94-93,308589344744j | AI21: 39.67530026 | AJ21: -75.61012418 | AL21: -5,69839185221116-1,04744133586938j | AM21: 15.25935856 | AN21: -169.5845277 | AO21: 1 | AP21: 1,20276143315112-0,0452028509079438j | AQ21: 1.609719736 | AR21: -2.152308976
B22: 0.3095975232 | O22: 20 | P22: 15.23 | Q22: =1/5.89 -> 0.1697792869 | R22: 80 | S22: 14.36 | T22: =1/3.96 -> 0.2525252525 | U22: 20 | V22: 15.23 | W22: =1/5.89 -> 0.1697792869 | AA22: 2 | AB22: 100 | AC22: 100j | AD22: =IMPRODUCT(V_S_Dreh,Stromregelkreis!AP22,IMDIV(1,IMPRODUCT(AC22,J_M+J_G+J_EXT_R)),IMEXP(IMPRODUCT(AC22,T_t_Dreh,-1))) -> -0,00404003133636376-0,0474729077687742j | AE22: -26.43974368 | AF22: -94.86425546 | AH22: 23,94-74,1176470588235j | AI22: 37.82941724 | AJ22: -72.0995434 | AL22: -3,61529857305463-0,837063795289258j | AM22: 11.38967357 | AN22: -166.9637989 | AO22: 1 | AP22: 1,34683530347786-0,111009610321617j | AQ22: 2.615693769 | AR22: -4.711814077
D23: errechnete Standardwerte: | O23: 21 | P23: 17.71 | Q23: =1/4.36 -> 0.2293577982 | R23: 84 | S23: 17.63 | T23: =1/3.23 -> 0.3095975232 | U23: 21 | V23: 17.71 | W23: =1/4.36 -> 0.2293577982 | AA23: 2.1 | AB23: 125.8925412 | AC23: 125,892541179417j | AD23: =IMPRODUCT(V_S_Dreh,Stromregelkreis!AP23,IMDIV(1,IMPRODUCT(AC23,J_M+J_G+J_EXT_R)),IMEXP(IMPRODUCT(AC23,T_t_Dreh,-1))) -> -0,00390353469847396-0,0375337073055742j | AE23: -28.46484897 | AF23: -95.9374601 | AH23: 23,94-58,8737397501524j | AI23: 36.06299748 | AJ23: -67.87172303 | AL23: -2,30320033644824-0,668741266951801j | AM23: 7.598148509 | AN23: -163.8091831 | AO23: 1 | AP23: 1,60739799427719-0,3116881517572j | AQ23: 4.28277021 | AR23: -10.97394985
D24: P-Anteil | G24: =(J_M+J_G+J_EXT_R)/(2*V_S_Dreh*(T_Summe_Dreh)) -> 142.759952 | H24: [1] | I24: =G24 -> 142.759952 | J24: [1] | O24: 22 | P24: 20.59 | Q24: =1/3.75 -> 0.2666666667 | R24: 88 | S24: 21.64 | T24: =1/2.63 -> 0.3802281369 | U24: 22 | V24: 20.59 | W24: =1/3.75 -> 0.2666666667 | AA24: 2.2 | AB24: 158.4893192 | AC24: 158,489319246112j | AD24: =IMPRODUCT(V_S_Dreh,Stromregelkreis!AP24,IMDIV(1,IMPRODUCT(AC24,J_M+J_G+J_EXT_R)),IMEXP(IMPRODUCT(AC24,T_t_Dreh,-1))) -> -0,00377258082410438-0,0296542463801284j | AE24: -30.48853586 | AF24: -97.25016009 | AH24: 23,94-46,7650737673553j | AI24: 34.40924144 | AJ24: -62.89116259 | AL24: -1,47709860441109-0,533497637807723j | AM24: 3.92070558 | AN24: -160.1413227 | AO24: 1 | AP24: 1,93139151409081-1,04149366199667j | AQ24: 6.825946886 | AR24: -28.33555391
D25: 1 / Nachstellzeit Drehzahlregler | G25: =1/G26 -> 0.3438665473 | H25: [1/ms] | I25: =G25*1000 -> 343.8665473 | J25: [1/s] | K25: =I25 -> 343.8665473 | L25: [1/s] | O25: 23 | P25: 23.94 | Q25: =1/3.23 -> 0.3095975232 | R25: 92 | S25: 26.57 | T25: =1/2.14 -> 0.4672897196 | U25: 23 | V25: 23.94 | W25: =1/3.23 -> 0.3095975232 | AA25: 2.3 | AB25: 199.5262315 | AC25: 199,526231496888j | AD25: =IMPRODUCT(V_S_Dreh,Stromregelkreis!AP25,IMDIV(1,IMPRODUCT(AC25,J_M+J_G+J_EXT_R)),IMEXP(IMPRODUCT(AC25,T_t_Dreh,-1))) -> -0,00365793093071259-0,0234066805834877j | AE25: -32.50841205 | AF25: -98.88218147 | AH25: 23,94-37,1468184923743j | AI25: 32.90704406 | AJ25: -57.1994452 | AL25: -0,957054581625059-0,424475436827873j | AM25: 0.3986320071 | AN25: -156.0816267 | AO25: 1 | AP25: 0,764066892970994-2,33197888058605j | AQ25: 7.797352497 | AR25: -71.8587499
D26: Nachstellzeit Drehzahlregler | G26: =4*I16 -> 2.908104926 | H26: [ms] | I26: =G26/1000 -> 0.002908104926 | J26: [s] | K26: =1/I26 -> 343.8665473 | L26: [1/s] | O26: 24 | P26: 27.84 | Q26: =1/2.78 -> 0.3597122302 | R26: 96 | S26: 32.63 | T26: =1/1.74 -> 0.5747126437 | U26: 24 | V26: 27.84 | W26: =1/2.78 -> 0.3597122302 | AA26: 2.4 | AB26: 251.1886432 | AC26: 251,188643150959j | AD26: =IMPRODUCT(V_S_Dreh,Stromregelkreis!AP26,IMDIV(1,IMPRODUCT(AC26,J_M+J_G+J_EXT_R)),IMEXP(IMPRODUCT(AC26,T_t_Dreh,-1))) -> -0,00356427232495623-0,0184453578079517j | AE26: -34.52304949 | AF26: -100.9367051 | AH26: 23,94-29,5067667586708j | AI26: 31.59498881 | AJ26: -50.94622168 | AL26: -0,62959155007891-0,336411713765495j | AM26: -2.928060679 | AN26: -151.8829268 | AO26: 1 | AP26: -0,479413135878103-1,34363000766846j | AQ26: 3.086025172 | AR26: -109.6366251
O27: 25 | P27: 32.37 | Q27: =1/2.39 -> 0.4184100418 | R27: 100 | S27: 40.06 | T27: =1/1.42 -> 0.7042253521 | U27: 25 | V27: 32.37 | W27: =1/2.39 -> 0.4184100418 | AA27: 2.5 | AB27: 316.227766 | AC27: 316,227766016839j | AD27: =IMPRODUCT(V_S_Dreh,Stromregelkreis!AP27,IMDIV(1,IMPRODUCT(AC27,J_M+J_G+J_EXT_R)),IMEXP(IMPRODUCT(AC27,T_t_Dreh,-1))) -> -0,0034901617965959-0,0144931368224905j | AE27: -36.53192928 | AF27: -103.539867 | AH27: 23,94-23,4380579518362j | AI27: 30.50173257 | AJ27: -44.39300836 | AL27: -0,423245454159929-0,265163081080523j | AM27: -6.030196708 | AN27: -147.9328753 | AO27: 1 | AP27: -0,431304495319759-0,658042685022252j | AQ27: -2.082786617 | AR27: -123.2422539
O28: 26 | P28: 37.64 | Q28: =1/2.2 -> 0.4545454545 | R28: 104 | S28: 49.18 | T28: =1/1.16 -> 0.8620689655 | U28: 26 | V28: 37.64 | W28: =1/2.2 -> 0.4545454545 | AA28: 2.6 | AB28: 398.1071706 | AC28: 398,107170553498j | AD28: =IMPRODUCT(V_S_Dreh,Stromregelkreis!AP28,IMDIV(1,IMPRODUCT(AC28,J_M+J_G+J_EXT_R)),IMEXP(IMPRODUCT(AC28,T_t_Dreh,-1))) -> -0,00343004821773323-0,0113295041624231j | AE28: -38.53490897 | AF28: -106.8438773 | AH28: 23,94-18,6175111982474j | AI28: 29.63662866 | AJ28: -37.87127213 | AL28: -0,293042524947036-0,207369368544232j | AM28: -8.898280312 | AN28: -144.7151495 | AO28: 1 | AP28: -0,302448954986451-0,382042805808653j | AQ28: -6.244606105 | AR28: -128.3673379
D29: Bodediagramm: | O29: 27 | P29: 43.77 | Q29: =1/2.08 -> 0.4807692308 | R29: 108 | S29: 60.38 | T29: =1/0.94 -> 1.063829787 | U29: 27 | V29: 43.77 | W29: =1/2.08 -> 0.4807692308 | AA29: 2.7 | AB29: 501.1872336 | AC29: 501,187233627274j | AD29: =IMPRODUCT(V_S_Dreh,Stromregelkreis!AP29,IMDIV(1,IMPRODUCT(AC29,J_M+J_G+J_EXT_R)),IMEXP(IMPRODUCT(AC29,T_t_Dreh,-1))) -> -0,0033762113679918-0,00877953611232781j | AE29: -40.53159512 | AF29: -111.0344792 | AH29: 23,94-14,7884148050634j | AI29: 28.98626913 | AJ29: -31.70479773 | AL29: -0,210661921974861-0,160253280349694j | AM29: -11.54532599 | AN29: -142.7392769 | AO29: 1 | AP29: -0,216732884331009-0,247023983071014j | AQ29: -9.666004074 | AR29: -131.2629334
B30: w | D30: untere Grenze von ω | G30: 1 | H30: [1/s] | O30: 28 | P30: 50.89 | Q30: =1/1.77 -> 0.5649717514 | R30: 112 | S30: 74.13 | T30: =1/0.77 -> 1.298701299 | U30: 28 | V30: 50.89 | W30: =1/1.77 -> 0.5649717514 | AA30: 2.8 | AB30: 630.9573445 | AC30: 630,957344480195j | AD30: =IMPRODUCT(V_S_Dreh,Stromregelkreis!AP30,IMDIV(1,IMPRODUCT(AC30,J_M+J_G+J_EXT_R)),IMEXP(IMPRODUCT(AC30,T_t_Dreh,-1))) -> -0,00331953927591772-0,0067041976623302j | AE30: -42.52078779 | AF30: -116.3420092 | AH30: 23,94-11,7468554264765j | AI30: 28.51938137 | AJ30: -26.13621744 | AL30: -0,158223010955385-0,121504344079469j | AM30: -14.00140642 | AN30: -142.4782267 | AO30: 1 | AP30: -0,163717271906577-0,167974066358642j | AQ30: -12.59490212 | AR30: -134.2647292
B31: P_V_SHIFT | D31: obere Grenze von ω | G31: 100000 | H31: [1/s] | O31: 29 | P31: 59.17 | Q31: =1/1.52 -> 0.6578947368 | R31: 116 | S31: 91.01 | T31: =1/0.63 -> 1.587301587 | U31: 29 | V31: 59.17 | W31: =1/1.52 -> 0.6578947368 | AA31: 2.9 | AB31: 794.3282347 | AC31: 794,328234724284j | AD31: =IMPRODUCT(V_S_Dreh,Stromregelkreis!AP31,IMDIV(1,IMPRODUCT(AC31,J_M+J_G+J_EXT_R)),IMEXP(IMPRODUCT(AC31,T_t_Dreh,-1))) -> -0,00324908369285555-0,00499252654743872j | AE31: -44.49993547 | AF31: -123.0556544 | AH31: 23,94-9,33085893447439j | AI31: 28.19667974 | AJ31: -21.29385648 | AL31: -0,124367624547731-0,0892043439413467j | AM31: -16.30325573 | AN31: -144.3495109 | AO31: 1 | AP31: -0,130301117019362-0,115148517147742j | AQ31: -15.19453227 | AR31: -138.5326173
B32: 0 | D32: feste Anzahl der Intervalle von ω | G32: 50 | H32: [1] | O32: 30 | P32: 68.8 | Q32: =1/1.31 -> 0.7633587786 | R32: 120 | S32: 111.7 | T32: =1/0.51 -> 1.960784314 | U32: 30 | V32: 68.8 | W32: =1/1.31 -> 0.7633587786 | AA32: 3 | AB32: 1000 | AC32: 1000j | AD32: =IMPRODUCT(V_S_Dreh,Stromregelkreis!AP32,IMDIV(1,IMPRODUCT(AC32,J_M+J_G+J_EXT_R)),IMEXP(IMPRODUCT(AC32,T_t_Dreh,-1))) -> -0,00315063873490292-0,00355595081448724j | AE32: -46.46443222 | AF32: -131.5415416 | AH32: 23,94-7,41176470588235j | AI32: 27.97999652 | AJ32: -17.20239537 | AL32: -0,101782162056246-0,0617776695224852j | AM32: -18.4844357 | AN32: -148.743937 | AO32: 1 | AP32: -0,108074021239711-0,076211168158614j | AQ32: -17.57256473 | AR32: -144.8094413
D33: untere Grenze für Exponent von ω | G33: =LOG10(G30) -> 0 | H33: [1] | O33: 31 | P33: 80 | Q33: =1/1.13 -> 0.8849557522 | R33: 124 | S33: 137.2 | T33: =1/0.41 -> 2.43902439 | U33: 31 | V33: 80 | W33: =1/1.13 -> 0.8849557522 | AA33: 3.1 | AB33: 1258.925412 | AC33: 1258,92541179417j | AD33: =IMPRODUCT(V_S_Dreh,Stromregelkreis!AP33,IMDIV(1,IMPRODUCT(AC33,J_M+J_G+J_EXT_R)),IMEXP(IMPRODUCT(AC33,T_t_Dreh,-1))) -> -0,00300452208933849-0,00232496902249132j | AE33: -48.40654403 | AF33: -142.2664628 | AH33: 23,94-5,88737397501524j | AI33: 27.83749815 | AJ33: -13.81612832 | AL33: -0,0856162209344955-0,0379710132423124j | AM33: -20.56904588 | AN33: -156.0825911 | AO33: 1 | AP33: -0,0917500445276931-0,0453363853856013j | AQ33: -19.79909883 | AR33: -153.7046732
D34: obere Grenze für Exponent von ω | G34: =LOG10(G31) -> 5 | H34: [1] | O34: 31 | P34: 80 | Q34: =1/1.13 -> 0.8849557522 | R34: 127 | S34: 160 | T34: =1/0.36 -> 2.777777778 | U34: 31 | V34: 80 | W34: =1/1.13 -> 0.8849557522 | AA34: 3.2 | AB34: =10^AA34 -> 1584.893192 | AC34: =COMPLEX(0,AB34,"j") -> 1584,89319246112j | AD34: =IMPRODUCT(V_S_Dreh,Stromregelkreis!AP34,IMDIV(1,IMPRODUCT(AC34,J_M+J_G+J_EXT_R)),IMEXP(IMPRODUCT(AC34,T_t_Dreh,-1))) -> -0,00278273435412664-0,00124882310443448j | AE34: =20*LOG10(IMABS(AD34)) -> -50.3136906 | AF34: =IMARGUMENT(AD34)*180/PI() -> -155.8306237 | AH34: =IMPRODUCT(P_Anteil_Dreh,IMSUM(1,IMDIV(I_Anteil_Dreh,AC34))) -> 23,94-4,67650737673553j | AI34: =20*LOG10(IMABS(AH34)) -> 27.74512091 | AJ34: -11.053131 | AL34: =IMPRODUCT(AH34,AD34) -> -0,0724587908979174-0,0168833473855928j | AM34: =20*LOG10(IMABS(AL34)) -> -22.56856969 | AN34: -166.8837547 | AO34: 1 | AP34: =IMDIV(AL34,IMSUM(1,AL34)) -> -0,0777621281022467-0,0196177077947847j | AQ34: =20*LOG10(IMABS(AP34)) -> -21.91667264 | AR34: =IMARGUMENT(AP34)*180/PI() -> -165.8409571
D35: Schrittweite Exponent von ω | G35: =ABS((G34-G33)/G32) -> 0.1 | H35: [1] | AA35: =AA34+$G$35 -> 3.3 | AB35: 1995.262315 | AC35: 1995,26231496889j | AD35: =IMPRODUCT(V_S_Dreh,Stromregelkreis!AP35,IMDIV(1,IMPRODUCT(AC35,J_M+J_G+J_EXT_R)),IMEXP(IMPRODUCT(AC35,T_t_Dreh,-1))) -> -0,00244613400456603-0,000299659687923082j | AE35: -52.16570439 | AF35: -173.0158716 | AH35: 23,94-3,71468184923741j | AI35: 27.6858073 | AJ35: =IF(AJ34="","",IF(IMARGUMENT(AH35)*180/PI()>0,"",IMARGUMENT(AH35)*180/PI())) -> -8.820038959 | AL35: -0,0596735884729868+0,00191275665868527j | AM35: -24.47989709 | AN35: -181.8359106 | AO35: 1 | AP35: -0,0634561042084795+0,00216321983473909j | AQ35: -23.94548775 | AR35: 178.0475419
AA36: 3.4 | AB36: 2511.886432 | AC36: 2511,88643150959j | AD36: =IMPRODUCT(V_S_Dreh,Stromregelkreis!AP36,IMDIV(1,IMPRODUCT(AC36,J_M+J_G+J_EXT_R)),IMEXP(IMPRODUCT(AC36,T_t_Dreh,-1))) -> -0,00194397813529232+0,000515906672265726j | AE36: -53.93058854 | AF36: 165.1370524 | AH36: 23,94-2,95067667586708j | AI36: 27.6479618 | AJ36: -7.026439118 | AL36: -0,0450165627741195+0,0180868566762441j | AM36: -26.28262675 | AN36: 158.1106133 | AO36: 1 | AP36: -0,04676310296317+0,0198251126451707j | AQ36: -25.88410108 | AR36: 157.0255927
D37: Nulldurchgang Betrag Regler+Strecke | G37: =MATCH(-0.5,AM2:AM51,-1)+1 -> 25 | H37: [Zeile] | AA37: 3.5 | AB37: 3162.27766 | AC37: 3162,2776601684j | AD37: =IMPRODUCT(V_S_Dreh,Stromregelkreis!AP37,IMDIV(1,IMPRODUCT(AC37,J_M+J_G+J_EXT_R)),IMEXP(IMPRODUCT(AC37,T_t_Dreh,-1))) -> -0,00122332075598054+0,00113317819309947j | AE37: -55.55860468 | AF37: 137.190653 | AH37: 23,94-2,34380579518361j | AI37: 27.62391208 | AJ37: -5.591627857 | AL37: -0,0266303492822119+0,0299955122200369j | AM37: -27.9346926 | AN37: 131.5990251 | AO37: 1 | AP37: -0,0263842361097267+0,0316292180200805j | AQ37: -27.70437087 | AR37: 129.833948
D38: ω der Zeile | G38: =INDEX(AA1:AR51,G37,2) -> 199.5262315 | H38: [1/s] | AA38: 3.6 | AB38: 3981.071706 | AC38: 3981,07170553499j | AD38: =IMPRODUCT(V_S_Dreh,Stromregelkreis!AP38,IMDIV(1,IMPRODUCT(AC38,J_M+J_G+J_EXT_R)),IMEXP(IMPRODUCT(AC38,T_t_Dreh,-1))) -> -0,000270983598956068+0,00139000517603546j | AE38: -56.97767264 | AF38: 101.0315321 | AH38: 23,94-1,86175111982474j | AI38: 27.60866893 | AJ38: -4.446792784 | AL38: -0,00389950366596206+0,0337812279330995j | AM38: -29.36900371 | AN38: 96.58473934 | AO38: 1 | AP38: -0,00276146959680585+0,0340071246743158j | AQ38: -29.34005889 | AR38: 94.64238485
D39: Phase Regler+Strecke | G39: =INDEX(AA1:AR51,G37,14) -> -156.0816267 | H39: [°] | AA39: 3.7 | AB39: 5011.872336 | AC39: 5011,87233627275j | AD39: =IMPRODUCT(V_S_Dreh,Stromregelkreis!AP39,IMDIV(1,IMPRODUCT(AC39,J_M+J_G+J_EXT_R)),IMEXP(IMPRODUCT(AC39,T_t_Dreh,-1))) -> 0,000743593040776873+0,000995492954030346j | AE39: -58.11370472 | AF39: 53.24175368 | AH39: 23,94-1,47884148050634j | AI39: 27.59902355 | AJ39: -3.534830681 | AL39: 0,0192737936701702+0,0227324450861698j | AM39: -30.51468117 | AN39: 49.706923 | AO39: 1 | AP39: 0,0193970962517942+0,0218699840996875j | AQ39: -30.68265801 | AR39: 48.42929055
D40: Punkt auf Nulldurchgang | G40: -90 | H40: [°] | AA40: 3.8 | AB40: 6309.573445 | AC40: 6309,57344480197j | AD40: =IMPRODUCT(V_S_Dreh,Stromregelkreis!AP40,IMDIV(1,IMPRODUCT(AC40,J_M+J_G+J_EXT_R)),IMEXP(IMPRODUCT(AC40,T_t_Dreh,-1))) -> 0,00108675202030491-0,000234306996363932j | AE40: -59.08006224 | AF40: -12.16689897 | AH40: 23,94-1,17468554264764j | AI40: 27.59292668 | AJ40: -2.809130589 | AL40: 0,0257416063249296-0,00688590137964782j | AM40: -31.48713555 | AN40: -14.97602956 | AO40: 1 | AP40: 0,0251395378587852-0,00654433139869716j | AQ40: -31.7080907 | AR40: -14.5914033
D41: 180°-Durchgang Phase Regler+Strecke | G41: =MATCH(0,AO54:AO103,-1) -> 35 | H41: [Zeile] | AA41: 3.9 | AB41: 7943.282347 | AC41: 7943,28234724286j | AD41: =IMPRODUCT(V_S_Dreh,Stromregelkreis!AP41,IMDIV(1,IMPRODUCT(AC41,J_M+J_G+J_EXT_R)),IMEXP(IMPRODUCT(AC41,T_t_Dreh,-1))) -> -0,000195374889874589-0,00086820152903677j | AE41: -61.01304846 | AF41: -102.6822394 | AH41: 23,94-0,933085893447437j | AI41: 27.58907541 | AJ41: -2.232031596 | AL41: -0,00548738146301137-0,0206024430514644j | AM41: -33.42397304 | AN41: -104.914271 | AO41: 1 | AP41: -0,00508631848954618-0,0208214890917613j | AQ41: -33.37804241 | AR41: -103.7274944
D42: ω der Zeile | G42: =INDEX(AA2:AR51,G41,2) -> 2511.886432 | H42: [1/s] | AA42: 4 | AB42: 10000 | AC42: 10000j | AD42: =IMPRODUCT(V_S_Dreh,Stromregelkreis!AP42,IMDIV(1,IMPRODUCT(AC42,J_M+J_G+J_EXT_R)),IMEXP(IMPRODUCT(AC42,T_t_Dreh,-1))) -> -0,000432228898932447+0,000270462661000543j | AE42: -65.85073638 | AF42: 147.9641617 | AH42: 23,94-0,741176470588235j | AI42: 27.58664367 | AJ42: -1.773296716 | AL42: -0,0101470992799365+0,00679523399414999j | AM42: -38.26409272 | AN42: 146.190865 | AO42: 1 | AP42: -0,0102035107853414+0,00693493874948957j | AQ42: -38.17571058 | AR42: 145.7975418
D43: Maxwert ω | G43: =G31 -> 100000 | H43: [1/s] | AA43: 4.1 | AB43: 12589.25412 | AC43: 12589,2541179417j | AD43: =IMPRODUCT(V_S_Dreh,Stromregelkreis!AP43,IMDIV(1,IMPRODUCT(AC43,J_M+J_G+J_EXT_R)),IMEXP(IMPRODUCT(AC43,T_t_Dreh,-1))) -> 0,000206484791894229+0,000125813090089528j | AE43: -72.33104767 | AF43: 31.35433732 | AH43: 23,94-0,588737397501524j | AI43: 27.58510864 | AJ43: -1.408745633 | AL43: 0,00501731678917878+0,00289040005773985j | AM43: -44.74593903 | AN43: 29.94559169 | AO43: 1 | AP43: 0,00500049883974338+0,00286158911648684j | AQ43: -44.78944585 | AR43: 29.78081118
AA44: 4.2 | AB44: 15848.93192 | AC44: 15848,9319246112j | AD44: =IMPRODUCT(V_S_Dreh,Stromregelkreis!AP44,IMDIV(1,IMPRODUCT(AC44,J_M+J_G+J_EXT_R)),IMEXP(IMPRODUCT(AC44,T_t_Dreh,-1))) -> -0,0000204431612577652-0,000114691875281592j | AE44: -78.67351378 | AF44: -100.106501 | AH44: 23,94-0,467650737673553j | AI44: 27.58413982 | AJ44: -1.119089649 | AL44: -0,000543045020591499-0,00273616323479874j | AM44: -51.08937396 | AN44: -101.2255907 | AO44: 1 | AP44: -0,000535841335745589-0,00273911684792638j | AQ44: -51.0846884 | AR44: -101.0687353
AA45: 4.3 | AB45: 19952.62315 | AC45: 19952,6231496889j | AD45: =IMPRODUCT(V_S_Dreh,Stromregelkreis!AP45,IMDIV(1,IMPRODUCT(AC45,J_M+J_G+J_EXT_R)),IMEXP(IMPRODUCT(AC45,T_t_Dreh,-1))) -> -0,0000125163538276199+0,0000588118183101296j | AE45: -84.41832945 | AF45: 102.0144618 | AH45: 23,94-0,371468184923741j | AI45: 27.58352843 | AJ45: -0.8889662217 | AL45: -0,000277794791233492+0,00141260435758271j | AM45: -56.83480102 | AN45: 101.1254956 | AO45: 1 | AP45: -0,000275874871637083+0,00141338669108931j | AQ45: -56.83239646 | AR45: 101.0445369
AA46: 4.4 | AB46: 25118.86432 | AC46: 25118,8643150959j | AD46: =IMPRODUCT(V_S_Dreh,Stromregelkreis!AP46,IMDIV(1,IMPRODUCT(AC46,J_M+J_G+J_EXT_R)),IMEXP(IMPRODUCT(AC46,T_t_Dreh,-1))) -> -2,06190594997504E-06-0,0000338132174526132j | AE46: -89.40215088 | AF46: -93.48953491 | AH46: 23,94-0,295067667586708j | AI46: 27.58314262 | AJ46: -0.7061518803 | AL46: -0,0000593392156497472-0,000808880024036118j | AM46: -61.81900825 | AN46: -94.19568679 | AO46: 1 | AP46: -0,0000586883340477112-0,000808975499828813j | AQ46: -61.81849567 | AR46: -94.14933864
AA47: 4.5 | AB47: 31622.7766 | AC47: 31622,7766016838j | AD47: =IMPRODUCT(V_S_Dreh,Stromregelkreis!AP47,IMDIV(1,IMPRODUCT(AC47,J_M+J_G+J_EXT_R)),IMEXP(IMPRODUCT(AC47,T_t_Dreh,-1))) -> 0,0000201181429783024+7,34287673664778E-06j | AE47: -93.38511486 | AF47: 20.05146529 | AH47: 23,94-0,234380579518362j | AI47: 27.58289918 | AJ47: -0.5609268576 | AL47: 0,000483349370605427+0,00017107316706526j | AM47: -65.80221568 | AN47: 19.49053843 | AO47: 1 | AP47: 0,000483145080491559+0,000170907905677547j | AQ47: -65.80641311 | AR47: 19.4807414
AA48: 4.6 | AB48: 39810.71706 | AC48: 39810,7170553497j | AD48: =IMPRODUCT(V_S_Dreh,Stromregelkreis!AP48,IMDIV(1,IMPRODUCT(AC48,J_M+J_G+J_EXT_R)),IMEXP(IMPRODUCT(AC48,T_t_Dreh,-1))) -> 6,95881836801951E-06+0,0000138842207823912j | AE48: -96.17628567 | AF48: 63.37981656 | AH48: 23,94-0,186175111982475j | AI48: 27.58274556 | AJ48: -0.4455652939 | AL48: 0,000169179008089338+0,000331092686741514j | AM48: -68.5935401 | AN48: 62.93425126 | AO48: 1 | AP48: 0,000169259958130521+0,000330980651028981j | AQ48: -68.59500992 | AR48: 62.91528426
AA49: 4.7 | AB49: 50118.72336 | AC49: 50118,7233627272j | AD49: =IMPRODUCT(V_S_Dreh,Stromregelkreis!AP49,IMDIV(1,IMPRODUCT(AC49,J_M+J_G+J_EXT_R)),IMEXP(IMPRODUCT(AC49,T_t_Dreh,-1))) -> 0,0000108046737133383+1,99688338236829E-06j | AE49: -99.18190133 | AF49: 10.47105916 | AH49: 23,94-0,147884148050635j | AI49: 27.58264864 | AJ49: -0.3539277263 | AL49: 0,000258959196095077+0,0000462075482068347j | AM49: -71.59925269 | AN49: 10.11713143 | AO49: 1 | AP49: 0,000258894287070731+0,00004618362566201j | AQ49: -71.6015017 | AR49: 10.11448462
AA50: 4.8 | AB50: 63095.73445 | AC50: 63095,7344480192j | AD50: =IMPRODUCT(V_S_Dreh,Stromregelkreis!AP50,IMDIV(1,IMPRODUCT(AC50,J_M+J_G+J_EXT_R)),IMEXP(IMPRODUCT(AC50,T_t_Dreh,-1))) -> -4,73788670743459E-06-3,60423155425751E-06j | AE50: -104.5053012 | AF50: -142.7388238 | AH50: 23,94-0,117468554264765j | AI50: 27.58258748 | AJ50: -0.2811361057 | AL50: -0,000113848391645898-0,0000857287507071322j | AM50: -76.92271367 | AN50: -143.0199599 | AO50: 1 | AP50: -0,000113854002648613-0,0000857482735715748j | AQ50: -76.92172477 | AR50: -143.0150475
AA51: 4.9 | AB51: 79432.82347 | AC51: 79432,823472428j | AD51: =IMPRODUCT(V_S_Dreh,Stromregelkreis!AP51,IMDIV(1,IMPRODUCT(AC51,J_M+J_G+J_EXT_R)),IMEXP(IMPRODUCT(AC51,T_t_Dreh,-1))) -> 2,12533439491216E-06-3,29282238546064E-06j | AE51: -108.1361654 | AF51: -57.15999838 | AH51: 23,94-0,0933085893447444j | AI51: 27.5825489 | AJ51: -0.2233150079 | AL51: 0,000050573256802447-0,0000790284798622028j | AM51: -80.55361655 | AN51: -57.38331339 | AO51: 1 | AP51: 0,0000505769438306061-0,0000790204865198586j | AQ51: -80.55405584 | AR51: -57.37878562
AO52: 1
AA53: ωx | AB53: ω | AC53: s=jω | AD53: Strecke H(jω) | AE53: Betrag Strecke [dB] | AF53: Phase Strecke [°] | AH53: Regler H(jw) | AI53: Betrag Regler [dB] | AJ53: Phase Regler [°] | AL53: Regler+Strecke H(jw) | AM53: Betrag Regler+Strecke [dB] | AN53: Phase Regler+Strecke [°] | AO53: 1 | AP53: Geschlossener Kreis | AQ53: Betrag Kreis [dB] | AR53: Phase Kreis [°]
AB54: =10^AA2 -> 1 | AF54: =IMARGUMENT(AD2)*180/PI() -> -90.05422981 | AJ54: =IF(IMARGUMENT(AH2)*180/PI()>0,"",IMARGUMENT(AH2)*180/PI()) -> -89.81493528 | AN54: =AF2+AJ2 -> -179.8691651 | AO54: =IF(AN54<0,1,0) -> 1 | AR54: =IMARGUMENT(AP2)*180/PI() -> -3.664366174e-06
AB55: =10^AA3 -> 1.258925412 | AF55: -90.06827056 | AJ55: =IF(AJ2="","",IF(IMARGUMENT(AH3)*180/PI()>0,"",IMARGUMENT(AH3)*180/PI())) -> -89.76701779 | AN55: =AF3+AJ3 -> -179.8352884 | AO55: =IF(AO54=0,0,IF(AN55<0,1,0)) -> 1 | AR55: -7.311485008e-06
AB56: 1.584893192 | AF56: -90.0859461 | AJ56: -89.70669372 | AN56: -179.7926398 | AO56: =IF(AO55=0,0,IF(AN56<0,1,0)) -> 1 | AR56: -1.45886887e-05
AB57: 1.995262315 | AF57: -90.10819684 | AJ57: -89.63075116 | AN57: -179.738948 | AO57: 1 | AR57: -2.91093935e-05
AB58: 2.511886432 | AF58: -90.136206 | AJ58: -89.53514701 | AN58: -179.671353 | AO58: 1 | AR58: -5.808445776e-05
AB59: 3.16227766 | AF59: -90.17146171 | AJ59: -89.41479227 | AN59: -179.586254 | AO59: 1 | AR59: -0.0001159050564
AB60: 3.981071706 | AF60: -90.21583461 | AJ60: -89.2632821 | AN60: -179.4791167 | AO60: 1 | AR60: -0.0002312968081
AB61: 5.011872336 | AF61: -90.27167405 | AJ61: -89.07255701 | AN61: -179.3442311 | AO61: 1 | AR61: -0.0004616110619
AB62: 6.309573445 | AF62: -90.34192649 | AJ62: -88.83247809 | AN62: -179.1744046 | AO62: 1 | AR62: -0.0009213932768
AB63: 7.943282347 | AF63: -90.43027917 | AJ63: -88.53029596 | AN63: -178.9605751 | AO63: 1 | AR63: -0.001839553614
AB64: 10 | AF64: -90.54133031 | AJ64: -88.14998951 | AN64: -178.6913198 | AO64: 1 | AR64: -0.003673972044
AB65: 12.58925412 | AF65: -90.68078321 | AJ65: -87.67144791 | AN65: -178.3522311 | AO65: 1 | AR65: -0.007341855738
AB66: 15.84893192 | AF66: -90.85565214 | AJ66: -87.06946974 | AN66: -177.9251219 | AO66: 1 | AR66: -0.01468470314
AB67: 19.95262315 | AF67: -91.07445228 | AJ67: -86.31255997 | AN67: -177.3870122 | AO67: 1 | AR67: -0.02941290437
AB68: 25.11886432 | AF68: -91.34732006 | AJ68: -85.36152824 | AN68: -176.7088483 | AO68: 1 | AR68: -0.05904381418
AB69: 31.6227766 | AF69: -91.68598444 | AJ69: -84.16794485 | AN69: -175.8539293 | AO69: 1 | AR69: -0.1189377183
AB70: 39.81071706 | AF70: -92.10351499 | AJ70: -82.67262458 | AN70: -174.7761396 | AO70: 1 | AR70: -0.2408893737
AB71: 50.11872336 | AF71: -92.61390298 | AJ71: -80.80453253 | AN71: -173.4184355 | AO71: 1 | AR71: -0.4920147885
AB72: 63.09573445 | AF72: -93.23192593 | AJ72: -78.48091415 | AN72: -171.7128401 | AO72: 1 | AR72: -1.018282447
AB73: 79.43282347 | AF73: -93.97440351 | AJ73: -75.61012418 | AN73: -169.5845277 | AO73: 1 | AR73: -2.152308976
AB74: 100 | AF74: -94.86425546 | AJ74: -72.0995434 | AN74: -166.9637989 | AO74: 1 | AR74: -4.711814077
AB75: 125.8925412 | AF75: -95.9374601 | AJ75: -67.87172303 | AN75: -163.8091831 | AO75: 1 | AR75: -10.97394985
AB76: 158.4893192 | AF76: -97.25016009 | AJ76: -62.89116259 | AN76: -160.1413227 | AO76: 1 | AR76: -28.33555391
AB77: 199.5262315 | AF77: -98.88218147 | AJ77: -57.1994452 | AN77: -156.0816267 | AO77: 1 | AR77: -71.8587499
AB78: 251.1886432 | AF78: -100.9367051 | AJ78: -50.94622168 | AN78: -151.8829268 | AO78: 1 | AR78: -109.6366251
AB79: 316.227766 | AF79: -103.539867 | AJ79: -44.39300836 | AN79: -147.9328753 | AO79: 1 | AR79: -123.2422539
AB80: 398.1071706 | AF80: -106.8438773 | AJ80: -37.87127213 | AN80: -144.7151495 | AO80: 1 | AR80: -128.3673379
AB81: 501.1872336 | AF81: -111.0344792 | AJ81: -31.70479773 | AN81: -142.7392769 | AO81: 1 | AR81: -131.2629334
AB82: 630.9573445 | AF82: -116.3420092 | AJ82: -26.13621744 | AN82: -142.4782267 | AO82: 1 | AR82: -134.2647292
AB83: 794.3282347 | AF83: -123.0556544 | AJ83: -21.29385648 | AN83: -144.3495109 | AO83: 1 | AR83: -138.5326173
AB84: 1000 | AF84: -131.5415416 | AJ84: -17.20239537 | AN84: -148.743937 | AO84: 1 | AR84: -144.8094413
AB85: 1258.925412 | AF85: -142.2664628 | AJ85: -13.81612832 | AN85: -156.0825911 | AO85: 1 | AR85: -153.7046732
AB86: 1584.893192 | AF86: =IMARGUMENT(AD34)*180/PI() -> -155.8306237 | AJ86: -11.053131 | AN86: -166.8837547 | AO86: 1 | AR86: =IMARGUMENT(AP34)*180/PI() -> -165.8409571
AB87: 1995.262315 | AF87: -173.0158716 | AJ87: =IF(AJ34="","",IF(IMARGUMENT(AH35)*180/PI()>0,"",IMARGUMENT(AH35)*180/PI())) -> -8.820038959 | AN87: -181.8359106 | AO87: 1 | AR87: 178.0475419
AB88: 2511.886432 | AF88: 165.1370524 | AJ88: -7.026439118 | AN88: 158.1106133 | AO88: 0 | AR88: 157.0255927
AB89: 3162.27766 | AF89: 137.190653 | AJ89: -5.591627857 | AN89: 131.5990251 | AO89: 0 | AR89: 129.833948
AB90: 3981.071706 | AF90: 101.0315321 | AJ90: -4.446792784 | AN90: 96.58473934 | AO90: 0 | AR90: 94.64238485
AB91: 5011.872336 | AF91: 53.24175368 | AJ91: -3.534830681 | AN91: 49.706923 | AO91: 0 | AR91: 48.42929055
AB92: 6309.573445 | AF92: -12.16689897 | AJ92: -2.809130589 | AN92: -14.97602956 | AO92: 0 | AR92: -14.5914033
AB93: 7943.282347 | AF93: -102.6822394 | AJ93: -2.232031596 | AN93: -104.914271 | AO93: 0 | AR93: -103.7274944
AB94: 10000 | AF94: 147.9641617 | AJ94: -1.773296716 | AN94: 146.190865 | AO94: 0 | AR94: 145.7975418
AB95: 12589.25412 | AF95: 31.35433732 | AJ95: -1.408745633 | AN95: 29.94559169 | AO95: 0 | AR95: 29.78081118
AB96: 15848.93192 | AF96: -100.106501 | AJ96: -1.119089649 | AN96: -101.2255907 | AO96: 0 | AR96: -101.0687353
AB97: 19952.62315 | AF97: 102.0144618 | AJ97: -0.8889662217 | AN97: 101.1254956 | AO97: 0 | AR97: 101.0445369
AB98: 25118.86432 | AF98: -93.48953491 | AJ98: -0.7061518803 | AN98: -94.19568679 | AO98: 0 | AR98: -94.14933864
AB99: 31622.7766 | AF99: 20.05146529 | AJ99: -0.5609268576 | AN99: 19.49053843 | AO99: 0 | AR99: 19.4807414
AB100: 39810.71706 | AF100: 63.37981656 | AJ100: -0.4455652939 | AN100: 62.93425126 | AO100: 0 | AR100: 62.91528426
AB101: 50118.72336 | AF101: 10.47105916 | AJ101: -0.3539277263 | AN101: 10.11713143 | AO101: 0 | AR101: 10.11448462
AB102: 63095.73445 | AF102: -142.7388238 | AJ102: -0.2811361057 | AN102: -143.0199599 | AO102: 0 | AR102: -143.0150475
AB103: 79432.82347 | AF103: -57.15999838 | AJ103: -0.2233150079 | AN103: -57.38331339 | AO103: 0 | AR103: -57.37878562

Sheet Lageregelkreis (hidden)
D1: Funktion | G1: gewählt | H1: [ ] | I1: umgerechnet | J1: [ ] | K1: ω | L1: [ ] | O1: Index 637 | P1: kp 637 | Q1: TN 637 | R1: Index 631 | S1: kp 631 | T1: TN 631 | U1: Index 635 | V1: kp 635 | W1: TN 635 | AA1: ωx | AB1: ω | AC1: s=jω | AD1: Strecke H(jω) | AE1: Betrag Strecke [dB] | AF1: Phase Strecke [°] | AH1: Regler H(jw) | AI1: Betrag Regler [dB] | AJ1: Phase Regler [°] | AL1: Regler+Strecke H(jw) | AM1: Betrag Regler+Strecke [dB] | AN1: Phase Regler+Strecke [°] | AO1: Anzeigen? | AP1: Geschlossener Kreis | AQ1: Betrag Kreis [dB] | AR1: Phase Kreis [°]
D2: Reglertyp: | G2: =Hardware!B68 -> 638A/06-3-F… | I2: =LEFT(G2,3) -> 638 | O2: 0 | P2: 0.25 | Q2: 1e-05 | R2: 0 | S2: 0.25 | T2: 1e-05 | U2: 0 | V2: 0.25 | W2: 1e-05 | AA2: =$G$33 -> 0 | AB2: =10^AA2 -> 1 | AC2: =COMPLEX(0,AB2,"j") -> j | AD2: =IMPRODUCT(V_S_Lage,Drehzahlregelkreis!AP2,IMEXP(IMPRODUCT(AC2,T_t_Lage,-1)),IMDIV(1,AC2)) -> -0,00184011445247196-1,00002631454291j | AE2: =20*LOG10(IMABS(AD2)) -> 0.0002432667128 | AF2: =IMARGUMENT(AD2)*180/PI() -> -90.1054279 | AH2: =IMPRODUCT(P_Anteil_Lage,IMSUM(1,IMDIV(1,IMPRODUCT(AC2,I_Anteil_Lage)))) -> 155,26150574278-11999,9857657229j | AI2: =20*LOG10(IMABS(AH2)) -> 81.58434158 | AJ2: =IF(IMARGUMENT(AH2)*180/PI()>0,"",IMARGUMENT(AH2)*180/PI()) -> -89.2587214 | AL2: =IMPRODUCT(AH2,AD2) -> -12000,5872388039-133,184244141371j | AM2: =20*LOG10(IMABS(AL2)) -> 81.58458485 | AN2: =AF2+AJ2 -> -179.3641493 | AO2: 1 | AP2: =IMDIV(AL2,IMSUM(1,AL2)) -> 1,00008332593496-9,24840283636359E-07j | AQ2: =20*LOG10(IMABS(AP2)) -> 0.0007237297265 | AR2: =IMARGUMENT(AP2)*180/PI() -> -5.298502995e-05
D3: Motortyp: | G3: =Hardware!B52 -> AC M2n0290-4/1-3 | O3: =O2+1 -> 1 | P3: =P2/0.9 -> 0.2777777778 | Q3: 0.1 | R3: =R2+1 -> 1 | S3: =S2/0.9 -> 0.2777777778 | T3: 0.1 | U3: =U2+1 -> 1 | V3: =V2/0.9 -> 0.2777777778 | W3: 0.1 | AA3: =AA2+$G$35 -> 0.1 | AB3: 1.258925412 | AC3: 1,25892541179417j | AD3: =IMPRODUCT(V_S_Lage,Drehzahlregelkreis!AP3,IMEXP(IMPRODUCT(AC3,T_t_Lage,-1)),IMDIV(1,AC3)) -> -0,00184018139910516-0,79436136310643j | AE3: -1.999614446 | AF3: -90.13272856 | AH3: 155,26150574278-9531,92751000316j | AI3: 79.58476672 | AJ3: =IF(AJ2="","",IF(IMARGUMENT(AH3)*180/PI()>0,"",IMARGUMENT(AH3)*180/PI())) -> -89.06681598 | AL3: -7572,08063921265-105,793265638265j | AM3: 77.58515228 | AN3: -179.1995445 | AO3: 1 | AP3: 1,00013205575685-1,84525967015948E-06j | AQ3: 0.001146946016 | AR3: -0.0001057116314
D4: Abtastzeit | G4: =IF(I2="637",106,1840) -> 1840 | H4: [µs] | I4: =G4/1000000 -> 0.00184 | J4: [s] | K4: =1/I4 -> 543.4782609 | L4: [1/s] | O4: =O3+1 -> 2 | P4: =P3/0.9 -> 0.3086419753 | Q4: =Q3/0.9 -> 0.1111111111 | R4: =R3+1 -> 2 | S4: =S3/0.9 -> 0.3086419753 | T4: =T3/0.9 -> 0.1111111111 | U4: =U3+1 -> 2 | V4: =V3/0.9 -> 0.3086419753 | W4: =W3/0.9 -> 0.1111111111 | AA4: 0.2 | AB4: 1.584893192 | AC4: 1,58489319246111j | AD4: =IMPRODUCT(V_S_Lage,Drehzahlregelkreis!AP4,IMEXP(IMPRODUCT(AC4,T_t_Lage,-1)),IMDIV(1,AC4)) -> -0,00184028750866035-0,630999051311511j | AE4: -3.999388934 | AF4: -90.16710074 | AH4: 155,26150574278-7571,47915254063j | AI4: 77.58544044 | AJ4: -88.82525168 | AL4: -4777,88188808762-84,0361643223881j | AM4: 73.58605151 | AN4: -178.9923524 | AO4: 1 | AP4: 1,00020927681099-3,68165277881766E-06j | AQ4: 0.001817565162 | AR4: -0.0002108990296
B5: kp | D5: Totzeit Lageregler | G5: =G4/2*2 -> 1840 | H5: [µs] | I5: =G5/1000000 -> 0.00184 | J5: [s] | K5: =1/T_t_Lage -> 543.4782609 | L5: [1/s] | O5: 3 | P5: 0.3429355281 | Q5: =Q4/0.9 -> 0.1234567901 | R5: 3 | S5: 0.3429355281 | T5: =T4/0.9 -> 0.1234567901 | U5: 3 | V5: 0.3429355281 | W5: =W4/0.9 -> 0.1234567901 | AA5: 0.3 | AB5: 1.995262315 | AC5: 1,99526231496888j | AD5: =IMPRODUCT(V_S_Lage,Drehzahlregelkreis!AP5,IMEXP(IMPRODUCT(AC5,T_t_Lage,-1)),IMDIV(1,AC5)) -> -0,00184045569677763-0,50123974075222j | AE5: -5.999031514 | AF5: -90.21037811 | AH5: 155,26150574278-6014,23966948929j | AI5: 75.586508 | AJ5: -88.52120067 | AL5: -3014,86168467926-66,7542952258128j | AM5: 69.58747649 | AN5: -178.7315788 | AO5: 1 | AP5: 1,00033163753447-7,34546976609923E-06j | AQ5: 0.002880089712 | AR5: -0.000420724888
B6: 73.93405035 | O6: 4 | P6: 0.3810394757 | Q6: 0.1371742112 | R6: 4 | S6: 0.3810394757 | T6: 0.1371742112 | U6: 4 | V6: 0.3810394757 | W6: 0.1371742112 | AA6: 0.4 | AB6: 2.511886432 | AC6: 2,51188643150958j | AD6: =IMPRODUCT(V_S_Lage,Drehzahlregelkreis!AP6,IMEXP(IMPRODUCT(AC6,T_t_Lage,-1)),IMDIV(1,AC6)) -> -0,0018407222966852-0,398173275771341j | AE6: -7.998465025 | AF6: -90.26487179 | AH6: 155,26150574278-4777,28037987418j | AI6: 73.58819943 | AJ6: -88.13854365 | AL6: -1902,4711714481-53,0273358300424j | AM6: 65.5897344 | AN6: -178.4034154 | AO6: 1 | AP6: 1,00052549988924-0,0000146548943386646j | AQ6: 0.00456323609 | AR6: -0.0008392225834
D7: interner Faktor kp | G7: =IF(I2="637",8.41,IF(I2="635",12.28,2.1)) -> 2.1 | H7: [1/s] | J7: [1] | O7: 5 | P7: 0.4233771952 | Q7: 0.1524157903 | R7: 5 | S7: 0.4233771952 | T7: 0.1524157903 | U7: 5 | V7: 0.4233771952 | W7: 0.1524157903 | AA7: 0.5 | AB7: 3.16227766 | AC7: 3,16227766016838j | AD7: =IMPRODUCT(V_S_Lage,Drehzahlregelkreis!AP7,IMEXP(IMPRODUCT(AC7,T_t_Lage,-1)),IMDIV(1,AC7)) -> -0,00184114492881339-0,316310992870564j | AE7: -9.997567155 | AF7: -90.33349661 | AH7: 155,26150574278-3794,72869092839j | AI7: 71.59087881 | AJ7: -87.65704726 | AL7: -1200,60025883591-42,124275550552j | AM7: 61.59331165 | AN7: -177.9905439 | AO7: 1 | AP7: 1,00083258437946-0,0000292364173490376j | AQ7: 0.007228730895 | AR7: -0.0016737298
D8: interner Faktor TN | G8: =IF(I3="637",0.1,0.8) -> 0.8 | H8: [s] | O8: 6 | P8: 0.4704191058 | Q8: 0.1693508781 | R8: 6 | S8: 0.4704191058 | T8: 0.1693508781 | U8: 6 | V8: 0.4704191058 | W8: 0.1693508781 | AA8: 0.6 | AB8: 3.981071706 | AC8: 3,98107170553497j | AD8: =IMPRODUCT(V_S_Lage,Drehzahlregelkreis!AP8,IMEXP(IMPRODUCT(AC8,T_t_Lage,-1)),IMDIV(1,AC8)) -> -0,00184181500621166-0,251293430156662j | AE8: -11.99614402 | AF8: -90.41993273 | AH8: 155,26150574278-3014,26014232273j | AI8: 69.59512196 | AJ8: -87.05135799 | AL8: -757,749733519951-33,4644867866358j | AM8: 57.59897794 | AN8: -177.4712907 | AO8: 1 | AP8: 1,00131886176573-0,0000583218337288072j | AQ8: 0.01144795501 | AR8: -0.003337193625
O9: 7 | P9: 0.5226878953 | Q9: 0.1881676423 | R9: 7 | S9: 0.5226878953 | T9: 0.1881676423 | U9: 7 | V9: 0.5226878953 | W9: 0.1881676423 | AA9: 0.7 | AB9: 5.011872336 | AC9: 5,01187233627272j | AD9: =IMPRODUCT(V_S_Lage,Drehzahlregelkreis!AP9,IMEXP(IMPRODUCT(AC9,T_t_Lage,-1)),IMDIV(1,AC9)) -> -0,00184287763705857-0,199658171678681j | AE9: -13.99388822 | AF9: -90.52883441 | AH9: 155,26150574278-2394,31193785098j | AI9: 67.60183842 | AJ9: -86.28979364 | AL9: -478,330071896596-26,5868044422745j | AM9: 53.6079502 | AN9: -176.8186281 | AO9: 1 | AP9: 1,0020885070433-0,000116327739662147j | AQ9: 0.01812168322 | AR9: -0.00665119742
O10: 8 | P10: 0.5807643281 | Q10: 0.2090751581 | R10: 8 | S10: 0.5807643281 | T10: 0.2090751581 | U10: 8 | V10: 0.5807643281 | W10: 0.2090751581 | AA10: 0.8 | AB10: 6.309573445 | AC10: 6,30957344480193j | AD10: =IMPRODUCT(V_S_Lage,Drehzahlregelkreis!AP10,IMEXP(IMPRODUCT(AC10,T_t_Lage,-1)),IMDIV(1,AC10)) -> -0,00184456337617648-0,158655464303843j | AE10: -15.99031232 | AF10: -90.66610334 | AH10: 155,26150574278-1901,86957497244j | AI10: 65.61246206 | AJ10: -85.33293673 | AL10: -302,028390149828-21,1249673178761j | AM10: 49.62214974 | AN10: -175.9990401 | AO10: 1 | AP10: 1,00330566649385-0,00023197844100875j | AQ10: 0.02866553362 | AR10: -0.01324759325
O11: 9 | P11: 0.6452936979 | Q11: 0.2323057313 | R11: 9 | S11: 0.6452936979 | T11: 0.2323057313 | U11: 9 | V11: 0.6452936979 | W11: 0.2323057313 | AA11: 0.9 | AB11: 7.943282347 | AC11: 7,94328234724281j | AD11: =IMPRODUCT(V_S_Lage,Drehzahlregelkreis!AP11,IMEXP(IMPRODUCT(AC11,T_t_Lage,-1)),IMDIV(1,AC11)) -> -0,00184723907179043-0,126101789619881j | AE11: -17.98464316 | AF11: -90.83925401 | AH11: 155,26150574278-1510,70870216367j | AI11: 63.62924634 | AJ11: -84.13208827 | AL11: -190,78987605692-16,7881135925114j | AM11: 45.64460318 | AN11: -174.9713423 | AO11: 1 | AP11: 1,00522807774708-0,000462456506700642j | AQ11: 0.04529313279 | AR11: -0.02635899729
O12: 10 | P12: 0.7169929977 | Q12: 0.2581174792 | R12: 10 | S12: 0.7169929977 | T12: 0.2581174792 | U12: 10 | V12: 0.7169929977 | W12: 0.2581174792 | AA12: 1 | AB12: 10 | AC12: 10j | AD12: =IMPRODUCT(V_S_Lage,Drehzahlregelkreis!AP12,IMEXP(IMPRODUCT(AC12,T_t_Lage,-1)),IMDIV(1,AC12)) -> -0,00185148977292002-0,100263596143625j | AE12: -19.97565376 | AF12: -91.05791632 | AH12: 155,26150574278-1199,99857657229j | AI12: 61.65571547 | AJ12: -82.62775645 | AL12: -120,60363774438-13,345291816403j | AM12: 41.68006172 | AN12: -173.6856728 | AO12: 1 | AP12: 1,00825813637814-0,000921437189573286j | AQ12: 0.07143833393 | AR12: -0.05236203453
O13: 11 | P13: 0.7966588863 | Q13: 0.2867971991 | R13: 11 | S13: 0.7966588863 | T13: 0.2867971991 | U13: 11 | V13: 0.7966588863 | W13: 0.2867971991 | AA13: 1.1 | AB13: 12.58925412 | AC13: 12,5892541179417j | AD13: =IMPRODUCT(V_S_Lage,Drehzahlregelkreis!AP13,IMEXP(IMPRODUCT(AC13,T_t_Lage,-1)),IMDIV(1,AC13)) -> -0,00185825187936558-0,0797650063406672j | AE13: -21.96139551 | AF13: -91.33455433 | AH13: 155,26150574278-953,192751000314j | AI13: 59.69733854 | AJ13: -80.74858245 | AL13: -76,3199408122577-10,6131627690904j | AM13: 37.73594303 | AN13: -172.0831368 | AO13: 1 | AP13: 1,01301821992383-0,00183436797115646j | AQ13: 0.1123593715 | AR13: -0.1037507775
O14: 12 | P14: 0.8851765404 | Q14: 0.3186635545 | R14: 12 | S14: 0.8851765404 | T14: 0.3186635545 | U14: 12 | V14: 0.8851765404 | W14: 0.3186635545 | AA14: 1.2 | AB14: 15.84893192 | AC14: 15,8489319246111j | AD14: =IMPRODUCT(V_S_Lage,Drehzahlregelkreis!AP14,IMEXP(IMPRODUCT(AC14,T_t_Lage,-1)),IMDIV(1,AC14)) -> -0,00186903262169819-0,0635145958130156j | AE14: -23.93877013 | AF14: -91.68554622 | AH14: 155,26150574278-757,147915254063j | AI14: 57.76250025 | AJ14: -78.41151994 | AL14: -48,3801326271564-8,44623762951225j | AM14: 33.82373011 | AN14: -170.0970662 | AO14: 1 | AP14: 1,0204558360345-0,00364656750578036j | AQ14: 0.1759397331 | AR14: -0.2047438322
D15: Verstärkung der Stecke | G15: 1 | H15: [1/s] | O15: 13 | P15: 0.9835294893 | Q15: 0.3540706161 | R15: 13 | S15: 0.9835294893 | T15: 0.3540706161 | U15: 13 | V15: 0.9835294893 | W15: 0.3540706161 | AA15: 1.3 | AB15: 19.95262315 | AC15: 19,9526231496888j | AD15: =IMPRODUCT(V_S_Lage,Drehzahlregelkreis!AP15,IMEXP(IMPRODUCT(AC15,T_t_Lage,-1)),IMDIV(1,AC15)) -> -0,00188627944106174-0,0506473697394454j | AE15: -25.90284228 | AF15: -92.13290292 | AH15: 155,26150574278-601,423966948929j | AI15: 55.86381273 | AJ15: -75.52476485 | AL15: -30,7534086104973-6,72913322344004j | AM15: 29.96097045 | AN15: -167.6576678 | AO15: 1 | AP15: 1,03197412140046-0,00723137726580383j | AQ15: 0.2735893789 | AR15: -0.4014835329
D16: Summenzeitkonstante T_Ersatz_D+T_t_Lage | G16: =1/Drehzahlregelkreis!G38+T_t_Lage -> 0.006851872336 | H16: [s] | I16: =G16*1000 -> 6.851872336 | J16: [ms] | K16: =1/G16 -> 145.9455096 | L16: [1/s] | O16: 14 | P16: 1.092810544 | Q16: 0.3934117957 | R16: 14 | S16: 1.092810544 | T16: 0.3934117957 | U16: 14 | V16: 1.092810544 | W16: 0.3934117957 | AA16: 1.4 | AB16: 25.11886432 | AC16: 25,1188643150958j | AD16: =IMPRODUCT(V_S_Lage,Drehzahlregelkreis!AP16,IMEXP(IMPRODUCT(AC16,T_t_Lage,-1)),IMDIV(1,AC16)) -> -0,0019140207253348-0,0404788946441467j | AE16: -27.84572792 | AF16: -92.70718085 | AH16: 155,26150574278-477,728037987418j | AI16: 54.01969255 | AJ16: -71.99584996 | AL16: -19,635076658086-5,37043276747212j | AM16: 26.17396463 | AN16: -164.7030308 | AO16: 1 | AP16: 1,04954719118574-0,0142789785071609j | AQ16: 0.420843189 | AR16: -0.7794549309
O17: 15 | P17: 1.214233937 | Q17: 0.4371242175 | R17: 15 | S17: 1.214233937 | T17: 0.4371242175 | U17: 15 | V17: 1.214233937 | W17: 0.4371242175 | AA17: 1.5 | AB17: 31.6227766 | AC17: 31,6227766016838j | AD17: =IMPRODUCT(V_S_Lage,Drehzahlregelkreis!AP17,IMEXP(IMPRODUCT(AC17,T_t_Lage,-1)),IMDIV(1,AC17)) -> -0,00195902543576881-0,0324692367568317j | AE17: -29.75477753 | AF17: -93.45274473 | AH17: 155,26150574278-379,472869092839j | AI17: 52.25582681 | AJ17: -67.74805267 | AL17: -12,6253556683155-4,29782558644747j | AM17: 22.50104928 | AN17: -161.2007974 | AO17: 1 | AP17: 1,07567595752309-0,0279769562154632j | AQ17: 0.6365660434 | AR17: -1.489854084
D18: Reglereinstellung: | G18: Anzeige Regler | I18: Real | O18: 16 | P18: 1.349148819 | Q18: 0.485693575 | R18: 16 | S18: 1.349148819 | T18: 0.485693575 | U18: 16 | V18: 1.349148819 | W18: 0.485693575 | AA18: 1.6 | AB18: 39.81071706 | AC18: 39,8107170553498j | AD18: =IMPRODUCT(V_S_Lage,Drehzahlregelkreis!AP18,IMEXP(IMPRODUCT(AC18,T_t_Lage,-1)),IMDIV(1,AC18)) -> -0,00203302546602778-0,0261949665508035j | AE18: -31.60956172 | AF18: -94.43790374 | AH18: 155,26150574278-301,426014232273j | AI18: 50.60561024 | AJ18: -62.74746006 | AL18: -8,2114949554253-3,45426318650204j | AM18: 18.99604853 | AN18: -157.1853638 | AO18: 1 | AP18: 1,11278958971273-0,054025542550264j | AQ18: 0.9384856547 | AR18: -2.779507452
B19: TN | D19: P-Anteil | G19: =B6 -> 73.93405035 | H19: [1] | I19: =G19*G7 -> 155.2615057 | J19: [1] | O19: 17 | P19: 1.499054244 | Q19: 0.5396595277 | R19: 17 | S19: 1.499054244 | T19: 0.5396595277 | U19: 17 | V19: 1.499054244 | W19: 0.5396595277 | AA19: 1.7 | AB19: 50.11872336 | AC19: 50,1187233627273j | AD19: =IMPRODUCT(V_S_Lage,Drehzahlregelkreis!AP19,IMEXP(IMPRODUCT(AC19,T_t_Lage,-1)),IMDIV(1,AC19)) -> -0,00215730344598703-0,0213280649161606j | AE19: -33.37676386 | AF19: -95.77574282 | AH19: 155,26150574278-239,431193785097j | AI19: 49.10802737 | AJ19: -57.03821235 | AL19: -5,44155022537041-2,79490173403348j | AM19: 15.73126351 | AN19: -152.8139552 | AO19: 1 | AP19: 1,16128310280744-0,101489435182334j | AQ19: 1.331806434 | AR19: -4.994630051
B20: =IF(B22=0.00001,"----- ms",""&ROUND(B22,2)&" ms") -> 61,83 ms | D20: Nachstellzeit Lageregler | G20: =B22 -> 61.83109308 | H20: [1] | I20: =G8/G20 -> 0.01293847416 | J20: [s] | K20: =1/I_Anteil_Lage -> 77.28886634 | L20: [1/s] | O20: 18 | P20: 1.665615826 | Q20: 0.5996216975 | R20: 18 | S20: 1.665615826 | T20: 0.5996216975 | U20: 18 | V20: 1.665615826 | W20: 0.5996216975 | AA20: 1.8 | AB20: 63.09573445 | AC20: 63,0957344480194j | AD20: =IMPRODUCT(V_S_Lage,Drehzahlregelkreis!AP20,IMEXP(IMPRODUCT(AC20,T_t_Lage,-1)),IMDIV(1,AC20)) -> -0,00237310124995513-0,0176210815955775j | AE20: -35.0012862 | AF20: -97.67010194 | AH20: 155,26150574278-190,186957497244j | AI20: 47.80153171 | AJ20: -50.77308816 | AL20: -3,71975116982167-2,28454275478388j | AM20: 12.80024551 | AN20: -148.4431901 | AO20: 1 | AP20: 1,21557640533472-0,181080357782174j | AQ20: 1.790966043 | AR20: -8.472853684
O21: 19 | P21: 1.850684251 | Q21: 0.6662463305 | R21: 19 | S21: 1.850684251 | T21: 0.6662463305 | U21: 19 | V21: 1.850684251 | W21: 0.6662463305 | AA21: 1.9 | AB21: 79.43282347 | AC21: 79,4328234724283j | AD21: =IMPRODUCT(V_S_Lage,Drehzahlregelkreis!AP21,IMEXP(IMPRODUCT(AC21,T_t_Lage,-1)),IMDIV(1,AC21)) -> -0,00276821309415405-0,0148975516039729j | AE21: -36.39028026 | AF21: -100.5264536 | AH21: 155,26150574278-151,070870216367j | AI21: 46.71437071 | AJ21: -44.21624101 | AL21: -2,68038301812066-1,89481993283541j | AM21: 10.32409044 | AN21: -144.7426946 | AO21: 1 | AP21: 1,26198553885243-0,295418018260741j | AQ21: 2.252780801 | AR21: -13.17512312
B22: 61.83109308 | O22: 20 | P22: 2.056315835 | Q22: 0.7402737006 | R22: 20 | S22: 2.056315835 | T22: 0.7402737006 | U22: 20 | V22: 2.056315835 | W22: 0.7402737006 | AA22: 2 | AB22: 100 | AC22: 100j | AD22: =IMPRODUCT(V_S_Lage,Drehzahlregelkreis!AP22,IMEXP(IMPRODUCT(AC22,T_t_Lage,-1)),IMDIV(1,AC22)) -> -0,0035555744383771-0,0130378961968933j | AE22: -37.38430623 | AF22: -105.2542375 | AH22: 155,26150574278-119,999857657229j | AI22: 45.85529546 | AJ22: -37.70002986 | AL22: -2,11658952885989-1,59761496875278j | AM22: 8.470989225 | AN22: -142.9542674 | AO22: 1 | AP22: 1,29390541930237-0,420519524085508j | AQ22: 2.674129658 | AR22: -18.00417213
D23: errechnete Optimalwerte: | G23: Anzeige Regler | I23: Real | O23: 21 | P23: 2.284795372 | Q23: 0.822526334 | R23: 21 | S23: 2.284795372 | T23: 0.822526334 | U23: 21 | V23: 2.284795372 | W23: 0.822526334 | AA23: 2.1 | AB23: 125.8925412 | AC23: 125,892541179417j | AD23: =IMPRODUCT(V_S_Lage,Drehzahlregelkreis!AP23,IMEXP(IMPRODUCT(AC23,T_t_Lage,-1)),IMDIV(1,AC23)) -> -0,00534093252266138-0,0118586000249304j | AE23: -37.71722979 | AF23: -114.2460746 | AH23: 155,26150574278-95,3192751000314j | AI23: 45.21032105 | AJ23: -31.54689939 | AL23: -1,95959438361657-1,3320902794538j | AM23: 7.493091261 | AN23: -145.792974 | AO23: 1 | AP23: 1,35602693794574-0,494229678037298j | AQ23: 3.187042878 | AR23: -20.02522635
D24: P-Anteil | G24: =1/(2*V_S_Lage*T_Summe_Lage)/G7 -> 34.74893086 | H24: [1] | I24: =1/(2*V_S_Lage*T_Summe_Lage) -> 72.97275481 | J24: [1] | O24: 22 | P24: 2.538661525 | Q24: 0.9139181489 | R24: 22 | S24: 2.538661525 | T24: 0.9139181489 | U24: 22 | V24: 2.538661525 | W24: 0.9139181489 | AA24: 2.2 | AB24: 158.4893192 | AC24: 158,489319246112j | AD24: =IMPRODUCT(V_S_Lage,Drehzahlregelkreis!AP24,IMEXP(IMPRODUCT(AC24,T_t_Lage,-1)),IMDIV(1,AC24)) -> -0,00979753636278571-0,00978244224886895j | AE24: -37.17405311 | AF24: -135.044169 | AH24: 155,26150574278-75,7147915254058j | AI24: 44.74782297 | AJ24: -25.99662988 | AL24: -2,26185582373818-0,777018290230278j | AM24: 7.573769855 | AN24: -161.0407989 | AO24: 1 | AP24: 1,57460576100544-0,353827416392345j | AQ24: 4.15737225 | AR24: -12.66448964
D25: Nachstellzeit Lageregler | G25: =G8/I25 -> 29.18910192 | H25: [1] | I25: =4*T_Summe_Lage -> 0.02740748935 | J25: [s] | K25: =1/I25 -> 36.48637741 | L25: [1/s] | O25: 23 | P25: 2.820735027 | Q25: 1.01546461 | R25: 23 | S25: 2.820735027 | T25: 1.01546461 | U25: 23 | V25: 2.820735027 | W25: 1.01546461 | AA25: 2.3 | AB25: 199.5262315 | AC25: 199,526231496888j | AD25: =IMPRODUCT(V_S_Lage,Drehzahlregelkreis!AP25,IMEXP(IMPRODUCT(AC25,T_t_Lage,-1)),IMDIV(1,AC25)) -> -0,0122832566970993+0,000620878137900092j | AE25: -38.2026475 | AF25: 177.1063499 | AH25: 155,26150574278-60,1423966948929j | AI25: 44.42844032 | AJ25: -21.17447119 | AL25: -1,86977583094795+0,835142971555288j | AM25: 6.225792821 | AN25: 155.9318787 | AO25: 1 | AP25: 1,59820599483066+0,574386542312371j | AQ25: 4.600227076 | AR25: 19.76816126
O26: 24 | P26: 3.13415003 | Q26: 1.128294011 | R26: 24 | S26: 3.13415003 | T26: 1.128294011 | U26: 24 | V26: 3.13415003 | W26: 1.128294011 | AA26: 2.4 | AB26: 251.1886432 | AC26: 251,188643150959j | AD26: =IMPRODUCT(V_S_Lage,Drehzahlregelkreis!AP26,IMEXP(IMPRODUCT(AC26,T_t_Lage,-1)),IMDIV(1,AC26)) -> -0,00393680997241875+0,00409352336891343j | AE26: -44.91397483 | AF26: 133.8820045 | AH26: 155,26150574278-47,7728037987416j | AI26: 44.21412663 | AJ26: -17.10274003 | AL26: -0,415675955392262+0,823639052456047j | AM26: -0.6998482007 | AN26: 116.7792645 | AO26: 1 | AP26: 0,427029861658146+0,807635054871479j | AQ26: -0.7850658942 | AR26: 62.13275052
O27: 25 | P27: 3.482388923 | Q27: 1.253660012 | R27: 25 | S27: 3.482388923 | T27: 1.253660012 | U27: 25 | V27: 3.482388923 | W27: 1.253660012 | AA27: 2.5 | AB27: 316.227766 | AC27: 316,227766016839j | AD27: =IMPRODUCT(V_S_Lage,Drehzahlregelkreis!AP27,IMEXP(IMPRODUCT(AC27,T_t_Lage,-1)),IMDIV(1,AC27)) -> -0,000988911467146161+0,00228308815863296j | AE27: -52.08278662 | AF27: 113.419676 | AH27: 155,26150574278-37,9472869092838j | AI27: 44.07325148 | AJ27: -13.73434416 | AL27: -0,0669028820405813+0,392002212424541j | AM27: -8.009535141 | AN27: 99.68533184 | AO27: 1 | AP27: 0,0890712140849317+0,382689103381667j | AQ27: -8.113959358 | AR27: 76.89763241
O28: 26 | P28: 3.869321025 | Q28: 1.392955569 | R28: 26 | S28: 3.869321025 | T28: 1.392955569 | U28: 26 | V28: 3.869321025 | W28: 1.392955569 | AA28: 2.6 | AB28: 398.1071706 | AC28: 398,107170553498j | AD28: =IMPRODUCT(V_S_Lage,Drehzahlregelkreis!AP28,IMEXP(IMPRODUCT(AC28,T_t_Lage,-1)),IMDIV(1,AC28)) -> -0,000205436146676612+0,00120660312875402j | AE28: -58.2446061 | AF28: 99.66251846 | AH28: 155,26150574278-30,1426014232273j | AI28: 43.981955 | AJ28: -10.98677919 | AL28: 0,00447383171904605+0,193531398491495j | AM28: -14.26265111 | AN28: 88.67573927 | AO28: 1 | AP28: 0,04008731262521+0,184945828304398j | AQ28: -14.45972006 | AR28: 77.77022679
D29: Bodediagramm: | O29: 27 | P29: 4.299245584 | Q29: 1.54772841 | R29: 27 | S29: 4.299245584 | T29: 1.54772841 | U29: 27 | V29: 4.299245584 | W29: 1.54772841 | AA29: 2.7 | AB29: 501.1872336 | AC29: 501,187233627274j | AD29: =IMPRODUCT(V_S_Lage,Drehzahlregelkreis!AP29,IMEXP(IMPRODUCT(AC29,T_t_Lage,-1)),IMDIV(1,AC29)) -> 0,000046882732657204+0,000654013633466804j | AE29: -63.66600407 | AF29: 85.89978624 | AH29: 155,26150574278-23,9431193785097j | AI29: 43.9233474 | AJ29: -8.766613428 | AL29: 0,0229382101669623+0,10042062264356j | AM29: -19.74265667 | AN29: 77.13317282 | AO29: 1 | AP29: 0,0317549357554289+0,0950514618151998j | AQ29: -19.98129777 | AR29: 71.52647929
D30: untere Grenze von ω | G30: 1 | H30: [1/s] | O30: 28 | P30: 4.776939537 | Q30: 1.719698233 | R30: 28 | S30: 4.776939537 | T30: 1.719698233 | U30: 28 | V30: 4.776939537 | W30: 1.719698233 | AA30: 2.8 | AB30: 630.9573445 | AC30: 630,957344480195j | AD30: =IMPRODUCT(V_S_Lage,Drehzahlregelkreis!AP30,IMEXP(IMPRODUCT(AC30,T_t_Lage,-1)),IMDIV(1,AC30)) -> 0,000131908624985739+0,000347563907908213j | AE30: -68.59490212 | AF30: 69.21707592 | AH30: 155,26150574278-19,0186957497244j | AI30: 43.88595738 | AJ30: -6.983632531 | AL30: 0,0270905439538371+0,0514545656783058j | AM30: -24.70894474 | AN30: 62.23344338 | AO30: 1 | AP30: 0,0288134386280076+0,0486539215088412j | AQ30: -24.95200541 | AR30: 59.3654715
D31: obere Grenze von ω | G31: 100000 | H31: [1/s] | O31: 29 | P31: 5.307710597 | Q31: 1.910775815 | R31: 29 | S31: 5.307710597 | T31: 1.910775815 | U31: 29 | V31: 5.307710597 | W31: 1.910775815 | AA31: 2.9 | AB31: 794.3282347 | AC31: 794,328234724284j | AD31: =IMPRODUCT(V_S_Lage,Drehzahlregelkreis!AP31,IMEXP(IMPRODUCT(AC31,T_t_Lage,-1)),IMDIV(1,AC31)) -> 0,000147258499288677+0,000161982223446577j | AE31: -73.19453227 | AF31: 47.72593674 | AH31: 155,26150574278-15,1070870216367j | AI31: 43.86219915 | AJ31: -5.557437709 | AL31: 0,0253106558785477+0,0229249569524493j | AM31: -29.33233312 | AN31: 42.16849903 | AO31: 1 | AP31: 0,0251731827617304+0,0217961870318527j | AQ31: -29.55161314 | AR31: 40.8876341
D32: feste Anzahl der Intervalle von ω | G32: 50 | H32: [1] | O32: 30 | P32: 5.897456219 | Q32: 2.123084239 | R32: 30 | S32: 5.897456219 | T32: 2.123084239 | U32: 30 | V32: 5.897456219 | W32: 2.123084239 | AA32: 3 | AB32: 1000 | AC32: 1000j | AD32: =IMPRODUCT(V_S_Lage,Drehzahlregelkreis!AP32,IMEXP(IMPRODUCT(AC32,T_t_Lage,-1)),IMDIV(1,AC32)) -> 0,000124450936449053+0,000044722484680258j | AE32: -77.57256473 | AF32: 19.76632442 | AH32: 155,26150574278-11,9999857657229j | AI32: 43.84714157 | AJ32: -4.419539678 | AL32: 0,0198591089637499+0,00545027084609575j | AM32: -33.72542315 | AN32: 15.34678475 | AO32: 1 | AP32: 0,0195004072778296+0,00523992804285709j | AQ32: -33.89635077 | AR32: 15.04059094
D33: untere Grenze für Exponent von ω | G33: =LOG10(G30) -> 0 | H33: [1] | O33: 31 | P33: 6.552729132 | Q33: 2.358982488 | R33: 31 | S33: 6.552729132 | T33: 2.358982488 | U33: 31 | V33: 6.552729132 | W33: 2.358982488 | AA33: 3.1 | AB33: 1258.925412 | AC33: 1258,92541179417j | AD33: =IMPRODUCT(V_S_Lage,Drehzahlregelkreis!AP33,IMEXP(IMPRODUCT(AC33,T_t_Lage,-1)),IMDIV(1,AC33)) -> 0,0000779736662544752-0,0000229872342888099j | AE33: -81.79909883 | AF33: -16.42592082 | AH33: 155,26150574278-9,53192751000314j | AI33: 43.83761395 | AJ33: -3.513134931 | AL33: 0,0118871961800584-0,00431227194296952j | AM33: -37.96148488 | AN33: -19.93905575 | AO33: 1 | AP33: 0,0117654984104682-0,00421147330489661j | AQ33: -38.06420577 | AR33: -19.69488477
D34: obere Grenze für Exponent von ω | G34: =LOG10(G31) -> 5 | H34: [1] | O34: 32 | P34: 7.280810147 | Q34: 2.621091653 | R34: 32 | S34: 7.280810147 | T34: 2.621091653 | U34: 32 | V34: 7.280810147 | W34: 2.621091653 | AA34: 3.2 | AB34: =10^AA34 -> 1584.893192 | AC34: =COMPLEX(0,AB34,"j") -> 1584,89319246112j | AD34: =IMPRODUCT(V_S_Lage,Drehzahlregelkreis!AP34,IMEXP(IMPRODUCT(AC34,T_t_Lage,-1)),IMDIV(1,AC34)) -> 0,0000230300982476254-0,0000450573132686303j | AE34: =20*LOG10(IMABS(AD34)) -> -85.91667264 | AF34: =IMARGUMENT(AD34)*180/PI() -> -62.92710834 | AH34: =IMPRODUCT(P_Anteil_Lage,IMSUM(1,IMDIV(1,IMPRODUCT(AC34,I_Anteil_Lage)))) -> 155,26150574278-7,57147915254058j | AI34: =20*LOG10(IMABS(AH34)) -> 43.83159166 | AJ34: -2.79187298 | AL34: =IMPRODUCT(AH34,AD34) -> 0,00323453722324755-0,00717003821157454j | AM34: =20*LOG10(IMABS(AL34)) -> -42.08508098 | AN34: =AF34+AJ34 -> -65.71898132 | AO34: 1 | AP34: =IMDIV(AL34,IMSUM(1,AL34)) -> 0,00327501992357078-0,00712351491941166j | AQ34: =20*LOG10(IMABS(AP34)) -> -42.1133523 | AR34: =IMARGUMENT(AP34)*180/PI() -> -65.30949987
D35: Schrittweite Exponent von ω | G35: =ABS((G34-G33)/G32) -> 0.1 | H35: [1] | O35: 33 | P35: 8.089789052 | Q35: 2.912324059 | R35: 33 | S35: 8.089789052 | T35: 2.912324059 | U35: 33 | V35: 8.089789052 | W35: 2.912324059 | AA35: =AA34+$G$35 -> 3.3 | AB35: 1995.262315 | AC35: 1995,26231496889j | AD35: =IMPRODUCT(V_S_Lage,Drehzahlregelkreis!AP35,IMEXP(IMPRODUCT(AC35,T_t_Lage,-1)),IMDIV(1,AC35)) -> -0,0000170047730447863-0,000026897373636591j | AE35: -89.94548775 | AF35: -122.3014599 | AH35: 155,26150574278-6,01423966948926j | AI35: 43.82778755 | AJ35: =IF(AJ34="","",IF(IMARGUMENT(AH35)*180/PI()>0,"",IMARGUMENT(AH35)*180/PI())) -> -2.218311303 | AL35: -0,00280195391927802-0,00407385595072666j | AM35: -46.11770021 | AN35: -124.5197712 | AO35: 1 | AP35: -0,0027930906101902-0,00409671340170196j | AQ35: -46.09340106 | AR35: -124.2857019
O36: 34 | P36: 8.988654502 | Q36: 3.235915621 | R36: 34 | S36: 8.988654502 | T36: 3.235915621 | U36: 34 | V36: 8.988654502 | W36: 3.235915621 | AA36: 3.4 | AB36: 2511.886432 | AC36: 2511,88643150959j | AD36: =IMPRODUCT(V_S_Lage,Drehzahlregelkreis!AP36,IMEXP(IMPRODUCT(AC36,T_t_Lage,-1)),IMDIV(1,AC36)) -> -0,0000192539500702671+0,0000061773603039751j | AE36: -93.88410108 | AF36: 162.211889 | AH36: 155,26150574278-4,77728037987416j | AI36: 43.8253856 | AJ36: -1.762392233 | AL36: -0,00295988629722638+0,00105108778021661j | AM36: -50.05871548 | AN36: 160.4494968 | AO36: 1 | AP36: -0,00296755857968508+0,00105733654071521j | AQ36: -50.03297294 | AR36: 160.3890951
D37: Nulldurchgang Betrag Regler+Strecke | G37: =MATCH(-0.5,AM2:AM51,-1)+1 -> 25 | H37: [Zeile] | O37: 35 | P37: 9.987393891 | Q37: 3.595461801 | R37: 35 | S37: 9.987393891 | T37: 3.595461801 | U37: 35 | V37: 9.987393891 | W37: 3.595461801 | AA37: 3.5 | AB37: 3162.27766 | AC37: 3162,2776601684j | AD37: =IMPRODUCT(V_S_Lage,Drehzahlregelkreis!AP37,IMEXP(IMPRODUCT(AC37,T_t_Lage,-1)),IMDIV(1,AC37)) -> 5,20349632725193E-06+0,0000119405678565901j | AE37: -97.70437087 | AF37: 66.45324698 | AH37: 155,26150574278-3,79472869092836j | AI37: 43.82386939 | AJ37: -1.400080851 | AL37: 0,000853213890327539+0,00183416468803185j | AM37: -53.88050149 | AN37: 65.05316613 | AO37: 1 | AP37: 0,00085584208943519+0,00183103267018503j | AQ37: -53.88792383 | AR37: 64.94816594
D38: ω der Zeile | G38: =INDEX(AA1:AR51,G37,2) -> 199.5262315 | H38: [1/s] | O38: 36 | P38: 11.09710432 | Q38: 3.994957557 | R38: 36 | S38: 11.09710432 | T38: 3.994957557 | U38: 36 | V38: 11.09710432 | W38: 3.994957557 | AA38: 3.6 | AB38: 3981.071706 | AC38: 3981,07170553499j | AD38: =IMPRODUCT(V_S_Lage,Drehzahlregelkreis!AP38,IMEXP(IMPRODUCT(AC38,T_t_Lage,-1)),IMDIV(1,AC38)) -> 4,90849567861414E-06-7,02545805839919E-06j | AE38: -101.3400589 | AF38: -55.05905142 | AH38: 155,26150574278-3,01426014232273j | AI38: 43.82291245 | AJ38: -1.112205442 | AL38: 0,000740923871786567-0,00110557867956262j | AM38: -57.51714644 | AN38: -56.17125686 | AO38: 1 | AP38: 0,000741594899891423-0,00110394085192219j | AQ38: -57.52358494 | AR38: -56.10795879
D39: Phase Regler+Strecke | G39: =INDEX(AA1:AR51,G37,14) -> 155.9318787 | H39: [°] | O39: 37 | P39: 12.33011592 | Q39: 4.43884173 | R39: 37 | S39: 12.33011592 | T39: 4.43884173 | U39: 37 | V39: 12.33011592 | W39: 4.43884173 | AA39: 3.7 | AB39: 5011.872336 | AC39: 5011,87233627275j | AD39: =IMPRODUCT(V_S_Lage,Drehzahlregelkreis!AP39,IMEXP(IMPRODUCT(AC39,T_t_Lage,-1)),IMDIV(1,AC39)) -> -0,0000050541095469004+2,91135158814616E-06j | AE39: -104.682658 | AF39: 150.0564871 | AH39: 155,26150574278-2,39431193785097j | AI39: 43.82230856 | AJ39: -0.8834971367 | AL39: -0,000777737974577936+0,000464121946145557j | AM39: -60.86034945 | AN39: 149.1729899 | AO39: 1 | AP39: -0,000778127409223708+0,000464844619465912j | AQ39: -60.85359241 | AR39: 149.146377
D40: Punkt auf Nulldurchgang | G40: -90 | H40: [°] | O40: 38 | P40: 13.70012879 | Q40: 4.932046366 | R40: 38 | S40: 13.70012879 | T40: 4.932046366 | U40: 38 | V40: 13.70012879 | W40: 4.932046366 | AA40: 3.8 | AB40: 6309.573445 | AC40: 6309,57344480197j | AD40: =IMPRODUCT(V_S_Lage,Drehzahlregelkreis!AP40,IMEXP(IMPRODUCT(AC40,T_t_Lage,-1)),IMDIV(1,AC40)) -> 2,65890087212109E-06-3,14341767043083E-06j | AE40: -107.7080907 | AF40: -49.7733525 | AH40: 155,26150574278-1,90186957497243j | AI40: 43.82192748 | AJ40: -0.7018072481 | AL40: 0,000406846582597488-0,000493108643361107j | AM40: -63.88616322 | AN40: -50.47515975 | AO40: 1 | AP40: 0,000406923985306012-0,000492707529252264j | AQ40: -63.88969738 | AR40: -50.4469182
D41: 180°-Durchgang Phase Regler+Strecke | G41: =MATCH(0,AO54:AO103,-1) -> 24 | H41: [Zeile] | O41: 39 | P41: 15.22236533 | Q41: 5.480051518 | R41: 39 | S41: 15.22236533 | T41: 5.480051518 | U41: 39 | V41: 15.22236533 | W41: 5.480051518 | AA41: 3.9 | AB41: 7943.282347 | AC41: 7943,28234724286j | AD41: =IMPRODUCT(V_S_Lage,Drehzahlregelkreis!AP41,IMEXP(IMPRODUCT(AC41,T_t_Lage,-1)),IMDIV(1,AC41)) -> 0,000001775315281157+2,03207650375428E-06j | AE41: -111.3780424 | AF41: 48.85804623 | AH41: 155,26150574278-1,51070870216367j | AI41: 43.82168702 | AJ41: -0.5574756013 | AL41: 0,000278707999378287+0,000312821273513085j | AM41: -67.55635539 | AN41: 48.30057063 | AO41: 1 | AP41: 0,000278728118237334+0,000312646944223837j | AQ41: -67.5587763 | AR41: 48.28265229
D42: ω der Zeile | G42: =INDEX(AA2:AR51,G41,2) -> 199.5262315 | H42: [1/s] | O42: 40 | P42: 16.91373925 | Q42: 6.088946131 | R42: 40 | S42: 16.91373925 | T42: 6.088946131 | U42: 40 | V42: 16.91373925 | W42: 6.088946131 | AA42: 4 | AB42: 10000 | AC42: 10000j | AD42: =IMPRODUCT(V_S_Lage,Drehzahlregelkreis!AP42,IMEXP(IMPRODUCT(AC42,T_t_Lage,-1)),IMDIV(1,AC42)) -> 1,8117894190689E-07+1,22033776843422E-06j | AE42: -118.1757106 | AF42: 81.55519873 | AH42: 155,26150574278-1,19999857657229j | AI42: 43.82153529 | AJ42: -0.4428237672 | AL42: 0,0000295945189144059+0,000189254064969488j | AM42: -74.35417529 | AN42: 81.11237496 | AO42: 1 | AP42: 0,0000296294570248188+0,000189242856922995j | AQ42: -74.35443249 | AR42: 81.10153182
D43: Maxwert ω | G43: =G31 -> 100000 | H43: [1/s] | O43: 41 | P43: 18.79304361 | Q43: 6.765495701 | R43: 41 | S43: 18.79304361 | T43: 6.765495701 | U43: 41 | V43: 18.79304361 | W43: 6.765495701 | AA43: 4.1 | AB43: 12589.25412 | AC43: 12589,2541179417j | AD43: =IMPRODUCT(V_S_Lage,Drehzahlregelkreis!AP43,IMEXP(IMPRODUCT(AC43,T_t_Lage,-1)),IMDIV(1,AC43)) -> 2,78162746360713E-07+3,63405357956774E-07j | AE43: -126.7894459 | AF43: 52.56833533 | AH43: 155,26150574278-0,953192751000314j | AI43: 43.82143956 | AJ43: -0.3517500059 | AL43: 0,0000435343621943904+0,0000561577203579333j | AM43: -82.96800629 | AN43: 52.21658533 | AO43: 1 | AP43: 0,0000435356203139035+0,0000561528309190629j | AQ43: -82.96838443 | AR43: 52.21336787
O44: 42 | P44: 20.88115957 | Q44: 7.517217446 | R44: 42 | S44: 20.88115957 | T44: 7.517217446 | U44: 42 | V44: 20.88115957 | W44: 7.517217446 | AA44: 4.2 | AB44: 15848.93192 | AC44: 15848,9319246112j | AD44: =IMPRODUCT(V_S_Lage,Drehzahlregelkreis!AP44,IMEXP(IMPRODUCT(AC44,T_t_Lage,-1)),IMDIV(1,AC44)) -> 8,28643587707274E-08-1,55388535434423E-07j | AE44: -135.0846884 | AF44: -61.93024799 | AH44: 155,26150574278-0,757147915254058j | AI44: 43.82137915 | AJ44: -0.2794062567 | AL44: 0,0000127479930094945-0,000024188598563206j | AM44: -91.26330924 | AN44: -62.20965425 | AO44: 1 | AP44: 0,000012748415566165-0,000024187981848676j | AQ44: -91.26341997 | AR44: -62.20826836
